Workbook

Sheet PANDUAN
E4: APLIKASI PENGOLAHAN NILAI SEKOLAH & SKHU (K-13)
E5: Edit by Smpn2tjtrr
E7: TAHUN PELAJARAN 2020 / 2021
E8: Kriteria Kelulusan Fleksibel Tergantung Kemauan Sekolah
E20: PRINT DAFTAR NILAI SEKOLAH UNTUK LAPORAN
E21: (4 MAPEL)
D24: KRITERIA KELULUSAN | E24: KRITERIA KELULUSAN
D26: KRITERIA KELULUSAN
E38: Petunjuk
E39: 1. Shet yang harus diisi terdiri dari DATA SEKOLAH, BIODATA SISWA, dan
E40: Nilai Raport dan Nilai Ujian Sekolah
E41: 2. Angka yang dinput puluhan, misalanya 70, 80, 85 dsb
E42: 3. Gunakan Kertas A4 Untuk Print Out
E43: 4. Password ******

Sheet KRITERIA&MULOK
C2: KRITERIA KELULUSAN
C6: NILAI MINIMAL RATA-RATA RAPOR SEMESTER 1 - 5 DITAMBAH DENGAN NILAI SEMESTER 6 (NILAUI US) | D6: : | E6: 60
C9: PROSENTASE RATA-RATA RAPORT | D9: : | E9: 0.83
C10: PROSENTASE NILAI SMT 6 (US) | D10: : | E10: 0.17
C12: Catatan : Jumlah Presentase rata-rata raport dan Nilai Ujian Sekolah (US) maksimal 100%
C15: NAMA MATA PELAJARAN MULOK
C17: MULOK 1 | D17: : | E17: Baca Tulis Quran
C18: MULOK 1 | D18: :
C20: JUMLAH MAPEL SELURUHNYA TERMASUK MULOK | E20: 10
C22: IDENTITAS SEKOLAH
C24: Nama Kabupaten | D24: : | E24: PEMERINTAH KABUPATEN TANJUNG JABUNG TIMUR
C25: Nama Dinas | D25: : | E25: DINAS PENDIDIKAN DAN KEBUDAYAAN
C26: Nama Sekolah | D26: : | E26: SMP NEGERI 2 TANJUNG JABUNG TIMUR
C27: Alamat Sekolah | D27: : | E27: Jl. Jendral Sudirman SK. 12 Bandar Jaya Kec. Rantau Rasau Kab. Tanjab Timur
C29: IDENTITAS UNTUK BLANKO SKHU
C31: Kode Provinsi | D31: : | E31: 10 - Jambi
C32: Kode Kabupaten | D32: : | E32: 13 - Tanjung Jabung Timur
C33: Nama Kabupaten | D33: : | E33: Tanjung Jabung Timur
C34: Kode Sekolah dan Nama Sekolah | D34: : | E34: SMP Negeri 2 Tanjung Jabung Timur
C35: Sub Rayon | D35: :
C36: Nama Kepala Sekolah | D36: : | E36: SUPRIONO SANTOSO, S.Pd
C37: NIP | D37: : | E37: 19800801 200501 1 008
C38: Tempat dan tgl Kelulusan | D38: : | E38: Rantau Rasau, 4 Juni 2021
C39: Nor Surat SKHU | D39: : | E39: /421.3/SMPN2TJT/VI/2021
C40: No Surat Pengumuman kelulusan | D40: : | E40: /421.3/SMPN2TJT/VI/2021

Sheet BIODATA
A1: BIODATA SISWA
A3: PROVINSI : | C3: =+'KRITERIA&MULOK'!E31 -> 10 - Jambi
A4: KOTA/KABUPATEN : | C4: =+'KRITERIA&MULOK'!E32 -> 13 - Tanjung Jabung Timur
A5: SR - SEKOLAH : | C5: =+'KRITERIA&MULOK'!E34 -> SMP Negeri 2 Tanjung Jabung Timur
A6: 1 | B6: 2 | C6: 3 | D6: 4 | E6: 5 | F6: 6 | G6: 7 | H6: 8 | I6: 9
A7: NOMOR URUT | B7: NOMOR INDUK | C7: NISN | D7: NOMOR PESERTA UN | E7: NAMA SISWA | F7: L/P | G7: TEMPAT LAHIR | H7: TANGGAL LAHIR | I7: NAMA ORANG TUA
A8: 1 | B8: 17187051 | C8: 0053990028 | E8: M. TOLEHAN | F8: L | G8: Rantau Rasau | H8: 11 Januari 2005 | I8: Upik Abu
A9: 2 | B9: 17187051 | C9: 0053990028 | E9: M. TOLEHAN | F9: L | G9: Rantau Rasau | H9: 11 Agustus 2005 | I9: Upik Abu
A10: 3
A11: 4
A12: 5
A13: 6
A14: 7
A15: 8
A16: 9
A17: 10
A18: 11
A19: 12
A20: 13
A21: 14
A22: 15
A23: 16
A24: 17
A25: 18
A26: 19
A27: 20
A28: 21
A29: 22
A30: 23
A31: 24
A32: 25
A33: 26
A34: 27
A35: 28
A36: 29
A37: 30
A38: 31
A39: 32
A40: 33
A41: 34
A42: 35
A43: 36
A44: 37
A45: 38
A46: 39
A47: 40
A48: 41
A49: 42
A50: 43
A51: 44
A52: 45
A53: 46
A54: 47
A55: 48
A56: 49
A57: 50
A58: 51
A59: 52
A60: 53
A61: 54
A62: 55
A63: 56
A64: 57
A65: 58
A66: 59
A67: 60
A68: 61
A69: 62
A70: 63
A71: 64
A72: 65
A73: 66
A74: 67
A75: 68
A76: 69
A77: 70
A78: 71
A79: 72
A80: 73
A81: 74
A82: 75
A83: 76
A84: 77
A85: 78
A86: 79
A87: 80
A88: 81
A89: 82
A90: 83
A91: 84
A92: 85
A93: 86
A94: 87
A95: 88
A96: 89
A97: 90
A98: 91
A99: 92
A100: 93
A101: 94
A102: 95
A103: 96
A104: 97
A105: 98
A106: 99
A107: 100 | C107: UMI
A108: 101
A109: 102
A110: 103
A111: 104
A112: 105
A113: 106
A114: 107
A115: 108
A116: 109
A117: 110
A118: 111
A119: 112
A120: 113
A121: 114
A122: 115
A123: 116
A124: 117
A125: 118
A126: 119
A127: 120
A128: 121
A129: 122
A130: 123
A131: 124
A132: 125
A133: 126
A134: 127
A135: 128
A136: 129
A137: 130
A138: 131
A139: 132
A140: 133
A141: 134
A142: 135
A143: 136
A144: 137
A145: 138
A146: 139
A147: 140
A148: 141
A149: 142
A150: 143
A151: 144
A152: 145
A153: 146
A154: 147
A155: 148
A156: 149
A157: 150
A158: 151
A159: 152
A160: 153
A161: 154
A162: 155
A163: 156
A164: 157
A165: 158
A166: 159
A167: 160
A168: 161
A169: 162
A170: 163
A171: 164
A172: 165
A173: 166
A174: 167
A175: 168
A176: 169
A177: 170
A178: 171
A179: 172
A180: 173
A181: 174
A182: 175
A183: 176
A184: 177
A185: 178
A186: 179
A187: 180
A188: 181
A189: 182
A190: 183
A191: 184
A192: 185
A193: 186
A194: 187
A195: 188
A196: 189
A197: 190
A198: 191
A199: 192
A200: 193
A201: 194
... 307 more rows

Sheet OLAH NILAI
C3: Nama Sekolah | D3: : | E3: =+'KRITERIA&MULOK'!E34 -> SMP Negeri 2 Tanjung Jabung Timur
C4: Alamat Sekolah | D4: : | E4: =+'KRITERIA&MULOK'!E27 -> Jl. Jendral Sudirman SK. 12 Bandar Jaya Kec. Rantau Rasau Kab. Tanjab Timur
C5: Sub Rayon | D5: : | E5: =+'KRITERIA&MULOK'!E35 -> 0
A8: 1 | B8: 2 | C8: 3 | D8: 4 | E8: 5 | F8: 6 | G8: 7 | H8: 8 | I8: 9 | J8: 10 | K8: 11 | L8: 12 | M8: 13 | N8: 14 | O8: 15 | P8: 16 | Q8: 17 | R8: 18 | S8: 19 | T8: 20 | U8: 21 | V8: 22 | W8: 23 | X8: 24 | Y8: 25 | Z8: 26 | AA8: 27 | AB8: 28 | AC8: 29 | AD8: 30 | AE8: 31 | AF8: 32 | AG8: 33 | AH8: 34 | AI8: 35 | AJ8: 36 | AK8: 37 | AL8: 38 | AM8: 39 | AN8: 40 | AO8: 41 | AP8: 42 | AQ8: 43 | AR8: 44 | AS8: 45 | AT8: 46 | AU8: 47 | AV8: 48 | AW8: 49 | AX8: 50 | AY8: 51 | AZ8: 52 | BA8: 53 | BB8: 54 | BC8: 55 | BD8: 56 | BE8: 57 | BF8: 58 | BG8: 59 | BH8: 60 | BI8: 61 | BJ8: 62 | BK8: 63 | BL8: 64 | BM8: 65 | BN8: 66 | BO8: 67 | BP8: 68 | BQ8: 69 | BR8: 70 | BS8: 71 | BT8: 72 | BU8: 73 | BV8: 74 | BW8: 75 | BX8: 76 | BY8: 77 | BZ8: 78 | CA8: 79 | CB8: 80 | CC8: 81 | CD8: 82 | CE8: 83 | CF8: 84 | CG8: 85 | CH8: 86 | CI8: 87 | CJ8: 88 | CK8: 89 | CL8: 90 | CM8: 91 | CN8: 92 | CO8: 93 | CP8: 94 | CQ8: 95 | CR8: 96 | CS8: 97 | CT8: 98 | CU8: 99 | CV8: 100 | CW8: 101 | CX8: 102 | CY8: 103 | CZ8: 104 | DA8: 105 | DB8: 106 | DC8: 107 | DD8: 108 | DE8: 109 | DF8: 110 | DG8: 111 | DH8: 112 | DI8: 113 | DJ8: 114 | DK8: 115 | DL8: 116 | DM8: 117
A9: NOMOR URUT | B9: NOMOR INDUK SISWA | C9: NAMA PESERTA | D9: N I S N | E9: NOMOR PESERTA US | F9: BAHASA INDONESIA | P9: BAHASA INGGRIS | Z9: MATEMATIKA | AJ9: IPA | AT9: PENDIDIKAN AGAMA | BB9: PEND. KEWARGANEGARAAN | BJ9: IPS | BR9: SENI BUDAYA | BZ9: PEND. JASMANI, ORKES | CH9: PRAKARYA | CP9: MULOK 1 (BHS. DAERAH) | CX9: MULOK 2 ( .................................. ) | DF9: JUMLAH NS SEMUA MAPEL | DG9: RATA NILAI IJAZAH | DH9: JUML NUN | DI9: RATA-RATA NUN | DJ9: JUML NA | DK9: RATA-RATA NA | DL9: SOSIAL | DM9: KETERANGAN
F10: NILAI SEKOLAH | N10: NILAI UN | O10: NA = NIL. GBNG KELULUSAN (0,4 NS+0,6 NUN) | P10: NILAI SEKOLAH | X10: NILAI UN | Y10: NA = NIL. GBNG KELULUSAN (0,4 NS+0,6 NUN) | Z10: NILAI SEKOLAH | AH10: NILAI UN | AI10: NA = NIL. GBNG KELULUSAN (0,4 NS+0,6 NUN) | AJ10: NILAI SEKOLAH | AR10: NILAI UN | AS10: NA = NIL. GBNG KELULUSAN (0,4 NS+0,6 NUN) | AT10: NILAI SEKOLAH | BB10: NILAI SEKOLAH | BJ10: NILAI SEKOLAH | BR10: NILAI SEKOLAH | BZ10: NILAI SEKOLAH | CH10: NILAI SEKOLAH | CP10: NILAI SEKOLAH | CX10: NILAI SEKOLAH
F11: R1 | G11: R2 | H11: R3 | I11: R4 | J11: R5 | K11: NR | L11: Nilai SMT 6 (US) | M11: NA (NILAI IJAZAH | P11: R1 | Q11: R2 | R11: R3 | S11: R4 | T11: R5 | U11: NR | V11: Nilai SMT 6 (US) | W11: NA | Z11: R1 | AA11: R2 | AB11: R3 | AC11: R4 | AD11: R5 | AE11: NR | AF11: Nilai SMT 6 (US) | AG11: NA | AJ11: R1 | AK11: R2 | AL11: R3 | AM11: R4 | AN11: R5 | AO11: NR | AP11: Nilai SMT 6 (US) | AQ11: NA | AT11: R1 | AU11: R2 | AV11: R3 | AW11: R4 | AX11: R5 | AY11: NR | AZ11: US | BA11: NA | BB11: R1 | BC11: R2 | BD11: R3 | BE11: R4 | BF11: R5 | BG11: NR | BH11: Nilai SMT 6 (US) | BI11: NA | BJ11: R1 | BK11: R2 | BL11: R3 | BM11: R4 | BN11: R5 | BO11: NR | BP11: Nilai SMT 6 (US) | BQ11: NA | BR11: R1 | BS11: R2 | BT11: R3 | BU11: R4 | BV11: R5 | BW11: NR | BX11: Nilai SMT 6 (US) | BY11: NA | BZ11: R1 | CA11: R2 | CB11: R3 | CC11: R4 | CD11: R5 | CE11: NR | CF11: Nilai SMT 6 (US) | CG11: NA | CH11: R1 | CI11: R2 | CJ11: R3 | CK11: R4 | CL11: R5 | CM11: NR | CN11: Nilai SMT 6 (US) | CO11: NA | CP11: R1 | CQ11: R2 | CR11: R3 | CS11: R4 | CT11: R5 | CU11: NR | CV11: Nilai SMT 6 (US) | CW11: NA | CX11: R1 | CY11: R2 | CZ11: R3 | DA11: R4 | DB11: R5 | DC11: NR | DD11: Nilai SMT 6 (US) | DE11: NA
F12: BIN | G12: BIN | H12: BIN | I12: BIN | J12: BIN | K12: BIN | L12: BIN | M12: BIN | N12: BIN | O12: BIN | P12: BIG | Q12: BIG | R12: BIG | S12: BIG | T12: BIG | U12: BIG | V12: BIG | W12: BIG | X12: BIG | Y12: BIG | Z12: MAT | AA12: MAT | AB12: MAT | AC12: MAT | AD12: MAT | AE12: MAT | AF12: MAT | AG12: MAT | AH12: MAT | AI12: MAT | AJ12: IPA | AK12: IPA | AL12: IPA | AM12: IPA | AN12: IPA | AO12: IPA | AP12: IPA | AQ12: IPA | AR12: IPA | AS12: IPA | AT12: AGAMA | AU12: AGAMA | AV12: AGAMA | AW12: AGAMA | AX12: AGAMA | AY12: AGAMA | AZ12: AGAMA | BA12: AGAMA | BB12: PKN | BC12: PKN | BD12: PKN | BE12: PKN | BF12: PKN | BG12: PKN | BH12: PKN | BI12: PKN | BJ12: IPS | BK12: IPS | BL12: IPS | BM12: IPS | BN12: IPS | BO12: IPS | BP12: IPS | BQ12: IPS | BR12: SENI | BS12: SENI | BT12: SENI | BU12: SENI | BV12: SENI | BW12: SENI | BX12: SENI | BY12: SENI | BZ12: PNJAS | CA12: PNJAS | CB12: PNJAS | CC12: PNJAS | CD12: PNJAS | CE12: PNJAS | CF12: PNJAS | CG12: PNJAS | CH12: TIK | CI12: TIK | CJ12: TIK | CK12: TIK | CL12: TIK | CM12: TIK | CN12: TIK | CO12: TIK | CP12: MLOK1 | CQ12: MLOK1 | CR12: MLOK1 | CS12: MLOK1 | CT12: MLOK1 | CU12: MLOK1 | CV12: MLOK1 | CW12: MLOK1 | CX12: MLOK2 | CY12: MLOK2 | CZ12: MLOK2 | DA12: MLOK2 | DB12: MLOK2 | DC12: MLOK2 | DD12: MLOK2 | DE12: MLOK2 | DF12: J-NS | DG12: NA | DH12: J-UN | DI12: R-UN | DJ12: J-UN | DK12: R-UN | DL12: KEP | DM12: L-US
A13: 1 | B13: 2 | C13: 3 | D13: 4 | E13: 5 | F13: 6 | G13: 7 | H13: 8 | I13: 9 | J13: 10 | K13: 11 | L13: 12 | M13: 13 | N13: 14 | O13: 15 | P13: 16 | Q13: 17 | R13: 18 | S13: 19 | T13: 20 | U13: 21 | V13: 22 | W13: 23 | X13: 24 | Y13: 25 | Z13: 26 | AA13: 27 | AB13: 28 | AC13: 29 | AD13: 30 | AE13: 31 | AF13: 32 | AG13: 33 | AH13: 34 | AI13: 35 | AJ13: 36 | AK13: 37 | AL13: 38 | AM13: 39 | AN13: 40 | AO13: 41 | AP13: 42 | AQ13: 43 | AR13: 44 | AS13: 45 | AT13: 46 | AU13: 47 | AV13: 48 | AW13: 49 | AX13: 50 | AY13: 51 | AZ13: 52 | BA13: 53 | BB13: 54 | BC13: 55 | BD13: 56 | BE13: 57 | BF13: 58 | BG13: 59 | BH13: 60 | BI13: 61 | BJ13: 62 | BK13: 63 | BL13: 64 | BM13: 65 | BN13: 66 | BO13: 67 | BP13: 68 | BQ13: 69 | BR13: 70 | BS13: 71 | BT13: 72 | BU13: 73 | BV13: 74 | BW13: 75 | BX13: 76 | BY13: 77 | BZ13: 78 | CA13: 79 | CB13: 80 | CC13: 81 | CD13: 82 | CE13: 83 | CF13: 84 | CG13: 85 | CH13: 86 | CI13: 87 | CJ13: 88 | CK13: 89 | CL13: 90 | CM13: 91 | CN13: 92 | CO13: 93 | CP13: 94 | CQ13: 95 | CR13: 96 | CS13: 97 | CT13: 98 | CU13: 99 | CV13: 100 | CW13: 101 | CX13: 102 | CY13: 103 | CZ13: 104 | DA13: 105 | DB13: 106 | DC13: 107 | DD13: 108 | DE13: 109 | DF13: 110 | DG13: 111 | DH13: 112 | DI13: 113 | DJ13: 114 | DK13: 115 | DL13: 116 | DM13: 117
A14: =+BIODATA!A8 -> 1 | B14: =+BIODATA!B8 -> 17187051 | C14: =+BIODATA!E8 -> M. TOLEHAN | D14: =+BIODATA!C8 -> 0053990028 | E14: =+BIODATA!D8 -> 0 | F14: =+BIND!H8 -> 0 | G14: =+BIND!K8 -> 0 | H14: =+BIND!N8 -> 0 | I14: =+BIND!Q8 -> 0 | J14: =+BIND!T8 -> 0 | K14: =VALUE(FIXED((F14+G14+H14+I14+J14)/5)) -> 0 | L14: =+'NILAI SMT 6 (US)'!N8 -> 70 | M14: =VALUE(FIXED((K14*RAP)+(L14*US))) -> 11.9 | N14: 7 | O14: =(M14*0.4)+(N14*0.6) -> 8.96 | P14: =+'B-ING'!H8 -> 0 | Q14: =+'B-ING'!K8 -> 0 | R14: =+'B-ING'!N8 -> 0 | S14: =+'B-ING'!Q8 -> 0 | T14: =+'B-ING'!T8 -> 0 | U14: =VALUE(FIXED((P14+Q14+R14+S14+T14)/5)) -> 0 | V14: =+'NILAI SMT 6 (US)'!Q8 -> 70 | W14: =VALUE(FIXED((U14*RAP)+(V14*US))) -> 11.9 | X14: 8 | Y14: =(W14*0.4)+(X14*0.6) -> 9.56 | Z14: =+MAT!H8 -> 0 | AA14: =+MAT!K8 -> 0 | AB14: =+MAT!N8 -> 0 | AC14: =+MAT!Q8 -> 0 | AD14: =+MAT!T8 -> 0 | AE14: =VALUE(FIXED((Z14+AA14+AB14+AC14+AD14)/5)) -> 0 | AF14: =+'NILAI SMT 6 (US)'!T8 -> 80 | AG14: =VALUE(FIXED((AE14*RAP)+(AF14*US))) -> 13.6 | AH14: 9 | AI14: =(AG14*0.4)+(AH14*0.6) -> 10.84 | AJ14: =+IPA!H8 -> 0 | AK14: =+IPA!K8 -> 0 | AL14: =+IPA!N8 -> 0 | AM14: =+IPA!Q8 -> 0 | AN14: =+IPA!T8 -> 0 | AO14: =VALUE(FIXED((AJ14+AK14+AL14+AM14+AN14)/5)) -> 0 | AP14: =+'NILAI SMT 6 (US)'!W8 -> 90 | AQ14: =VALUE(FIXED((AO14*RAP)+(AP14*US))) -> 15.3 | AR14: 6 | AS14: =(AQ14*0.4)+(AR14*0.6) -> 9.72 | AT14: =+Agama!H8 -> 75 | AU14: =+Agama!K8 -> 85 | AV14: =+Agama!N8 -> 72.5 | AW14: =+Agama!Q8 -> 92.5 | AX14: =+Agama!T8 -> 90 | AY14: =VALUE(FIXED((AT14+AU14+AV14+AW14+AX14)/5)) -> 83 | AZ14: =+'NILAI SMT 6 (US)'!H8 -> 72.5 | BA14: =VALUE(FIXED((AY14*RAP)+(AZ14*US))) -> 81.22 | BB14: =+PPKn!H8 -> 0 | BC14: =+PPKn!K8 -> 0 | BD14: =+PPKn!N8 -> 0 | BE14: =+PPKn!Q8 -> 0 | BF14: =+PPKn!T8 -> 0 | BG14: =VALUE(FIXED((BB14+BC14+BD14+BE14+BF14)/5)) -> 0 | BH14: =+'NILAI SMT 6 (US)'!K8 -> 75 | BI14: =VALUE(FIXED((BG14*RAP)+(BH14*US))) -> 12.75 | BJ14: =+IPS!H8 -> 0 | BK14: =+IPS!K8 -> 0 | BL14: =+IPS!N8 -> 0 | BM14: =+IPS!Q8 -> 0 | BN14: =+IPS!T8 -> 0 | BO14: =VALUE(FIXED((BJ14+BK14+BL14+BM14+BN14)/5)) -> 0 | BP14: =+'NILAI SMT 6 (US)'!Z8 -> 90 | BQ14: =VALUE(FIXED((BO14*RAP)+(BP14*US))) -> 15.3 | BR14: =+SENI!H8 -> 0 | BS14: =+SENI!K8 -> 0 | BT14: =+SENI!N8 -> 0 | BU14: =+SENI!Q8 -> 0 | BV14: =+SENI!T8 -> 0 | BW14: =VALUE(FIXED((BR14+BS14+BT14+BU14+BV14)/5)) -> 0 | BX14: =+'NILAI SMT 6 (US)'!AC8 -> 90 | BY14: =VALUE(FIXED((BW14*RAP)+(BX14*US))) -> 15.3 | BZ14: =+PENJAS!H8 -> 0 | CA14: =+PENJAS!K8 -> 0 | CB14: =+PENJAS!N8 -> 0 | CC14: =+PENJAS!Q8 -> 0 | CD14: =+PENJAS!T8 -> 0 | CE14: =VALUE(FIXED((BZ14+CA14+CB14+CC14+CD14)/5)) -> 0 | CF14: =+'NILAI SMT 6 (US)'!AF8 -> 89 | CG14: =VALUE(FIXED((CE14*RAP)+(CF14*US))) -> 15.13 | CH14: =+'TIK-KET'!H8 -> 0 | CI14: =+'TIK-KET'!K8 -> 0 | CJ14: =+'TIK-KET'!N8 -> 0 | CK14: =+'TIK-KET'!Q8 -> 0 | CL14: =+'TIK-KET'!T8 -> 0 | CM14: =VALUE(FIXED((CH14+CI14+CJ14+CK14+CL14)/5)) -> 0 | CN14: =+'NILAI SMT 6 (US)'!AI8 -> 85 | CO14: =VALUE(FIXED((CM14*RAP)+(CN14*US))) -> 14.45 | CP14: =+'MLK1'!H8 -> 0 | CQ14: =+'MLK1'!K8 -> 0 | CR14: =+'MLK1'!N8 -> 0 | CS14: =+'MLK1'!Q8 -> 0 | CT14: =+'MLK1'!T8 -> 0 | CU14: =VALUE(FIXED((CP14+CQ14+CR14+CS14+CT14)/5)) -> 0 | CV14: =+'NILAI SMT 6 (US)'!AL8 -> 0 | CW14: =VALUE(FIXED((CU14*RAP)+(CV14*US))) -> 0 | CX14: =+'MLK2'!H8 -> 0 | CY14: =+'MLK2'!K8 -> 0 | CZ14: =+'MLK2'!N8 -> 0 | DA14: =+'MLK2'!Q8 -> 0 | DB14: =+'MLK2'!T8 -> 0 | DC14: =VALUE(FIXED((CX14+CY14+CZ14+DA14+DB14)/5)) -> 0 | DD14: =+'NILAI SMT 6 (US)'!AO8 -> 0 | DE14: =VALUE(FIXED((DC14*RAP)+(DD14*US),0,FALSE)) -> 0 | DF14: =($M14+$W14+$AG14+$AQ14+$BA14+$BI14+$BQ14+$BY14+$CG14+$CO14+$CW14+$DE14) -> 206.85 | DG14: =DF14/('KRITERIA&MULOK'!$E$20) -> 20.685 | DH14: =N14+X14+AH14+AR14 -> 30 | DI14: =DH14/4 -> 7.5 | DJ14: =O14+Y14+AI14+AS14 -> 39.08 | DK14: =DJ14/4 -> 9.77 | DL14: B | DM14: =IF(L14<MIN,"TIDAK LULLUS",IF(V14<MIN,"TIDAK LULLUS",IF(AF14<MIN,"TIDAK LULLUS",IF(AP14<MIN,"v",IF(AZ14<MIN,"TIDAK LULUS",IF(BH14<MIN,"TIDAK LULLUS",IF(BP14<MIN,"v",IF(BX14<MIN,"TIDAK LULLUS",IF(CF14<MIN,"TIDAK LULLUS",IF(CN14<MIN,"TIDAK LULUS",IF(CV14<MIN,"TIDAK LULUS",IF(DD14<MIN,"TIDAK LULUS",IF((($L14+$V14+$AF14+$AP14+$AZ14+$BH14+$BP14+$BX14+$CF14+$CO14+$CN14+$DD14)/12)<RAT,"TIDAK LULUS","LULUS"))))))))))))) -> LULUS
A15: =+BIODATA!A9 -> 2 | B15: =+BIODATA!B9 -> 17187051 | C15: =+BIODATA!E9 -> M. TOLEHAN | D15: =+BIODATA!C9 -> 0053990028 | E15: =+BIODATA!D9 -> 0 | F15: =+BIND!H9 -> 0 | G15: =+BIND!K9 -> 0 | H15: =+BIND!N9 -> 0 | I15: =+BIND!Q9 -> 0 | J15: =+BIND!T9 -> 0 | K15: =VALUE(FIXED((F15+G15+H15+I15+J15)/5)) -> 0 | L15: =+'NILAI SMT 6 (US)'!N9 -> 0 | M15: 0 | N15: 7 | O15: =(M15*0.4)+(N15*0.6) -> 4.2 | P15: =+'B-ING'!H9 -> 0 | Q15: =+'B-ING'!K9 -> 0 | R15: =+'B-ING'!N9 -> 0 | S15: =+'B-ING'!Q9 -> 0 | T15: =+'B-ING'!T9 -> 0 | U15: =VALUE(FIXED((P15+Q15+R15+S15+T15)/5)) -> 0 | V15: =+'NILAI SMT 6 (US)'!Q9 -> 0 | W15: 0 | X15: 8 | Y15: =(W15*0.4)+(X15*0.6) -> 4.8 | Z15: =+MAT!H9 -> 0 | AA15: =+MAT!K9 -> 0 | AB15: =+MAT!N9 -> 0 | AC15: =+MAT!Q9 -> 0 | AD15: =+MAT!T9 -> 0 | AE15: =VALUE(FIXED((Z15+AA15+AB15+AC15+AD15)/5)) -> 0 | AF15: =+'NILAI SMT 6 (US)'!T9 -> 0 | AG15: 0 | AH15: 9 | AI15: =(AG15*0.4)+(AH15*0.6) -> 5.4 | AJ15: =+IPA!H9 -> 0 | AK15: =+IPA!K9 -> 0 | AL15: =+IPA!N9 -> 0 | AM15: =+IPA!Q9 -> 0 | AN15: =+IPA!T9 -> 0 | AO15: =VALUE(FIXED((AJ15+AK15+AL15+AM15+AN15)/5)) -> 0 | AP15: =+'NILAI SMT 6 (US)'!W9 -> 0 | AQ15: 0 | AR15: 6 | AS15: =(AQ15*0.4)+(AR15*0.6) -> 3.6 | AT15: =+Agama!H9 -> 0 | AU15: =+Agama!K9 -> 0 | AV15: =+Agama!N9 -> 0 | AW15: =+Agama!Q9 -> 0 | AX15: =+Agama!T9 -> 0 | AY15: =VALUE(FIXED((AT15+AU15+AV15+AW15+AX15)/5)) -> 0 | AZ15: =+'NILAI SMT 6 (US)'!H9 -> 74 | BA15: 12.58 | BB15: =+PPKn!H9 -> 0 | BC15: =+PPKn!K9 -> 0 | BD15: =+PPKn!N9 -> 0 | BE15: =+PPKn!Q9 -> 0 | BF15: =+PPKn!T9 -> 0 | BG15: =VALUE(FIXED((BB15+BC15+BD15+BE15+BF15)/5)) -> 0 | BH15: =+'NILAI SMT 6 (US)'!K9 -> 0 | BI15: 0 | BJ15: =+IPS!H9 -> 0 | BK15: =+IPS!K9 -> 0 | BL15: =+IPS!N9 -> 0 | BM15: =+IPS!Q9 -> 0 | BN15: =+IPS!T9 -> 0 | BO15: =VALUE(FIXED((BJ15+BK15+BL15+BM15+BN15)/5)) -> 0 | BP15: =+'NILAI SMT 6 (US)'!Z9 -> 0 | BQ15: 0 | BR15: =+SENI!H9 -> 0 | BS15: =+SENI!K9 -> 0 | BT15: =+SENI!N9 -> 0 | BU15: =+SENI!Q9 -> 0 | BV15: =+SENI!T9 -> 0 | BW15: =VALUE(FIXED((BR15+BS15+BT15+BU15+BV15)/5)) -> 0 | BX15: =+'NILAI SMT 6 (US)'!AC9 -> 0 | BY15: 0 | BZ15: =+PENJAS!H9 -> 0 | CA15: =+PENJAS!K9 -> 0 | CB15: =+PENJAS!N9 -> 0 | CC15: =+PENJAS!Q9 -> 0 | CD15: =+PENJAS!T9 -> 0 | CE15: =VALUE(FIXED((BZ15+CA15+CB15+CC15+CD15)/5)) -> 0 | CF15: =+'NILAI SMT 6 (US)'!AF9 -> 0 | CG15: 0 | CH15: =+'TIK-KET'!H9 -> 0 | CI15: =+'TIK-KET'!K9 -> 0 | CJ15: =+'TIK-KET'!N9 -> 0 | CK15: =+'TIK-KET'!Q9 -> 0 | CL15: =+'TIK-KET'!T9 -> 0 | CM15: =VALUE(FIXED((CH15+CI15+CJ15+CK15+CL15)/5)) -> 0 | CN15: =+'NILAI SMT 6 (US)'!AI9 -> 0 | CO15: 0 | CP15: =+'MLK1'!H9 -> 0 | CQ15: =+'MLK1'!K9 -> 0 | CR15: =+'MLK1'!N9 -> 0 | CS15: =+'MLK1'!Q9 -> 0 | CT15: =+'MLK1'!T9 -> 0 | CU15: =VALUE(FIXED((CP15+CQ15+CR15+CS15+CT15)/5)) -> 0 | CV15: =+'NILAI SMT 6 (US)'!AL9 -> 0 | CW15: 0 | CX15: =+'MLK2'!H9 -> 0 | CY15: =+'MLK2'!K9 -> 0 | CZ15: =+'MLK2'!N9 -> 0 | DA15: =+'MLK2'!Q9 -> 0 | DB15: =+'MLK2'!T9 -> 0 | DC15: =VALUE(FIXED((CX15+CY15+CZ15+DA15+DB15)/5)) -> 0 | DD15: =+'NILAI SMT 6 (US)'!AO9 -> 0 | DE15: =VALUE(FIXED((DC15*RAP)+(DD15*US),0,FALSE)) -> 0 | DF15: =($M15+$W15+$AG15+$AQ15+$BA15+$BI15+$BQ15+$BY15+$CG15+$CO15+$CW15+$DE15) -> 12.58 | DG15: =DF15/('KRITERIA&MULOK'!$E$20) -> 1.258 | DH15: =N15+X15+AH15+AR15 -> 30 | DI15: =DH15/4 -> 7.5 | DJ15: =O15+Y15+AI15+AS15 -> 18 | DK15: =DJ15/4 -> 4.5 | DL15: B | DM15: TIDAK LULUS
A16: =+BIODATA!A10 -> 3 | B16: =+BIODATA!B10 -> 0 | C16: =+BIODATA!E10 -> 0 | D16: =+BIODATA!C10 -> 0 | E16: =+BIODATA!D10 -> 0 | F16: =+BIND!H10 -> 0 | G16: =+BIND!K10 -> 0 | H16: =+BIND!N10 -> 0 | I16: =+BIND!Q10 -> 0 | J16: =+BIND!T10 -> 0 | K16: 0 | L16: =+'NILAI SMT 6 (US)'!N10 -> 0 | M16: 0 | N16: 7 | O16: 4.2 | P16: =+'B-ING'!H10 -> 0 | Q16: =+'B-ING'!K10 -> 0 | R16: =+'B-ING'!N10 -> 0 | S16: =+'B-ING'!Q10 -> 0 | T16: =+'B-ING'!T10 -> 0 | U16: 0 | V16: =+'NILAI SMT 6 (US)'!Q10 -> 0 | W16: 0 | X16: 8 | Y16: 4.8 | Z16: =+MAT!H10 -> 0 | AA16: =+MAT!K10 -> 0 | AB16: =+MAT!N10 -> 0 | AC16: =+MAT!Q10 -> 0 | AD16: =+MAT!T10 -> 0 | AE16: 0 | AF16: =+'NILAI SMT 6 (US)'!T10 -> 0 | AG16: 0 | AH16: 9 | AI16: 5.4 | AJ16: =+IPA!H10 -> 0 | AK16: =+IPA!K10 -> 0 | AL16: =+IPA!N10 -> 0 | AM16: =+IPA!Q10 -> 0 | AN16: =+IPA!T10 -> 0 | AO16: 0 | AP16: =+'NILAI SMT 6 (US)'!W10 -> 0 | AQ16: 0 | AR16: 6 | AS16: 3.6 | AT16: =+Agama!H10 -> 0 | AU16: =+Agama!K10 -> 0 | AV16: =+Agama!N10 -> 0 | AW16: =+Agama!Q10 -> 0 | AX16: =+Agama!T10 -> 0 | AY16: 0 | AZ16: =+'NILAI SMT 6 (US)'!H10 -> 0 | BA16: 0 | BB16: =+PPKn!H10 -> 0 | BC16: =+PPKn!K10 -> 0 | BD16: =+PPKn!N10 -> 0 | BE16: =+PPKn!Q10 -> 0 | BF16: =+PPKn!T10 -> 0 | BG16: 0 | BH16: =+'NILAI SMT 6 (US)'!K10 -> 0 | BI16: 0 | BJ16: =+IPS!H10 -> 0 | BK16: =+IPS!K10 -> 0 | BL16: =+IPS!N10 -> 0 | BM16: =+IPS!Q10 -> 0 | BN16: =+IPS!T10 -> 0 | BO16: 0 | BP16: =+'NILAI SMT 6 (US)'!Z10 -> 0 | BQ16: 0 | BR16: =+SENI!H10 -> 0 | BS16: =+SENI!K10 -> 0 | BT16: =+SENI!N10 -> 0 | BU16: =+SENI!Q10 -> 0 | BV16: =+SENI!T10 -> 0 | BW16: 0 | BX16: =+'NILAI SMT 6 (US)'!AC10 -> 0 | BY16: 0 | BZ16: =+PENJAS!H10 -> 0 | CA16: =+PENJAS!K10 -> 0 | CB16: =+PENJAS!N10 -> 0 | CC16: =+PENJAS!Q10 -> 0 | CD16: =+PENJAS!T10 -> 0 | CE16: 0 | CF16: =+'NILAI SMT 6 (US)'!AF10 -> 0 | CG16: 0 | CH16: =+'TIK-KET'!H10 -> 0 | CI16: =+'TIK-KET'!K10 -> 0 | CJ16: =+'TIK-KET'!N10 -> 0 | CK16: =+'TIK-KET'!Q10 -> 0 | CL16: =+'TIK-KET'!T10 -> 0 | CM16: 0 | CN16: =+'NILAI SMT 6 (US)'!AI10 -> 0 | CO16: 0 | CP16: =+'MLK1'!H10 -> 0 | CQ16: =+'MLK1'!K10 -> 0 | CR16: =+'MLK1'!N10 -> 0 | CS16: =+'MLK1'!Q10 -> 0 | CT16: =+'MLK1'!T10 -> 0 | CU16: 0 | CV16: =+'NILAI SMT 6 (US)'!AL10 -> 0 | CW16: 0 | CX16: =+'MLK2'!H10 -> 0 | CY16: =+'MLK2'!K10 -> 0 | CZ16: =+'MLK2'!N10 -> 0 | DA16: =+'MLK2'!Q10 -> 0 | DB16: =+'MLK2'!T10 -> 0 | DC16: 0 | DD16: =+'NILAI SMT 6 (US)'!AO10 -> 0 | DE16: 0 | DF16: =($M16+$W16+$AG16+$AQ16+$BA16+$BI16+$BQ16+$BY16+$CG16+$CO16+$CW16+$DE16) -> 0 | DG16: =DF16/('KRITERIA&MULOK'!$E$20) -> 0 | DH16: =N16+X16+AH16+AR16 -> 30 | DI16: =DH16/4 -> 7.5 | DJ16: =O16+Y16+AI16+AS16 -> 18 | DK16: =DJ16/4 -> 4.5 | DL16: B | DM16: TIDAK LULUS
A17: =+BIODATA!A11 -> 4 | B17: =+BIODATA!B11 -> 0 | C17: =+BIODATA!E11 -> 0 | D17: =+BIODATA!C11 -> 0 | E17: =+BIODATA!D11 -> 0 | F17: =+BIND!H11 -> 0 | G17: =+BIND!K11 -> 0 | H17: =+BIND!N11 -> 0 | I17: =+BIND!Q11 -> 0 | J17: =+BIND!T11 -> 0 | K17: 0 | L17: =+'NILAI SMT 6 (US)'!N11 -> 0 | M17: 0 | N17: 7 | O17: 4.2 | P17: =+'B-ING'!H11 -> 0 | Q17: =+'B-ING'!K11 -> 0 | R17: =+'B-ING'!N11 -> 0 | S17: =+'B-ING'!Q11 -> 0 | T17: =+'B-ING'!T11 -> 0 | U17: 0 | V17: =+'NILAI SMT 6 (US)'!Q11 -> 0 | W17: 0 | X17: 8 | Y17: 4.8 | Z17: =+MAT!H11 -> 0 | AA17: =+MAT!K11 -> 0 | AB17: =+MAT!N11 -> 0 | AC17: =+MAT!Q11 -> 0 | AD17: =+MAT!T11 -> 0 | AE17: 0 | AF17: =+'NILAI SMT 6 (US)'!T11 -> 0 | AG17: 0 | AH17: 9 | AI17: 5.4 | AJ17: =+IPA!H11 -> 0 | AK17: =+IPA!K11 -> 0 | AL17: =+IPA!N11 -> 0 | AM17: =+IPA!Q11 -> 0 | AN17: =+IPA!T11 -> 0 | AO17: 0 | AP17: =+'NILAI SMT 6 (US)'!W11 -> 0 | AQ17: 0 | AR17: 6 | AS17: 3.6 | AT17: =+Agama!H11 -> 0 | AU17: =+Agama!K11 -> 0 | AV17: =+Agama!N11 -> 0 | AW17: =+Agama!Q11 -> 0 | AX17: =+Agama!T11 -> 0 | AY17: 0 | AZ17: =+'NILAI SMT 6 (US)'!H11 -> 0 | BA17: 0 | BB17: =+PPKn!H11 -> 0 | BC17: =+PPKn!K11 -> 0 | BD17: =+PPKn!N11 -> 0 | BE17: =+PPKn!Q11 -> 0 | BF17: =+PPKn!T11 -> 0 | BG17: 0 | BH17: =+'NILAI SMT 6 (US)'!K11 -> 0 | BI17: 0 | BJ17: =+IPS!H11 -> 0 | BK17: =+IPS!K11 -> 0 | BL17: =+IPS!N11 -> 0 | BM17: =+IPS!Q11 -> 0 | BN17: =+IPS!T11 -> 0 | BO17: 0 | BP17: =+'NILAI SMT 6 (US)'!Z11 -> 0 | BQ17: 0 | BR17: =+SENI!H11 -> 0 | BS17: =+SENI!K11 -> 0 | BT17: =+SENI!N11 -> 0 | BU17: =+SENI!Q11 -> 0 | BV17: =+SENI!T11 -> 0 | BW17: 0 | BX17: =+'NILAI SMT 6 (US)'!AC11 -> 0 | BY17: 0 | BZ17: =+PENJAS!H11 -> 0 | CA17: =+PENJAS!K11 -> 0 | CB17: =+PENJAS!N11 -> 0 | CC17: =+PENJAS!Q11 -> 0 | CD17: =+PENJAS!T11 -> 0 | CE17: 0 | CF17: =+'NILAI SMT 6 (US)'!AF11 -> 0 | CG17: 0 | CH17: =+'TIK-KET'!H11 -> 0 | CI17: =+'TIK-KET'!K11 -> 0 | CJ17: =+'TIK-KET'!N11 -> 0 | CK17: =+'TIK-KET'!Q11 -> 0 | CL17: =+'TIK-KET'!T11 -> 0 | CM17: 0 | CN17: =+'NILAI SMT 6 (US)'!AI11 -> 0 | CO17: 0 | CP17: =+'MLK1'!H11 -> 0 | CQ17: =+'MLK1'!K11 -> 0 | CR17: =+'MLK1'!N11 -> 0 | CS17: =+'MLK1'!Q11 -> 0 | CT17: =+'MLK1'!T11 -> 0 | CU17: 0 | CV17: =+'NILAI SMT 6 (US)'!AL11 -> 0 | CW17: 0 | CX17: =+'MLK2'!H11 -> 0 | CY17: =+'MLK2'!K11 -> 0 | CZ17: =+'MLK2'!N11 -> 0 | DA17: =+'MLK2'!Q11 -> 0 | DB17: =+'MLK2'!T11 -> 0 | DC17: 0 | DD17: =+'NILAI SMT 6 (US)'!AO11 -> 0 | DE17: 0 | DF17: 0 | DG17: =DF17/('KRITERIA&MULOK'!$E$20) -> 0 | DH17: 30 | DI17: 7.5 | DJ17: 18 | DK17: 4.5 | DL17: B | DM17: TIDAK LULUS
A18: =+BIODATA!A12 -> 5 | B18: =+BIODATA!B12 -> 0 | C18: =+BIODATA!E12 -> 0 | D18: =+BIODATA!C12 -> 0 | E18: =+BIODATA!D12 -> 0 | F18: =+BIND!H12 -> 0 | G18: =+BIND!K12 -> 0 | H18: =+BIND!N12 -> 0 | I18: =+BIND!Q12 -> 0 | J18: =+BIND!T12 -> 0 | K18: 0 | L18: =+'NILAI SMT 6 (US)'!N12 -> 0 | M18: 0 | N18: 7 | O18: 4.2 | P18: =+'B-ING'!H12 -> 0 | Q18: =+'B-ING'!K12 -> 0 | R18: =+'B-ING'!N12 -> 0 | S18: =+'B-ING'!Q12 -> 0 | T18: =+'B-ING'!T12 -> 0 | U18: 0 | V18: =+'NILAI SMT 6 (US)'!Q12 -> 0 | W18: 0 | X18: 8 | Y18: 4.8 | Z18: =+MAT!H12 -> 0 | AA18: =+MAT!K12 -> 0 | AB18: =+MAT!N12 -> 0 | AC18: =+MAT!Q12 -> 0 | AD18: =+MAT!T12 -> 0 | AE18: 0 | AF18: =+'NILAI SMT 6 (US)'!T12 -> 0 | AG18: 0 | AH18: 9 | AI18: 5.4 | AJ18: =+IPA!H12 -> 0 | AK18: =+IPA!K12 -> 0 | AL18: =+IPA!N12 -> 0 | AM18: =+IPA!Q12 -> 0 | AN18: =+IPA!T12 -> 0 | AO18: 0 | AP18: =+'NILAI SMT 6 (US)'!W12 -> 0 | AQ18: 0 | AR18: 6 | AS18: 3.6 | AT18: =+Agama!H12 -> 0 | AU18: =+Agama!K12 -> 0 | AV18: =+Agama!N12 -> 0 | AW18: =+Agama!Q12 -> 0 | AX18: =+Agama!T12 -> 0 | AY18: 0 | AZ18: =+'NILAI SMT 6 (US)'!H12 -> 0 | BA18: 0 | BB18: =+PPKn!H12 -> 0 | BC18: =+PPKn!K12 -> 0 | BD18: =+PPKn!N12 -> 0 | BE18: =+PPKn!Q12 -> 0 | BF18: =+PPKn!T12 -> 0 | BG18: 0 | BH18: =+'NILAI SMT 6 (US)'!K12 -> 0 | BI18: 0 | BJ18: =+IPS!H12 -> 0 | BK18: =+IPS!K12 -> 0 | BL18: =+IPS!N12 -> 0 | BM18: =+IPS!Q12 -> 0 | BN18: =+IPS!T12 -> 0 | BO18: 0 | BP18: =+'NILAI SMT 6 (US)'!Z12 -> 0 | BQ18: 0 | BR18: =+SENI!H12 -> 0 | BS18: =+SENI!K12 -> 0 | BT18: =+SENI!N12 -> 0 | BU18: =+SENI!Q12 -> 0 | BV18: =+SENI!T12 -> 0 | BW18: 0 | BX18: =+'NILAI SMT 6 (US)'!AC12 -> 0 | BY18: 0 | BZ18: =+PENJAS!H12 -> 0 | CA18: =+PENJAS!K12 -> 0 | CB18: =+PENJAS!N12 -> 0 | CC18: =+PENJAS!Q12 -> 0 | CD18: =+PENJAS!T12 -> 0 | CE18: 0 | CF18: =+'NILAI SMT 6 (US)'!AF12 -> 0 | CG18: 0 | CH18: =+'TIK-KET'!H12 -> 0 | CI18: =+'TIK-KET'!K12 -> 0 | CJ18: =+'TIK-KET'!N12 -> 0 | CK18: =+'TIK-KET'!Q12 -> 0 | CL18: =+'TIK-KET'!T12 -> 0 | CM18: 0 | CN18: =+'NILAI SMT 6 (US)'!AI12 -> 0 | CO18: 0 | CP18: =+'MLK1'!H12 -> 0 | CQ18: =+'MLK1'!K12 -> 0 | CR18: =+'MLK1'!N12 -> 0 | CS18: =+'MLK1'!Q12 -> 0 | CT18: =+'MLK1'!T12 -> 0 | CU18: 0 | CV18: =+'NILAI SMT 6 (US)'!AL12 -> 0 | CW18: 0 | CX18: =+'MLK2'!H12 -> 0 | CY18: =+'MLK2'!K12 -> 0 | CZ18: =+'MLK2'!N12 -> 0 | DA18: =+'MLK2'!Q12 -> 0 | DB18: =+'MLK2'!T12 -> 0 | DC18: 0 | DD18: =+'NILAI SMT 6 (US)'!AO12 -> 0 | DE18: 0 | DF18: 0 | DG18: =DF18/('KRITERIA&MULOK'!$E$20) -> 0 | DH18: 30 | DI18: 7.5 | DJ18: 18 | DK18: 4.5 | DL18: B | DM18: TIDAK LULUS
A19: =+BIODATA!A13 -> 6 | B19: =+BIODATA!B13 -> 0 | C19: =+BIODATA!E13 -> 0 | D19: =+BIODATA!C13 -> 0 | E19: =+BIODATA!D13 -> 0 | F19: =+BIND!H13 -> 0 | G19: =+BIND!K13 -> 0 | H19: =+BIND!N13 -> 0 | I19: =+BIND!Q13 -> 0 | J19: =+BIND!T13 -> 0 | K19: 0 | L19: =+'NILAI SMT 6 (US)'!N13 -> 0 | M19: 0 | N19: 7 | O19: 4.2 | P19: =+'B-ING'!H13 -> 0 | Q19: =+'B-ING'!K13 -> 0 | R19: =+'B-ING'!N13 -> 0 | S19: =+'B-ING'!Q13 -> 0 | T19: =+'B-ING'!T13 -> 0 | U19: 0 | V19: =+'NILAI SMT 6 (US)'!Q13 -> 0 | W19: 0 | X19: 8 | Y19: 4.8 | Z19: =+MAT!H13 -> 0 | AA19: =+MAT!K13 -> 0 | AB19: =+MAT!N13 -> 0 | AC19: =+MAT!Q13 -> 0 | AD19: =+MAT!T13 -> 0 | AE19: 0 | AF19: =+'NILAI SMT 6 (US)'!T13 -> 0 | AG19: 0 | AH19: 9 | AI19: 5.4 | AJ19: =+IPA!H13 -> 0 | AK19: =+IPA!K13 -> 0 | AL19: =+IPA!N13 -> 0 | AM19: =+IPA!Q13 -> 0 | AN19: =+IPA!T13 -> 0 | AO19: 0 | AP19: =+'NILAI SMT 6 (US)'!W13 -> 0 | AQ19: 0 | AR19: 6 | AS19: 3.6 | AT19: =+Agama!H13 -> 0 | AU19: =+Agama!K13 -> 0 | AV19: =+Agama!N13 -> 0 | AW19: =+Agama!Q13 -> 0 | AX19: =+Agama!T13 -> 0 | AY19: 0 | AZ19: =+'NILAI SMT 6 (US)'!H13 -> 0 | BA19: 0 | BB19: =+PPKn!H13 -> 0 | BC19: =+PPKn!K13 -> 0 | BD19: =+PPKn!N13 -> 0 | BE19: =+PPKn!Q13 -> 0 | BF19: =+PPKn!T13 -> 0 | BG19: 0 | BH19: =+'NILAI SMT 6 (US)'!K13 -> 0 | BI19: 0 | BJ19: =+IPS!H13 -> 0 | BK19: =+IPS!K13 -> 0 | BL19: =+IPS!N13 -> 0 | BM19: =+IPS!Q13 -> 0 | BN19: =+IPS!T13 -> 0 | BO19: 0 | BP19: =+'NILAI SMT 6 (US)'!Z13 -> 0 | BQ19: 0 | BR19: =+SENI!H13 -> 0 | BS19: =+SENI!K13 -> 0 | BT19: =+SENI!N13 -> 0 | BU19: =+SENI!Q13 -> 0 | BV19: =+SENI!T13 -> 0 | BW19: 0 | BX19: =+'NILAI SMT 6 (US)'!AC13 -> 0 | BY19: 0 | BZ19: =+PENJAS!H13 -> 0 | CA19: =+PENJAS!K13 -> 0 | CB19: =+PENJAS!N13 -> 0 | CC19: =+PENJAS!Q13 -> 0 | CD19: =+PENJAS!T13 -> 0 | CE19: 0 | CF19: =+'NILAI SMT 6 (US)'!AF13 -> 0 | CG19: 0 | CH19: =+'TIK-KET'!H13 -> 0 | CI19: =+'TIK-KET'!K13 -> 0 | CJ19: =+'TIK-KET'!N13 -> 0 | CK19: =+'TIK-KET'!Q13 -> 0 | CL19: =+'TIK-KET'!T13 -> 0 | CM19: 0 | CN19: =+'NILAI SMT 6 (US)'!AI13 -> 0 | CO19: 0 | CP19: =+'MLK1'!H13 -> 0 | CQ19: =+'MLK1'!K13 -> 0 | CR19: =+'MLK1'!N13 -> 0 | CS19: =+'MLK1'!Q13 -> 0 | CT19: =+'MLK1'!T13 -> 0 | CU19: 0 | CV19: =+'NILAI SMT 6 (US)'!AL13 -> 0 | CW19: 0 | CX19: =+'MLK2'!H13 -> 0 | CY19: =+'MLK2'!K13 -> 0 | CZ19: =+'MLK2'!N13 -> 0 | DA19: =+'MLK2'!Q13 -> 0 | DB19: =+'MLK2'!T13 -> 0 | DC19: 0 | DD19: =+'NILAI SMT 6 (US)'!AO13 -> 0 | DE19: 0 | DF19: 0 | DG19: =DF19/('KRITERIA&MULOK'!$E$20) -> 0 | DH19: 30 | DI19: 7.5 | DJ19: 18 | DK19: 4.5 | DL19: B | DM19: TIDAK LULUS
A20: =+BIODATA!A14 -> 7 | B20: =+BIODATA!B14 -> 0 | C20: =+BIODATA!E14 -> 0 | D20: =+BIODATA!C14 -> 0 | E20: =+BIODATA!D14 -> 0 | F20: =+BIND!H14 -> 0 | G20: =+BIND!K14 -> 0 | H20: =+BIND!N14 -> 0 | I20: =+BIND!Q14 -> 0 | J20: =+BIND!T14 -> 0 | K20: 0 | L20: =+'NILAI SMT 6 (US)'!N14 -> 0 | M20: 0 | N20: 7 | O20: 4.2 | P20: =+'B-ING'!H14 -> 0 | Q20: =+'B-ING'!K14 -> 0 | R20: =+'B-ING'!N14 -> 0 | S20: =+'B-ING'!Q14 -> 0 | T20: =+'B-ING'!T14 -> 0 | U20: 0 | V20: =+'NILAI SMT 6 (US)'!Q14 -> 0 | W20: 0 | X20: 8 | Y20: 4.8 | Z20: =+MAT!H14 -> 0 | AA20: =+MAT!K14 -> 0 | AB20: =+MAT!N14 -> 0 | AC20: =+MAT!Q14 -> 0 | AD20: =+MAT!T14 -> 0 | AE20: 0 | AF20: =+'NILAI SMT 6 (US)'!T14 -> 0 | AG20: 0 | AH20: 9 | AI20: 5.4 | AJ20: =+IPA!H14 -> 0 | AK20: =+IPA!K14 -> 0 | AL20: =+IPA!N14 -> 0 | AM20: =+IPA!Q14 -> 0 | AN20: =+IPA!T14 -> 0 | AO20: 0 | AP20: =+'NILAI SMT 6 (US)'!W14 -> 0 | AQ20: 0 | AR20: 6 | AS20: 3.6 | AT20: =+Agama!H14 -> 0 | AU20: =+Agama!K14 -> 0 | AV20: =+Agama!N14 -> 0 | AW20: =+Agama!Q14 -> 0 | AX20: =+Agama!T14 -> 0 | AY20: 0 | AZ20: =+'NILAI SMT 6 (US)'!H14 -> 0 | BA20: 0 | BB20: =+PPKn!H14 -> 0 | BC20: =+PPKn!K14 -> 0 | BD20: =+PPKn!N14 -> 0 | BE20: =+PPKn!Q14 -> 0 | BF20: =+PPKn!T14 -> 0 | BG20: 0 | BH20: =+'NILAI SMT 6 (US)'!K14 -> 0 | BI20: 0 | BJ20: =+IPS!H14 -> 0 | BK20: =+IPS!K14 -> 0 | BL20: =+IPS!N14 -> 0 | BM20: =+IPS!Q14 -> 0 | BN20: =+IPS!T14 -> 0 | BO20: 0 | BP20: =+'NILAI SMT 6 (US)'!Z14 -> 0 | BQ20: 0 | BR20: =+SENI!H14 -> 0 | BS20: =+SENI!K14 -> 0 | BT20: =+SENI!N14 -> 0 | BU20: =+SENI!Q14 -> 0 | BV20: =+SENI!T14 -> 0 | BW20: 0 | BX20: =+'NILAI SMT 6 (US)'!AC14 -> 0 | BY20: 0 | BZ20: =+PENJAS!H14 -> 0 | CA20: =+PENJAS!K14 -> 0 | CB20: =+PENJAS!N14 -> 0 | CC20: =+PENJAS!Q14 -> 0 | CD20: =+PENJAS!T14 -> 0 | CE20: 0 | CF20: =+'NILAI SMT 6 (US)'!AF14 -> 0 | CG20: 0 | CH20: =+'TIK-KET'!H14 -> 0 | CI20: =+'TIK-KET'!K14 -> 0 | CJ20: =+'TIK-KET'!N14 -> 0 | CK20: =+'TIK-KET'!Q14 -> 0 | CL20: =+'TIK-KET'!T14 -> 0 | CM20: 0 | CN20: =+'NILAI SMT 6 (US)'!AI14 -> 0 | CO20: 0 | CP20: =+'MLK1'!H14 -> 0 | CQ20: =+'MLK1'!K14 -> 0 | CR20: =+'MLK1'!N14 -> 0 | CS20: =+'MLK1'!Q14 -> 0 | CT20: =+'MLK1'!T14 -> 0 | CU20: 0 | CV20: =+'NILAI SMT 6 (US)'!AL14 -> 0 | CW20: 0 | CX20: =+'MLK2'!H14 -> 0 | CY20: =+'MLK2'!K14 -> 0 | CZ20: =+'MLK2'!N14 -> 0 | DA20: =+'MLK2'!Q14 -> 0 | DB20: =+'MLK2'!T14 -> 0 | DC20: 0 | DD20: =+'NILAI SMT 6 (US)'!AO14 -> 0 | DE20: 0 | DF20: 0 | DG20: =DF20/('KRITERIA&MULOK'!$E$20) -> 0 | DH20: 30 | DI20: 7.5 | DJ20: 18 | DK20: 4.5 | DL20: B | DM20: TIDAK LULUS
A21: =+BIODATA!A15 -> 8 | B21: =+BIODATA!B15 -> 0 | C21: =+BIODATA!E15 -> 0 | D21: =+BIODATA!C15 -> 0 | E21: =+BIODATA!D15 -> 0 | F21: =+BIND!H15 -> 0 | G21: =+BIND!K15 -> 0 | H21: =+BIND!N15 -> 0 | I21: =+BIND!Q15 -> 0 | J21: =+BIND!T15 -> 0 | K21: 0 | L21: =+'NILAI SMT 6 (US)'!N15 -> 0 | M21: 0 | N21: 7 | O21: 4.2 | P21: =+'B-ING'!H15 -> 0 | Q21: =+'B-ING'!K15 -> 0 | R21: =+'B-ING'!N15 -> 0 | S21: =+'B-ING'!Q15 -> 0 | T21: =+'B-ING'!T15 -> 0 | U21: 0 | V21: =+'NILAI SMT 6 (US)'!Q15 -> 0 | W21: 0 | X21: 8 | Y21: 4.8 | Z21: =+MAT!H15 -> 0 | AA21: =+MAT!K15 -> 0 | AB21: =+MAT!N15 -> 0 | AC21: =+MAT!Q15 -> 0 | AD21: =+MAT!T15 -> 0 | AE21: 0 | AF21: =+'NILAI SMT 6 (US)'!T15 -> 0 | AG21: 0 | AH21: 9 | AI21: 5.4 | AJ21: =+IPA!H15 -> 0 | AK21: =+IPA!K15 -> 0 | AL21: =+IPA!N15 -> 0 | AM21: =+IPA!Q15 -> 0 | AN21: =+IPA!T15 -> 0 | AO21: 0 | AP21: =+'NILAI SMT 6 (US)'!W15 -> 0 | AQ21: 0 | AR21: 6 | AS21: 3.6 | AT21: =+Agama!H15 -> 0 | AU21: =+Agama!K15 -> 0 | AV21: =+Agama!N15 -> 0 | AW21: =+Agama!Q15 -> 0 | AX21: =+Agama!T15 -> 0 | AY21: 0 | AZ21: =+'NILAI SMT 6 (US)'!H15 -> 0 | BA21: 0 | BB21: =+PPKn!H15 -> 0 | BC21: =+PPKn!K15 -> 0 | BD21: =+PPKn!N15 -> 0 | BE21: =+PPKn!Q15 -> 0 | BF21: =+PPKn!T15 -> 0 | BG21: 0 | BH21: =+'NILAI SMT 6 (US)'!K15 -> 0 | BI21: 0 | BJ21: =+IPS!H15 -> 0 | BK21: =+IPS!K15 -> 0 | BL21: =+IPS!N15 -> 0 | BM21: =+IPS!Q15 -> 0 | BN21: =+IPS!T15 -> 0 | BO21: 0 | BP21: =+'NILAI SMT 6 (US)'!Z15 -> 0 | BQ21: 0 | BR21: =+SENI!H15 -> 0 | BS21: =+SENI!K15 -> 0 | BT21: =+SENI!N15 -> 0 | BU21: =+SENI!Q15 -> 0 | BV21: =+SENI!T15 -> 0 | BW21: 0 | BX21: =+'NILAI SMT 6 (US)'!AC15 -> 0 | BY21: 0 | BZ21: =+PENJAS!H15 -> 0 | CA21: =+PENJAS!K15 -> 0 | CB21: =+PENJAS!N15 -> 0 | CC21: =+PENJAS!Q15 -> 0 | CD21: =+PENJAS!T15 -> 0 | CE21: 0 | CF21: =+'NILAI SMT 6 (US)'!AF15 -> 0 | CG21: 0 | CH21: =+'TIK-KET'!H15 -> 0 | CI21: =+'TIK-KET'!K15 -> 0 | CJ21: =+'TIK-KET'!N15 -> 0 | CK21: =+'TIK-KET'!Q15 -> 0 | CL21: =+'TIK-KET'!T15 -> 0 | CM21: 0 | CN21: =+'NILAI SMT 6 (US)'!AI15 -> 0 | CO21: 0 | CP21: =+'MLK1'!H15 -> 0 | CQ21: =+'MLK1'!K15 -> 0 | CR21: =+'MLK1'!N15 -> 0 | CS21: =+'MLK1'!Q15 -> 0 | CT21: =+'MLK1'!T15 -> 0 | CU21: 0 | CV21: =+'NILAI SMT 6 (US)'!AL15 -> 0 | CW21: 0 | CX21: =+'MLK2'!H15 -> 0 | CY21: =+'MLK2'!K15 -> 0 | CZ21: =+'MLK2'!N15 -> 0 | DA21: =+'MLK2'!Q15 -> 0 | DB21: =+'MLK2'!T15 -> 0 | DC21: 0 | DD21: =+'NILAI SMT 6 (US)'!AO15 -> 0 | DE21: 0 | DF21: 0 | DG21: =DF21/('KRITERIA&MULOK'!$E$20) -> 0 | DH21: 30 | DI21: 7.5 | DJ21: 18 | DK21: 4.5 | DL21: B | DM21: TIDAK LULUS
A22: =+BIODATA!A16 -> 9 | B22: =+BIODATA!B16 -> 0 | C22: =+BIODATA!E16 -> 0 | D22: =+BIODATA!C16 -> 0 | E22: =+BIODATA!D16 -> 0 | F22: =+BIND!H16 -> 0 | G22: =+BIND!K16 -> 0 | H22: =+BIND!N16 -> 0 | I22: =+BIND!Q16 -> 0 | J22: =+BIND!T16 -> 0 | K22: 0 | L22: =+'NILAI SMT 6 (US)'!N16 -> 0 | M22: 0 | N22: 7 | O22: 4.2 | P22: =+'B-ING'!H16 -> 0 | Q22: =+'B-ING'!K16 -> 0 | R22: =+'B-ING'!N16 -> 0 | S22: =+'B-ING'!Q16 -> 0 | T22: =+'B-ING'!T16 -> 0 | U22: 0 | V22: =+'NILAI SMT 6 (US)'!Q16 -> 0 | W22: 0 | X22: 8 | Y22: 4.8 | Z22: =+MAT!H16 -> 0 | AA22: =+MAT!K16 -> 0 | AB22: =+MAT!N16 -> 0 | AC22: =+MAT!Q16 -> 0 | AD22: =+MAT!T16 -> 0 | AE22: 0 | AF22: =+'NILAI SMT 6 (US)'!T16 -> 0 | AG22: 0 | AH22: 9 | AI22: 5.4 | AJ22: =+IPA!H16 -> 0 | AK22: =+IPA!K16 -> 0 | AL22: =+IPA!N16 -> 0 | AM22: =+IPA!Q16 -> 0 | AN22: =+IPA!T16 -> 0 | AO22: 0 | AP22: =+'NILAI SMT 6 (US)'!W16 -> 0 | AQ22: 0 | AR22: 6 | AS22: 3.6 | AT22: =+Agama!H16 -> 0 | AU22: =+Agama!K16 -> 0 | AV22: =+Agama!N16 -> 0 | AW22: =+Agama!Q16 -> 0 | AX22: =+Agama!T16 -> 0 | AY22: 0 | AZ22: =+'NILAI SMT 6 (US)'!H16 -> 0 | BA22: 0 | BB22: =+PPKn!H16 -> 0 | BC22: =+PPKn!K16 -> 0 | BD22: =+PPKn!N16 -> 0 | BE22: =+PPKn!Q16 -> 0 | BF22: =+PPKn!T16 -> 0 | BG22: 0 | BH22: =+'NILAI SMT 6 (US)'!K16 -> 0 | BI22: 0 | BJ22: =+IPS!H16 -> 0 | BK22: =+IPS!K16 -> 0 | BL22: =+IPS!N16 -> 0 | BM22: =+IPS!Q16 -> 0 | BN22: =+IPS!T16 -> 0 | BO22: 0 | BP22: =+'NILAI SMT 6 (US)'!Z16 -> 0 | BQ22: 0 | BR22: =+SENI!H16 -> 0 | BS22: =+SENI!K16 -> 0 | BT22: =+SENI!N16 -> 0 | BU22: =+SENI!Q16 -> 0 | BV22: =+SENI!T16 -> 0 | BW22: 0 | BX22: =+'NILAI SMT 6 (US)'!AC16 -> 0 | BY22: 0 | BZ22: =+PENJAS!H16 -> 0 | CA22: =+PENJAS!K16 -> 0 | CB22: =+PENJAS!N16 -> 0 | CC22: =+PENJAS!Q16 -> 0 | CD22: =+PENJAS!T16 -> 0 | CE22: 0 | CF22: =+'NILAI SMT 6 (US)'!AF16 -> 0 | CG22: 0 | CH22: =+'TIK-KET'!H16 -> 0 | CI22: =+'TIK-KET'!K16 -> 0 | CJ22: =+'TIK-KET'!N16 -> 0 | CK22: =+'TIK-KET'!Q16 -> 0 | CL22: =+'TIK-KET'!T16 -> 0 | CM22: 0 | CN22: =+'NILAI SMT 6 (US)'!AI16 -> 0 | CO22: 0 | CP22: =+'MLK1'!H16 -> 0 | CQ22: =+'MLK1'!K16 -> 0 | CR22: =+'MLK1'!N16 -> 0 | CS22: =+'MLK1'!Q16 -> 0 | CT22: =+'MLK1'!T16 -> 0 | CU22: 0 | CV22: =+'NILAI SMT 6 (US)'!AL16 -> 0 | CW22: 0 | CX22: =+'MLK2'!H16 -> 0 | CY22: =+'MLK2'!K16 -> 0 | CZ22: =+'MLK2'!N16 -> 0 | DA22: =+'MLK2'!Q16 -> 0 | DB22: =+'MLK2'!T16 -> 0 | DC22: 0 | DD22: =+'NILAI SMT 6 (US)'!AO16 -> 0 | DE22: 0 | DF22: 0 | DG22: =DF22/('KRITERIA&MULOK'!$E$20) -> 0 | DH22: 30 | DI22: 7.5 | DJ22: 18 | DK22: 4.5 | DL22: B | DM22: TIDAK LULUS
A23: =+BIODATA!A17 -> 10 | B23: =+BIODATA!B17 -> 0 | C23: =+BIODATA!E17 -> 0 | D23: =+BIODATA!C17 -> 0 | E23: =+BIODATA!D17 -> 0 | F23: =+BIND!H17 -> 0 | G23: =+BIND!K17 -> 0 | H23: =+BIND!N17 -> 0 | I23: =+BIND!Q17 -> 0 | J23: =+BIND!T17 -> 0 | K23: 0 | L23: =+'NILAI SMT 6 (US)'!N17 -> 0 | M23: 0 | N23: 7 | O23: 4.2 | P23: =+'B-ING'!H17 -> 0 | Q23: =+'B-ING'!K17 -> 0 | R23: =+'B-ING'!N17 -> 0 | S23: =+'B-ING'!Q17 -> 0 | T23: =+'B-ING'!T17 -> 0 | U23: 0 | V23: =+'NILAI SMT 6 (US)'!Q17 -> 0 | W23: 0 | X23: 8 | Y23: 4.8 | Z23: =+MAT!H17 -> 0 | AA23: =+MAT!K17 -> 0 | AB23: =+MAT!N17 -> 0 | AC23: =+MAT!Q17 -> 0 | AD23: =+MAT!T17 -> 0 | AE23: 0 | AF23: =+'NILAI SMT 6 (US)'!T17 -> 0 | AG23: 0 | AH23: 9 | AI23: 5.4 | AJ23: =+IPA!H17 -> 0 | AK23: =+IPA!K17 -> 0 | AL23: =+IPA!N17 -> 0 | AM23: =+IPA!Q17 -> 0 | AN23: =+IPA!T17 -> 0 | AO23: 0 | AP23: =+'NILAI SMT 6 (US)'!W17 -> 0 | AQ23: 0 | AR23: 6 | AS23: 3.6 | AT23: =+Agama!H17 -> 0 | AU23: =+Agama!K17 -> 0 | AV23: =+Agama!N17 -> 0 | AW23: =+Agama!Q17 -> 0 | AX23: =+Agama!T17 -> 0 | AY23: 0 | AZ23: =+'NILAI SMT 6 (US)'!H17 -> 0 | BA23: 0 | BB23: =+PPKn!H17 -> 0 | BC23: =+PPKn!K17 -> 0 | BD23: =+PPKn!N17 -> 0 | BE23: =+PPKn!Q17 -> 0 | BF23: =+PPKn!T17 -> 0 | BG23: 0 | BH23: =+'NILAI SMT 6 (US)'!K17 -> 0 | BI23: 0 | BJ23: =+IPS!H17 -> 0 | BK23: =+IPS!K17 -> 0 | BL23: =+IPS!N17 -> 0 | BM23: =+IPS!Q17 -> 0 | BN23: =+IPS!T17 -> 0 | BO23: 0 | BP23: =+'NILAI SMT 6 (US)'!Z17 -> 0 | BQ23: 0 | BR23: =+SENI!H17 -> 0 | BS23: =+SENI!K17 -> 0 | BT23: =+SENI!N17 -> 0 | BU23: =+SENI!Q17 -> 0 | BV23: =+SENI!T17 -> 0 | BW23: 0 | BX23: =+'NILAI SMT 6 (US)'!AC17 -> 0 | BY23: 0 | BZ23: =+PENJAS!H17 -> 0 | CA23: =+PENJAS!K17 -> 0 | CB23: =+PENJAS!N17 -> 0 | CC23: =+PENJAS!Q17 -> 0 | CD23: =+PENJAS!T17 -> 0 | CE23: 0 | CF23: =+'NILAI SMT 6 (US)'!AF17 -> 0 | CG23: 0 | CH23: =+'TIK-KET'!H17 -> 0 | CI23: =+'TIK-KET'!K17 -> 0 | CJ23: =+'TIK-KET'!N17 -> 0 | CK23: =+'TIK-KET'!Q17 -> 0 | CL23: =+'TIK-KET'!T17 -> 0 | CM23: 0 | CN23: =+'NILAI SMT 6 (US)'!AI17 -> 0 | CO23: 0 | CP23: =+'MLK1'!H17 -> 0 | CQ23: =+'MLK1'!K17 -> 0 | CR23: =+'MLK1'!N17 -> 0 | CS23: =+'MLK1'!Q17 -> 0 | CT23: =+'MLK1'!T17 -> 0 | CU23: 0 | CV23: =+'NILAI SMT 6 (US)'!AL17 -> 0 | CW23: 0 | CX23: =+'MLK2'!H17 -> 0 | CY23: =+'MLK2'!K17 -> 0 | CZ23: =+'MLK2'!N17 -> 0 | DA23: =+'MLK2'!Q17 -> 0 | DB23: =+'MLK2'!T17 -> 0 | DC23: 0 | DD23: =+'NILAI SMT 6 (US)'!AO17 -> 0 | DE23: 0 | DF23: 0 | DG23: =DF23/('KRITERIA&MULOK'!$E$20) -> 0 | DH23: 30 | DI23: 7.5 | DJ23: 18 | DK23: 4.5 | DL23: B | DM23: TIDAK LULUS
A24: =+BIODATA!A18 -> 11 | B24: =+BIODATA!B18 -> 0 | C24: =+BIODATA!E18 -> 0 | D24: =+BIODATA!C18 -> 0 | E24: =+BIODATA!D18 -> 0 | F24: =+BIND!H18 -> 0 | G24: =+BIND!K18 -> 0 | H24: =+BIND!N18 -> 0 | I24: =+BIND!Q18 -> 0 | J24: =+BIND!T18 -> 0 | K24: 0 | L24: =+'NILAI SMT 6 (US)'!N18 -> 0 | M24: 0 | N24: 7 | O24: 4.2 | P24: =+'B-ING'!H18 -> 0 | Q24: =+'B-ING'!K18 -> 0 | R24: =+'B-ING'!N18 -> 0 | S24: =+'B-ING'!Q18 -> 0 | T24: =+'B-ING'!T18 -> 0 | U24: 0 | V24: =+'NILAI SMT 6 (US)'!Q18 -> 0 | W24: 0 | X24: 8 | Y24: 4.8 | Z24: =+MAT!H18 -> 0 | AA24: =+MAT!K18 -> 0 | AB24: =+MAT!N18 -> 0 | AC24: =+MAT!Q18 -> 0 | AD24: =+MAT!T18 -> 0 | AE24: 0 | AF24: =+'NILAI SMT 6 (US)'!T18 -> 0 | AG24: 0 | AH24: 9 | AI24: 5.4 | AJ24: =+IPA!H18 -> 0 | AK24: =+IPA!K18 -> 0 | AL24: =+IPA!N18 -> 0 | AM24: =+IPA!Q18 -> 0 | AN24: =+IPA!T18 -> 0 | AO24: 0 | AP24: =+'NILAI SMT 6 (US)'!W18 -> 0 | AQ24: 0 | AR24: 6 | AS24: 3.6 | AT24: =+Agama!H18 -> 0 | AU24: =+Agama!K18 -> 0 | AV24: =+Agama!N18 -> 0 | AW24: =+Agama!Q18 -> 0 | AX24: =+Agama!T18 -> 0 | AY24: 0 | AZ24: =+'NILAI SMT 6 (US)'!H18 -> 0 | BA24: 0 | BB24: =+PPKn!H18 -> 0 | BC24: =+PPKn!K18 -> 0 | BD24: =+PPKn!N18 -> 0 | BE24: =+PPKn!Q18 -> 0 | BF24: =+PPKn!T18 -> 0 | BG24: 0 | BH24: =+'NILAI SMT 6 (US)'!K18 -> 0 | BI24: 0 | BJ24: =+IPS!H18 -> 0 | BK24: =+IPS!K18 -> 0 | BL24: =+IPS!N18 -> 0 | BM24: =+IPS!Q18 -> 0 | BN24: =+IPS!T18 -> 0 | BO24: 0 | BP24: =+'NILAI SMT 6 (US)'!Z18 -> 0 | BQ24: 0 | BR24: =+SENI!H18 -> 0 | BS24: =+SENI!K18 -> 0 | BT24: =+SENI!N18 -> 0 | BU24: =+SENI!Q18 -> 0 | BV24: =+SENI!T18 -> 0 | BW24: 0 | BX24: =+'NILAI SMT 6 (US)'!AC18 -> 0 | BY24: 0 | BZ24: =+PENJAS!H18 -> 0 | CA24: =+PENJAS!K18 -> 0 | CB24: =+PENJAS!N18 -> 0 | CC24: =+PENJAS!Q18 -> 0 | CD24: =+PENJAS!T18 -> 0 | CE24: 0 | CF24: =+'NILAI SMT 6 (US)'!AF18 -> 0 | CG24: 0 | CH24: =+'TIK-KET'!H18 -> 0 | CI24: =+'TIK-KET'!K18 -> 0 | CJ24: =+'TIK-KET'!N18 -> 0 | CK24: =+'TIK-KET'!Q18 -> 0 | CL24: =+'TIK-KET'!T18 -> 0 | CM24: 0 | CN24: =+'NILAI SMT 6 (US)'!AI18 -> 0 | CO24: 0 | CP24: =+'MLK1'!H18 -> 0 | CQ24: =+'MLK1'!K18 -> 0 | CR24: =+'MLK1'!N18 -> 0 | CS24: =+'MLK1'!Q18 -> 0 | CT24: =+'MLK1'!T18 -> 0 | CU24: 0 | CV24: =+'NILAI SMT 6 (US)'!AL18 -> 0 | CW24: 0 | CX24: =+'MLK2'!H18 -> 0 | CY24: =+'MLK2'!K18 -> 0 | CZ24: =+'MLK2'!N18 -> 0 | DA24: =+'MLK2'!Q18 -> 0 | DB24: =+'MLK2'!T18 -> 0 | DC24: 0 | DD24: =+'NILAI SMT 6 (US)'!AO18 -> 0 | DE24: 0 | DF24: 0 | DG24: =DF24/('KRITERIA&MULOK'!$E$20) -> 0 | DH24: 30 | DI24: 7.5 | DJ24: 18 | DK24: 4.5 | DL24: B | DM24: TIDAK LULUS
A25: =+BIODATA!A19 -> 12 | B25: =+BIODATA!B19 -> 0 | C25: =+BIODATA!E19 -> 0 | D25: =+BIODATA!C19 -> 0 | E25: =+BIODATA!D19 -> 0 | F25: =+BIND!H19 -> 0 | G25: =+BIND!K19 -> 0 | H25: =+BIND!N19 -> 0 | I25: =+BIND!Q19 -> 0 | J25: =+BIND!T19 -> 0 | K25: 0 | L25: =+'NILAI SMT 6 (US)'!N19 -> 0 | M25: 0 | N25: 7 | O25: 4.2 | P25: =+'B-ING'!H19 -> 0 | Q25: =+'B-ING'!K19 -> 0 | R25: =+'B-ING'!N19 -> 0 | S25: =+'B-ING'!Q19 -> 0 | T25: =+'B-ING'!T19 -> 0 | U25: 0 | V25: =+'NILAI SMT 6 (US)'!Q19 -> 0 | W25: 0 | X25: 8 | Y25: 4.8 | Z25: =+MAT!H19 -> 0 | AA25: =+MAT!K19 -> 0 | AB25: =+MAT!N19 -> 0 | AC25: =+MAT!Q19 -> 0 | AD25: =+MAT!T19 -> 0 | AE25: 0 | AF25: =+'NILAI SMT 6 (US)'!T19 -> 0 | AG25: 0 | AH25: 9 | AI25: 5.4 | AJ25: =+IPA!H19 -> 0 | AK25: =+IPA!K19 -> 0 | AL25: =+IPA!N19 -> 0 | AM25: =+IPA!Q19 -> 0 | AN25: =+IPA!T19 -> 0 | AO25: 0 | AP25: =+'NILAI SMT 6 (US)'!W19 -> 0 | AQ25: 0 | AR25: 6 | AS25: 3.6 | AT25: =+Agama!H19 -> 0 | AU25: =+Agama!K19 -> 0 | AV25: =+Agama!N19 -> 0 | AW25: =+Agama!Q19 -> 0 | AX25: =+Agama!T19 -> 0 | AY25: 0 | AZ25: =+'NILAI SMT 6 (US)'!H19 -> 0 | BA25: 0 | BB25: =+PPKn!H19 -> 0 | BC25: =+PPKn!K19 -> 0 | BD25: =+PPKn!N19 -> 0 | BE25: =+PPKn!Q19 -> 0 | BF25: =+PPKn!T19 -> 0 | BG25: 0 | BH25: =+'NILAI SMT 6 (US)'!K19 -> 0 | BI25: 0 | BJ25: =+IPS!H19 -> 0 | BK25: =+IPS!K19 -> 0 | BL25: =+IPS!N19 -> 0 | BM25: =+IPS!Q19 -> 0 | BN25: =+IPS!T19 -> 0 | BO25: 0 | BP25: =+'NILAI SMT 6 (US)'!Z19 -> 0 | BQ25: 0 | BR25: =+SENI!H19 -> 0 | BS25: =+SENI!K19 -> 0 | BT25: =+SENI!N19 -> 0 | BU25: =+SENI!Q19 -> 0 | BV25: =+SENI!T19 -> 0 | BW25: 0 | BX25: =+'NILAI SMT 6 (US)'!AC19 -> 0 | BY25: 0 | BZ25: =+PENJAS!H19 -> 0 | CA25: =+PENJAS!K19 -> 0 | CB25: =+PENJAS!N19 -> 0 | CC25: =+PENJAS!Q19 -> 0 | CD25: =+PENJAS!T19 -> 0 | CE25: 0 | CF25: =+'NILAI SMT 6 (US)'!AF19 -> 0 | CG25: 0 | CH25: =+'TIK-KET'!H19 -> 0 | CI25: =+'TIK-KET'!K19 -> 0 | CJ25: =+'TIK-KET'!N19 -> 0 | CK25: =+'TIK-KET'!Q19 -> 0 | CL25: =+'TIK-KET'!T19 -> 0 | CM25: 0 | CN25: =+'NILAI SMT 6 (US)'!AI19 -> 0 | CO25: 0 | CP25: =+'MLK1'!H19 -> 0 | CQ25: =+'MLK1'!K19 -> 0 | CR25: =+'MLK1'!N19 -> 0 | CS25: =+'MLK1'!Q19 -> 0 | CT25: =+'MLK1'!T19 -> 0 | CU25: 0 | CV25: =+'NILAI SMT 6 (US)'!AL19 -> 0 | CW25: 0 | CX25: =+'MLK2'!H19 -> 0 | CY25: =+'MLK2'!K19 -> 0 | CZ25: =+'MLK2'!N19 -> 0 | DA25: =+'MLK2'!Q19 -> 0 | DB25: =+'MLK2'!T19 -> 0 | DC25: 0 | DD25: =+'NILAI SMT 6 (US)'!AO19 -> 0 | DE25: 0 | DF25: 0 | DG25: =DF25/('KRITERIA&MULOK'!$E$20) -> 0 | DH25: 30 | DI25: 7.5 | DJ25: 18 | DK25: 4.5 | DL25: B | DM25: TIDAK LULUS
A26: =+BIODATA!A20 -> 13 | B26: =+BIODATA!B20 -> 0 | C26: =+BIODATA!E20 -> 0 | D26: =+BIODATA!C20 -> 0 | E26: =+BIODATA!D20 -> 0 | F26: =+BIND!H20 -> 0 | G26: =+BIND!K20 -> 0 | H26: =+BIND!N20 -> 0 | I26: =+BIND!Q20 -> 0 | J26: =+BIND!T20 -> 0 | K26: 0 | L26: =+'NILAI SMT 6 (US)'!N20 -> 0 | M26: 0 | N26: 7 | O26: 4.2 | P26: =+'B-ING'!H20 -> 0 | Q26: =+'B-ING'!K20 -> 0 | R26: =+'B-ING'!N20 -> 0 | S26: =+'B-ING'!Q20 -> 0 | T26: =+'B-ING'!T20 -> 0 | U26: 0 | V26: =+'NILAI SMT 6 (US)'!Q20 -> 0 | W26: 0 | X26: 8 | Y26: 4.8 | Z26: =+MAT!H20 -> 0 | AA26: =+MAT!K20 -> 0 | AB26: =+MAT!N20 -> 0 | AC26: =+MAT!Q20 -> 0 | AD26: =+MAT!T20 -> 0 | AE26: 0 | AF26: =+'NILAI SMT 6 (US)'!T20 -> 0 | AG26: 0 | AH26: 9 | AI26: 5.4 | AJ26: =+IPA!H20 -> 0 | AK26: =+IPA!K20 -> 0 | AL26: =+IPA!N20 -> 0 | AM26: =+IPA!Q20 -> 0 | AN26: =+IPA!T20 -> 0 | AO26: 0 | AP26: =+'NILAI SMT 6 (US)'!W20 -> 0 | AQ26: 0 | AR26: 6 | AS26: 3.6 | AT26: =+Agama!H20 -> 0 | AU26: =+Agama!K20 -> 0 | AV26: =+Agama!N20 -> 0 | AW26: =+Agama!Q20 -> 0 | AX26: =+Agama!T20 -> 0 | AY26: 0 | AZ26: =+'NILAI SMT 6 (US)'!H20 -> 0 | BA26: 0 | BB26: =+PPKn!H20 -> 0 | BC26: =+PPKn!K20 -> 0 | BD26: =+PPKn!N20 -> 0 | BE26: =+PPKn!Q20 -> 0 | BF26: =+PPKn!T20 -> 0 | BG26: 0 | BH26: =+'NILAI SMT 6 (US)'!K20 -> 0 | BI26: 0 | BJ26: =+IPS!H20 -> 0 | BK26: =+IPS!K20 -> 0 | BL26: =+IPS!N20 -> 0 | BM26: =+IPS!Q20 -> 0 | BN26: =+IPS!T20 -> 0 | BO26: 0 | BP26: =+'NILAI SMT 6 (US)'!Z20 -> 0 | BQ26: 0 | BR26: =+SENI!H20 -> 0 | BS26: =+SENI!K20 -> 0 | BT26: =+SENI!N20 -> 0 | BU26: =+SENI!Q20 -> 0 | BV26: =+SENI!T20 -> 0 | BW26: 0 | BX26: =+'NILAI SMT 6 (US)'!AC20 -> 0 | BY26: 0 | BZ26: =+PENJAS!H20 -> 0 | CA26: =+PENJAS!K20 -> 0 | CB26: =+PENJAS!N20 -> 0 | CC26: =+PENJAS!Q20 -> 0 | CD26: =+PENJAS!T20 -> 0 | CE26: 0 | CF26: =+'NILAI SMT 6 (US)'!AF20 -> 0 | CG26: 0 | CH26: =+'TIK-KET'!H20 -> 0 | CI26: =+'TIK-KET'!K20 -> 0 | CJ26: =+'TIK-KET'!N20 -> 0 | CK26: =+'TIK-KET'!Q20 -> 0 | CL26: =+'TIK-KET'!T20 -> 0 | CM26: 0 | CN26: =+'NILAI SMT 6 (US)'!AI20 -> 0 | CO26: 0 | CP26: =+'MLK1'!H20 -> 0 | CQ26: =+'MLK1'!K20 -> 0 | CR26: =+'MLK1'!N20 -> 0 | CS26: =+'MLK1'!Q20 -> 0 | CT26: =+'MLK1'!T20 -> 0 | CU26: 0 | CV26: =+'NILAI SMT 6 (US)'!AL20 -> 0 | CW26: 0 | CX26: =+'MLK2'!H20 -> 0 | CY26: =+'MLK2'!K20 -> 0 | CZ26: =+'MLK2'!N20 -> 0 | DA26: =+'MLK2'!Q20 -> 0 | DB26: =+'MLK2'!T20 -> 0 | DC26: 0 | DD26: =+'NILAI SMT 6 (US)'!AO20 -> 0 | DE26: 0 | DF26: 0 | DG26: =DF26/('KRITERIA&MULOK'!$E$20) -> 0 | DH26: 30 | DI26: 7.5 | DJ26: 18 | DK26: 4.5 | DL26: B | DM26: TIDAK LULUS
A27: =+BIODATA!A21 -> 14 | B27: =+BIODATA!B21 -> 0 | C27: =+BIODATA!E21 -> 0 | D27: =+BIODATA!C21 -> 0 | E27: =+BIODATA!D21 -> 0 | F27: =+BIND!H21 -> 0 | G27: =+BIND!K21 -> 0 | H27: =+BIND!N21 -> 0 | I27: =+BIND!Q21 -> 0 | J27: =+BIND!T21 -> 0 | K27: 0 | L27: =+'NILAI SMT 6 (US)'!N21 -> 0 | M27: 0 | N27: 7 | O27: 4.2 | P27: =+'B-ING'!H21 -> 0 | Q27: =+'B-ING'!K21 -> 0 | R27: =+'B-ING'!N21 -> 0 | S27: =+'B-ING'!Q21 -> 0 | T27: =+'B-ING'!T21 -> 0 | U27: 0 | V27: =+'NILAI SMT 6 (US)'!Q21 -> 0 | W27: 0 | X27: 8 | Y27: 4.8 | Z27: =+MAT!H21 -> 0 | AA27: =+MAT!K21 -> 0 | AB27: =+MAT!N21 -> 0 | AC27: =+MAT!Q21 -> 0 | AD27: =+MAT!T21 -> 0 | AE27: 0 | AF27: =+'NILAI SMT 6 (US)'!T21 -> 0 | AG27: 0 | AH27: 9 | AI27: 5.4 | AJ27: =+IPA!H21 -> 0 | AK27: =+IPA!K21 -> 0 | AL27: =+IPA!N21 -> 0 | AM27: =+IPA!Q21 -> 0 | AN27: =+IPA!T21 -> 0 | AO27: 0 | AP27: =+'NILAI SMT 6 (US)'!W21 -> 0 | AQ27: 0 | AR27: 6 | AS27: 3.6 | AT27: =+Agama!H21 -> 0 | AU27: =+Agama!K21 -> 0 | AV27: =+Agama!N21 -> 0 | AW27: =+Agama!Q21 -> 0 | AX27: =+Agama!T21 -> 0 | AY27: 0 | AZ27: =+'NILAI SMT 6 (US)'!H21 -> 0 | BA27: 0 | BB27: =+PPKn!H21 -> 0 | BC27: =+PPKn!K21 -> 0 | BD27: =+PPKn!N21 -> 0 | BE27: =+PPKn!Q21 -> 0 | BF27: =+PPKn!T21 -> 0 | BG27: 0 | BH27: =+'NILAI SMT 6 (US)'!K21 -> 0 | BI27: 0 | BJ27: =+IPS!H21 -> 0 | BK27: =+IPS!K21 -> 0 | BL27: =+IPS!N21 -> 0 | BM27: =+IPS!Q21 -> 0 | BN27: =+IPS!T21 -> 0 | BO27: 0 | BP27: =+'NILAI SMT 6 (US)'!Z21 -> 0 | BQ27: 0 | BR27: =+SENI!H21 -> 0 | BS27: =+SENI!K21 -> 0 | BT27: =+SENI!N21 -> 0 | BU27: =+SENI!Q21 -> 0 | BV27: =+SENI!T21 -> 0 | BW27: 0 | BX27: =+'NILAI SMT 6 (US)'!AC21 -> 0 | BY27: 0 | BZ27: =+PENJAS!H21 -> 0 | CA27: =+PENJAS!K21 -> 0 | CB27: =+PENJAS!N21 -> 0 | CC27: =+PENJAS!Q21 -> 0 | CD27: =+PENJAS!T21 -> 0 | CE27: 0 | CF27: =+'NILAI SMT 6 (US)'!AF21 -> 0 | CG27: 0 | CH27: =+'TIK-KET'!H21 -> 0 | CI27: =+'TIK-KET'!K21 -> 0 | CJ27: =+'TIK-KET'!N21 -> 0 | CK27: =+'TIK-KET'!Q21 -> 0 | CL27: =+'TIK-KET'!T21 -> 0 | CM27: 0 | CN27: =+'NILAI SMT 6 (US)'!AI21 -> 0 | CO27: 0 | CP27: =+'MLK1'!H21 -> 0 | CQ27: =+'MLK1'!K21 -> 0 | CR27: =+'MLK1'!N21 -> 0 | CS27: =+'MLK1'!Q21 -> 0 | CT27: =+'MLK1'!T21 -> 0 | CU27: 0 | CV27: =+'NILAI SMT 6 (US)'!AL21 -> 0 | CW27: 0 | CX27: =+'MLK2'!H21 -> 0 | CY27: =+'MLK2'!K21 -> 0 | CZ27: =+'MLK2'!N21 -> 0 | DA27: =+'MLK2'!Q21 -> 0 | DB27: =+'MLK2'!T21 -> 0 | DC27: 0 | DD27: =+'NILAI SMT 6 (US)'!AO21 -> 0 | DE27: 0 | DF27: 0 | DG27: =DF27/('KRITERIA&MULOK'!$E$20) -> 0 | DH27: 30 | DI27: 7.5 | DJ27: 18 | DK27: 4.5 | DL27: B | DM27: TIDAK LULUS
A28: =+BIODATA!A22 -> 15 | B28: =+BIODATA!B22 -> 0 | C28: =+BIODATA!E22 -> 0 | D28: =+BIODATA!C22 -> 0 | E28: =+BIODATA!D22 -> 0 | F28: =+BIND!H22 -> 0 | G28: =+BIND!K22 -> 0 | H28: =+BIND!N22 -> 0 | I28: =+BIND!Q22 -> 0 | J28: =+BIND!T22 -> 0 | K28: 0 | L28: =+'NILAI SMT 6 (US)'!N22 -> 0 | M28: 0 | N28: 7 | O28: 4.2 | P28: =+'B-ING'!H22 -> 0 | Q28: =+'B-ING'!K22 -> 0 | R28: =+'B-ING'!N22 -> 0 | S28: =+'B-ING'!Q22 -> 0 | T28: =+'B-ING'!T22 -> 0 | U28: 0 | V28: =+'NILAI SMT 6 (US)'!Q22 -> 0 | W28: 0 | X28: 8 | Y28: 4.8 | Z28: =+MAT!H22 -> 0 | AA28: =+MAT!K22 -> 0 | AB28: =+MAT!N22 -> 0 | AC28: =+MAT!Q22 -> 0 | AD28: =+MAT!T22 -> 0 | AE28: 0 | AF28: =+'NILAI SMT 6 (US)'!T22 -> 0 | AG28: 0 | AH28: 9 | AI28: 5.4 | AJ28: =+IPA!H22 -> 0 | AK28: =+IPA!K22 -> 0 | AL28: =+IPA!N22 -> 0 | AM28: =+IPA!Q22 -> 0 | AN28: =+IPA!T22 -> 0 | AO28: 0 | AP28: =+'NILAI SMT 6 (US)'!W22 -> 0 | AQ28: 0 | AR28: 6 | AS28: 3.6 | AT28: =+Agama!H22 -> 0 | AU28: =+Agama!K22 -> 0 | AV28: =+Agama!N22 -> 0 | AW28: =+Agama!Q22 -> 0 | AX28: =+Agama!T22 -> 0 | AY28: 0 | AZ28: =+'NILAI SMT 6 (US)'!H22 -> 0 | BA28: 0 | BB28: =+PPKn!H22 -> 0 | BC28: =+PPKn!K22 -> 0 | BD28: =+PPKn!N22 -> 0 | BE28: =+PPKn!Q22 -> 0 | BF28: =+PPKn!T22 -> 0 | BG28: 0 | BH28: =+'NILAI SMT 6 (US)'!K22 -> 0 | BI28: 0 | BJ28: =+IPS!H22 -> 0 | BK28: =+IPS!K22 -> 0 | BL28: =+IPS!N22 -> 0 | BM28: =+IPS!Q22 -> 0 | BN28: =+IPS!T22 -> 0 | BO28: 0 | BP28: =+'NILAI SMT 6 (US)'!Z22 -> 0 | BQ28: 0 | BR28: =+SENI!H22 -> 0 | BS28: =+SENI!K22 -> 0 | BT28: =+SENI!N22 -> 0 | BU28: =+SENI!Q22 -> 0 | BV28: =+SENI!T22 -> 0 | BW28: 0 | BX28: =+'NILAI SMT 6 (US)'!AC22 -> 0 | BY28: 0 | BZ28: =+PENJAS!H22 -> 0 | CA28: =+PENJAS!K22 -> 0 | CB28: =+PENJAS!N22 -> 0 | CC28: =+PENJAS!Q22 -> 0 | CD28: =+PENJAS!T22 -> 0 | CE28: 0 | CF28: =+'NILAI SMT 6 (US)'!AF22 -> 0 | CG28: 0 | CH28: =+'TIK-KET'!H22 -> 0 | CI28: =+'TIK-KET'!K22 -> 0 | CJ28: =+'TIK-KET'!N22 -> 0 | CK28: =+'TIK-KET'!Q22 -> 0 | CL28: =+'TIK-KET'!T22 -> 0 | CM28: 0 | CN28: =+'NILAI SMT 6 (US)'!AI22 -> 0 | CO28: 0 | CP28: =+'MLK1'!H22 -> 0 | CQ28: =+'MLK1'!K22 -> 0 | CR28: =+'MLK1'!N22 -> 0 | CS28: =+'MLK1'!Q22 -> 0 | CT28: =+'MLK1'!T22 -> 0 | CU28: 0 | CV28: =+'NILAI SMT 6 (US)'!AL22 -> 0 | CW28: 0 | CX28: =+'MLK2'!H22 -> 0 | CY28: =+'MLK2'!K22 -> 0 | CZ28: =+'MLK2'!N22 -> 0 | DA28: =+'MLK2'!Q22 -> 0 | DB28: =+'MLK2'!T22 -> 0 | DC28: 0 | DD28: =+'NILAI SMT 6 (US)'!AO22 -> 0 | DE28: 0 | DF28: 0 | DG28: =DF28/('KRITERIA&MULOK'!$E$20) -> 0 | DH28: 30 | DI28: 7.5 | DJ28: 18 | DK28: 4.5 | DL28: B | DM28: TIDAK LULUS
A29: =+BIODATA!A23 -> 16 | B29: =+BIODATA!B23 -> 0 | C29: =+BIODATA!E23 -> 0 | D29: =+BIODATA!C23 -> 0 | E29: =+BIODATA!D23 -> 0 | F29: =+BIND!H23 -> 0 | G29: =+BIND!K23 -> 0 | H29: =+BIND!N23 -> 0 | I29: =+BIND!Q23 -> 0 | J29: =+BIND!T23 -> 0 | K29: 0 | L29: =+'NILAI SMT 6 (US)'!N23 -> 0 | M29: 0 | N29: 7 | O29: 4.2 | P29: =+'B-ING'!H23 -> 0 | Q29: =+'B-ING'!K23 -> 0 | R29: =+'B-ING'!N23 -> 0 | S29: =+'B-ING'!Q23 -> 0 | T29: =+'B-ING'!T23 -> 0 | U29: 0 | V29: =+'NILAI SMT 6 (US)'!Q23 -> 0 | W29: 0 | X29: 8 | Y29: 4.8 | Z29: =+MAT!H23 -> 0 | AA29: =+MAT!K23 -> 0 | AB29: =+MAT!N23 -> 0 | AC29: =+MAT!Q23 -> 0 | AD29: =+MAT!T23 -> 0 | AE29: 0 | AF29: =+'NILAI SMT 6 (US)'!T23 -> 0 | AG29: 0 | AH29: 9 | AI29: 5.4 | AJ29: =+IPA!H23 -> 0 | AK29: =+IPA!K23 -> 0 | AL29: =+IPA!N23 -> 0 | AM29: =+IPA!Q23 -> 0 | AN29: =+IPA!T23 -> 0 | AO29: 0 | AP29: =+'NILAI SMT 6 (US)'!W23 -> 0 | AQ29: 0 | AR29: 6 | AS29: 3.6 | AT29: =+Agama!H23 -> 0 | AU29: =+Agama!K23 -> 0 | AV29: =+Agama!N23 -> 0 | AW29: =+Agama!Q23 -> 0 | AX29: =+Agama!T23 -> 0 | AY29: 0 | AZ29: =+'NILAI SMT 6 (US)'!H23 -> 0 | BA29: 0 | BB29: =+PPKn!H23 -> 0 | BC29: =+PPKn!K23 -> 0 | BD29: =+PPKn!N23 -> 0 | BE29: =+PPKn!Q23 -> 0 | BF29: =+PPKn!T23 -> 0 | BG29: 0 | BH29: =+'NILAI SMT 6 (US)'!K23 -> 0 | BI29: 0 | BJ29: =+IPS!H23 -> 0 | BK29: =+IPS!K23 -> 0 | BL29: =+IPS!N23 -> 0 | BM29: =+IPS!Q23 -> 0 | BN29: =+IPS!T23 -> 0 | BO29: 0 | BP29: =+'NILAI SMT 6 (US)'!Z23 -> 0 | BQ29: 0 | BR29: =+SENI!H23 -> 0 | BS29: =+SENI!K23 -> 0 | BT29: =+SENI!N23 -> 0 | BU29: =+SENI!Q23 -> 0 | BV29: =+SENI!T23 -> 0 | BW29: 0 | BX29: =+'NILAI SMT 6 (US)'!AC23 -> 0 | BY29: 0 | BZ29: =+PENJAS!H23 -> 0 | CA29: =+PENJAS!K23 -> 0 | CB29: =+PENJAS!N23 -> 0 | CC29: =+PENJAS!Q23 -> 0 | CD29: =+PENJAS!T23 -> 0 | CE29: 0 | CF29: =+'NILAI SMT 6 (US)'!AF23 -> 0 | CG29: 0 | CH29: =+'TIK-KET'!H23 -> 0 | CI29: =+'TIK-KET'!K23 -> 0 | CJ29: =+'TIK-KET'!N23 -> 0 | CK29: =+'TIK-KET'!Q23 -> 0 | CL29: =+'TIK-KET'!T23 -> 0 | CM29: 0 | CN29: =+'NILAI SMT 6 (US)'!AI23 -> 0 | CO29: 0 | CP29: =+'MLK1'!H23 -> 0 | CQ29: =+'MLK1'!K23 -> 0 | CR29: =+'MLK1'!N23 -> 0 | CS29: =+'MLK1'!Q23 -> 0 | CT29: =+'MLK1'!T23 -> 0 | CU29: 0 | CV29: =+'NILAI SMT 6 (US)'!AL23 -> 0 | CW29: 0 | CX29: =+'MLK2'!H23 -> 0 | CY29: =+'MLK2'!K23 -> 0 | CZ29: =+'MLK2'!N23 -> 0 | DA29: =+'MLK2'!Q23 -> 0 | DB29: =+'MLK2'!T23 -> 0 | DC29: 0 | DD29: =+'NILAI SMT 6 (US)'!AO23 -> 0 | DE29: 0 | DF29: 0 | DG29: =DF29/('KRITERIA&MULOK'!$E$20) -> 0 | DH29: 30 | DI29: 7.5 | DJ29: 18 | DK29: 4.5 | DL29: B | DM29: TIDAK LULUS
A30: =+BIODATA!A24 -> 17 | B30: =+BIODATA!B24 -> 0 | C30: =+BIODATA!E24 -> 0 | D30: =+BIODATA!C24 -> 0 | E30: =+BIODATA!D24 -> 0 | F30: =+BIND!H24 -> 0 | G30: =+BIND!K24 -> 0 | H30: =+BIND!N24 -> 0 | I30: =+BIND!Q24 -> 0 | J30: =+BIND!T24 -> 0 | K30: 0 | L30: =+'NILAI SMT 6 (US)'!N24 -> 0 | M30: 0 | N30: 7 | O30: 4.2 | P30: =+'B-ING'!H24 -> 0 | Q30: =+'B-ING'!K24 -> 0 | R30: =+'B-ING'!N24 -> 0 | S30: =+'B-ING'!Q24 -> 0 | T30: =+'B-ING'!T24 -> 0 | U30: 0 | V30: =+'NILAI SMT 6 (US)'!Q24 -> 0 | W30: 0 | X30: 8 | Y30: 4.8 | Z30: =+MAT!H24 -> 0 | AA30: =+MAT!K24 -> 0 | AB30: =+MAT!N24 -> 0 | AC30: =+MAT!Q24 -> 0 | AD30: =+MAT!T24 -> 0 | AE30: 0 | AF30: =+'NILAI SMT 6 (US)'!T24 -> 0 | AG30: 0 | AH30: 9 | AI30: 5.4 | AJ30: =+IPA!H24 -> 0 | AK30: =+IPA!K24 -> 0 | AL30: =+IPA!N24 -> 0 | AM30: =+IPA!Q24 -> 0 | AN30: =+IPA!T24 -> 0 | AO30: 0 | AP30: =+'NILAI SMT 6 (US)'!W24 -> 0 | AQ30: 0 | AR30: 6 | AS30: 3.6 | AT30: =+Agama!H24 -> 0 | AU30: =+Agama!K24 -> 0 | AV30: =+Agama!N24 -> 0 | AW30: =+Agama!Q24 -> 0 | AX30: =+Agama!T24 -> 0 | AY30: 0 | AZ30: =+'NILAI SMT 6 (US)'!H24 -> 0 | BA30: 0 | BB30: =+PPKn!H24 -> 0 | BC30: =+PPKn!K24 -> 0 | BD30: =+PPKn!N24 -> 0 | BE30: =+PPKn!Q24 -> 0 | BF30: =+PPKn!T24 -> 0 | BG30: 0 | BH30: =+'NILAI SMT 6 (US)'!K24 -> 0 | BI30: 0 | BJ30: =+IPS!H24 -> 0 | BK30: =+IPS!K24 -> 0 | BL30: =+IPS!N24 -> 0 | BM30: =+IPS!Q24 -> 0 | BN30: =+IPS!T24 -> 0 | BO30: 0 | BP30: =+'NILAI SMT 6 (US)'!Z24 -> 0 | BQ30: 0 | BR30: =+SENI!H24 -> 0 | BS30: =+SENI!K24 -> 0 | BT30: =+SENI!N24 -> 0 | BU30: =+SENI!Q24 -> 0 | BV30: =+SENI!T24 -> 0 | BW30: 0 | BX30: =+'NILAI SMT 6 (US)'!AC24 -> 0 | BY30: 0 | BZ30: =+PENJAS!H24 -> 0 | CA30: =+PENJAS!K24 -> 0 | CB30: =+PENJAS!N24 -> 0 | CC30: =+PENJAS!Q24 -> 0 | CD30: =+PENJAS!T24 -> 0 | CE30: 0 | CF30: =+'NILAI SMT 6 (US)'!AF24 -> 0 | CG30: 0 | CH30: =+'TIK-KET'!H24 -> 0 | CI30: =+'TIK-KET'!K24 -> 0 | CJ30: =+'TIK-KET'!N24 -> 0 | CK30: =+'TIK-KET'!Q24 -> 0 | CL30: =+'TIK-KET'!T24 -> 0 | CM30: 0 | CN30: =+'NILAI SMT 6 (US)'!AI24 -> 0 | CO30: 0 | CP30: =+'MLK1'!H24 -> 0 | CQ30: =+'MLK1'!K24 -> 0 | CR30: =+'MLK1'!N24 -> 0 | CS30: =+'MLK1'!Q24 -> 0 | CT30: =+'MLK1'!T24 -> 0 | CU30: 0 | CV30: =+'NILAI SMT 6 (US)'!AL24 -> 0 | CW30: 0 | CX30: =+'MLK2'!H24 -> 0 | CY30: =+'MLK2'!K24 -> 0 | CZ30: =+'MLK2'!N24 -> 0 | DA30: =+'MLK2'!Q24 -> 0 | DB30: =+'MLK2'!T24 -> 0 | DC30: 0 | DD30: =+'NILAI SMT 6 (US)'!AO24 -> 0 | DE30: 0 | DF30: 0 | DG30: =DF30/('KRITERIA&MULOK'!$E$20) -> 0 | DH30: 30 | DI30: 7.5 | DJ30: 18 | DK30: 4.5 | DL30: B | DM30: TIDAK LULUS
A31: =+BIODATA!A25 -> 18 | B31: =+BIODATA!B25 -> 0 | C31: =+BIODATA!E25 -> 0 | D31: =+BIODATA!C25 -> 0 | E31: =+BIODATA!D25 -> 0 | F31: =+BIND!H25 -> 0 | G31: =+BIND!K25 -> 0 | H31: =+BIND!N25 -> 0 | I31: =+BIND!Q25 -> 0 | J31: =+BIND!T25 -> 0 | K31: 0 | L31: =+'NILAI SMT 6 (US)'!N25 -> 0 | M31: 0 | N31: 7 | O31: 4.2 | P31: =+'B-ING'!H25 -> 0 | Q31: =+'B-ING'!K25 -> 0 | R31: =+'B-ING'!N25 -> 0 | S31: =+'B-ING'!Q25 -> 0 | T31: =+'B-ING'!T25 -> 0 | U31: 0 | V31: =+'NILAI SMT 6 (US)'!Q25 -> 0 | W31: 0 | X31: 8 | Y31: 4.8 | Z31: =+MAT!H25 -> 0 | AA31: =+MAT!K25 -> 0 | AB31: =+MAT!N25 -> 0 | AC31: =+MAT!Q25 -> 0 | AD31: =+MAT!T25 -> 0 | AE31: 0 | AF31: =+'NILAI SMT 6 (US)'!T25 -> 0 | AG31: 0 | AH31: 9 | AI31: 5.4 | AJ31: =+IPA!H25 -> 0 | AK31: =+IPA!K25 -> 0 | AL31: =+IPA!N25 -> 0 | AM31: =+IPA!Q25 -> 0 | AN31: =+IPA!T25 -> 0 | AO31: 0 | AP31: =+'NILAI SMT 6 (US)'!W25 -> 0 | AQ31: 0 | AR31: 6 | AS31: 3.6 | AT31: =+Agama!H25 -> 0 | AU31: =+Agama!K25 -> 0 | AV31: =+Agama!N25 -> 0 | AW31: =+Agama!Q25 -> 0 | AX31: =+Agama!T25 -> 0 | AY31: 0 | AZ31: =+'NILAI SMT 6 (US)'!H25 -> 0 | BA31: 0 | BB31: =+PPKn!H25 -> 0 | BC31: =+PPKn!K25 -> 0 | BD31: =+PPKn!N25 -> 0 | BE31: =+PPKn!Q25 -> 0 | BF31: =+PPKn!T25 -> 0 | BG31: 0 | BH31: =+'NILAI SMT 6 (US)'!K25 -> 0 | BI31: 0 | BJ31: =+IPS!H25 -> 0 | BK31: =+IPS!K25 -> 0 | BL31: =+IPS!N25 -> 0 | BM31: =+IPS!Q25 -> 0 | BN31: =+IPS!T25 -> 0 | BO31: 0 | BP31: =+'NILAI SMT 6 (US)'!Z25 -> 0 | BQ31: 0 | BR31: =+SENI!H25 -> 0 | BS31: =+SENI!K25 -> 0 | BT31: =+SENI!N25 -> 0 | BU31: =+SENI!Q25 -> 0 | BV31: =+SENI!T25 -> 0 | BW31: 0 | BX31: =+'NILAI SMT 6 (US)'!AC25 -> 0 | BY31: 0 | BZ31: =+PENJAS!H25 -> 0 | CA31: =+PENJAS!K25 -> 0 | CB31: =+PENJAS!N25 -> 0 | CC31: =+PENJAS!Q25 -> 0 | CD31: =+PENJAS!T25 -> 0 | CE31: 0 | CF31: =+'NILAI SMT 6 (US)'!AF25 -> 0 | CG31: 0 | CH31: =+'TIK-KET'!H25 -> 0 | CI31: =+'TIK-KET'!K25 -> 0 | CJ31: =+'TIK-KET'!N25 -> 0 | CK31: =+'TIK-KET'!Q25 -> 0 | CL31: =+'TIK-KET'!T25 -> 0 | CM31: 0 | CN31: =+'NILAI SMT 6 (US)'!AI25 -> 0 | CO31: 0 | CP31: =+'MLK1'!H25 -> 0 | CQ31: =+'MLK1'!K25 -> 0 | CR31: =+'MLK1'!N25 -> 0 | CS31: =+'MLK1'!Q25 -> 0 | CT31: =+'MLK1'!T25 -> 0 | CU31: 0 | CV31: =+'NILAI SMT 6 (US)'!AL25 -> 0 | CW31: 0 | CX31: =+'MLK2'!H25 -> 0 | CY31: =+'MLK2'!K25 -> 0 | CZ31: =+'MLK2'!N25 -> 0 | DA31: =+'MLK2'!Q25 -> 0 | DB31: =+'MLK2'!T25 -> 0 | DC31: 0 | DD31: =+'NILAI SMT 6 (US)'!AO25 -> 0 | DE31: 0 | DF31: 0 | DG31: =DF31/('KRITERIA&MULOK'!$E$20) -> 0 | DH31: 30 | DI31: 7.5 | DJ31: 18 | DK31: 4.5 | DL31: B | DM31: TIDAK LULUS
A32: =+BIODATA!A26 -> 19 | B32: =+BIODATA!B26 -> 0 | C32: =+BIODATA!E26 -> 0 | D32: =+BIODATA!C26 -> 0 | E32: =+BIODATA!D26 -> 0 | F32: =+BIND!H26 -> 0 | G32: =+BIND!K26 -> 0 | H32: =+BIND!N26 -> 0 | I32: =+BIND!Q26 -> 0 | J32: =+BIND!T26 -> 0 | K32: 0 | L32: =+'NILAI SMT 6 (US)'!N26 -> 0 | M32: 0 | N32: 7 | O32: 4.2 | P32: =+'B-ING'!H26 -> 0 | Q32: =+'B-ING'!K26 -> 0 | R32: =+'B-ING'!N26 -> 0 | S32: =+'B-ING'!Q26 -> 0 | T32: =+'B-ING'!T26 -> 0 | U32: 0 | V32: =+'NILAI SMT 6 (US)'!Q26 -> 0 | W32: 0 | X32: 8 | Y32: 4.8 | Z32: =+MAT!H26 -> 0 | AA32: =+MAT!K26 -> 0 | AB32: =+MAT!N26 -> 0 | AC32: =+MAT!Q26 -> 0 | AD32: =+MAT!T26 -> 0 | AE32: 0 | AF32: =+'NILAI SMT 6 (US)'!T26 -> 0 | AG32: 0 | AH32: 9 | AI32: 5.4 | AJ32: =+IPA!H26 -> 0 | AK32: =+IPA!K26 -> 0 | AL32: =+IPA!N26 -> 0 | AM32: =+IPA!Q26 -> 0 | AN32: =+IPA!T26 -> 0 | AO32: 0 | AP32: =+'NILAI SMT 6 (US)'!W26 -> 0 | AQ32: 0 | AR32: 6 | AS32: 3.6 | AT32: =+Agama!H26 -> 0 | AU32: =+Agama!K26 -> 0 | AV32: =+Agama!N26 -> 0 | AW32: =+Agama!Q26 -> 0 | AX32: =+Agama!T26 -> 0 | AY32: 0 | AZ32: =+'NILAI SMT 6 (US)'!H26 -> 0 | BA32: 0 | BB32: =+PPKn!H26 -> 0 | BC32: =+PPKn!K26 -> 0 | BD32: =+PPKn!N26 -> 0 | BE32: =+PPKn!Q26 -> 0 | BF32: =+PPKn!T26 -> 0 | BG32: 0 | BH32: =+'NILAI SMT 6 (US)'!K26 -> 0 | BI32: 0 | BJ32: =+IPS!H26 -> 0 | BK32: =+IPS!K26 -> 0 | BL32: =+IPS!N26 -> 0 | BM32: =+IPS!Q26 -> 0 | BN32: =+IPS!T26 -> 0 | BO32: 0 | BP32: =+'NILAI SMT 6 (US)'!Z26 -> 0 | BQ32: 0 | BR32: =+SENI!H26 -> 0 | BS32: =+SENI!K26 -> 0 | BT32: =+SENI!N26 -> 0 | BU32: =+SENI!Q26 -> 0 | BV32: =+SENI!T26 -> 0 | BW32: 0 | BX32: =+'NILAI SMT 6 (US)'!AC26 -> 0 | BY32: 0 | BZ32: =+PENJAS!H26 -> 0 | CA32: =+PENJAS!K26 -> 0 | CB32: =+PENJAS!N26 -> 0 | CC32: =+PENJAS!Q26 -> 0 | CD32: =+PENJAS!T26 -> 0 | CE32: 0 | CF32: =+'NILAI SMT 6 (US)'!AF26 -> 0 | CG32: 0 | CH32: =+'TIK-KET'!H26 -> 0 | CI32: =+'TIK-KET'!K26 -> 0 | CJ32: =+'TIK-KET'!N26 -> 0 | CK32: =+'TIK-KET'!Q26 -> 0 | CL32: =+'TIK-KET'!T26 -> 0 | CM32: 0 | CN32: =+'NILAI SMT 6 (US)'!AI26 -> 0 | CO32: 0 | CP32: =+'MLK1'!H26 -> 0 | CQ32: =+'MLK1'!K26 -> 0 | CR32: =+'MLK1'!N26 -> 0 | CS32: =+'MLK1'!Q26 -> 0 | CT32: =+'MLK1'!T26 -> 0 | CU32: 0 | CV32: =+'NILAI SMT 6 (US)'!AL26 -> 0 | CW32: 0 | CX32: =+'MLK2'!H26 -> 0 | CY32: =+'MLK2'!K26 -> 0 | CZ32: =+'MLK2'!N26 -> 0 | DA32: =+'MLK2'!Q26 -> 0 | DB32: =+'MLK2'!T26 -> 0 | DC32: 0 | DD32: =+'NILAI SMT 6 (US)'!AO26 -> 0 | DE32: 0 | DF32: 0 | DG32: =DF32/('KRITERIA&MULOK'!$E$20) -> 0 | DH32: 30 | DI32: 7.5 | DJ32: 18 | DK32: 4.5 | DL32: B | DM32: TIDAK LULUS
A33: =+BIODATA!A27 -> 20 | B33: =+BIODATA!B27 -> 0 | C33: =+BIODATA!E27 -> 0 | D33: =+BIODATA!C27 -> 0 | E33: =+BIODATA!D27 -> 0 | F33: =+BIND!H27 -> 0 | G33: =+BIND!K27 -> 0 | H33: =+BIND!N27 -> 0 | I33: =+BIND!Q27 -> 0 | J33: =+BIND!T27 -> 0 | K33: 0 | L33: =+'NILAI SMT 6 (US)'!N27 -> 0 | M33: 0 | N33: 7 | O33: 4.2 | P33: =+'B-ING'!H27 -> 0 | Q33: =+'B-ING'!K27 -> 0 | R33: =+'B-ING'!N27 -> 0 | S33: =+'B-ING'!Q27 -> 0 | T33: =+'B-ING'!T27 -> 0 | U33: 0 | V33: =+'NILAI SMT 6 (US)'!Q27 -> 0 | W33: 0 | X33: 8 | Y33: 4.8 | Z33: =+MAT!H27 -> 0 | AA33: =+MAT!K27 -> 0 | AB33: =+MAT!N27 -> 0 | AC33: =+MAT!Q27 -> 0 | AD33: =+MAT!T27 -> 0 | AE33: 0 | AF33: =+'NILAI SMT 6 (US)'!T27 -> 0 | AG33: 0 | AH33: 9 | AI33: 5.4 | AJ33: =+IPA!H27 -> 0 | AK33: =+IPA!K27 -> 0 | AL33: =+IPA!N27 -> 0 | AM33: =+IPA!Q27 -> 0 | AN33: =+IPA!T27 -> 0 | AO33: 0 | AP33: =+'NILAI SMT 6 (US)'!W27 -> 0 | AQ33: 0 | AR33: 6 | AS33: 3.6 | AT33: =+Agama!H27 -> 0 | AU33: =+Agama!K27 -> 0 | AV33: =+Agama!N27 -> 0 | AW33: =+Agama!Q27 -> 0 | AX33: =+Agama!T27 -> 0 | AY33: 0 | AZ33: =+'NILAI SMT 6 (US)'!H27 -> 0 | BA33: 0 | BB33: =+PPKn!H27 -> 0 | BC33: =+PPKn!K27 -> 0 | BD33: =+PPKn!N27 -> 0 | BE33: =+PPKn!Q27 -> 0 | BF33: =+PPKn!T27 -> 0 | BG33: 0 | BH33: =+'NILAI SMT 6 (US)'!K27 -> 0 | BI33: 0 | BJ33: =+IPS!H27 -> 0 | BK33: =+IPS!K27 -> 0 | BL33: =+IPS!N27 -> 0 | BM33: =+IPS!Q27 -> 0 | BN33: =+IPS!T27 -> 0 | BO33: 0 | BP33: =+'NILAI SMT 6 (US)'!Z27 -> 0 | BQ33: 0 | BR33: =+SENI!H27 -> 0 | BS33: =+SENI!K27 -> 0 | BT33: =+SENI!N27 -> 0 | BU33: =+SENI!Q27 -> 0 | BV33: =+SENI!T27 -> 0 | BW33: 0 | BX33: =+'NILAI SMT 6 (US)'!AC27 -> 0 | BY33: 0 | BZ33: =+PENJAS!H27 -> 0 | CA33: =+PENJAS!K27 -> 0 | CB33: =+PENJAS!N27 -> 0 | CC33: =+PENJAS!Q27 -> 0 | CD33: =+PENJAS!T27 -> 0 | CE33: 0 | CF33: =+'NILAI SMT 6 (US)'!AF27 -> 0 | CG33: 0 | CH33: =+'TIK-KET'!H27 -> 0 | CI33: =+'TIK-KET'!K27 -> 0 | CJ33: =+'TIK-KET'!N27 -> 0 | CK33: =+'TIK-KET'!Q27 -> 0 | CL33: =+'TIK-KET'!T27 -> 0 | CM33: 0 | CN33: =+'NILAI SMT 6 (US)'!AI27 -> 0 | CO33: 0 | CP33: =+'MLK1'!H27 -> 0 | CQ33: =+'MLK1'!K27 -> 0 | CR33: =+'MLK1'!N27 -> 0 | CS33: =+'MLK1'!Q27 -> 0 | CT33: =+'MLK1'!T27 -> 0 | CU33: 0 | CV33: =+'NILAI SMT 6 (US)'!AL27 -> 0 | CW33: 0 | CX33: =+'MLK2'!H27 -> 0 | CY33: =+'MLK2'!K27 -> 0 | CZ33: =+'MLK2'!N27 -> 0 | DA33: =+'MLK2'!Q27 -> 0 | DB33: =+'MLK2'!T27 -> 0 | DC33: 0 | DD33: =+'NILAI SMT 6 (US)'!AO27 -> 0 | DE33: 0 | DF33: 0 | DG33: =DF33/('KRITERIA&MULOK'!$E$20) -> 0 | DH33: 30 | DI33: 7.5 | DJ33: 18 | DK33: 4.5 | DL33: B | DM33: TIDAK LULUS
A34: =+BIODATA!A28 -> 21 | B34: =+BIODATA!B28 -> 0 | C34: =+BIODATA!E28 -> 0 | D34: =+BIODATA!C28 -> 0 | E34: =+BIODATA!D28 -> 0 | F34: =+BIND!H28 -> 0 | G34: =+BIND!K28 -> 0 | H34: =+BIND!N28 -> 0 | I34: =+BIND!Q28 -> 0 | J34: =+BIND!T28 -> 0 | K34: 0 | L34: =+'NILAI SMT 6 (US)'!N28 -> 0 | M34: 0 | N34: 7 | O34: 4.2 | P34: =+'B-ING'!H28 -> 0 | Q34: =+'B-ING'!K28 -> 0 | R34: =+'B-ING'!N28 -> 0 | S34: =+'B-ING'!Q28 -> 0 | T34: =+'B-ING'!T28 -> 0 | U34: 0 | V34: =+'NILAI SMT 6 (US)'!Q28 -> 0 | W34: 0 | X34: 8 | Y34: 4.8 | Z34: =+MAT!H28 -> 0 | AA34: =+MAT!K28 -> 0 | AB34: =+MAT!N28 -> 0 | AC34: =+MAT!Q28 -> 0 | AD34: =+MAT!T28 -> 0 | AE34: 0 | AF34: =+'NILAI SMT 6 (US)'!T28 -> 0 | AG34: 0 | AH34: 9 | AI34: 5.4 | AJ34: =+IPA!H28 -> 0 | AK34: =+IPA!K28 -> 0 | AL34: =+IPA!N28 -> 0 | AM34: =+IPA!Q28 -> 0 | AN34: =+IPA!T28 -> 0 | AO34: 0 | AP34: =+'NILAI SMT 6 (US)'!W28 -> 0 | AQ34: 0 | AR34: 6 | AS34: 3.6 | AT34: =+Agama!H28 -> 0 | AU34: =+Agama!K28 -> 0 | AV34: =+Agama!N28 -> 0 | AW34: =+Agama!Q28 -> 0 | AX34: =+Agama!T28 -> 0 | AY34: 0 | AZ34: =+'NILAI SMT 6 (US)'!H28 -> 0 | BA34: 0 | BB34: =+PPKn!H28 -> 0 | BC34: =+PPKn!K28 -> 0 | BD34: =+PPKn!N28 -> 0 | BE34: =+PPKn!Q28 -> 0 | BF34: =+PPKn!T28 -> 0 | BG34: 0 | BH34: =+'NILAI SMT 6 (US)'!K28 -> 0 | BI34: 0 | BJ34: =+IPS!H28 -> 0 | BK34: =+IPS!K28 -> 0 | BL34: =+IPS!N28 -> 0 | BM34: =+IPS!Q28 -> 0 | BN34: =+IPS!T28 -> 0 | BO34: 0 | BP34: =+'NILAI SMT 6 (US)'!Z28 -> 0 | BQ34: 0 | BR34: =+SENI!H28 -> 0 | BS34: =+SENI!K28 -> 0 | BT34: =+SENI!N28 -> 0 | BU34: =+SENI!Q28 -> 0 | BV34: =+SENI!T28 -> 0 | BW34: 0 | BX34: =+'NILAI SMT 6 (US)'!AC28 -> 0 | BY34: 0 | BZ34: =+PENJAS!H28 -> 0 | CA34: =+PENJAS!K28 -> 0 | CB34: =+PENJAS!N28 -> 0 | CC34: =+PENJAS!Q28 -> 0 | CD34: =+PENJAS!T28 -> 0 | CE34: 0 | CF34: =+'NILAI SMT 6 (US)'!AF28 -> 0 | CG34: 0 | CH34: =+'TIK-KET'!H28 -> 0 | CI34: =+'TIK-KET'!K28 -> 0 | CJ34: =+'TIK-KET'!N28 -> 0 | CK34: =+'TIK-KET'!Q28 -> 0 | CL34: =+'TIK-KET'!T28 -> 0 | CM34: 0 | CN34: =+'NILAI SMT 6 (US)'!AI28 -> 0 | CO34: 0 | CP34: =+'MLK1'!H28 -> 0 | CQ34: =+'MLK1'!K28 -> 0 | CR34: =+'MLK1'!N28 -> 0 | CS34: =+'MLK1'!Q28 -> 0 | CT34: =+'MLK1'!T28 -> 0 | CU34: 0 | CV34: =+'NILAI SMT 6 (US)'!AL28 -> 0 | CW34: 0 | CX34: =+'MLK2'!H28 -> 0 | CY34: =+'MLK2'!K28 -> 0 | CZ34: =+'MLK2'!N28 -> 0 | DA34: =+'MLK2'!Q28 -> 0 | DB34: =+'MLK2'!T28 -> 0 | DC34: 0 | DD34: =+'NILAI SMT 6 (US)'!AO28 -> 0 | DE34: 0 | DF34: 0 | DG34: =DF34/('KRITERIA&MULOK'!$E$20) -> 0 | DH34: 30 | DI34: 7.5 | DJ34: 18 | DK34: 4.5 | DL34: B | DM34: TIDAK LULUS
A35: =+BIODATA!A29 -> 22 | B35: =+BIODATA!B29 -> 0 | C35: =+BIODATA!E29 -> 0 | D35: =+BIODATA!C29 -> 0 | E35: =+BIODATA!D29 -> 0 | F35: =+BIND!H29 -> 0 | G35: =+BIND!K29 -> 0 | H35: =+BIND!N29 -> 0 | I35: =+BIND!Q29 -> 0 | J35: =+BIND!T29 -> 0 | K35: 0 | L35: =+'NILAI SMT 6 (US)'!N29 -> 0 | M35: 0 | N35: 7 | O35: 4.2 | P35: =+'B-ING'!H29 -> 0 | Q35: =+'B-ING'!K29 -> 0 | R35: =+'B-ING'!N29 -> 0 | S35: =+'B-ING'!Q29 -> 0 | T35: =+'B-ING'!T29 -> 0 | U35: 0 | V35: =+'NILAI SMT 6 (US)'!Q29 -> 0 | W35: 0 | X35: 8 | Y35: 4.8 | Z35: =+MAT!H29 -> 0 | AA35: =+MAT!K29 -> 0 | AB35: =+MAT!N29 -> 0 | AC35: =+MAT!Q29 -> 0 | AD35: =+MAT!T29 -> 0 | AE35: 0 | AF35: =+'NILAI SMT 6 (US)'!T29 -> 0 | AG35: 0 | AH35: 9 | AI35: 5.4 | AJ35: =+IPA!H29 -> 0 | AK35: =+IPA!K29 -> 0 | AL35: =+IPA!N29 -> 0 | AM35: =+IPA!Q29 -> 0 | AN35: =+IPA!T29 -> 0 | AO35: 0 | AP35: =+'NILAI SMT 6 (US)'!W29 -> 0 | AQ35: 0 | AR35: 6 | AS35: 3.6 | AT35: =+Agama!H29 -> 0 | AU35: =+Agama!K29 -> 0 | AV35: =+Agama!N29 -> 0 | AW35: =+Agama!Q29 -> 0 | AX35: =+Agama!T29 -> 0 | AY35: 0 | AZ35: =+'NILAI SMT 6 (US)'!H29 -> 0 | BA35: 0 | BB35: =+PPKn!H29 -> 0 | BC35: =+PPKn!K29 -> 0 | BD35: =+PPKn!N29 -> 0 | BE35: =+PPKn!Q29 -> 0 | BF35: =+PPKn!T29 -> 0 | BG35: 0 | BH35: =+'NILAI SMT 6 (US)'!K29 -> 0 | BI35: 0 | BJ35: =+IPS!H29 -> 0 | BK35: =+IPS!K29 -> 0 | BL35: =+IPS!N29 -> 0 | BM35: =+IPS!Q29 -> 0 | BN35: =+IPS!T29 -> 0 | BO35: 0 | BP35: =+'NILAI SMT 6 (US)'!Z29 -> 0 | BQ35: 0 | BR35: =+SENI!H29 -> 0 | BS35: =+SENI!K29 -> 0 | BT35: =+SENI!N29 -> 0 | BU35: =+SENI!Q29 -> 0 | BV35: =+SENI!T29 -> 0 | BW35: 0 | BX35: =+'NILAI SMT 6 (US)'!AC29 -> 0 | BY35: 0 | BZ35: =+PENJAS!H29 -> 0 | CA35: =+PENJAS!K29 -> 0 | CB35: =+PENJAS!N29 -> 0 | CC35: =+PENJAS!Q29 -> 0 | CD35: =+PENJAS!T29 -> 0 | CE35: 0 | CF35: =+'NILAI SMT 6 (US)'!AF29 -> 0 | CG35: 0 | CH35: =+'TIK-KET'!H29 -> 0 | CI35: =+'TIK-KET'!K29 -> 0 | CJ35: =+'TIK-KET'!N29 -> 0 | CK35: =+'TIK-KET'!Q29 -> 0 | CL35: =+'TIK-KET'!T29 -> 0 | CM35: 0 | CN35: =+'NILAI SMT 6 (US)'!AI29 -> 0 | CO35: 0 | CP35: =+'MLK1'!H29 -> 0 | CQ35: =+'MLK1'!K29 -> 0 | CR35: =+'MLK1'!N29 -> 0 | CS35: =+'MLK1'!Q29 -> 0 | CT35: =+'MLK1'!T29 -> 0 | CU35: 0 | CV35: =+'NILAI SMT 6 (US)'!AL29 -> 0 | CW35: 0 | CX35: =+'MLK2'!H29 -> 0 | CY35: =+'MLK2'!K29 -> 0 | CZ35: =+'MLK2'!N29 -> 0 | DA35: =+'MLK2'!Q29 -> 0 | DB35: =+'MLK2'!T29 -> 0 | DC35: 0 | DD35: =+'NILAI SMT 6 (US)'!AO29 -> 0 | DE35: 0 | DF35: 0 | DG35: =DF35/('KRITERIA&MULOK'!$E$20) -> 0 | DH35: 30 | DI35: 7.5 | DJ35: 18 | DK35: 4.5 | DL35: B | DM35: TIDAK LULUS
A36: =+BIODATA!A30 -> 23 | B36: =+BIODATA!B30 -> 0 | C36: =+BIODATA!E30 -> 0 | D36: =+BIODATA!C30 -> 0 | E36: =+BIODATA!D30 -> 0 | F36: =+BIND!H30 -> 0 | G36: =+BIND!K30 -> 0 | H36: =+BIND!N30 -> 0 | I36: =+BIND!Q30 -> 0 | J36: =+BIND!T30 -> 0 | K36: 0 | L36: =+'NILAI SMT 6 (US)'!N30 -> 0 | M36: 0 | N36: 7 | O36: 4.2 | P36: =+'B-ING'!H30 -> 0 | Q36: =+'B-ING'!K30 -> 0 | R36: =+'B-ING'!N30 -> 0 | S36: =+'B-ING'!Q30 -> 0 | T36: =+'B-ING'!T30 -> 0 | U36: 0 | V36: =+'NILAI SMT 6 (US)'!Q30 -> 0 | W36: 0 | X36: 8 | Y36: 4.8 | Z36: =+MAT!H30 -> 0 | AA36: =+MAT!K30 -> 0 | AB36: =+MAT!N30 -> 0 | AC36: =+MAT!Q30 -> 0 | AD36: =+MAT!T30 -> 0 | AE36: 0 | AF36: =+'NILAI SMT 6 (US)'!T30 -> 0 | AG36: 0 | AH36: 9 | AI36: 5.4 | AJ36: =+IPA!H30 -> 0 | AK36: =+IPA!K30 -> 0 | AL36: =+IPA!N30 -> 0 | AM36: =+IPA!Q30 -> 0 | AN36: =+IPA!T30 -> 0 | AO36: 0 | AP36: =+'NILAI SMT 6 (US)'!W30 -> 0 | AQ36: 0 | AR36: 6 | AS36: 3.6 | AT36: =+Agama!H30 -> 0 | AU36: =+Agama!K30 -> 0 | AV36: =+Agama!N30 -> 0 | AW36: =+Agama!Q30 -> 0 | AX36: =+Agama!T30 -> 0 | AY36: 0 | AZ36: =+'NILAI SMT 6 (US)'!H30 -> 0 | BA36: 0 | BB36: =+PPKn!H30 -> 0 | BC36: =+PPKn!K30 -> 0 | BD36: =+PPKn!N30 -> 0 | BE36: =+PPKn!Q30 -> 0 | BF36: =+PPKn!T30 -> 0 | BG36: 0 | BH36: =+'NILAI SMT 6 (US)'!K30 -> 0 | BI36: 0 | BJ36: =+IPS!H30 -> 0 | BK36: =+IPS!K30 -> 0 | BL36: =+IPS!N30 -> 0 | BM36: =+IPS!Q30 -> 0 | BN36: =+IPS!T30 -> 0 | BO36: 0 | BP36: =+'NILAI SMT 6 (US)'!Z30 -> 0 | BQ36: 0 | BR36: =+SENI!H30 -> 0 | BS36: =+SENI!K30 -> 0 | BT36: =+SENI!N30 -> 0 | BU36: =+SENI!Q30 -> 0 | BV36: =+SENI!T30 -> 0 | BW36: 0 | BX36: =+'NILAI SMT 6 (US)'!AC30 -> 0 | BY36: 0 | BZ36: =+PENJAS!H30 -> 0 | CA36: =+PENJAS!K30 -> 0 | CB36: =+PENJAS!N30 -> 0 | CC36: =+PENJAS!Q30 -> 0 | CD36: =+PENJAS!T30 -> 0 | CE36: 0 | CF36: =+'NILAI SMT 6 (US)'!AF30 -> 0 | CG36: 0 | CH36: =+'TIK-KET'!H30 -> 0 | CI36: =+'TIK-KET'!K30 -> 0 | CJ36: =+'TIK-KET'!N30 -> 0 | CK36: =+'TIK-KET'!Q30 -> 0 | CL36: =+'TIK-KET'!T30 -> 0 | CM36: 0 | CN36: =+'NILAI SMT 6 (US)'!AI30 -> 0 | CO36: 0 | CP36: =+'MLK1'!H30 -> 0 | CQ36: =+'MLK1'!K30 -> 0 | CR36: =+'MLK1'!N30 -> 0 | CS36: =+'MLK1'!Q30 -> 0 | CT36: =+'MLK1'!T30 -> 0 | CU36: 0 | CV36: =+'NILAI SMT 6 (US)'!AL30 -> 0 | CW36: 0 | CX36: =+'MLK2'!H30 -> 0 | CY36: =+'MLK2'!K30 -> 0 | CZ36: =+'MLK2'!N30 -> 0 | DA36: =+'MLK2'!Q30 -> 0 | DB36: =+'MLK2'!T30 -> 0 | DC36: 0 | DD36: =+'NILAI SMT 6 (US)'!AO30 -> 0 | DE36: 0 | DF36: 0 | DG36: =DF36/('KRITERIA&MULOK'!$E$20) -> 0 | DH36: 30 | DI36: 7.5 | DJ36: 18 | DK36: 4.5 | DL36: B | DM36: TIDAK LULUS
A37: =+BIODATA!A31 -> 24 | B37: =+BIODATA!B31 -> 0 | C37: =+BIODATA!E31 -> 0 | D37: =+BIODATA!C31 -> 0 | E37: =+BIODATA!D31 -> 0 | F37: =+BIND!H31 -> 0 | G37: =+BIND!K31 -> 0 | H37: =+BIND!N31 -> 0 | I37: =+BIND!Q31 -> 0 | J37: =+BIND!T31 -> 0 | K37: 0 | L37: =+'NILAI SMT 6 (US)'!N31 -> 0 | M37: 0 | N37: 7 | O37: 4.2 | P37: =+'B-ING'!H31 -> 0 | Q37: =+'B-ING'!K31 -> 0 | R37: =+'B-ING'!N31 -> 0 | S37: =+'B-ING'!Q31 -> 0 | T37: =+'B-ING'!T31 -> 0 | U37: 0 | V37: =+'NILAI SMT 6 (US)'!Q31 -> 0 | W37: 0 | X37: 8 | Y37: 4.8 | Z37: =+MAT!H31 -> 0 | AA37: =+MAT!K31 -> 0 | AB37: =+MAT!N31 -> 0 | AC37: =+MAT!Q31 -> 0 | AD37: =+MAT!T31 -> 0 | AE37: 0 | AF37: =+'NILAI SMT 6 (US)'!T31 -> 0 | AG37: 0 | AH37: 9 | AI37: 5.4 | AJ37: =+IPA!H31 -> 0 | AK37: =+IPA!K31 -> 0 | AL37: =+IPA!N31 -> 0 | AM37: =+IPA!Q31 -> 0 | AN37: =+IPA!T31 -> 0 | AO37: 0 | AP37: =+'NILAI SMT 6 (US)'!W31 -> 0 | AQ37: 0 | AR37: 6 | AS37: 3.6 | AT37: =+Agama!H31 -> 0 | AU37: =+Agama!K31 -> 0 | AV37: =+Agama!N31 -> 0 | AW37: =+Agama!Q31 -> 0 | AX37: =+Agama!T31 -> 0 | AY37: 0 | AZ37: =+'NILAI SMT 6 (US)'!H31 -> 0 | BA37: 0 | BB37: =+PPKn!H31 -> 0 | BC37: =+PPKn!K31 -> 0 | BD37: =+PPKn!N31 -> 0 | BE37: =+PPKn!Q31 -> 0 | BF37: =+PPKn!T31 -> 0 | BG37: 0 | BH37: =+'NILAI SMT 6 (US)'!K31 -> 0 | BI37: 0 | BJ37: =+IPS!H31 -> 0 | BK37: =+IPS!K31 -> 0 | BL37: =+IPS!N31 -> 0 | BM37: =+IPS!Q31 -> 0 | BN37: =+IPS!T31 -> 0 | BO37: 0 | BP37: =+'NILAI SMT 6 (US)'!Z31 -> 0 | BQ37: 0 | BR37: =+SENI!H31 -> 0 | BS37: =+SENI!K31 -> 0 | BT37: =+SENI!N31 -> 0 | BU37: =+SENI!Q31 -> 0 | BV37: =+SENI!T31 -> 0 | BW37: 0 | BX37: =+'NILAI SMT 6 (US)'!AC31 -> 0 | BY37: 0 | BZ37: =+PENJAS!H31 -> 0 | CA37: =+PENJAS!K31 -> 0 | CB37: =+PENJAS!N31 -> 0 | CC37: =+PENJAS!Q31 -> 0 | CD37: =+PENJAS!T31 -> 0 | CE37: 0 | CF37: =+'NILAI SMT 6 (US)'!AF31 -> 0 | CG37: 0 | CH37: =+'TIK-KET'!H31 -> 0 | CI37: =+'TIK-KET'!K31 -> 0 | CJ37: =+'TIK-KET'!N31 -> 0 | CK37: =+'TIK-KET'!Q31 -> 0 | CL37: =+'TIK-KET'!T31 -> 0 | CM37: 0 | CN37: =+'NILAI SMT 6 (US)'!AI31 -> 0 | CO37: 0 | CP37: =+'MLK1'!H31 -> 0 | CQ37: =+'MLK1'!K31 -> 0 | CR37: =+'MLK1'!N31 -> 0 | CS37: =+'MLK1'!Q31 -> 0 | CT37: =+'MLK1'!T31 -> 0 | CU37: 0 | CV37: =+'NILAI SMT 6 (US)'!AL31 -> 0 | CW37: 0 | CX37: =+'MLK2'!H31 -> 0 | CY37: =+'MLK2'!K31 -> 0 | CZ37: =+'MLK2'!N31 -> 0 | DA37: =+'MLK2'!Q31 -> 0 | DB37: =+'MLK2'!T31 -> 0 | DC37: 0 | DD37: =+'NILAI SMT 6 (US)'!AO31 -> 0 | DE37: 0 | DF37: 0 | DG37: =DF37/('KRITERIA&MULOK'!$E$20) -> 0 | DH37: 30 | DI37: 7.5 | DJ37: 18 | DK37: 4.5 | DL37: B | DM37: TIDAK LULUS
A38: =+BIODATA!A32 -> 25 | B38: =+BIODATA!B32 -> 0 | C38: =+BIODATA!E32 -> 0 | D38: =+BIODATA!C32 -> 0 | E38: =+BIODATA!D32 -> 0 | F38: =+BIND!H32 -> 0 | G38: =+BIND!K32 -> 0 | H38: =+BIND!N32 -> 0 | I38: =+BIND!Q32 -> 0 | J38: =+BIND!T32 -> 0 | K38: 0 | L38: =+'NILAI SMT 6 (US)'!N32 -> 0 | M38: 0 | N38: 7 | O38: 4.2 | P38: =+'B-ING'!H32 -> 0 | Q38: =+'B-ING'!K32 -> 0 | R38: =+'B-ING'!N32 -> 0 | S38: =+'B-ING'!Q32 -> 0 | T38: =+'B-ING'!T32 -> 0 | U38: 0 | V38: =+'NILAI SMT 6 (US)'!Q32 -> 0 | W38: 0 | X38: 8 | Y38: 4.8 | Z38: =+MAT!H32 -> 0 | AA38: =+MAT!K32 -> 0 | AB38: =+MAT!N32 -> 0 | AC38: =+MAT!Q32 -> 0 | AD38: =+MAT!T32 -> 0 | AE38: 0 | AF38: =+'NILAI SMT 6 (US)'!T32 -> 0 | AG38: 0 | AH38: 9 | AI38: 5.4 | AJ38: =+IPA!H32 -> 0 | AK38: =+IPA!K32 -> 0 | AL38: =+IPA!N32 -> 0 | AM38: =+IPA!Q32 -> 0 | AN38: =+IPA!T32 -> 0 | AO38: 0 | AP38: =+'NILAI SMT 6 (US)'!W32 -> 0 | AQ38: 0 | AR38: 6 | AS38: 3.6 | AT38: =+Agama!H32 -> 0 | AU38: =+Agama!K32 -> 0 | AV38: =+Agama!N32 -> 0 | AW38: =+Agama!Q32 -> 0 | AX38: =+Agama!T32 -> 0 | AY38: 0 | AZ38: =+'NILAI SMT 6 (US)'!H32 -> 0 | BA38: 0 | BB38: =+PPKn!H32 -> 0 | BC38: =+PPKn!K32 -> 0 | BD38: =+PPKn!N32 -> 0 | BE38: =+PPKn!Q32 -> 0 | BF38: =+PPKn!T32 -> 0 | BG38: 0 | BH38: =+'NILAI SMT 6 (US)'!K32 -> 0 | BI38: 0 | BJ38: =+IPS!H32 -> 0 | BK38: =+IPS!K32 -> 0 | BL38: =+IPS!N32 -> 0 | BM38: =+IPS!Q32 -> 0 | BN38: =+IPS!T32 -> 0 | BO38: 0 | BP38: =+'NILAI SMT 6 (US)'!Z32 -> 0 | BQ38: 0 | BR38: =+SENI!H32 -> 0 | BS38: =+SENI!K32 -> 0 | BT38: =+SENI!N32 -> 0 | BU38: =+SENI!Q32 -> 0 | BV38: =+SENI!T32 -> 0 | BW38: 0 | BX38: =+'NILAI SMT 6 (US)'!AC32 -> 0 | BY38: 0 | BZ38: =+PENJAS!H32 -> 0 | CA38: =+PENJAS!K32 -> 0 | CB38: =+PENJAS!N32 -> 0 | CC38: =+PENJAS!Q32 -> 0 | CD38: =+PENJAS!T32 -> 0 | CE38: 0 | CF38: =+'NILAI SMT 6 (US)'!AF32 -> 0 | CG38: 0 | CH38: =+'TIK-KET'!H32 -> 0 | CI38: =+'TIK-KET'!K32 -> 0 | CJ38: =+'TIK-KET'!N32 -> 0 | CK38: =+'TIK-KET'!Q32 -> 0 | CL38: =+'TIK-KET'!T32 -> 0 | CM38: 0 | CN38: =+'NILAI SMT 6 (US)'!AI32 -> 0 | CO38: 0 | CP38: =+'MLK1'!H32 -> 0 | CQ38: =+'MLK1'!K32 -> 0 | CR38: =+'MLK1'!N32 -> 0 | CS38: =+'MLK1'!Q32 -> 0 | CT38: =+'MLK1'!T32 -> 0 | CU38: 0 | CV38: =+'NILAI SMT 6 (US)'!AL32 -> 0 | CW38: 0 | CX38: =+'MLK2'!H32 -> 0 | CY38: =+'MLK2'!K32 -> 0 | CZ38: =+'MLK2'!N32 -> 0 | DA38: =+'MLK2'!Q32 -> 0 | DB38: =+'MLK2'!T32 -> 0 | DC38: 0 | DD38: =+'NILAI SMT 6 (US)'!AO32 -> 0 | DE38: 0 | DF38: 0 | DG38: =DF38/('KRITERIA&MULOK'!$E$20) -> 0 | DH38: 30 | DI38: 7.5 | DJ38: 18 | DK38: 4.5 | DL38: B | DM38: TIDAK LULUS
A39: =+BIODATA!A33 -> 26 | B39: =+BIODATA!B33 -> 0 | C39: =+BIODATA!E33 -> 0 | D39: =+BIODATA!C33 -> 0 | E39: =+BIODATA!D33 -> 0 | F39: =+BIND!H33 -> 0 | G39: =+BIND!K33 -> 0 | H39: =+BIND!N33 -> 0 | I39: =+BIND!Q33 -> 0 | J39: =+BIND!T33 -> 0 | K39: 0 | L39: =+'NILAI SMT 6 (US)'!N33 -> 0 | M39: 0 | N39: 7 | O39: 4.2 | P39: =+'B-ING'!H33 -> 0 | Q39: =+'B-ING'!K33 -> 0 | R39: =+'B-ING'!N33 -> 0 | S39: =+'B-ING'!Q33 -> 0 | T39: =+'B-ING'!T33 -> 0 | U39: 0 | V39: =+'NILAI SMT 6 (US)'!Q33 -> 0 | W39: 0 | X39: 8 | Y39: 4.8 | Z39: =+MAT!H33 -> 0 | AA39: =+MAT!K33 -> 0 | AB39: =+MAT!N33 -> 0 | AC39: =+MAT!Q33 -> 0 | AD39: =+MAT!T33 -> 0 | AE39: 0 | AF39: =+'NILAI SMT 6 (US)'!T33 -> 0 | AG39: 0 | AH39: 9 | AI39: 5.4 | AJ39: =+IPA!H33 -> 0 | AK39: =+IPA!K33 -> 0 | AL39: =+IPA!N33 -> 0 | AM39: =+IPA!Q33 -> 0 | AN39: =+IPA!T33 -> 0 | AO39: 0 | AP39: =+'NILAI SMT 6 (US)'!W33 -> 0 | AQ39: 0 | AR39: 6 | AS39: 3.6 | AT39: =+Agama!H33 -> 0 | AU39: =+Agama!K33 -> 0 | AV39: =+Agama!N33 -> 0 | AW39: =+Agama!Q33 -> 0 | AX39: =+Agama!T33 -> 0 | AY39: 0 | AZ39: =+'NILAI SMT 6 (US)'!H33 -> 0 | BA39: 0 | BB39: =+PPKn!H33 -> 0 | BC39: =+PPKn!K33 -> 0 | BD39: =+PPKn!N33 -> 0 | BE39: =+PPKn!Q33 -> 0 | BF39: =+PPKn!T33 -> 0 | BG39: 0 | BH39: =+'NILAI SMT 6 (US)'!K33 -> 0 | BI39: 0 | BJ39: =+IPS!H33 -> 0 | BK39: =+IPS!K33 -> 0 | BL39: =+IPS!N33 -> 0 | BM39: =+IPS!Q33 -> 0 | BN39: =+IPS!T33 -> 0 | BO39: 0 | BP39: =+'NILAI SMT 6 (US)'!Z33 -> 0 | BQ39: 0 | BR39: =+SENI!H33 -> 0 | BS39: =+SENI!K33 -> 0 | BT39: =+SENI!N33 -> 0 | BU39: =+SENI!Q33 -> 0 | BV39: =+SENI!T33 -> 0 | BW39: 0 | BX39: =+'NILAI SMT 6 (US)'!AC33 -> 0 | BY39: 0 | BZ39: =+PENJAS!H33 -> 0 | CA39: =+PENJAS!K33 -> 0 | CB39: =+PENJAS!N33 -> 0 | CC39: =+PENJAS!Q33 -> 0 | CD39: =+PENJAS!T33 -> 0 | CE39: 0 | CF39: =+'NILAI SMT 6 (US)'!AF33 -> 0 | CG39: 0 | CH39: =+'TIK-KET'!H33 -> 0 | CI39: =+'TIK-KET'!K33 -> 0 | CJ39: =+'TIK-KET'!N33 -> 0 | CK39: =+'TIK-KET'!Q33 -> 0 | CL39: =+'TIK-KET'!T33 -> 0 | CM39: 0 | CN39: =+'NILAI SMT 6 (US)'!AI33 -> 0 | CO39: 0 | CP39: =+'MLK1'!H33 -> 0 | CQ39: =+'MLK1'!K33 -> 0 | CR39: =+'MLK1'!N33 -> 0 | CS39: =+'MLK1'!Q33 -> 0 | CT39: =+'MLK1'!T33 -> 0 | CU39: 0 | CV39: =+'NILAI SMT 6 (US)'!AL33 -> 0 | CW39: 0 | CX39: =+'MLK2'!H33 -> 0 | CY39: =+'MLK2'!K33 -> 0 | CZ39: =+'MLK2'!N33 -> 0 | DA39: =+'MLK2'!Q33 -> 0 | DB39: =+'MLK2'!T33 -> 0 | DC39: 0 | DD39: =+'NILAI SMT 6 (US)'!AO33 -> 0 | DE39: 0 | DF39: 0 | DG39: =DF39/('KRITERIA&MULOK'!$E$20) -> 0 | DH39: 30 | DI39: 7.5 | DJ39: 18 | DK39: 4.5 | DL39: B | DM39: TIDAK LULUS
A40: =+BIODATA!A34 -> 27 | B40: =+BIODATA!B34 -> 0 | C40: =+BIODATA!E34 -> 0 | D40: =+BIODATA!C34 -> 0 | E40: =+BIODATA!D34 -> 0 | F40: =+BIND!H34 -> 0 | G40: =+BIND!K34 -> 0 | H40: =+BIND!N34 -> 0 | I40: =+BIND!Q34 -> 0 | J40: =+BIND!T34 -> 0 | K40: 0 | L40: =+'NILAI SMT 6 (US)'!N34 -> 0 | M40: 0 | N40: 7 | O40: 4.2 | P40: =+'B-ING'!H34 -> 0 | Q40: =+'B-ING'!K34 -> 0 | R40: =+'B-ING'!N34 -> 0 | S40: =+'B-ING'!Q34 -> 0 | T40: =+'B-ING'!T34 -> 0 | U40: 0 | V40: =+'NILAI SMT 6 (US)'!Q34 -> 0 | W40: 0 | X40: 8 | Y40: 4.8 | Z40: =+MAT!H34 -> 0 | AA40: =+MAT!K34 -> 0 | AB40: =+MAT!N34 -> 0 | AC40: =+MAT!Q34 -> 0 | AD40: =+MAT!T34 -> 0 | AE40: 0 | AF40: =+'NILAI SMT 6 (US)'!T34 -> 0 | AG40: 0 | AH40: 9 | AI40: 5.4 | AJ40: =+IPA!H34 -> 0 | AK40: =+IPA!K34 -> 0 | AL40: =+IPA!N34 -> 0 | AM40: =+IPA!Q34 -> 0 | AN40: =+IPA!T34 -> 0 | AO40: 0 | AP40: =+'NILAI SMT 6 (US)'!W34 -> 0 | AQ40: 0 | AR40: 6 | AS40: 3.6 | AT40: =+Agama!H34 -> 0 | AU40: =+Agama!K34 -> 0 | AV40: =+Agama!N34 -> 0 | AW40: =+Agama!Q34 -> 0 | AX40: =+Agama!T34 -> 0 | AY40: 0 | AZ40: =+'NILAI SMT 6 (US)'!H34 -> 0 | BA40: 0 | BB40: =+PPKn!H34 -> 0 | BC40: =+PPKn!K34 -> 0 | BD40: =+PPKn!N34 -> 0 | BE40: =+PPKn!Q34 -> 0 | BF40: =+PPKn!T34 -> 0 | BG40: 0 | BH40: =+'NILAI SMT 6 (US)'!K34 -> 0 | BI40: 0 | BJ40: =+IPS!H34 -> 0 | BK40: =+IPS!K34 -> 0 | BL40: =+IPS!N34 -> 0 | BM40: =+IPS!Q34 -> 0 | BN40: =+IPS!T34 -> 0 | BO40: 0 | BP40: =+'NILAI SMT 6 (US)'!Z34 -> 0 | BQ40: 0 | BR40: =+SENI!H34 -> 0 | BS40: =+SENI!K34 -> 0 | BT40: =+SENI!N34 -> 0 | BU40: =+SENI!Q34 -> 0 | BV40: =+SENI!T34 -> 0 | BW40: 0 | BX40: =+'NILAI SMT 6 (US)'!AC34 -> 0 | BY40: 0 | BZ40: =+PENJAS!H34 -> 0 | CA40: =+PENJAS!K34 -> 0 | CB40: =+PENJAS!N34 -> 0 | CC40: =+PENJAS!Q34 -> 0 | CD40: =+PENJAS!T34 -> 0 | CE40: 0 | CF40: =+'NILAI SMT 6 (US)'!AF34 -> 0 | CG40: 0 | CH40: =+'TIK-KET'!H34 -> 0 | CI40: =+'TIK-KET'!K34 -> 0 | CJ40: =+'TIK-KET'!N34 -> 0 | CK40: =+'TIK-KET'!Q34 -> 0 | CL40: =+'TIK-KET'!T34 -> 0 | CM40: 0 | CN40: =+'NILAI SMT 6 (US)'!AI34 -> 0 | CO40: 0 | CP40: =+'MLK1'!H34 -> 0 | CQ40: =+'MLK1'!K34 -> 0 | CR40: =+'MLK1'!N34 -> 0 | CS40: =+'MLK1'!Q34 -> 0 | CT40: =+'MLK1'!T34 -> 0 | CU40: 0 | CV40: =+'NILAI SMT 6 (US)'!AL34 -> 0 | CW40: 0 | CX40: =+'MLK2'!H34 -> 0 | CY40: =+'MLK2'!K34 -> 0 | CZ40: =+'MLK2'!N34 -> 0 | DA40: =+'MLK2'!Q34 -> 0 | DB40: =+'MLK2'!T34 -> 0 | DC40: 0 | DD40: =+'NILAI SMT 6 (US)'!AO34 -> 0 | DE40: 0 | DF40: 0 | DG40: =DF40/('KRITERIA&MULOK'!$E$20) -> 0 | DH40: 30 | DI40: 7.5 | DJ40: 18 | DK40: 4.5 | DL40: B | DM40: TIDAK LULUS
A41: =+BIODATA!A35 -> 28 | B41: =+BIODATA!B35 -> 0 | C41: =+BIODATA!E35 -> 0 | D41: =+BIODATA!C35 -> 0 | E41: =+BIODATA!D35 -> 0 | F41: =+BIND!H35 -> 0 | G41: =+BIND!K35 -> 0 | H41: =+BIND!N35 -> 0 | I41: =+BIND!Q35 -> 0 | J41: =+BIND!T35 -> 0 | K41: 0 | L41: =+'NILAI SMT 6 (US)'!N35 -> 0 | M41: 0 | N41: 7 | O41: 4.2 | P41: =+'B-ING'!H35 -> 0 | Q41: =+'B-ING'!K35 -> 0 | R41: =+'B-ING'!N35 -> 0 | S41: =+'B-ING'!Q35 -> 0 | T41: =+'B-ING'!T35 -> 0 | U41: 0 | V41: =+'NILAI SMT 6 (US)'!Q35 -> 0 | W41: 0 | X41: 8 | Y41: 4.8 | Z41: =+MAT!H35 -> 0 | AA41: =+MAT!K35 -> 0 | AB41: =+MAT!N35 -> 0 | AC41: =+MAT!Q35 -> 0 | AD41: =+MAT!T35 -> 0 | AE41: 0 | AF41: =+'NILAI SMT 6 (US)'!T35 -> 0 | AG41: 0 | AH41: 9 | AI41: 5.4 | AJ41: =+IPA!H35 -> 0 | AK41: =+IPA!K35 -> 0 | AL41: =+IPA!N35 -> 0 | AM41: =+IPA!Q35 -> 0 | AN41: =+IPA!T35 -> 0 | AO41: 0 | AP41: =+'NILAI SMT 6 (US)'!W35 -> 0 | AQ41: 0 | AR41: 6 | AS41: 3.6 | AT41: =+Agama!H35 -> 0 | AU41: =+Agama!K35 -> 0 | AV41: =+Agama!N35 -> 0 | AW41: =+Agama!Q35 -> 0 | AX41: =+Agama!T35 -> 0 | AY41: 0 | AZ41: =+'NILAI SMT 6 (US)'!H35 -> 0 | BA41: 0 | BB41: =+PPKn!H35 -> 0 | BC41: =+PPKn!K35 -> 0 | BD41: =+PPKn!N35 -> 0 | BE41: =+PPKn!Q35 -> 0 | BF41: =+PPKn!T35 -> 0 | BG41: 0 | BH41: =+'NILAI SMT 6 (US)'!K35 -> 0 | BI41: 0 | BJ41: =+IPS!H35 -> 0 | BK41: =+IPS!K35 -> 0 | BL41: =+IPS!N35 -> 0 | BM41: =+IPS!Q35 -> 0 | BN41: =+IPS!T35 -> 0 | BO41: 0 | BP41: =+'NILAI SMT 6 (US)'!Z35 -> 0 | BQ41: 0 | BR41: =+SENI!H35 -> 0 | BS41: =+SENI!K35 -> 0 | BT41: =+SENI!N35 -> 0 | BU41: =+SENI!Q35 -> 0 | BV41: =+SENI!T35 -> 0 | BW41: 0 | BX41: =+'NILAI SMT 6 (US)'!AC35 -> 0 | BY41: 0 | BZ41: =+PENJAS!H35 -> 0 | CA41: =+PENJAS!K35 -> 0 | CB41: =+PENJAS!N35 -> 0 | CC41: =+PENJAS!Q35 -> 0 | CD41: =+PENJAS!T35 -> 0 | CE41: 0 | CF41: =+'NILAI SMT 6 (US)'!AF35 -> 0 | CG41: 0 | CH41: =+'TIK-KET'!H35 -> 0 | CI41: =+'TIK-KET'!K35 -> 0 | CJ41: =+'TIK-KET'!N35 -> 0 | CK41: =+'TIK-KET'!Q35 -> 0 | CL41: =+'TIK-KET'!T35 -> 0 | CM41: 0 | CN41: =+'NILAI SMT 6 (US)'!AI35 -> 0 | CO41: 0 | CP41: =+'MLK1'!H35 -> 0 | CQ41: =+'MLK1'!K35 -> 0 | CR41: =+'MLK1'!N35 -> 0 | CS41: =+'MLK1'!Q35 -> 0 | CT41: =+'MLK1'!T35 -> 0 | CU41: 0 | CV41: =+'NILAI SMT 6 (US)'!AL35 -> 0 | CW41: 0 | CX41: =+'MLK2'!H35 -> 0 | CY41: =+'MLK2'!K35 -> 0 | CZ41: =+'MLK2'!N35 -> 0 | DA41: =+'MLK2'!Q35 -> 0 | DB41: =+'MLK2'!T35 -> 0 | DC41: 0 | DD41: =+'NILAI SMT 6 (US)'!AO35 -> 0 | DE41: 0 | DF41: 0 | DG41: =DF41/('KRITERIA&MULOK'!$E$20) -> 0 | DH41: 30 | DI41: 7.5 | DJ41: 18 | DK41: 4.5 | DL41: B | DM41: TIDAK LULUS
A42: =+BIODATA!A36 -> 29 | B42: =+BIODATA!B36 -> 0 | C42: =+BIODATA!E36 -> 0 | D42: =+BIODATA!C36 -> 0 | E42: =+BIODATA!D36 -> 0 | F42: =+BIND!H36 -> 0 | G42: =+BIND!K36 -> 0 | H42: =+BIND!N36 -> 0 | I42: =+BIND!Q36 -> 0 | J42: =+BIND!T36 -> 0 | K42: 0 | L42: =+'NILAI SMT 6 (US)'!N36 -> 0 | M42: 0 | N42: 7 | O42: 4.2 | P42: =+'B-ING'!H36 -> 0 | Q42: =+'B-ING'!K36 -> 0 | R42: =+'B-ING'!N36 -> 0 | S42: =+'B-ING'!Q36 -> 0 | T42: =+'B-ING'!T36 -> 0 | U42: 0 | V42: =+'NILAI SMT 6 (US)'!Q36 -> 0 | W42: 0 | X42: 8 | Y42: 4.8 | Z42: =+MAT!H36 -> 0 | AA42: =+MAT!K36 -> 0 | AB42: =+MAT!N36 -> 0 | AC42: =+MAT!Q36 -> 0 | AD42: =+MAT!T36 -> 0 | AE42: 0 | AF42: =+'NILAI SMT 6 (US)'!T36 -> 0 | AG42: 0 | AH42: 9 | AI42: 5.4 | AJ42: =+IPA!H36 -> 0 | AK42: =+IPA!K36 -> 0 | AL42: =+IPA!N36 -> 0 | AM42: =+IPA!Q36 -> 0 | AN42: =+IPA!T36 -> 0 | AO42: 0 | AP42: =+'NILAI SMT 6 (US)'!W36 -> 0 | AQ42: 0 | AR42: 6 | AS42: 3.6 | AT42: =+Agama!H36 -> 0 | AU42: =+Agama!K36 -> 0 | AV42: =+Agama!N36 -> 0 | AW42: =+Agama!Q36 -> 0 | AX42: =+Agama!T36 -> 0 | AY42: 0 | AZ42: =+'NILAI SMT 6 (US)'!H36 -> 0 | BA42: 0 | BB42: =+PPKn!H36 -> 0 | BC42: =+PPKn!K36 -> 0 | BD42: =+PPKn!N36 -> 0 | BE42: =+PPKn!Q36 -> 0 | BF42: =+PPKn!T36 -> 0 | BG42: 0 | BH42: =+'NILAI SMT 6 (US)'!K36 -> 0 | BI42: 0 | BJ42: =+IPS!H36 -> 0 | BK42: =+IPS!K36 -> 0 | BL42: =+IPS!N36 -> 0 | BM42: =+IPS!Q36 -> 0 | BN42: =+IPS!T36 -> 0 | BO42: 0 | BP42: =+'NILAI SMT 6 (US)'!Z36 -> 0 | BQ42: 0 | BR42: =+SENI!H36 -> 0 | BS42: =+SENI!K36 -> 0 | BT42: =+SENI!N36 -> 0 | BU42: =+SENI!Q36 -> 0 | BV42: =+SENI!T36 -> 0 | BW42: 0 | BX42: =+'NILAI SMT 6 (US)'!AC36 -> 0 | BY42: 0 | BZ42: =+PENJAS!H36 -> 0 | CA42: =+PENJAS!K36 -> 0 | CB42: =+PENJAS!N36 -> 0 | CC42: =+PENJAS!Q36 -> 0 | CD42: =+PENJAS!T36 -> 0 | CE42: 0 | CF42: =+'NILAI SMT 6 (US)'!AF36 -> 0 | CG42: 0 | CH42: =+'TIK-KET'!H36 -> 0 | CI42: =+'TIK-KET'!K36 -> 0 | CJ42: =+'TIK-KET'!N36 -> 0 | CK42: =+'TIK-KET'!Q36 -> 0 | CL42: =+'TIK-KET'!T36 -> 0 | CM42: 0 | CN42: =+'NILAI SMT 6 (US)'!AI36 -> 0 | CO42: 0 | CP42: =+'MLK1'!H36 -> 0 | CQ42: =+'MLK1'!K36 -> 0 | CR42: =+'MLK1'!N36 -> 0 | CS42: =+'MLK1'!Q36 -> 0 | CT42: =+'MLK1'!T36 -> 0 | CU42: 0 | CV42: =+'NILAI SMT 6 (US)'!AL36 -> 0 | CW42: 0 | CX42: =+'MLK2'!H36 -> 0 | CY42: =+'MLK2'!K36 -> 0 | CZ42: =+'MLK2'!N36 -> 0 | DA42: =+'MLK2'!Q36 -> 0 | DB42: =+'MLK2'!T36 -> 0 | DC42: 0 | DD42: =+'NILAI SMT 6 (US)'!AO36 -> 0 | DE42: 0 | DF42: 0 | DG42: =DF42/('KRITERIA&MULOK'!$E$20) -> 0 | DH42: 30 | DI42: 7.5 | DJ42: 18 | DK42: 4.5 | DL42: B | DM42: TIDAK LULUS
A43: =+BIODATA!A37 -> 30 | B43: =+BIODATA!B37 -> 0 | C43: =+BIODATA!E37 -> 0 | D43: =+BIODATA!C37 -> 0 | E43: =+BIODATA!D37 -> 0 | F43: =+BIND!H37 -> 0 | G43: =+BIND!K37 -> 0 | H43: =+BIND!N37 -> 0 | I43: =+BIND!Q37 -> 0 | J43: =+BIND!T37 -> 0 | K43: 0 | L43: =+'NILAI SMT 6 (US)'!N37 -> 0 | M43: 0 | N43: 7 | O43: 4.2 | P43: =+'B-ING'!H37 -> 0 | Q43: =+'B-ING'!K37 -> 0 | R43: =+'B-ING'!N37 -> 0 | S43: =+'B-ING'!Q37 -> 0 | T43: =+'B-ING'!T37 -> 0 | U43: 0 | V43: =+'NILAI SMT 6 (US)'!Q37 -> 0 | W43: 0 | X43: 8 | Y43: 4.8 | Z43: =+MAT!H37 -> 0 | AA43: =+MAT!K37 -> 0 | AB43: =+MAT!N37 -> 0 | AC43: =+MAT!Q37 -> 0 | AD43: =+MAT!T37 -> 0 | AE43: 0 | AF43: =+'NILAI SMT 6 (US)'!T37 -> 0 | AG43: 0 | AH43: 9 | AI43: 5.4 | AJ43: =+IPA!H37 -> 0 | AK43: =+IPA!K37 -> 0 | AL43: =+IPA!N37 -> 0 | AM43: =+IPA!Q37 -> 0 | AN43: =+IPA!T37 -> 0 | AO43: 0 | AP43: =+'NILAI SMT 6 (US)'!W37 -> 0 | AQ43: 0 | AR43: 6 | AS43: 3.6 | AT43: =+Agama!H37 -> 0 | AU43: =+Agama!K37 -> 0 | AV43: =+Agama!N37 -> 0 | AW43: =+Agama!Q37 -> 0 | AX43: =+Agama!T37 -> 0 | AY43: 0 | AZ43: =+'NILAI SMT 6 (US)'!H37 -> 0 | BA43: 0 | BB43: =+PPKn!H37 -> 0 | BC43: =+PPKn!K37 -> 0 | BD43: =+PPKn!N37 -> 0 | BE43: =+PPKn!Q37 -> 0 | BF43: =+PPKn!T37 -> 0 | BG43: 0 | BH43: =+'NILAI SMT 6 (US)'!K37 -> 0 | BI43: 0 | BJ43: =+IPS!H37 -> 0 | BK43: =+IPS!K37 -> 0 | BL43: =+IPS!N37 -> 0 | BM43: =+IPS!Q37 -> 0 | BN43: =+IPS!T37 -> 0 | BO43: 0 | BP43: =+'NILAI SMT 6 (US)'!Z37 -> 0 | BQ43: 0 | BR43: =+SENI!H37 -> 0 | BS43: =+SENI!K37 -> 0 | BT43: =+SENI!N37 -> 0 | BU43: =+SENI!Q37 -> 0 | BV43: =+SENI!T37 -> 0 | BW43: 0 | BX43: =+'NILAI SMT 6 (US)'!AC37 -> 0 | BY43: 0 | BZ43: =+PENJAS!H37 -> 0 | CA43: =+PENJAS!K37 -> 0 | CB43: =+PENJAS!N37 -> 0 | CC43: =+PENJAS!Q37 -> 0 | CD43: =+PENJAS!T37 -> 0 | CE43: 0 | CF43: =+'NILAI SMT 6 (US)'!AF37 -> 0 | CG43: 0 | CH43: =+'TIK-KET'!H37 -> 0 | CI43: =+'TIK-KET'!K37 -> 0 | CJ43: =+'TIK-KET'!N37 -> 0 | CK43: =+'TIK-KET'!Q37 -> 0 | CL43: =+'TIK-KET'!T37 -> 0 | CM43: 0 | CN43: =+'NILAI SMT 6 (US)'!AI37 -> 0 | CO43: 0 | CP43: =+'MLK1'!H37 -> 0 | CQ43: =+'MLK1'!K37 -> 0 | CR43: =+'MLK1'!N37 -> 0 | CS43: =+'MLK1'!Q37 -> 0 | CT43: =+'MLK1'!T37 -> 0 | CU43: 0 | CV43: =+'NILAI SMT 6 (US)'!AL37 -> 0 | CW43: 0 | CX43: =+'MLK2'!H37 -> 0 | CY43: =+'MLK2'!K37 -> 0 | CZ43: =+'MLK2'!N37 -> 0 | DA43: =+'MLK2'!Q37 -> 0 | DB43: =+'MLK2'!T37 -> 0 | DC43: 0 | DD43: =+'NILAI SMT 6 (US)'!AO37 -> 0 | DE43: 0 | DF43: 0 | DG43: =DF43/('KRITERIA&MULOK'!$E$20) -> 0 | DH43: 30 | DI43: 7.5 | DJ43: 18 | DK43: 4.5 | DL43: B | DM43: TIDAK LULUS
A44: =+BIODATA!A38 -> 31 | B44: =+BIODATA!B38 -> 0 | C44: =+BIODATA!E38 -> 0 | D44: =+BIODATA!C38 -> 0 | E44: =+BIODATA!D38 -> 0 | F44: =+BIND!H38 -> 0 | G44: =+BIND!K38 -> 0 | H44: =+BIND!N38 -> 0 | I44: =+BIND!Q38 -> 0 | J44: =+BIND!T38 -> 0 | K44: 0 | L44: =+'NILAI SMT 6 (US)'!N38 -> 0 | M44: 0 | N44: 7 | O44: 4.2 | P44: =+'B-ING'!H38 -> 0 | Q44: =+'B-ING'!K38 -> 0 | R44: =+'B-ING'!N38 -> 0 | S44: =+'B-ING'!Q38 -> 0 | T44: =+'B-ING'!T38 -> 0 | U44: 0 | V44: =+'NILAI SMT 6 (US)'!Q38 -> 0 | W44: 0 | X44: 8 | Y44: 4.8 | Z44: =+MAT!H38 -> 0 | AA44: =+MAT!K38 -> 0 | AB44: =+MAT!N38 -> 0 | AC44: =+MAT!Q38 -> 0 | AD44: =+MAT!T38 -> 0 | AE44: 0 | AF44: =+'NILAI SMT 6 (US)'!T38 -> 0 | AG44: 0 | AH44: 9 | AI44: 5.4 | AJ44: =+IPA!H38 -> 0 | AK44: =+IPA!K38 -> 0 | AL44: =+IPA!N38 -> 0 | AM44: =+IPA!Q38 -> 0 | AN44: =+IPA!T38 -> 0 | AO44: 0 | AP44: =+'NILAI SMT 6 (US)'!W38 -> 0 | AQ44: 0 | AR44: 6 | AS44: 3.6 | AT44: =+Agama!H38 -> 0 | AU44: =+Agama!K38 -> 0 | AV44: =+Agama!N38 -> 0 | AW44: =+Agama!Q38 -> 0 | AX44: =+Agama!T38 -> 0 | AY44: 0 | AZ44: =+'NILAI SMT 6 (US)'!H38 -> 0 | BA44: 0 | BB44: =+PPKn!H38 -> 0 | BC44: =+PPKn!K38 -> 0 | BD44: =+PPKn!N38 -> 0 | BE44: =+PPKn!Q38 -> 0 | BF44: =+PPKn!T38 -> 0 | BG44: 0 | BH44: =+'NILAI SMT 6 (US)'!K38 -> 0 | BI44: 0 | BJ44: =+IPS!H38 -> 0 | BK44: =+IPS!K38 -> 0 | BL44: =+IPS!N38 -> 0 | BM44: =+IPS!Q38 -> 0 | BN44: =+IPS!T38 -> 0 | BO44: 0 | BP44: =+'NILAI SMT 6 (US)'!Z38 -> 0 | BQ44: 0 | BR44: =+SENI!H38 -> 0 | BS44: =+SENI!K38 -> 0 | BT44: =+SENI!N38 -> 0 | BU44: =+SENI!Q38 -> 0 | BV44: =+SENI!T38 -> 0 | BW44: 0 | BX44: =+'NILAI SMT 6 (US)'!AC38 -> 0 | BY44: 0 | BZ44: =+PENJAS!H38 -> 0 | CA44: =+PENJAS!K38 -> 0 | CB44: =+PENJAS!N38 -> 0 | CC44: =+PENJAS!Q38 -> 0 | CD44: =+PENJAS!T38 -> 0 | CE44: 0 | CF44: =+'NILAI SMT 6 (US)'!AF38 -> 0 | CG44: 0 | CH44: =+'TIK-KET'!H38 -> 0 | CI44: =+'TIK-KET'!K38 -> 0 | CJ44: =+'TIK-KET'!N38 -> 0 | CK44: =+'TIK-KET'!Q38 -> 0 | CL44: =+'TIK-KET'!T38 -> 0 | CM44: 0 | CN44: =+'NILAI SMT 6 (US)'!AI38 -> 0 | CO44: 0 | CP44: =+'MLK1'!H38 -> 0 | CQ44: =+'MLK1'!K38 -> 0 | CR44: =+'MLK1'!N38 -> 0 | CS44: =+'MLK1'!Q38 -> 0 | CT44: =+'MLK1'!T38 -> 0 | CU44: 0 | CV44: =+'NILAI SMT 6 (US)'!AL38 -> 0 | CW44: 0 | CX44: =+'MLK2'!H38 -> 0 | CY44: =+'MLK2'!K38 -> 0 | CZ44: =+'MLK2'!N38 -> 0 | DA44: =+'MLK2'!Q38 -> 0 | DB44: =+'MLK2'!T38 -> 0 | DC44: 0 | DD44: =+'NILAI SMT 6 (US)'!AO38 -> 0 | DE44: 0 | DF44: 0 | DG44: =DF44/('KRITERIA&MULOK'!$E$20) -> 0 | DH44: 30 | DI44: 7.5 | DJ44: 18 | DK44: 4.5 | DL44: B | DM44: TIDAK LULUS
A45: =+BIODATA!A39 -> 32 | B45: =+BIODATA!B39 -> 0 | C45: =+BIODATA!E39 -> 0 | D45: =+BIODATA!C39 -> 0 | E45: =+BIODATA!D39 -> 0 | F45: =+BIND!H39 -> 0 | G45: =+BIND!K39 -> 0 | H45: =+BIND!N39 -> 0 | I45: =+BIND!Q39 -> 0 | J45: =+BIND!T39 -> 0 | K45: 0 | L45: =+'NILAI SMT 6 (US)'!N39 -> 0 | M45: 0 | N45: 7 | O45: 4.2 | P45: =+'B-ING'!H39 -> 0 | Q45: =+'B-ING'!K39 -> 0 | R45: =+'B-ING'!N39 -> 0 | S45: =+'B-ING'!Q39 -> 0 | T45: =+'B-ING'!T39 -> 0 | U45: 0 | V45: =+'NILAI SMT 6 (US)'!Q39 -> 0 | W45: 0 | X45: 8 | Y45: 4.8 | Z45: =+MAT!H39 -> 0 | AA45: =+MAT!K39 -> 0 | AB45: =+MAT!N39 -> 0 | AC45: =+MAT!Q39 -> 0 | AD45: =+MAT!T39 -> 0 | AE45: 0 | AF45: =+'NILAI SMT 6 (US)'!T39 -> 0 | AG45: 0 | AH45: 9 | AI45: 5.4 | AJ45: =+IPA!H39 -> 0 | AK45: =+IPA!K39 -> 0 | AL45: =+IPA!N39 -> 0 | AM45: =+IPA!Q39 -> 0 | AN45: =+IPA!T39 -> 0 | AO45: 0 | AP45: =+'NILAI SMT 6 (US)'!W39 -> 0 | AQ45: 0 | AR45: 6 | AS45: 3.6 | AT45: =+Agama!H39 -> 0 | AU45: =+Agama!K39 -> 0 | AV45: =+Agama!N39 -> 0 | AW45: =+Agama!Q39 -> 0 | AX45: =+Agama!T39 -> 0 | AY45: 0 | AZ45: =+'NILAI SMT 6 (US)'!H39 -> 0 | BA45: 0 | BB45: =+PPKn!H39 -> 0 | BC45: =+PPKn!K39 -> 0 | BD45: =+PPKn!N39 -> 0 | BE45: =+PPKn!Q39 -> 0 | BF45: =+PPKn!T39 -> 0 | BG45: 0 | BH45: =+'NILAI SMT 6 (US)'!K39 -> 0 | BI45: 0 | BJ45: =+IPS!H39 -> 0 | BK45: =+IPS!K39 -> 0 | BL45: =+IPS!N39 -> 0 | BM45: =+IPS!Q39 -> 0 | BN45: =+IPS!T39 -> 0 | BO45: 0 | BP45: =+'NILAI SMT 6 (US)'!Z39 -> 0 | BQ45: 0 | BR45: =+SENI!H39 -> 0 | BS45: =+SENI!K39 -> 0 | BT45: =+SENI!N39 -> 0 | BU45: =+SENI!Q39 -> 0 | BV45: =+SENI!T39 -> 0 | BW45: 0 | BX45: =+'NILAI SMT 6 (US)'!AC39 -> 0 | BY45: 0 | BZ45: =+PENJAS!H39 -> 0 | CA45: =+PENJAS!K39 -> 0 | CB45: =+PENJAS!N39 -> 0 | CC45: =+PENJAS!Q39 -> 0 | CD45: =+PENJAS!T39 -> 0 | CE45: 0 | CF45: =+'NILAI SMT 6 (US)'!AF39 -> 0 | CG45: 0 | CH45: =+'TIK-KET'!H39 -> 0 | CI45: =+'TIK-KET'!K39 -> 0 | CJ45: =+'TIK-KET'!N39 -> 0 | CK45: =+'TIK-KET'!Q39 -> 0 | CL45: =+'TIK-KET'!T39 -> 0 | CM45: 0 | CN45: =+'NILAI SMT 6 (US)'!AI39 -> 0 | CO45: 0 | CP45: =+'MLK1'!H39 -> 0 | CQ45: =+'MLK1'!K39 -> 0 | CR45: =+'MLK1'!N39 -> 0 | CS45: =+'MLK1'!Q39 -> 0 | CT45: =+'MLK1'!T39 -> 0 | CU45: 0 | CV45: =+'NILAI SMT 6 (US)'!AL39 -> 0 | CW45: 0 | CX45: =+'MLK2'!H39 -> 0 | CY45: =+'MLK2'!K39 -> 0 | CZ45: =+'MLK2'!N39 -> 0 | DA45: =+'MLK2'!Q39 -> 0 | DB45: =+'MLK2'!T39 -> 0 | DC45: 0 | DD45: =+'NILAI SMT 6 (US)'!AO39 -> 0 | DE45: 0 | DF45: 0 | DG45: =DF45/('KRITERIA&MULOK'!$E$20) -> 0 | DH45: 30 | DI45: 7.5 | DJ45: 18 | DK45: 4.5 | DL45: B | DM45: TIDAK LULUS
A46: =+BIODATA!A40 -> 33 | B46: =+BIODATA!B40 -> 0 | C46: =+BIODATA!E40 -> 0 | D46: =+BIODATA!C40 -> 0 | E46: =+BIODATA!D40 -> 0 | F46: =+BIND!H40 -> 0 | G46: =+BIND!K40 -> 0 | H46: =+BIND!N40 -> 0 | I46: =+BIND!Q40 -> 0 | J46: =+BIND!T40 -> 0 | K46: 0 | L46: =+'NILAI SMT 6 (US)'!N40 -> 0 | M46: 0 | N46: 7 | O46: 4.2 | P46: =+'B-ING'!H40 -> 0 | Q46: =+'B-ING'!K40 -> 0 | R46: =+'B-ING'!N40 -> 0 | S46: =+'B-ING'!Q40 -> 0 | T46: =+'B-ING'!T40 -> 0 | U46: 0 | V46: =+'NILAI SMT 6 (US)'!Q40 -> 0 | W46: 0 | X46: 8 | Y46: 4.8 | Z46: =+MAT!H40 -> 0 | AA46: =+MAT!K40 -> 0 | AB46: =+MAT!N40 -> 0 | AC46: =+MAT!Q40 -> 0 | AD46: =+MAT!T40 -> 0 | AE46: 0 | AF46: =+'NILAI SMT 6 (US)'!T40 -> 0 | AG46: 0 | AH46: 9 | AI46: 5.4 | AJ46: =+IPA!H40 -> 0 | AK46: =+IPA!K40 -> 0 | AL46: =+IPA!N40 -> 0 | AM46: =+IPA!Q40 -> 0 | AN46: =+IPA!T40 -> 0 | AO46: 0 | AP46: =+'NILAI SMT 6 (US)'!W40 -> 0 | AQ46: 0 | AR46: 6 | AS46: 3.6 | AT46: =+Agama!H40 -> 0 | AU46: =+Agama!K40 -> 0 | AV46: =+Agama!N40 -> 0 | AW46: =+Agama!Q40 -> 0 | AX46: =+Agama!T40 -> 0 | AY46: 0 | AZ46: =+'NILAI SMT 6 (US)'!H40 -> 0 | BA46: 0 | BB46: =+PPKn!H40 -> 0 | BC46: =+PPKn!K40 -> 0 | BD46: =+PPKn!N40 -> 0 | BE46: =+PPKn!Q40 -> 0 | BF46: =+PPKn!T40 -> 0 | BG46: 0 | BH46: =+'NILAI SMT 6 (US)'!K40 -> 0 | BI46: 0 | BJ46: =+IPS!H40 -> 0 | BK46: =+IPS!K40 -> 0 | BL46: =+IPS!N40 -> 0 | BM46: =+IPS!Q40 -> 0 | BN46: =+IPS!T40 -> 0 | BO46: 0 | BP46: =+'NILAI SMT 6 (US)'!Z40 -> 0 | BQ46: 0 | BR46: =+SENI!H40 -> 0 | BS46: =+SENI!K40 -> 0 | BT46: =+SENI!N40 -> 0 | BU46: =+SENI!Q40 -> 0 | BV46: =+SENI!T40 -> 0 | BW46: 0 | BX46: =+'NILAI SMT 6 (US)'!AC40 -> 0 | BY46: 0 | BZ46: =+PENJAS!H40 -> 0 | CA46: =+PENJAS!K40 -> 0 | CB46: =+PENJAS!N40 -> 0 | CC46: =+PENJAS!Q40 -> 0 | CD46: =+PENJAS!T40 -> 0 | CE46: 0 | CF46: =+'NILAI SMT 6 (US)'!AF40 -> 0 | CG46: 0 | CH46: =+'TIK-KET'!H40 -> 0 | CI46: =+'TIK-KET'!K40 -> 0 | CJ46: =+'TIK-KET'!N40 -> 0 | CK46: =+'TIK-KET'!Q40 -> 0 | CL46: =+'TIK-KET'!T40 -> 0 | CM46: 0 | CN46: =+'NILAI SMT 6 (US)'!AI40 -> 0 | CO46: 0 | CP46: =+'MLK1'!H40 -> 0 | CQ46: =+'MLK1'!K40 -> 0 | CR46: =+'MLK1'!N40 -> 0 | CS46: =+'MLK1'!Q40 -> 0 | CT46: =+'MLK1'!T40 -> 0 | CU46: 0 | CV46: =+'NILAI SMT 6 (US)'!AL40 -> 0 | CW46: 0 | CX46: =+'MLK2'!H40 -> 0 | CY46: =+'MLK2'!K40 -> 0 | CZ46: =+'MLK2'!N40 -> 0 | DA46: =+'MLK2'!Q40 -> 0 | DB46: =+'MLK2'!T40 -> 0 | DC46: 0 | DD46: =+'NILAI SMT 6 (US)'!AO40 -> 0 | DE46: 0 | DF46: 0 | DG46: =DF46/('KRITERIA&MULOK'!$E$20) -> 0 | DH46: 30 | DI46: 7.5 | DJ46: 18 | DK46: 4.5 | DL46: B | DM46: TIDAK LULUS
A47: =+BIODATA!A41 -> 34 | B47: =+BIODATA!B41 -> 0 | C47: =+BIODATA!E41 -> 0 | D47: =+BIODATA!C41 -> 0 | E47: =+BIODATA!D41 -> 0 | F47: =+BIND!H41 -> 0 | G47: =+BIND!K41 -> 0 | H47: =+BIND!N41 -> 0 | I47: =+BIND!Q41 -> 0 | J47: =+BIND!T41 -> 0 | K47: 0 | L47: =+'NILAI SMT 6 (US)'!N41 -> 0 | M47: 0 | N47: 7 | O47: 4.2 | P47: =+'B-ING'!H41 -> 0 | Q47: =+'B-ING'!K41 -> 0 | R47: =+'B-ING'!N41 -> 0 | S47: =+'B-ING'!Q41 -> 0 | T47: =+'B-ING'!T41 -> 0 | U47: 0 | V47: =+'NILAI SMT 6 (US)'!Q41 -> 0 | W47: 0 | X47: 8 | Y47: 4.8 | Z47: =+MAT!H41 -> 0 | AA47: =+MAT!K41 -> 0 | AB47: =+MAT!N41 -> 0 | AC47: =+MAT!Q41 -> 0 | AD47: =+MAT!T41 -> 0 | AE47: 0 | AF47: =+'NILAI SMT 6 (US)'!T41 -> 0 | AG47: 0 | AH47: 9 | AI47: 5.4 | AJ47: =+IPA!H41 -> 0 | AK47: =+IPA!K41 -> 0 | AL47: =+IPA!N41 -> 0 | AM47: =+IPA!Q41 -> 0 | AN47: =+IPA!T41 -> 0 | AO47: 0 | AP47: =+'NILAI SMT 6 (US)'!W41 -> 0 | AQ47: 0 | AR47: 6 | AS47: 3.6 | AT47: =+Agama!H41 -> 0 | AU47: =+Agama!K41 -> 0 | AV47: =+Agama!N41 -> 0 | AW47: =+Agama!Q41 -> 0 | AX47: =+Agama!T41 -> 0 | AY47: 0 | AZ47: =+'NILAI SMT 6 (US)'!H41 -> 0 | BA47: 0 | BB47: =+PPKn!H41 -> 0 | BC47: =+PPKn!K41 -> 0 | BD47: =+PPKn!N41 -> 0 | BE47: =+PPKn!Q41 -> 0 | BF47: =+PPKn!T41 -> 0 | BG47: 0 | BH47: =+'NILAI SMT 6 (US)'!K41 -> 0 | BI47: 0 | BJ47: =+IPS!H41 -> 0 | BK47: =+IPS!K41 -> 0 | BL47: =+IPS!N41 -> 0 | BM47: =+IPS!Q41 -> 0 | BN47: =+IPS!T41 -> 0 | BO47: 0 | BP47: =+'NILAI SMT 6 (US)'!Z41 -> 0 | BQ47: 0 | BR47: =+SENI!H41 -> 0 | BS47: =+SENI!K41 -> 0 | BT47: =+SENI!N41 -> 0 | BU47: =+SENI!Q41 -> 0 | BV47: =+SENI!T41 -> 0 | BW47: 0 | BX47: =+'NILAI SMT 6 (US)'!AC41 -> 0 | BY47: 0 | BZ47: =+PENJAS!H41 -> 0 | CA47: =+PENJAS!K41 -> 0 | CB47: =+PENJAS!N41 -> 0 | CC47: =+PENJAS!Q41 -> 0 | CD47: =+PENJAS!T41 -> 0 | CE47: 0 | CF47: =+'NILAI SMT 6 (US)'!AF41 -> 0 | CG47: 0 | CH47: =+'TIK-KET'!H41 -> 0 | CI47: =+'TIK-KET'!K41 -> 0 | CJ47: =+'TIK-KET'!N41 -> 0 | CK47: =+'TIK-KET'!Q41 -> 0 | CL47: =+'TIK-KET'!T41 -> 0 | CM47: 0 | CN47: =+'NILAI SMT 6 (US)'!AI41 -> 0 | CO47: 0 | CP47: =+'MLK1'!H41 -> 0 | CQ47: =+'MLK1'!K41 -> 0 | CR47: =+'MLK1'!N41 -> 0 | CS47: =+'MLK1'!Q41 -> 0 | CT47: =+'MLK1'!T41 -> 0 | CU47: 0 | CV47: =+'NILAI SMT 6 (US)'!AL41 -> 0 | CW47: 0 | CX47: =+'MLK2'!H41 -> 0 | CY47: =+'MLK2'!K41 -> 0 | CZ47: =+'MLK2'!N41 -> 0 | DA47: =+'MLK2'!Q41 -> 0 | DB47: =+'MLK2'!T41 -> 0 | DC47: 0 | DD47: =+'NILAI SMT 6 (US)'!AO41 -> 0 | DE47: 0 | DF47: 0 | DG47: =DF47/('KRITERIA&MULOK'!$E$20) -> 0 | DH47: 30 | DI47: 7.5 | DJ47: 18 | DK47: 4.5 | DL47: B | DM47: TIDAK LULUS
A48: =+BIODATA!A42 -> 35 | B48: =+BIODATA!B42 -> 0 | C48: =+BIODATA!E42 -> 0 | D48: =+BIODATA!C42 -> 0 | E48: =+BIODATA!D42 -> 0 | F48: =+BIND!H42 -> 0 | G48: =+BIND!K42 -> 0 | H48: =+BIND!N42 -> 0 | I48: =+BIND!Q42 -> 0 | J48: =+BIND!T42 -> 0 | K48: 0 | L48: =+'NILAI SMT 6 (US)'!N42 -> 0 | M48: 0 | N48: 7 | O48: 4.2 | P48: =+'B-ING'!H42 -> 0 | Q48: =+'B-ING'!K42 -> 0 | R48: =+'B-ING'!N42 -> 0 | S48: =+'B-ING'!Q42 -> 0 | T48: =+'B-ING'!T42 -> 0 | U48: 0 | V48: =+'NILAI SMT 6 (US)'!Q42 -> 0 | W48: 0 | X48: 8 | Y48: 4.8 | Z48: =+MAT!H42 -> 0 | AA48: =+MAT!K42 -> 0 | AB48: =+MAT!N42 -> 0 | AC48: =+MAT!Q42 -> 0 | AD48: =+MAT!T42 -> 0 | AE48: 0 | AF48: =+'NILAI SMT 6 (US)'!T42 -> 0 | AG48: 0 | AH48: 9 | AI48: 5.4 | AJ48: =+IPA!H42 -> 0 | AK48: =+IPA!K42 -> 0 | AL48: =+IPA!N42 -> 0 | AM48: =+IPA!Q42 -> 0 | AN48: =+IPA!T42 -> 0 | AO48: 0 | AP48: =+'NILAI SMT 6 (US)'!W42 -> 0 | AQ48: 0 | AR48: 6 | AS48: 3.6 | AT48: =+Agama!H42 -> 0 | AU48: =+Agama!K42 -> 0 | AV48: =+Agama!N42 -> 0 | AW48: =+Agama!Q42 -> 0 | AX48: =+Agama!T42 -> 0 | AY48: 0 | AZ48: =+'NILAI SMT 6 (US)'!H42 -> 0 | BA48: 0 | BB48: =+PPKn!H42 -> 0 | BC48: =+PPKn!K42 -> 0 | BD48: =+PPKn!N42 -> 0 | BE48: =+PPKn!Q42 -> 0 | BF48: =+PPKn!T42 -> 0 | BG48: 0 | BH48: =+'NILAI SMT 6 (US)'!K42 -> 0 | BI48: 0 | BJ48: =+IPS!H42 -> 0 | BK48: =+IPS!K42 -> 0 | BL48: =+IPS!N42 -> 0 | BM48: =+IPS!Q42 -> 0 | BN48: =+IPS!T42 -> 0 | BO48: 0 | BP48: =+'NILAI SMT 6 (US)'!Z42 -> 0 | BQ48: 0 | BR48: =+SENI!H42 -> 0 | BS48: =+SENI!K42 -> 0 | BT48: =+SENI!N42 -> 0 | BU48: =+SENI!Q42 -> 0 | BV48: =+SENI!T42 -> 0 | BW48: 0 | BX48: =+'NILAI SMT 6 (US)'!AC42 -> 0 | BY48: 0 | BZ48: =+PENJAS!H42 -> 0 | CA48: =+PENJAS!K42 -> 0 | CB48: =+PENJAS!N42 -> 0 | CC48: =+PENJAS!Q42 -> 0 | CD48: =+PENJAS!T42 -> 0 | CE48: 0 | CF48: =+'NILAI SMT 6 (US)'!AF42 -> 0 | CG48: 0 | CH48: =+'TIK-KET'!H42 -> 0 | CI48: =+'TIK-KET'!K42 -> 0 | CJ48: =+'TIK-KET'!N42 -> 0 | CK48: =+'TIK-KET'!Q42 -> 0 | CL48: =+'TIK-KET'!T42 -> 0 | CM48: 0 | CN48: =+'NILAI SMT 6 (US)'!AI42 -> 0 | CO48: 0 | CP48: =+'MLK1'!H42 -> 0 | CQ48: =+'MLK1'!K42 -> 0 | CR48: =+'MLK1'!N42 -> 0 | CS48: =+'MLK1'!Q42 -> 0 | CT48: =+'MLK1'!T42 -> 0 | CU48: 0 | CV48: =+'NILAI SMT 6 (US)'!AL42 -> 0 | CW48: 0 | CX48: =+'MLK2'!H42 -> 0 | CY48: =+'MLK2'!K42 -> 0 | CZ48: =+'MLK2'!N42 -> 0 | DA48: =+'MLK2'!Q42 -> 0 | DB48: =+'MLK2'!T42 -> 0 | DC48: 0 | DD48: =+'NILAI SMT 6 (US)'!AO42 -> 0 | DE48: 0 | DF48: 0 | DG48: =DF48/('KRITERIA&MULOK'!$E$20) -> 0 | DH48: 30 | DI48: 7.5 | DJ48: 18 | DK48: 4.5 | DL48: B | DM48: TIDAK LULUS
A49: =+BIODATA!A43 -> 36 | B49: =+BIODATA!B43 -> 0 | C49: =+BIODATA!E43 -> 0 | D49: =+BIODATA!C43 -> 0 | E49: =+BIODATA!D43 -> 0 | F49: =+BIND!H43 -> 0 | G49: =+BIND!K43 -> 0 | H49: =+BIND!N43 -> 0 | I49: =+BIND!Q43 -> 0 | J49: =+BIND!T43 -> 0 | K49: 0 | L49: =+'NILAI SMT 6 (US)'!N43 -> 0 | M49: 0 | N49: 7 | O49: 4.2 | P49: =+'B-ING'!H43 -> 0 | Q49: =+'B-ING'!K43 -> 0 | R49: =+'B-ING'!N43 -> 0 | S49: =+'B-ING'!Q43 -> 0 | T49: =+'B-ING'!T43 -> 0 | U49: 0 | V49: =+'NILAI SMT 6 (US)'!Q43 -> 0 | W49: 0 | X49: 8 | Y49: 4.8 | Z49: =+MAT!H43 -> 0 | AA49: =+MAT!K43 -> 0 | AB49: =+MAT!N43 -> 0 | AC49: =+MAT!Q43 -> 0 | AD49: =+MAT!T43 -> 0 | AE49: 0 | AF49: =+'NILAI SMT 6 (US)'!T43 -> 0 | AG49: 0 | AH49: 9 | AI49: 5.4 | AJ49: =+IPA!H43 -> 0 | AK49: =+IPA!K43 -> 0 | AL49: =+IPA!N43 -> 0 | AM49: =+IPA!Q43 -> 0 | AN49: =+IPA!T43 -> 0 | AO49: 0 | AP49: =+'NILAI SMT 6 (US)'!W43 -> 0 | AQ49: 0 | AR49: 6 | AS49: 3.6 | AT49: =+Agama!H43 -> 0 | AU49: =+Agama!K43 -> 0 | AV49: =+Agama!N43 -> 0 | AW49: =+Agama!Q43 -> 0 | AX49: =+Agama!T43 -> 0 | AY49: 0 | AZ49: =+'NILAI SMT 6 (US)'!H43 -> 0 | BA49: 0 | BB49: =+PPKn!H43 -> 0 | BC49: =+PPKn!K43 -> 0 | BD49: =+PPKn!N43 -> 0 | BE49: =+PPKn!Q43 -> 0 | BF49: =+PPKn!T43 -> 0 | BG49: 0 | BH49: =+'NILAI SMT 6 (US)'!K43 -> 0 | BI49: 0 | BJ49: =+IPS!H43 -> 0 | BK49: =+IPS!K43 -> 0 | BL49: =+IPS!N43 -> 0 | BM49: =+IPS!Q43 -> 0 | BN49: =+IPS!T43 -> 0 | BO49: 0 | BP49: =+'NILAI SMT 6 (US)'!Z43 -> 0 | BQ49: 0 | BR49: =+SENI!H43 -> 0 | BS49: =+SENI!K43 -> 0 | BT49: =+SENI!N43 -> 0 | BU49: =+SENI!Q43 -> 0 | BV49: =+SENI!T43 -> 0 | BW49: 0 | BX49: =+'NILAI SMT 6 (US)'!AC43 -> 0 | BY49: 0 | BZ49: =+PENJAS!H43 -> 0 | CA49: =+PENJAS!K43 -> 0 | CB49: =+PENJAS!N43 -> 0 | CC49: =+PENJAS!Q43 -> 0 | CD49: =+PENJAS!T43 -> 0 | CE49: 0 | CF49: =+'NILAI SMT 6 (US)'!AF43 -> 0 | CG49: 0 | CH49: =+'TIK-KET'!H43 -> 0 | CI49: =+'TIK-KET'!K43 -> 0 | CJ49: =+'TIK-KET'!N43 -> 0 | CK49: =+'TIK-KET'!Q43 -> 0 | CL49: =+'TIK-KET'!T43 -> 0 | CM49: 0 | CN49: =+'NILAI SMT 6 (US)'!AI43 -> 0 | CO49: 0 | CP49: =+'MLK1'!H43 -> 0 | CQ49: =+'MLK1'!K43 -> 0 | CR49: =+'MLK1'!N43 -> 0 | CS49: =+'MLK1'!Q43 -> 0 | CT49: =+'MLK1'!T43 -> 0 | CU49: 0 | CV49: =+'NILAI SMT 6 (US)'!AL43 -> 0 | CW49: 0 | CX49: =+'MLK2'!H43 -> 0 | CY49: =+'MLK2'!K43 -> 0 | CZ49: =+'MLK2'!N43 -> 0 | DA49: =+'MLK2'!Q43 -> 0 | DB49: =+'MLK2'!T43 -> 0 | DC49: 0 | DD49: =+'NILAI SMT 6 (US)'!AO43 -> 0 | DE49: 0 | DF49: 0 | DG49: =DF49/('KRITERIA&MULOK'!$E$20) -> 0 | DH49: 30 | DI49: 7.5 | DJ49: 18 | DK49: 4.5 | DL49: B | DM49: TIDAK LULUS
A50: =+BIODATA!A44 -> 37 | B50: =+BIODATA!B44 -> 0 | C50: =+BIODATA!E44 -> 0 | D50: =+BIODATA!C44 -> 0 | E50: =+BIODATA!D44 -> 0 | F50: =+BIND!H44 -> 0 | G50: =+BIND!K44 -> 0 | H50: =+BIND!N44 -> 0 | I50: =+BIND!Q44 -> 0 | J50: =+BIND!T44 -> 0 | K50: 0 | L50: =+'NILAI SMT 6 (US)'!N44 -> 0 | M50: 0 | N50: 7 | O50: 4.2 | P50: =+'B-ING'!H44 -> 0 | Q50: =+'B-ING'!K44 -> 0 | R50: =+'B-ING'!N44 -> 0 | S50: =+'B-ING'!Q44 -> 0 | T50: =+'B-ING'!T44 -> 0 | U50: 0 | V50: =+'NILAI SMT 6 (US)'!Q44 -> 0 | W50: 0 | X50: 8 | Y50: 4.8 | Z50: =+MAT!H44 -> 0 | AA50: =+MAT!K44 -> 0 | AB50: =+MAT!N44 -> 0 | AC50: =+MAT!Q44 -> 0 | AD50: =+MAT!T44 -> 0 | AE50: 0 | AF50: =+'NILAI SMT 6 (US)'!T44 -> 0 | AG50: 0 | AH50: 9 | AI50: 5.4 | AJ50: =+IPA!H44 -> 0 | AK50: =+IPA!K44 -> 0 | AL50: =+IPA!N44 -> 0 | AM50: =+IPA!Q44 -> 0 | AN50: =+IPA!T44 -> 0 | AO50: 0 | AP50: =+'NILAI SMT 6 (US)'!W44 -> 0 | AQ50: 0 | AR50: 6 | AS50: 3.6 | AT50: =+Agama!H44 -> 0 | AU50: =+Agama!K44 -> 0 | AV50: =+Agama!N44 -> 0 | AW50: =+Agama!Q44 -> 0 | AX50: =+Agama!T44 -> 0 | AY50: 0 | AZ50: =+'NILAI SMT 6 (US)'!H44 -> 0 | BA50: 0 | BB50: =+PPKn!H44 -> 0 | BC50: =+PPKn!K44 -> 0 | BD50: =+PPKn!N44 -> 0 | BE50: =+PPKn!Q44 -> 0 | BF50: =+PPKn!T44 -> 0 | BG50: 0 | BH50: =+'NILAI SMT 6 (US)'!K44 -> 0 | BI50: 0 | BJ50: =+IPS!H44 -> 0 | BK50: =+IPS!K44 -> 0 | BL50: =+IPS!N44 -> 0 | BM50: =+IPS!Q44 -> 0 | BN50: =+IPS!T44 -> 0 | BO50: 0 | BP50: =+'NILAI SMT 6 (US)'!Z44 -> 0 | BQ50: 0 | BR50: =+SENI!H44 -> 0 | BS50: =+SENI!K44 -> 0 | BT50: =+SENI!N44 -> 0 | BU50: =+SENI!Q44 -> 0 | BV50: =+SENI!T44 -> 0 | BW50: 0 | BX50: =+'NILAI SMT 6 (US)'!AC44 -> 0 | BY50: 0 | BZ50: =+PENJAS!H44 -> 0 | CA50: =+PENJAS!K44 -> 0 | CB50: =+PENJAS!N44 -> 0 | CC50: =+PENJAS!Q44 -> 0 | CD50: =+PENJAS!T44 -> 0 | CE50: 0 | CF50: =+'NILAI SMT 6 (US)'!AF44 -> 0 | CG50: 0 | CH50: =+'TIK-KET'!H44 -> 0 | CI50: =+'TIK-KET'!K44 -> 0 | CJ50: =+'TIK-KET'!N44 -> 0 | CK50: =+'TIK-KET'!Q44 -> 0 | CL50: =+'TIK-KET'!T44 -> 0 | CM50: 0 | CN50: =+'NILAI SMT 6 (US)'!AI44 -> 0 | CO50: 0 | CP50: =+'MLK1'!H44 -> 0 | CQ50: =+'MLK1'!K44 -> 0 | CR50: =+'MLK1'!N44 -> 0 | CS50: =+'MLK1'!Q44 -> 0 | CT50: =+'MLK1'!T44 -> 0 | CU50: 0 | CV50: =+'NILAI SMT 6 (US)'!AL44 -> 0 | CW50: 0 | CX50: =+'MLK2'!H44 -> 0 | CY50: =+'MLK2'!K44 -> 0 | CZ50: =+'MLK2'!N44 -> 0 | DA50: =+'MLK2'!Q44 -> 0 | DB50: =+'MLK2'!T44 -> 0 | DC50: 0 | DD50: =+'NILAI SMT 6 (US)'!AO44 -> 0 | DE50: 0 | DF50: 0 | DG50: =DF50/('KRITERIA&MULOK'!$E$20) -> 0 | DH50: 30 | DI50: 7.5 | DJ50: 18 | DK50: 4.5 | DL50: B | DM50: TIDAK LULUS
A51: =+BIODATA!A45 -> 38 | B51: =+BIODATA!B45 -> 0 | C51: =+BIODATA!E45 -> 0 | D51: =+BIODATA!C45 -> 0 | E51: =+BIODATA!D45 -> 0 | F51: =+BIND!H45 -> 0 | G51: =+BIND!K45 -> 0 | H51: =+BIND!N45 -> 0 | I51: =+BIND!Q45 -> 0 | J51: =+BIND!T45 -> 0 | K51: 0 | L51: =+'NILAI SMT 6 (US)'!N45 -> 0 | M51: 0 | N51: 7 | O51: 4.2 | P51: =+'B-ING'!H45 -> 0 | Q51: =+'B-ING'!K45 -> 0 | R51: =+'B-ING'!N45 -> 0 | S51: =+'B-ING'!Q45 -> 0 | T51: =+'B-ING'!T45 -> 0 | U51: 0 | V51: =+'NILAI SMT 6 (US)'!Q45 -> 0 | W51: 0 | X51: 8 | Y51: 4.8 | Z51: =+MAT!H45 -> 0 | AA51: =+MAT!K45 -> 0 | AB51: =+MAT!N45 -> 0 | AC51: =+MAT!Q45 -> 0 | AD51: =+MAT!T45 -> 0 | AE51: 0 | AF51: =+'NILAI SMT 6 (US)'!T45 -> 0 | AG51: 0 | AH51: 9 | AI51: 5.4 | AJ51: =+IPA!H45 -> 0 | AK51: =+IPA!K45 -> 0 | AL51: =+IPA!N45 -> 0 | AM51: =+IPA!Q45 -> 0 | AN51: =+IPA!T45 -> 0 | AO51: 0 | AP51: =+'NILAI SMT 6 (US)'!W45 -> 0 | AQ51: 0 | AR51: 6 | AS51: 3.6 | AT51: =+Agama!H45 -> 0 | AU51: =+Agama!K45 -> 0 | AV51: =+Agama!N45 -> 0 | AW51: =+Agama!Q45 -> 0 | AX51: =+Agama!T45 -> 0 | AY51: 0 | AZ51: =+'NILAI SMT 6 (US)'!H45 -> 0 | BA51: 0 | BB51: =+PPKn!H45 -> 0 | BC51: =+PPKn!K45 -> 0 | BD51: =+PPKn!N45 -> 0 | BE51: =+PPKn!Q45 -> 0 | BF51: =+PPKn!T45 -> 0 | BG51: 0 | BH51: =+'NILAI SMT 6 (US)'!K45 -> 0 | BI51: 0 | BJ51: =+IPS!H45 -> 0 | BK51: =+IPS!K45 -> 0 | BL51: =+IPS!N45 -> 0 | BM51: =+IPS!Q45 -> 0 | BN51: =+IPS!T45 -> 0 | BO51: 0 | BP51: =+'NILAI SMT 6 (US)'!Z45 -> 0 | BQ51: 0 | BR51: =+SENI!H45 -> 0 | BS51: =+SENI!K45 -> 0 | BT51: =+SENI!N45 -> 0 | BU51: =+SENI!Q45 -> 0 | BV51: =+SENI!T45 -> 0 | BW51: 0 | BX51: =+'NILAI SMT 6 (US)'!AC45 -> 0 | BY51: 0 | BZ51: =+PENJAS!H45 -> 0 | CA51: =+PENJAS!K45 -> 0 | CB51: =+PENJAS!N45 -> 0 | CC51: =+PENJAS!Q45 -> 0 | CD51: =+PENJAS!T45 -> 0 | CE51: 0 | CF51: =+'NILAI SMT 6 (US)'!AF45 -> 0 | CG51: 0 | CH51: =+'TIK-KET'!H45 -> 0 | CI51: =+'TIK-KET'!K45 -> 0 | CJ51: =+'TIK-KET'!N45 -> 0 | CK51: =+'TIK-KET'!Q45 -> 0 | CL51: =+'TIK-KET'!T45 -> 0 | CM51: 0 | CN51: =+'NILAI SMT 6 (US)'!AI45 -> 0 | CO51: 0 | CP51: =+'MLK1'!H45 -> 0 | CQ51: =+'MLK1'!K45 -> 0 | CR51: =+'MLK1'!N45 -> 0 | CS51: =+'MLK1'!Q45 -> 0 | CT51: =+'MLK1'!T45 -> 0 | CU51: 0 | CV51: =+'NILAI SMT 6 (US)'!AL45 -> 0 | CW51: 0 | CX51: =+'MLK2'!H45 -> 0 | CY51: =+'MLK2'!K45 -> 0 | CZ51: =+'MLK2'!N45 -> 0 | DA51: =+'MLK2'!Q45 -> 0 | DB51: =+'MLK2'!T45 -> 0 | DC51: 0 | DD51: =+'NILAI SMT 6 (US)'!AO45 -> 0 | DE51: 0 | DF51: 0 | DG51: =DF51/('KRITERIA&MULOK'!$E$20) -> 0 | DH51: 30 | DI51: 7.5 | DJ51: 18 | DK51: 4.5 | DL51: B | DM51: TIDAK LULUS
A52: =+BIODATA!A46 -> 39 | B52: =+BIODATA!B46 -> 0 | C52: =+BIODATA!E46 -> 0 | D52: =+BIODATA!C46 -> 0 | E52: =+BIODATA!D46 -> 0 | F52: =+BIND!H46 -> 0 | G52: =+BIND!K46 -> 0 | H52: =+BIND!N46 -> 0 | I52: =+BIND!Q46 -> 0 | J52: =+BIND!T46 -> 0 | K52: 0 | L52: =+'NILAI SMT 6 (US)'!N46 -> 0 | M52: 0 | N52: 7 | O52: 4.2 | P52: =+'B-ING'!H46 -> 0 | Q52: =+'B-ING'!K46 -> 0 | R52: =+'B-ING'!N46 -> 0 | S52: =+'B-ING'!Q46 -> 0 | T52: =+'B-ING'!T46 -> 0 | U52: 0 | V52: =+'NILAI SMT 6 (US)'!Q46 -> 0 | W52: 0 | X52: 8 | Y52: 4.8 | Z52: =+MAT!H46 -> 0 | AA52: =+MAT!K46 -> 0 | AB52: =+MAT!N46 -> 0 | AC52: =+MAT!Q46 -> 0 | AD52: =+MAT!T46 -> 0 | AE52: 0 | AF52: =+'NILAI SMT 6 (US)'!T46 -> 0 | AG52: 0 | AH52: 9 | AI52: 5.4 | AJ52: =+IPA!H46 -> 0 | AK52: =+IPA!K46 -> 0 | AL52: =+IPA!N46 -> 0 | AM52: =+IPA!Q46 -> 0 | AN52: =+IPA!T46 -> 0 | AO52: 0 | AP52: =+'NILAI SMT 6 (US)'!W46 -> 0 | AQ52: 0 | AR52: 6 | AS52: 3.6 | AT52: =+Agama!H46 -> 0 | AU52: =+Agama!K46 -> 0 | AV52: =+Agama!N46 -> 0 | AW52: =+Agama!Q46 -> 0 | AX52: =+Agama!T46 -> 0 | AY52: 0 | AZ52: =+'NILAI SMT 6 (US)'!H46 -> 0 | BA52: 0 | BB52: =+PPKn!H46 -> 0 | BC52: =+PPKn!K46 -> 0 | BD52: =+PPKn!N46 -> 0 | BE52: =+PPKn!Q46 -> 0 | BF52: =+PPKn!T46 -> 0 | BG52: 0 | BH52: =+'NILAI SMT 6 (US)'!K46 -> 0 | BI52: 0 | BJ52: =+IPS!H46 -> 0 | BK52: =+IPS!K46 -> 0 | BL52: =+IPS!N46 -> 0 | BM52: =+IPS!Q46 -> 0 | BN52: =+IPS!T46 -> 0 | BO52: 0 | BP52: =+'NILAI SMT 6 (US)'!Z46 -> 0 | BQ52: 0 | BR52: =+SENI!H46 -> 0 | BS52: =+SENI!K46 -> 0 | BT52: =+SENI!N46 -> 0 | BU52: =+SENI!Q46 -> 0 | BV52: =+SENI!T46 -> 0 | BW52: 0 | BX52: =+'NILAI SMT 6 (US)'!AC46 -> 0 | BY52: 0 | BZ52: =+PENJAS!H46 -> 0 | CA52: =+PENJAS!K46 -> 0 | CB52: =+PENJAS!N46 -> 0 | CC52: =+PENJAS!Q46 -> 0 | CD52: =+PENJAS!T46 -> 0 | CE52: 0 | CF52: =+'NILAI SMT 6 (US)'!AF46 -> 0 | CG52: 0 | CH52: =+'TIK-KET'!H46 -> 0 | CI52: =+'TIK-KET'!K46 -> 0 | CJ52: =+'TIK-KET'!N46 -> 0 | CK52: =+'TIK-KET'!Q46 -> 0 | CL52: =+'TIK-KET'!T46 -> 0 | CM52: 0 | CN52: =+'NILAI SMT 6 (US)'!AI46 -> 0 | CO52: 0 | CP52: =+'MLK1'!H46 -> 0 | CQ52: =+'MLK1'!K46 -> 0 | CR52: =+'MLK1'!N46 -> 0 | CS52: =+'MLK1'!Q46 -> 0 | CT52: =+'MLK1'!T46 -> 0 | CU52: 0 | CV52: =+'NILAI SMT 6 (US)'!AL46 -> 0 | CW52: 0 | CX52: =+'MLK2'!H46 -> 0 | CY52: =+'MLK2'!K46 -> 0 | CZ52: =+'MLK2'!N46 -> 0 | DA52: =+'MLK2'!Q46 -> 0 | DB52: =+'MLK2'!T46 -> 0 | DC52: 0 | DD52: =+'NILAI SMT 6 (US)'!AO46 -> 0 | DE52: 0 | DF52: 0 | DG52: =DF52/('KRITERIA&MULOK'!$E$20) -> 0 | DH52: 30 | DI52: 7.5 | DJ52: 18 | DK52: 4.5 | DL52: B | DM52: TIDAK LULUS
A53: =+BIODATA!A47 -> 40 | B53: =+BIODATA!B47 -> 0 | C53: =+BIODATA!E47 -> 0 | D53: =+BIODATA!C47 -> 0 | E53: =+BIODATA!D47 -> 0 | F53: =+BIND!H47 -> 0 | G53: =+BIND!K47 -> 0 | H53: =+BIND!N47 -> 0 | I53: =+BIND!Q47 -> 0 | J53: =+BIND!T47 -> 0 | K53: 0 | L53: =+'NILAI SMT 6 (US)'!N47 -> 0 | M53: 0 | N53: 7 | O53: 4.2 | P53: =+'B-ING'!H47 -> 0 | Q53: =+'B-ING'!K47 -> 0 | R53: =+'B-ING'!N47 -> 0 | S53: =+'B-ING'!Q47 -> 0 | T53: =+'B-ING'!T47 -> 0 | U53: 0 | V53: =+'NILAI SMT 6 (US)'!Q47 -> 0 | W53: 0 | X53: 8 | Y53: 4.8 | Z53: =+MAT!H47 -> 0 | AA53: =+MAT!K47 -> 0 | AB53: =+MAT!N47 -> 0 | AC53: =+MAT!Q47 -> 0 | AD53: =+MAT!T47 -> 0 | AE53: 0 | AF53: =+'NILAI SMT 6 (US)'!T47 -> 0 | AG53: 0 | AH53: 9 | AI53: 5.4 | AJ53: =+IPA!H47 -> 0 | AK53: =+IPA!K47 -> 0 | AL53: =+IPA!N47 -> 0 | AM53: =+IPA!Q47 -> 0 | AN53: =+IPA!T47 -> 0 | AO53: 0 | AP53: =+'NILAI SMT 6 (US)'!W47 -> 0 | AQ53: 0 | AR53: 6 | AS53: 3.6 | AT53: =+Agama!H47 -> 0 | AU53: =+Agama!K47 -> 0 | AV53: =+Agama!N47 -> 0 | AW53: =+Agama!Q47 -> 0 | AX53: =+Agama!T47 -> 0 | AY53: 0 | AZ53: =+'NILAI SMT 6 (US)'!H47 -> 0 | BA53: 0 | BB53: =+PPKn!H47 -> 0 | BC53: =+PPKn!K47 -> 0 | BD53: =+PPKn!N47 -> 0 | BE53: =+PPKn!Q47 -> 0 | BF53: =+PPKn!T47 -> 0 | BG53: 0 | BH53: =+'NILAI SMT 6 (US)'!K47 -> 0 | BI53: 0 | BJ53: =+IPS!H47 -> 0 | BK53: =+IPS!K47 -> 0 | BL53: =+IPS!N47 -> 0 | BM53: =+IPS!Q47 -> 0 | BN53: =+IPS!T47 -> 0 | BO53: 0 | BP53: =+'NILAI SMT 6 (US)'!Z47 -> 0 | BQ53: 0 | BR53: =+SENI!H47 -> 0 | BS53: =+SENI!K47 -> 0 | BT53: =+SENI!N47 -> 0 | BU53: =+SENI!Q47 -> 0 | BV53: =+SENI!T47 -> 0 | BW53: 0 | BX53: =+'NILAI SMT 6 (US)'!AC47 -> 0 | BY53: 0 | BZ53: =+PENJAS!H47 -> 0 | CA53: =+PENJAS!K47 -> 0 | CB53: =+PENJAS!N47 -> 0 | CC53: =+PENJAS!Q47 -> 0 | CD53: =+PENJAS!T47 -> 0 | CE53: 0 | CF53: =+'NILAI SMT 6 (US)'!AF47 -> 0 | CG53: 0 | CH53: =+'TIK-KET'!H47 -> 0 | CI53: =+'TIK-KET'!K47 -> 0 | CJ53: =+'TIK-KET'!N47 -> 0 | CK53: =+'TIK-KET'!Q47 -> 0 | CL53: =+'TIK-KET'!T47 -> 0 | CM53: 0 | CN53: =+'NILAI SMT 6 (US)'!AI47 -> 0 | CO53: 0 | CP53: =+'MLK1'!H47 -> 0 | CQ53: =+'MLK1'!K47 -> 0 | CR53: =+'MLK1'!N47 -> 0 | CS53: =+'MLK1'!Q47 -> 0 | CT53: =+'MLK1'!T47 -> 0 | CU53: 0 | CV53: =+'NILAI SMT 6 (US)'!AL47 -> 0 | CW53: 0 | CX53: =+'MLK2'!H47 -> 0 | CY53: =+'MLK2'!K47 -> 0 | CZ53: =+'MLK2'!N47 -> 0 | DA53: =+'MLK2'!Q47 -> 0 | DB53: =+'MLK2'!T47 -> 0 | DC53: 0 | DD53: =+'NILAI SMT 6 (US)'!AO47 -> 0 | DE53: 0 | DF53: 0 | DG53: =DF53/('KRITERIA&MULOK'!$E$20) -> 0 | DH53: 30 | DI53: 7.5 | DJ53: 18 | DK53: 4.5 | DL53: B | DM53: TIDAK LULUS
A54: =+BIODATA!A48 -> 41 | B54: =+BIODATA!B48 -> 0 | C54: =+BIODATA!E48 -> 0 | D54: =+BIODATA!C48 -> 0 | E54: =+BIODATA!D48 -> 0 | F54: =+BIND!H48 -> 0 | G54: =+BIND!K48 -> 0 | H54: =+BIND!N48 -> 0 | I54: =+BIND!Q48 -> 0 | J54: =+BIND!T48 -> 0 | K54: 0 | L54: =+'NILAI SMT 6 (US)'!N48 -> 0 | M54: 0 | N54: 7 | O54: 4.2 | P54: =+'B-ING'!H48 -> 0 | Q54: =+'B-ING'!K48 -> 0 | R54: =+'B-ING'!N48 -> 0 | S54: =+'B-ING'!Q48 -> 0 | T54: =+'B-ING'!T48 -> 0 | U54: 0 | V54: =+'NILAI SMT 6 (US)'!Q48 -> 0 | W54: 0 | X54: 8 | Y54: 4.8 | Z54: =+MAT!H48 -> 0 | AA54: =+MAT!K48 -> 0 | AB54: =+MAT!N48 -> 0 | AC54: =+MAT!Q48 -> 0 | AD54: =+MAT!T48 -> 0 | AE54: 0 | AF54: =+'NILAI SMT 6 (US)'!T48 -> 0 | AG54: 0 | AH54: 9 | AI54: 5.4 | AJ54: =+IPA!H48 -> 0 | AK54: =+IPA!K48 -> 0 | AL54: =+IPA!N48 -> 0 | AM54: =+IPA!Q48 -> 0 | AN54: =+IPA!T48 -> 0 | AO54: 0 | AP54: =+'NILAI SMT 6 (US)'!W48 -> 0 | AQ54: 0 | AR54: 6 | AS54: 3.6 | AT54: =+Agama!H48 -> 0 | AU54: =+Agama!K48 -> 0 | AV54: =+Agama!N48 -> 0 | AW54: =+Agama!Q48 -> 0 | AX54: =+Agama!T48 -> 0 | AY54: 0 | AZ54: =+'NILAI SMT 6 (US)'!H48 -> 0 | BA54: 0 | BB54: =+PPKn!H48 -> 0 | BC54: =+PPKn!K48 -> 0 | BD54: =+PPKn!N48 -> 0 | BE54: =+PPKn!Q48 -> 0 | BF54: =+PPKn!T48 -> 0 | BG54: 0 | BH54: =+'NILAI SMT 6 (US)'!K48 -> 0 | BI54: 0 | BJ54: =+IPS!H48 -> 0 | BK54: =+IPS!K48 -> 0 | BL54: =+IPS!N48 -> 0 | BM54: =+IPS!Q48 -> 0 | BN54: =+IPS!T48 -> 0 | BO54: 0 | BP54: =+'NILAI SMT 6 (US)'!Z48 -> 0 | BQ54: 0 | BR54: =+SENI!H48 -> 0 | BS54: =+SENI!K48 -> 0 | BT54: =+SENI!N48 -> 0 | BU54: =+SENI!Q48 -> 0 | BV54: =+SENI!T48 -> 0 | BW54: 0 | BX54: =+'NILAI SMT 6 (US)'!AC48 -> 0 | BY54: 0 | BZ54: =+PENJAS!H48 -> 0 | CA54: =+PENJAS!K48 -> 0 | CB54: =+PENJAS!N48 -> 0 | CC54: =+PENJAS!Q48 -> 0 | CD54: =+PENJAS!T48 -> 0 | CE54: 0 | CF54: =+'NILAI SMT 6 (US)'!AF48 -> 0 | CG54: 0 | CH54: =+'TIK-KET'!H48 -> 0 | CI54: =+'TIK-KET'!K48 -> 0 | CJ54: =+'TIK-KET'!N48 -> 0 | CK54: =+'TIK-KET'!Q48 -> 0 | CL54: =+'TIK-KET'!T48 -> 0 | CM54: 0 | CN54: =+'NILAI SMT 6 (US)'!AI48 -> 0 | CO54: 0 | CP54: =+'MLK1'!H48 -> 0 | CQ54: =+'MLK1'!K48 -> 0 | CR54: =+'MLK1'!N48 -> 0 | CS54: =+'MLK1'!Q48 -> 0 | CT54: =+'MLK1'!T48 -> 0 | CU54: 0 | CV54: =+'NILAI SMT 6 (US)'!AL48 -> 0 | CW54: 0 | CX54: =+'MLK2'!H48 -> 0 | CY54: =+'MLK2'!K48 -> 0 | CZ54: =+'MLK2'!N48 -> 0 | DA54: =+'MLK2'!Q48 -> 0 | DB54: =+'MLK2'!T48 -> 0 | DC54: 0 | DD54: =+'NILAI SMT 6 (US)'!AO48 -> 0 | DE54: 0 | DF54: 0 | DG54: =DF54/('KRITERIA&MULOK'!$E$20) -> 0 | DH54: 30 | DI54: 7.5 | DJ54: 18 | DK54: 4.5 | DL54: B | DM54: TIDAK LULUS
A55: =+BIODATA!A49 -> 42 | B55: =+BIODATA!B49 -> 0 | C55: =+BIODATA!E49 -> 0 | D55: =+BIODATA!C49 -> 0 | E55: =+BIODATA!D49 -> 0 | F55: =+BIND!H49 -> 0 | G55: =+BIND!K49 -> 0 | H55: =+BIND!N49 -> 0 | I55: =+BIND!Q49 -> 0 | J55: =+BIND!T49 -> 0 | K55: 0 | L55: =+'NILAI SMT 6 (US)'!N49 -> 0 | M55: 0 | N55: 7 | O55: 4.2 | P55: =+'B-ING'!H49 -> 0 | Q55: =+'B-ING'!K49 -> 0 | R55: =+'B-ING'!N49 -> 0 | S55: =+'B-ING'!Q49 -> 0 | T55: =+'B-ING'!T49 -> 0 | U55: 0 | V55: =+'NILAI SMT 6 (US)'!Q49 -> 0 | W55: 0 | X55: 8 | Y55: 4.8 | Z55: =+MAT!H49 -> 0 | AA55: =+MAT!K49 -> 0 | AB55: =+MAT!N49 -> 0 | AC55: =+MAT!Q49 -> 0 | AD55: =+MAT!T49 -> 0 | AE55: 0 | AF55: =+'NILAI SMT 6 (US)'!T49 -> 0 | AG55: 0 | AH55: 9 | AI55: 5.4 | AJ55: =+IPA!H49 -> 0 | AK55: =+IPA!K49 -> 0 | AL55: =+IPA!N49 -> 0 | AM55: =+IPA!Q49 -> 0 | AN55: =+IPA!T49 -> 0 | AO55: 0 | AP55: =+'NILAI SMT 6 (US)'!W49 -> 0 | AQ55: 0 | AR55: 6 | AS55: 3.6 | AT55: =+Agama!H49 -> 0 | AU55: =+Agama!K49 -> 0 | AV55: =+Agama!N49 -> 0 | AW55: =+Agama!Q49 -> 0 | AX55: =+Agama!T49 -> 0 | AY55: 0 | AZ55: =+'NILAI SMT 6 (US)'!H49 -> 0 | BA55: 0 | BB55: =+PPKn!H49 -> 0 | BC55: =+PPKn!K49 -> 0 | BD55: =+PPKn!N49 -> 0 | BE55: =+PPKn!Q49 -> 0 | BF55: =+PPKn!T49 -> 0 | BG55: 0 | BH55: =+'NILAI SMT 6 (US)'!K49 -> 0 | BI55: 0 | BJ55: =+IPS!H49 -> 0 | BK55: =+IPS!K49 -> 0 | BL55: =+IPS!N49 -> 0 | BM55: =+IPS!Q49 -> 0 | BN55: =+IPS!T49 -> 0 | BO55: 0 | BP55: =+'NILAI SMT 6 (US)'!Z49 -> 0 | BQ55: 0 | BR55: =+SENI!H49 -> 0 | BS55: =+SENI!K49 -> 0 | BT55: =+SENI!N49 -> 0 | BU55: =+SENI!Q49 -> 0 | BV55: =+SENI!T49 -> 0 | BW55: 0 | BX55: =+'NILAI SMT 6 (US)'!AC49 -> 0 | BY55: 0 | BZ55: =+PENJAS!H49 -> 0 | CA55: =+PENJAS!K49 -> 0 | CB55: =+PENJAS!N49 -> 0 | CC55: =+PENJAS!Q49 -> 0 | CD55: =+PENJAS!T49 -> 0 | CE55: 0 | CF55: =+'NILAI SMT 6 (US)'!AF49 -> 0 | CG55: 0 | CH55: =+'TIK-KET'!H49 -> 0 | CI55: =+'TIK-KET'!K49 -> 0 | CJ55: =+'TIK-KET'!N49 -> 0 | CK55: =+'TIK-KET'!Q49 -> 0 | CL55: =+'TIK-KET'!T49 -> 0 | CM55: 0 | CN55: =+'NILAI SMT 6 (US)'!AI49 -> 0 | CO55: 0 | CP55: =+'MLK1'!H49 -> 0 | CQ55: =+'MLK1'!K49 -> 0 | CR55: =+'MLK1'!N49 -> 0 | CS55: =+'MLK1'!Q49 -> 0 | CT55: =+'MLK1'!T49 -> 0 | CU55: 0 | CV55: =+'NILAI SMT 6 (US)'!AL49 -> 0 | CW55: 0 | CX55: =+'MLK2'!H49 -> 0 | CY55: =+'MLK2'!K49 -> 0 | CZ55: =+'MLK2'!N49 -> 0 | DA55: =+'MLK2'!Q49 -> 0 | DB55: =+'MLK2'!T49 -> 0 | DC55: 0 | DD55: =+'NILAI SMT 6 (US)'!AO49 -> 0 | DE55: 0 | DF55: 0 | DG55: =DF55/('KRITERIA&MULOK'!$E$20) -> 0 | DH55: 30 | DI55: 7.5 | DJ55: 18 | DK55: 4.5 | DL55: B | DM55: TIDAK LULUS
A56: =+BIODATA!A50 -> 43 | B56: =+BIODATA!B50 -> 0 | C56: =+BIODATA!E50 -> 0 | D56: =+BIODATA!C50 -> 0 | E56: =+BIODATA!D50 -> 0 | F56: =+BIND!H50 -> 0 | G56: =+BIND!K50 -> 0 | H56: =+BIND!N50 -> 0 | I56: =+BIND!Q50 -> 0 | J56: =+BIND!T50 -> 0 | K56: 0 | L56: =+'NILAI SMT 6 (US)'!N50 -> 0 | M56: 0 | N56: 7 | O56: 4.2 | P56: =+'B-ING'!H50 -> 0 | Q56: =+'B-ING'!K50 -> 0 | R56: =+'B-ING'!N50 -> 0 | S56: =+'B-ING'!Q50 -> 0 | T56: =+'B-ING'!T50 -> 0 | U56: 0 | V56: =+'NILAI SMT 6 (US)'!Q50 -> 0 | W56: 0 | X56: 8 | Y56: 4.8 | Z56: =+MAT!H50 -> 0 | AA56: =+MAT!K50 -> 0 | AB56: =+MAT!N50 -> 0 | AC56: =+MAT!Q50 -> 0 | AD56: =+MAT!T50 -> 0 | AE56: 0 | AF56: =+'NILAI SMT 6 (US)'!T50 -> 0 | AG56: 0 | AH56: 9 | AI56: 5.4 | AJ56: =+IPA!H50 -> 0 | AK56: =+IPA!K50 -> 0 | AL56: =+IPA!N50 -> 0 | AM56: =+IPA!Q50 -> 0 | AN56: =+IPA!T50 -> 0 | AO56: 0 | AP56: =+'NILAI SMT 6 (US)'!W50 -> 0 | AQ56: 0 | AR56: 6 | AS56: 3.6 | AT56: =+Agama!H50 -> 0 | AU56: =+Agama!K50 -> 0 | AV56: =+Agama!N50 -> 0 | AW56: =+Agama!Q50 -> 0 | AX56: =+Agama!T50 -> 0 | AY56: 0 | AZ56: =+'NILAI SMT 6 (US)'!H50 -> 0 | BA56: 0 | BB56: =+PPKn!H50 -> 0 | BC56: =+PPKn!K50 -> 0 | BD56: =+PPKn!N50 -> 0 | BE56: =+PPKn!Q50 -> 0 | BF56: =+PPKn!T50 -> 0 | BG56: 0 | BH56: =+'NILAI SMT 6 (US)'!K50 -> 0 | BI56: 0 | BJ56: =+IPS!H50 -> 0 | BK56: =+IPS!K50 -> 0 | BL56: =+IPS!N50 -> 0 | BM56: =+IPS!Q50 -> 0 | BN56: =+IPS!T50 -> 0 | BO56: 0 | BP56: =+'NILAI SMT 6 (US)'!Z50 -> 0 | BQ56: 0 | BR56: =+SENI!H50 -> 0 | BS56: =+SENI!K50 -> 0 | BT56: =+SENI!N50 -> 0 | BU56: =+SENI!Q50 -> 0 | BV56: =+SENI!T50 -> 0 | BW56: 0 | BX56: =+'NILAI SMT 6 (US)'!AC50 -> 0 | BY56: 0 | BZ56: =+PENJAS!H50 -> 0 | CA56: =+PENJAS!K50 -> 0 | CB56: =+PENJAS!N50 -> 0 | CC56: =+PENJAS!Q50 -> 0 | CD56: =+PENJAS!T50 -> 0 | CE56: 0 | CF56: =+'NILAI SMT 6 (US)'!AF50 -> 0 | CG56: 0 | CH56: =+'TIK-KET'!H50 -> 0 | CI56: =+'TIK-KET'!K50 -> 0 | CJ56: =+'TIK-KET'!N50 -> 0 | CK56: =+'TIK-KET'!Q50 -> 0 | CL56: =+'TIK-KET'!T50 -> 0 | CM56: 0 | CN56: =+'NILAI SMT 6 (US)'!AI50 -> 0 | CO56: 0 | CP56: =+'MLK1'!H50 -> 0 | CQ56: =+'MLK1'!K50 -> 0 | CR56: =+'MLK1'!N50 -> 0 | CS56: =+'MLK1'!Q50 -> 0 | CT56: =+'MLK1'!T50 -> 0 | CU56: 0 | CV56: =+'NILAI SMT 6 (US)'!AL50 -> 0 | CW56: 0 | CX56: =+'MLK2'!H50 -> 0 | CY56: =+'MLK2'!K50 -> 0 | CZ56: =+'MLK2'!N50 -> 0 | DA56: =+'MLK2'!Q50 -> 0 | DB56: =+'MLK2'!T50 -> 0 | DC56: 0 | DD56: =+'NILAI SMT 6 (US)'!AO50 -> 0 | DE56: 0 | DF56: 0 | DG56: =DF56/('KRITERIA&MULOK'!$E$20) -> 0 | DH56: 30 | DI56: 7.5 | DJ56: 18 | DK56: 4.5 | DL56: B | DM56: TIDAK LULUS
A57: =+BIODATA!A51 -> 44 | B57: =+BIODATA!B51 -> 0 | C57: =+BIODATA!E51 -> 0 | D57: =+BIODATA!C51 -> 0 | E57: =+BIODATA!D51 -> 0 | F57: =+BIND!H51 -> 0 | G57: =+BIND!K51 -> 0 | H57: =+BIND!N51 -> 0 | I57: =+BIND!Q51 -> 0 | J57: =+BIND!T51 -> 0 | K57: 0 | L57: =+'NILAI SMT 6 (US)'!N51 -> 0 | M57: 0 | N57: 7 | O57: 4.2 | P57: =+'B-ING'!H51 -> 0 | Q57: =+'B-ING'!K51 -> 0 | R57: =+'B-ING'!N51 -> 0 | S57: =+'B-ING'!Q51 -> 0 | T57: =+'B-ING'!T51 -> 0 | U57: 0 | V57: =+'NILAI SMT 6 (US)'!Q51 -> 0 | W57: 0 | X57: 8 | Y57: 4.8 | Z57: =+MAT!H51 -> 0 | AA57: =+MAT!K51 -> 0 | AB57: =+MAT!N51 -> 0 | AC57: =+MAT!Q51 -> 0 | AD57: =+MAT!T51 -> 0 | AE57: 0 | AF57: =+'NILAI SMT 6 (US)'!T51 -> 0 | AG57: 0 | AH57: 9 | AI57: 5.4 | AJ57: =+IPA!H51 -> 0 | AK57: =+IPA!K51 -> 0 | AL57: =+IPA!N51 -> 0 | AM57: =+IPA!Q51 -> 0 | AN57: =+IPA!T51 -> 0 | AO57: 0 | AP57: =+'NILAI SMT 6 (US)'!W51 -> 0 | AQ57: 0 | AR57: 6 | AS57: 3.6 | AT57: =+Agama!H51 -> 0 | AU57: =+Agama!K51 -> 0 | AV57: =+Agama!N51 -> 0 | AW57: =+Agama!Q51 -> 0 | AX57: =+Agama!T51 -> 0 | AY57: 0 | AZ57: =+'NILAI SMT 6 (US)'!H51 -> 0 | BA57: 0 | BB57: =+PPKn!H51 -> 0 | BC57: =+PPKn!K51 -> 0 | BD57: =+PPKn!N51 -> 0 | BE57: =+PPKn!Q51 -> 0 | BF57: =+PPKn!T51 -> 0 | BG57: 0 | BH57: =+'NILAI SMT 6 (US)'!K51 -> 0 | BI57: 0 | BJ57: =+IPS!H51 -> 0 | BK57: =+IPS!K51 -> 0 | BL57: =+IPS!N51 -> 0 | BM57: =+IPS!Q51 -> 0 | BN57: =+IPS!T51 -> 0 | BO57: 0 | BP57: =+'NILAI SMT 6 (US)'!Z51 -> 0 | BQ57: 0 | BR57: =+SENI!H51 -> 0 | BS57: =+SENI!K51 -> 0 | BT57: =+SENI!N51 -> 0 | BU57: =+SENI!Q51 -> 0 | BV57: =+SENI!T51 -> 0 | BW57: 0 | BX57: =+'NILAI SMT 6 (US)'!AC51 -> 0 | BY57: 0 | BZ57: =+PENJAS!H51 -> 0 | CA57: =+PENJAS!K51 -> 0 | CB57: =+PENJAS!N51 -> 0 | CC57: =+PENJAS!Q51 -> 0 | CD57: =+PENJAS!T51 -> 0 | CE57: 0 | CF57: =+'NILAI SMT 6 (US)'!AF51 -> 0 | CG57: 0 | CH57: =+'TIK-KET'!H51 -> 0 | CI57: =+'TIK-KET'!K51 -> 0 | CJ57: =+'TIK-KET'!N51 -> 0 | CK57: =+'TIK-KET'!Q51 -> 0 | CL57: =+'TIK-KET'!T51 -> 0 | CM57: 0 | CN57: =+'NILAI SMT 6 (US)'!AI51 -> 0 | CO57: 0 | CP57: =+'MLK1'!H51 -> 0 | CQ57: =+'MLK1'!K51 -> 0 | CR57: =+'MLK1'!N51 -> 0 | CS57: =+'MLK1'!Q51 -> 0 | CT57: =+'MLK1'!T51 -> 0 | CU57: 0 | CV57: =+'NILAI SMT 6 (US)'!AL51 -> 0 | CW57: 0 | CX57: =+'MLK2'!H51 -> 0 | CY57: =+'MLK2'!K51 -> 0 | CZ57: =+'MLK2'!N51 -> 0 | DA57: =+'MLK2'!Q51 -> 0 | DB57: =+'MLK2'!T51 -> 0 | DC57: 0 | DD57: =+'NILAI SMT 6 (US)'!AO51 -> 0 | DE57: 0 | DF57: 0 | DG57: =DF57/('KRITERIA&MULOK'!$E$20) -> 0 | DH57: 30 | DI57: 7.5 | DJ57: 18 | DK57: 4.5 | DL57: B | DM57: TIDAK LULUS
A58: =+BIODATA!A52 -> 45 | B58: =+BIODATA!B52 -> 0 | C58: =+BIODATA!E52 -> 0 | D58: =+BIODATA!C52 -> 0 | E58: =+BIODATA!D52 -> 0 | F58: =+BIND!H52 -> 0 | G58: =+BIND!K52 -> 0 | H58: =+BIND!N52 -> 0 | I58: =+BIND!Q52 -> 0 | J58: =+BIND!T52 -> 0 | K58: 0 | L58: =+'NILAI SMT 6 (US)'!N52 -> 0 | M58: 0 | N58: 7 | O58: 4.2 | P58: =+'B-ING'!H52 -> 0 | Q58: =+'B-ING'!K52 -> 0 | R58: =+'B-ING'!N52 -> 0 | S58: =+'B-ING'!Q52 -> 0 | T58: =+'B-ING'!T52 -> 0 | U58: 0 | V58: =+'NILAI SMT 6 (US)'!Q52 -> 0 | W58: 0 | X58: 8 | Y58: 4.8 | Z58: =+MAT!H52 -> 0 | AA58: =+MAT!K52 -> 0 | AB58: =+MAT!N52 -> 0 | AC58: =+MAT!Q52 -> 0 | AD58: =+MAT!T52 -> 0 | AE58: 0 | AF58: =+'NILAI SMT 6 (US)'!T52 -> 0 | AG58: 0 | AH58: 9 | AI58: 5.4 | AJ58: =+IPA!H52 -> 0 | AK58: =+IPA!K52 -> 0 | AL58: =+IPA!N52 -> 0 | AM58: =+IPA!Q52 -> 0 | AN58: =+IPA!T52 -> 0 | AO58: 0 | AP58: =+'NILAI SMT 6 (US)'!W52 -> 0 | AQ58: 0 | AR58: 6 | AS58: 3.6 | AT58: =+Agama!H52 -> 0 | AU58: =+Agama!K52 -> 0 | AV58: =+Agama!N52 -> 0 | AW58: =+Agama!Q52 -> 0 | AX58: =+Agama!T52 -> 0 | AY58: 0 | AZ58: =+'NILAI SMT 6 (US)'!H52 -> 0 | BA58: 0 | BB58: =+PPKn!H52 -> 0 | BC58: =+PPKn!K52 -> 0 | BD58: =+PPKn!N52 -> 0 | BE58: =+PPKn!Q52 -> 0 | BF58: =+PPKn!T52 -> 0 | BG58: 0 | BH58: =+'NILAI SMT 6 (US)'!K52 -> 0 | BI58: 0 | BJ58: =+IPS!H52 -> 0 | BK58: =+IPS!K52 -> 0 | BL58: =+IPS!N52 -> 0 | BM58: =+IPS!Q52 -> 0 | BN58: =+IPS!T52 -> 0 | BO58: 0 | BP58: =+'NILAI SMT 6 (US)'!Z52 -> 0 | BQ58: 0 | BR58: =+SENI!H52 -> 0 | BS58: =+SENI!K52 -> 0 | BT58: =+SENI!N52 -> 0 | BU58: =+SENI!Q52 -> 0 | BV58: =+SENI!T52 -> 0 | BW58: 0 | BX58: =+'NILAI SMT 6 (US)'!AC52 -> 0 | BY58: 0 | BZ58: =+PENJAS!H52 -> 0 | CA58: =+PENJAS!K52 -> 0 | CB58: =+PENJAS!N52 -> 0 | CC58: =+PENJAS!Q52 -> 0 | CD58: =+PENJAS!T52 -> 0 | CE58: 0 | CF58: =+'NILAI SMT 6 (US)'!AF52 -> 0 | CG58: 0 | CH58: =+'TIK-KET'!H52 -> 0 | CI58: =+'TIK-KET'!K52 -> 0 | CJ58: =+'TIK-KET'!N52 -> 0 | CK58: =+'TIK-KET'!Q52 -> 0 | CL58: =+'TIK-KET'!T52 -> 0 | CM58: 0 | CN58: =+'NILAI SMT 6 (US)'!AI52 -> 0 | CO58: 0 | CP58: =+'MLK1'!H52 -> 0 | CQ58: =+'MLK1'!K52 -> 0 | CR58: =+'MLK1'!N52 -> 0 | CS58: =+'MLK1'!Q52 -> 0 | CT58: =+'MLK1'!T52 -> 0 | CU58: 0 | CV58: =+'NILAI SMT 6 (US)'!AL52 -> 0 | CW58: 0 | CX58: =+'MLK2'!H52 -> 0 | CY58: =+'MLK2'!K52 -> 0 | CZ58: =+'MLK2'!N52 -> 0 | DA58: =+'MLK2'!Q52 -> 0 | DB58: =+'MLK2'!T52 -> 0 | DC58: 0 | DD58: =+'NILAI SMT 6 (US)'!AO52 -> 0 | DE58: 0 | DF58: 0 | DG58: =DF58/('KRITERIA&MULOK'!$E$20) -> 0 | DH58: 30 | DI58: 7.5 | DJ58: 18 | DK58: 4.5 | DL58: B | DM58: TIDAK LULUS
A59: =+BIODATA!A53 -> 46 | B59: =+BIODATA!B53 -> 0 | C59: =+BIODATA!E53 -> 0 | D59: =+BIODATA!C53 -> 0 | E59: =+BIODATA!D53 -> 0 | F59: =+BIND!H53 -> 0 | G59: =+BIND!K53 -> 0 | H59: =+BIND!N53 -> 0 | I59: =+BIND!Q53 -> 0 | J59: =+BIND!T53 -> 0 | K59: 0 | L59: =+'NILAI SMT 6 (US)'!N53 -> 0 | M59: 0 | N59: 7 | O59: 4.2 | P59: =+'B-ING'!H53 -> 0 | Q59: =+'B-ING'!K53 -> 0 | R59: =+'B-ING'!N53 -> 0 | S59: =+'B-ING'!Q53 -> 0 | T59: =+'B-ING'!T53 -> 0 | U59: 0 | V59: =+'NILAI SMT 6 (US)'!Q53 -> 0 | W59: 0 | X59: 8 | Y59: 4.8 | Z59: =+MAT!H53 -> 0 | AA59: =+MAT!K53 -> 0 | AB59: =+MAT!N53 -> 0 | AC59: =+MAT!Q53 -> 0 | AD59: =+MAT!T53 -> 0 | AE59: 0 | AF59: =+'NILAI SMT 6 (US)'!T53 -> 0 | AG59: 0 | AH59: 9 | AI59: 5.4 | AJ59: =+IPA!H53 -> 0 | AK59: =+IPA!K53 -> 0 | AL59: =+IPA!N53 -> 0 | AM59: =+IPA!Q53 -> 0 | AN59: =+IPA!T53 -> 0 | AO59: 0 | AP59: =+'NILAI SMT 6 (US)'!W53 -> 0 | AQ59: 0 | AR59: 6 | AS59: 3.6 | AT59: =+Agama!H53 -> 0 | AU59: =+Agama!K53 -> 0 | AV59: =+Agama!N53 -> 0 | AW59: =+Agama!Q53 -> 0 | AX59: =+Agama!T53 -> 0 | AY59: 0 | AZ59: =+'NILAI SMT 6 (US)'!H53 -> 0 | BA59: 0 | BB59: =+PPKn!H53 -> 0 | BC59: =+PPKn!K53 -> 0 | BD59: =+PPKn!N53 -> 0 | BE59: =+PPKn!Q53 -> 0 | BF59: =+PPKn!T53 -> 0 | BG59: 0 | BH59: =+'NILAI SMT 6 (US)'!K53 -> 0 | BI59: 0 | BJ59: =+IPS!H53 -> 0 | BK59: =+IPS!K53 -> 0 | BL59: =+IPS!N53 -> 0 | BM59: =+IPS!Q53 -> 0 | BN59: =+IPS!T53 -> 0 | BO59: 0 | BP59: =+'NILAI SMT 6 (US)'!Z53 -> 0 | BQ59: 0 | BR59: =+SENI!H53 -> 0 | BS59: =+SENI!K53 -> 0 | BT59: =+SENI!N53 -> 0 | BU59: =+SENI!Q53 -> 0 | BV59: =+SENI!T53 -> 0 | BW59: 0 | BX59: =+'NILAI SMT 6 (US)'!AC53 -> 0 | BY59: 0 | BZ59: =+PENJAS!H53 -> 0 | CA59: =+PENJAS!K53 -> 0 | CB59: =+PENJAS!N53 -> 0 | CC59: =+PENJAS!Q53 -> 0 | CD59: =+PENJAS!T53 -> 0 | CE59: 0 | CF59: =+'NILAI SMT 6 (US)'!AF53 -> 0 | CG59: 0 | CH59: =+'TIK-KET'!H53 -> 0 | CI59: =+'TIK-KET'!K53 -> 0 | CJ59: =+'TIK-KET'!N53 -> 0 | CK59: =+'TIK-KET'!Q53 -> 0 | CL59: =+'TIK-KET'!T53 -> 0 | CM59: 0 | CN59: =+'NILAI SMT 6 (US)'!AI53 -> 0 | CO59: 0 | CP59: =+'MLK1'!H53 -> 0 | CQ59: =+'MLK1'!K53 -> 0 | CR59: =+'MLK1'!N53 -> 0 | CS59: =+'MLK1'!Q53 -> 0 | CT59: =+'MLK1'!T53 -> 0 | CU59: 0 | CV59: =+'NILAI SMT 6 (US)'!AL53 -> 0 | CW59: 0 | CX59: =+'MLK2'!H53 -> 0 | CY59: =+'MLK2'!K53 -> 0 | CZ59: =+'MLK2'!N53 -> 0 | DA59: =+'MLK2'!Q53 -> 0 | DB59: =+'MLK2'!T53 -> 0 | DC59: 0 | DD59: =+'NILAI SMT 6 (US)'!AO53 -> 0 | DE59: 0 | DF59: 0 | DG59: =DF59/('KRITERIA&MULOK'!$E$20) -> 0 | DH59: 30 | DI59: 7.5 | DJ59: 18 | DK59: 4.5 | DL59: B | DM59: TIDAK LULUS
A60: =+BIODATA!A54 -> 47 | B60: =+BIODATA!B54 -> 0 | C60: =+BIODATA!E54 -> 0 | D60: =+BIODATA!C54 -> 0 | E60: =+BIODATA!D54 -> 0 | F60: =+BIND!H54 -> 0 | G60: =+BIND!K54 -> 0 | H60: =+BIND!N54 -> 0 | I60: =+BIND!Q54 -> 0 | J60: =+BIND!T54 -> 0 | K60: 0 | L60: =+'NILAI SMT 6 (US)'!N54 -> 0 | M60: 0 | N60: 7 | O60: 4.2 | P60: =+'B-ING'!H54 -> 0 | Q60: =+'B-ING'!K54 -> 0 | R60: =+'B-ING'!N54 -> 0 | S60: =+'B-ING'!Q54 -> 0 | T60: =+'B-ING'!T54 -> 0 | U60: 0 | V60: =+'NILAI SMT 6 (US)'!Q54 -> 0 | W60: 0 | X60: 8 | Y60: 4.8 | Z60: =+MAT!H54 -> 0 | AA60: =+MAT!K54 -> 0 | AB60: =+MAT!N54 -> 0 | AC60: =+MAT!Q54 -> 0 | AD60: =+MAT!T54 -> 0 | AE60: 0 | AF60: =+'NILAI SMT 6 (US)'!T54 -> 0 | AG60: 0 | AH60: 9 | AI60: 5.4 | AJ60: =+IPA!H54 -> 0 | AK60: =+IPA!K54 -> 0 | AL60: =+IPA!N54 -> 0 | AM60: =+IPA!Q54 -> 0 | AN60: =+IPA!T54 -> 0 | AO60: 0 | AP60: =+'NILAI SMT 6 (US)'!W54 -> 0 | AQ60: 0 | AR60: 6 | AS60: 3.6 | AT60: =+Agama!H54 -> 0 | AU60: =+Agama!K54 -> 0 | AV60: =+Agama!N54 -> 0 | AW60: =+Agama!Q54 -> 0 | AX60: =+Agama!T54 -> 0 | AY60: 0 | AZ60: =+'NILAI SMT 6 (US)'!H54 -> 0 | BA60: 0 | BB60: =+PPKn!H54 -> 0 | BC60: =+PPKn!K54 -> 0 | BD60: =+PPKn!N54 -> 0 | BE60: =+PPKn!Q54 -> 0 | BF60: =+PPKn!T54 -> 0 | BG60: 0 | BH60: =+'NILAI SMT 6 (US)'!K54 -> 0 | BI60: 0 | BJ60: =+IPS!H54 -> 0 | BK60: =+IPS!K54 -> 0 | BL60: =+IPS!N54 -> 0 | BM60: =+IPS!Q54 -> 0 | BN60: =+IPS!T54 -> 0 | BO60: 0 | BP60: =+'NILAI SMT 6 (US)'!Z54 -> 0 | BQ60: 0 | BR60: =+SENI!H54 -> 0 | BS60: =+SENI!K54 -> 0 | BT60: =+SENI!N54 -> 0 | BU60: =+SENI!Q54 -> 0 | BV60: =+SENI!T54 -> 0 | BW60: 0 | BX60: =+'NILAI SMT 6 (US)'!AC54 -> 0 | BY60: 0 | BZ60: =+PENJAS!H54 -> 0 | CA60: =+PENJAS!K54 -> 0 | CB60: =+PENJAS!N54 -> 0 | CC60: =+PENJAS!Q54 -> 0 | CD60: =+PENJAS!T54 -> 0 | CE60: 0 | CF60: =+'NILAI SMT 6 (US)'!AF54 -> 0 | CG60: 0 | CH60: =+'TIK-KET'!H54 -> 0 | CI60: =+'TIK-KET'!K54 -> 0 | CJ60: =+'TIK-KET'!N54 -> 0 | CK60: =+'TIK-KET'!Q54 -> 0 | CL60: =+'TIK-KET'!T54 -> 0 | CM60: 0 | CN60: =+'NILAI SMT 6 (US)'!AI54 -> 0 | CO60: 0 | CP60: =+'MLK1'!H54 -> 0 | CQ60: =+'MLK1'!K54 -> 0 | CR60: =+'MLK1'!N54 -> 0 | CS60: =+'MLK1'!Q54 -> 0 | CT60: =+'MLK1'!T54 -> 0 | CU60: 0 | CV60: =+'NILAI SMT 6 (US)'!AL54 -> 0 | CW60: 0 | CX60: =+'MLK2'!H54 -> 0 | CY60: =+'MLK2'!K54 -> 0 | CZ60: =+'MLK2'!N54 -> 0 | DA60: =+'MLK2'!Q54 -> 0 | DB60: =+'MLK2'!T54 -> 0 | DC60: 0 | DD60: =+'NILAI SMT 6 (US)'!AO54 -> 0 | DE60: 0 | DF60: 0 | DG60: =DF60/('KRITERIA&MULOK'!$E$20) -> 0 | DH60: 30 | DI60: 7.5 | DJ60: 18 | DK60: 4.5 | DL60: B | DM60: TIDAK LULUS
A61: =+BIODATA!A55 -> 48 | B61: =+BIODATA!B55 -> 0 | C61: =+BIODATA!E55 -> 0 | D61: =+BIODATA!C55 -> 0 | E61: =+BIODATA!D55 -> 0 | F61: =+BIND!H55 -> 0 | G61: =+BIND!K55 -> 0 | H61: =+BIND!N55 -> 0 | I61: =+BIND!Q55 -> 0 | J61: =+BIND!T55 -> 0 | K61: 0 | L61: =+'NILAI SMT 6 (US)'!N55 -> 0 | M61: 0 | N61: 7 | O61: 4.2 | P61: =+'B-ING'!H55 -> 0 | Q61: =+'B-ING'!K55 -> 0 | R61: =+'B-ING'!N55 -> 0 | S61: =+'B-ING'!Q55 -> 0 | T61: =+'B-ING'!T55 -> 0 | U61: 0 | V61: =+'NILAI SMT 6 (US)'!Q55 -> 0 | W61: 0 | X61: 8 | Y61: 4.8 | Z61: =+MAT!H55 -> 0 | AA61: =+MAT!K55 -> 0 | AB61: =+MAT!N55 -> 0 | AC61: =+MAT!Q55 -> 0 | AD61: =+MAT!T55 -> 0 | AE61: 0 | AF61: =+'NILAI SMT 6 (US)'!T55 -> 0 | AG61: 0 | AH61: 9 | AI61: 5.4 | AJ61: =+IPA!H55 -> 0 | AK61: =+IPA!K55 -> 0 | AL61: =+IPA!N55 -> 0 | AM61: =+IPA!Q55 -> 0 | AN61: =+IPA!T55 -> 0 | AO61: 0 | AP61: =+'NILAI SMT 6 (US)'!W55 -> 0 | AQ61: 0 | AR61: 6 | AS61: 3.6 | AT61: =+Agama!H55 -> 0 | AU61: =+Agama!K55 -> 0 | AV61: =+Agama!N55 -> 0 | AW61: =+Agama!Q55 -> 0 | AX61: =+Agama!T55 -> 0 | AY61: 0 | AZ61: =+'NILAI SMT 6 (US)'!H55 -> 0 | BA61: 0 | BB61: =+PPKn!H55 -> 0 | BC61: =+PPKn!K55 -> 0 | BD61: =+PPKn!N55 -> 0 | BE61: =+PPKn!Q55 -> 0 | BF61: =+PPKn!T55 -> 0 | BG61: 0 | BH61: =+'NILAI SMT 6 (US)'!K55 -> 0 | BI61: 0 | BJ61: =+IPS!H55 -> 0 | BK61: =+IPS!K55 -> 0 | BL61: =+IPS!N55 -> 0 | BM61: =+IPS!Q55 -> 0 | BN61: =+IPS!T55 -> 0 | BO61: 0 | BP61: =+'NILAI SMT 6 (US)'!Z55 -> 0 | BQ61: 0 | BR61: =+SENI!H55 -> 0 | BS61: =+SENI!K55 -> 0 | BT61: =+SENI!N55 -> 0 | BU61: =+SENI!Q55 -> 0 | BV61: =+SENI!T55 -> 0 | BW61: 0 | BX61: =+'NILAI SMT 6 (US)'!AC55 -> 0 | BY61: 0 | BZ61: =+PENJAS!H55 -> 0 | CA61: =+PENJAS!K55 -> 0 | CB61: =+PENJAS!N55 -> 0 | CC61: =+PENJAS!Q55 -> 0 | CD61: =+PENJAS!T55 -> 0 | CE61: 0 | CF61: =+'NILAI SMT 6 (US)'!AF55 -> 0 | CG61: 0 | CH61: =+'TIK-KET'!H55 -> 0 | CI61: =+'TIK-KET'!K55 -> 0 | CJ61: =+'TIK-KET'!N55 -> 0 | CK61: =+'TIK-KET'!Q55 -> 0 | CL61: =+'TIK-KET'!T55 -> 0 | CM61: 0 | CN61: =+'NILAI SMT 6 (US)'!AI55 -> 0 | CO61: 0 | CP61: =+'MLK1'!H55 -> 0 | CQ61: =+'MLK1'!K55 -> 0 | CR61: =+'MLK1'!N55 -> 0 | CS61: =+'MLK1'!Q55 -> 0 | CT61: =+'MLK1'!T55 -> 0 | CU61: 0 | CV61: =+'NILAI SMT 6 (US)'!AL55 -> 0 | CW61: 0 | CX61: =+'MLK2'!H55 -> 0 | CY61: =+'MLK2'!K55 -> 0 | CZ61: =+'MLK2'!N55 -> 0 | DA61: =+'MLK2'!Q55 -> 0 | DB61: =+'MLK2'!T55 -> 0 | DC61: 0 | DD61: =+'NILAI SMT 6 (US)'!AO55 -> 0 | DE61: 0 | DF61: 0 | DG61: =DF61/('KRITERIA&MULOK'!$E$20) -> 0 | DH61: 30 | DI61: 7.5 | DJ61: 18 | DK61: 4.5 | DL61: B | DM61: TIDAK LULUS
A62: =+BIODATA!A56 -> 49 | B62: =+BIODATA!B56 -> 0 | C62: =+BIODATA!E56 -> 0 | D62: =+BIODATA!C56 -> 0 | E62: =+BIODATA!D56 -> 0 | F62: =+BIND!H56 -> 0 | G62: =+BIND!K56 -> 0 | H62: =+BIND!N56 -> 0 | I62: =+BIND!Q56 -> 0 | J62: =+BIND!T56 -> 0 | K62: 0 | L62: =+'NILAI SMT 6 (US)'!N56 -> 0 | M62: 0 | N62: 7 | O62: 4.2 | P62: =+'B-ING'!H56 -> 0 | Q62: =+'B-ING'!K56 -> 0 | R62: =+'B-ING'!N56 -> 0 | S62: =+'B-ING'!Q56 -> 0 | T62: =+'B-ING'!T56 -> 0 | U62: 0 | V62: =+'NILAI SMT 6 (US)'!Q56 -> 0 | W62: 0 | X62: 8 | Y62: 4.8 | Z62: =+MAT!H56 -> 0 | AA62: =+MAT!K56 -> 0 | AB62: =+MAT!N56 -> 0 | AC62: =+MAT!Q56 -> 0 | AD62: =+MAT!T56 -> 0 | AE62: 0 | AF62: =+'NILAI SMT 6 (US)'!T56 -> 0 | AG62: 0 | AH62: 9 | AI62: 5.4 | AJ62: =+IPA!H56 -> 0 | AK62: =+IPA!K56 -> 0 | AL62: =+IPA!N56 -> 0 | AM62: =+IPA!Q56 -> 0 | AN62: =+IPA!T56 -> 0 | AO62: 0 | AP62: =+'NILAI SMT 6 (US)'!W56 -> 0 | AQ62: 0 | AR62: 6 | AS62: 3.6 | AT62: =+Agama!H56 -> 0 | AU62: =+Agama!K56 -> 0 | AV62: =+Agama!N56 -> 0 | AW62: =+Agama!Q56 -> 0 | AX62: =+Agama!T56 -> 0 | AY62: 0 | AZ62: =+'NILAI SMT 6 (US)'!H56 -> 0 | BA62: 0 | BB62: =+PPKn!H56 -> 0 | BC62: =+PPKn!K56 -> 0 | BD62: =+PPKn!N56 -> 0 | BE62: =+PPKn!Q56 -> 0 | BF62: =+PPKn!T56 -> 0 | BG62: 0 | BH62: =+'NILAI SMT 6 (US)'!K56 -> 0 | BI62: 0 | BJ62: =+IPS!H56 -> 0 | BK62: =+IPS!K56 -> 0 | BL62: =+IPS!N56 -> 0 | BM62: =+IPS!Q56 -> 0 | BN62: =+IPS!T56 -> 0 | BO62: 0 | BP62: =+'NILAI SMT 6 (US)'!Z56 -> 0 | BQ62: 0 | BR62: =+SENI!H56 -> 0 | BS62: =+SENI!K56 -> 0 | BT62: =+SENI!N56 -> 0 | BU62: =+SENI!Q56 -> 0 | BV62: =+SENI!T56 -> 0 | BW62: 0 | BX62: =+'NILAI SMT 6 (US)'!AC56 -> 0 | BY62: 0 | BZ62: =+PENJAS!H56 -> 0 | CA62: =+PENJAS!K56 -> 0 | CB62: =+PENJAS!N56 -> 0 | CC62: =+PENJAS!Q56 -> 0 | CD62: =+PENJAS!T56 -> 0 | CE62: 0 | CF62: =+'NILAI SMT 6 (US)'!AF56 -> 0 | CG62: 0 | CH62: =+'TIK-KET'!H56 -> 0 | CI62: =+'TIK-KET'!K56 -> 0 | CJ62: =+'TIK-KET'!N56 -> 0 | CK62: =+'TIK-KET'!Q56 -> 0 | CL62: =+'TIK-KET'!T56 -> 0 | CM62: 0 | CN62: =+'NILAI SMT 6 (US)'!AI56 -> 0 | CO62: 0 | CP62: =+'MLK1'!H56 -> 0 | CQ62: =+'MLK1'!K56 -> 0 | CR62: =+'MLK1'!N56 -> 0 | CS62: =+'MLK1'!Q56 -> 0 | CT62: =+'MLK1'!T56 -> 0 | CU62: 0 | CV62: =+'NILAI SMT 6 (US)'!AL56 -> 0 | CW62: 0 | CX62: =+'MLK2'!H56 -> 0 | CY62: =+'MLK2'!K56 -> 0 | CZ62: =+'MLK2'!N56 -> 0 | DA62: =+'MLK2'!Q56 -> 0 | DB62: =+'MLK2'!T56 -> 0 | DC62: 0 | DD62: =+'NILAI SMT 6 (US)'!AO56 -> 0 | DE62: 0 | DF62: 0 | DG62: =DF62/('KRITERIA&MULOK'!$E$20) -> 0 | DH62: 30 | DI62: 7.5 | DJ62: 18 | DK62: 4.5 | DL62: B | DM62: TIDAK LULUS
A63: =+BIODATA!A57 -> 50 | B63: =+BIODATA!B57 -> 0 | C63: =+BIODATA!E57 -> 0 | D63: =+BIODATA!C57 -> 0 | E63: =+BIODATA!D57 -> 0 | F63: =+BIND!H57 -> 0 | G63: =+BIND!K57 -> 0 | H63: =+BIND!N57 -> 0 | I63: =+BIND!Q57 -> 0 | J63: =+BIND!T57 -> 0 | K63: 0 | L63: =+'NILAI SMT 6 (US)'!N57 -> 0 | M63: 0 | N63: 7 | O63: 4.2 | P63: =+'B-ING'!H57 -> 0 | Q63: =+'B-ING'!K57 -> 0 | R63: =+'B-ING'!N57 -> 0 | S63: =+'B-ING'!Q57 -> 0 | T63: =+'B-ING'!T57 -> 0 | U63: 0 | V63: =+'NILAI SMT 6 (US)'!Q57 -> 0 | W63: 0 | X63: 8 | Y63: 4.8 | Z63: =+MAT!H57 -> 0 | AA63: =+MAT!K57 -> 0 | AB63: =+MAT!N57 -> 0 | AC63: =+MAT!Q57 -> 0 | AD63: =+MAT!T57 -> 0 | AE63: 0 | AF63: =+'NILAI SMT 6 (US)'!T57 -> 0 | AG63: 0 | AH63: 9 | AI63: 5.4 | AJ63: =+IPA!H57 -> 0 | AK63: =+IPA!K57 -> 0 | AL63: =+IPA!N57 -> 0 | AM63: =+IPA!Q57 -> 0 | AN63: =+IPA!T57 -> 0 | AO63: 0 | AP63: =+'NILAI SMT 6 (US)'!W57 -> 0 | AQ63: 0 | AR63: 6 | AS63: 3.6 | AT63: =+Agama!H57 -> 0 | AU63: =+Agama!K57 -> 0 | AV63: =+Agama!N57 -> 0 | AW63: =+Agama!Q57 -> 0 | AX63: =+Agama!T57 -> 0 | AY63: 0 | AZ63: =+'NILAI SMT 6 (US)'!H57 -> 0 | BA63: 0 | BB63: =+PPKn!H57 -> 0 | BC63: =+PPKn!K57 -> 0 | BD63: =+PPKn!N57 -> 0 | BE63: =+PPKn!Q57 -> 0 | BF63: =+PPKn!T57 -> 0 | BG63: 0 | BH63: =+'NILAI SMT 6 (US)'!K57 -> 0 | BI63: 0 | BJ63: =+IPS!H57 -> 0 | BK63: =+IPS!K57 -> 0 | BL63: =+IPS!N57 -> 0 | BM63: =+IPS!Q57 -> 0 | BN63: =+IPS!T57 -> 0 | BO63: 0 | BP63: =+'NILAI SMT 6 (US)'!Z57 -> 0 | BQ63: 0 | BR63: =+SENI!H57 -> 0 | BS63: =+SENI!K57 -> 0 | BT63: =+SENI!N57 -> 0 | BU63: =+SENI!Q57 -> 0 | BV63: =+SENI!T57 -> 0 | BW63: 0 | BX63: =+'NILAI SMT 6 (US)'!AC57 -> 0 | BY63: 0 | BZ63: =+PENJAS!H57 -> 0 | CA63: =+PENJAS!K57 -> 0 | CB63: =+PENJAS!N57 -> 0 | CC63: =+PENJAS!Q57 -> 0 | CD63: =+PENJAS!T57 -> 0 | CE63: 0 | CF63: =+'NILAI SMT 6 (US)'!AF57 -> 0 | CG63: 0 | CH63: =+'TIK-KET'!H57 -> 0 | CI63: =+'TIK-KET'!K57 -> 0 | CJ63: =+'TIK-KET'!N57 -> 0 | CK63: =+'TIK-KET'!Q57 -> 0 | CL63: =+'TIK-KET'!T57 -> 0 | CM63: 0 | CN63: =+'NILAI SMT 6 (US)'!AI57 -> 0 | CO63: 0 | CP63: =+'MLK1'!H57 -> 0 | CQ63: =+'MLK1'!K57 -> 0 | CR63: =+'MLK1'!N57 -> 0 | CS63: =+'MLK1'!Q57 -> 0 | CT63: =+'MLK1'!T57 -> 0 | CU63: 0 | CV63: =+'NILAI SMT 6 (US)'!AL57 -> 0 | CW63: 0 | CX63: =+'MLK2'!H57 -> 0 | CY63: =+'MLK2'!K57 -> 0 | CZ63: =+'MLK2'!N57 -> 0 | DA63: =+'MLK2'!Q57 -> 0 | DB63: =+'MLK2'!T57 -> 0 | DC63: 0 | DD63: =+'NILAI SMT 6 (US)'!AO57 -> 0 | DE63: 0 | DF63: 0 | DG63: =DF63/('KRITERIA&MULOK'!$E$20) -> 0 | DH63: 30 | DI63: 7.5 | DJ63: 18 | DK63: 4.5 | DL63: B | DM63: TIDAK LULUS
A64: =+BIODATA!A58 -> 51 | B64: =+BIODATA!B58 -> 0 | C64: =+BIODATA!E58 -> 0 | D64: =+BIODATA!C58 -> 0 | E64: =+BIODATA!D58 -> 0 | F64: =+BIND!H58 -> 0 | G64: =+BIND!K58 -> 0 | H64: =+BIND!N58 -> 0 | I64: =+BIND!Q58 -> 0 | J64: =+BIND!T58 -> 0 | K64: 0 | L64: =+'NILAI SMT 6 (US)'!N58 -> 0 | M64: 0 | N64: 7 | O64: 4.2 | P64: =+'B-ING'!H58 -> 0 | Q64: =+'B-ING'!K58 -> 0 | R64: =+'B-ING'!N58 -> 0 | S64: =+'B-ING'!Q58 -> 0 | T64: =+'B-ING'!T58 -> 0 | U64: 0 | V64: =+'NILAI SMT 6 (US)'!Q58 -> 0 | W64: 0 | X64: 8 | Y64: 4.8 | Z64: =+MAT!H58 -> 0 | AA64: =+MAT!K58 -> 0 | AB64: =+MAT!N58 -> 0 | AC64: =+MAT!Q58 -> 0 | AD64: =+MAT!T58 -> 0 | AE64: 0 | AF64: =+'NILAI SMT 6 (US)'!T58 -> 0 | AG64: 0 | AH64: 9 | AI64: 5.4 | AJ64: =+IPA!H58 -> 0 | AK64: =+IPA!K58 -> 0 | AL64: =+IPA!N58 -> 0 | AM64: =+IPA!Q58 -> 0 | AN64: =+IPA!T58 -> 0 | AO64: 0 | AP64: =+'NILAI SMT 6 (US)'!W58 -> 0 | AQ64: 0 | AR64: 6 | AS64: 3.6 | AT64: =+Agama!H58 -> 0 | AU64: =+Agama!K58 -> 0 | AV64: =+Agama!N58 -> 0 | AW64: =+Agama!Q58 -> 0 | AX64: =+Agama!T58 -> 0 | AY64: 0 | AZ64: =+'NILAI SMT 6 (US)'!H58 -> 0 | BA64: 0 | BB64: =+PPKn!H58 -> 0 | BC64: =+PPKn!K58 -> 0 | BD64: =+PPKn!N58 -> 0 | BE64: =+PPKn!Q58 -> 0 | BF64: =+PPKn!T58 -> 0 | BG64: 0 | BH64: =+'NILAI SMT 6 (US)'!K58 -> 0 | BI64: 0 | BJ64: =+IPS!H58 -> 0 | BK64: =+IPS!K58 -> 0 | BL64: =+IPS!N58 -> 0 | BM64: =+IPS!Q58 -> 0 | BN64: =+IPS!T58 -> 0 | BO64: 0 | BP64: =+'NILAI SMT 6 (US)'!Z58 -> 0 | BQ64: 0 | BR64: =+SENI!H58 -> 0 | BS64: =+SENI!K58 -> 0 | BT64: =+SENI!N58 -> 0 | BU64: =+SENI!Q58 -> 0 | BV64: =+SENI!T58 -> 0 | BW64: 0 | BX64: =+'NILAI SMT 6 (US)'!AC58 -> 0 | BY64: 0 | BZ64: =+PENJAS!H58 -> 0 | CA64: =+PENJAS!K58 -> 0 | CB64: =+PENJAS!N58 -> 0 | CC64: =+PENJAS!Q58 -> 0 | CD64: =+PENJAS!T58 -> 0 | CE64: 0 | CF64: =+'NILAI SMT 6 (US)'!AF58 -> 0 | CG64: 0 | CH64: =+'TIK-KET'!H58 -> 0 | CI64: =+'TIK-KET'!K58 -> 0 | CJ64: =+'TIK-KET'!N58 -> 0 | CK64: =+'TIK-KET'!Q58 -> 0 | CL64: =+'TIK-KET'!T58 -> 0 | CM64: 0 | CN64: =+'NILAI SMT 6 (US)'!AI58 -> 0 | CO64: 0 | CP64: =+'MLK1'!H58 -> 0 | CQ64: =+'MLK1'!K58 -> 0 | CR64: =+'MLK1'!N58 -> 0 | CS64: =+'MLK1'!Q58 -> 0 | CT64: =+'MLK1'!T58 -> 0 | CU64: 0 | CV64: =+'NILAI SMT 6 (US)'!AL58 -> 0 | CW64: 0 | CX64: =+'MLK2'!H58 -> 0 | CY64: =+'MLK2'!K58 -> 0 | CZ64: =+'MLK2'!N58 -> 0 | DA64: =+'MLK2'!Q58 -> 0 | DB64: =+'MLK2'!T58 -> 0 | DC64: 0 | DD64: =+'NILAI SMT 6 (US)'!AO58 -> 0 | DE64: 0 | DF64: 0 | DG64: =DF64/('KRITERIA&MULOK'!$E$20) -> 0 | DH64: 30 | DI64: 7.5 | DJ64: 18 | DK64: 4.5 | DL64: B | DM64: TIDAK LULUS
A65: =+BIODATA!A59 -> 52 | B65: =+BIODATA!B59 -> 0 | C65: =+BIODATA!E59 -> 0 | D65: =+BIODATA!C59 -> 0 | E65: =+BIODATA!D59 -> 0 | F65: =+BIND!H59 -> 0 | G65: =+BIND!K59 -> 0 | H65: =+BIND!N59 -> 0 | I65: =+BIND!Q59 -> 0 | J65: =+BIND!T59 -> 0 | K65: 0 | L65: =+'NILAI SMT 6 (US)'!N59 -> 0 | M65: 0 | N65: 7 | O65: 4.2 | P65: =+'B-ING'!H59 -> 0 | Q65: =+'B-ING'!K59 -> 0 | R65: =+'B-ING'!N59 -> 0 | S65: =+'B-ING'!Q59 -> 0 | T65: =+'B-ING'!T59 -> 0 | U65: 0 | V65: =+'NILAI SMT 6 (US)'!Q59 -> 0 | W65: 0 | X65: 8 | Y65: 4.8 | Z65: =+MAT!H59 -> 0 | AA65: =+MAT!K59 -> 0 | AB65: =+MAT!N59 -> 0 | AC65: =+MAT!Q59 -> 0 | AD65: =+MAT!T59 -> 0 | AE65: 0 | AF65: =+'NILAI SMT 6 (US)'!T59 -> 0 | AG65: 0 | AH65: 9 | AI65: 5.4 | AJ65: =+IPA!H59 -> 0 | AK65: =+IPA!K59 -> 0 | AL65: =+IPA!N59 -> 0 | AM65: =+IPA!Q59 -> 0 | AN65: =+IPA!T59 -> 0 | AO65: 0 | AP65: =+'NILAI SMT 6 (US)'!W59 -> 0 | AQ65: 0 | AR65: 6 | AS65: 3.6 | AT65: =+Agama!H59 -> 0 | AU65: =+Agama!K59 -> 0 | AV65: =+Agama!N59 -> 0 | AW65: =+Agama!Q59 -> 0 | AX65: =+Agama!T59 -> 0 | AY65: 0 | AZ65: =+'NILAI SMT 6 (US)'!H59 -> 0 | BA65: 0 | BB65: =+PPKn!H59 -> 0 | BC65: =+PPKn!K59 -> 0 | BD65: =+PPKn!N59 -> 0 | BE65: =+PPKn!Q59 -> 0 | BF65: =+PPKn!T59 -> 0 | BG65: 0 | BH65: =+'NILAI SMT 6 (US)'!K59 -> 0 | BI65: 0 | BJ65: =+IPS!H59 -> 0 | BK65: =+IPS!K59 -> 0 | BL65: =+IPS!N59 -> 0 | BM65: =+IPS!Q59 -> 0 | BN65: =+IPS!T59 -> 0 | BO65: 0 | BP65: =+'NILAI SMT 6 (US)'!Z59 -> 0 | BQ65: 0 | BR65: =+SENI!H59 -> 0 | BS65: =+SENI!K59 -> 0 | BT65: =+SENI!N59 -> 0 | BU65: =+SENI!Q59 -> 0 | BV65: =+SENI!T59 -> 0 | BW65: 0 | BX65: =+'NILAI SMT 6 (US)'!AC59 -> 0 | BY65: 0 | BZ65: =+PENJAS!H59 -> 0 | CA65: =+PENJAS!K59 -> 0 | CB65: =+PENJAS!N59 -> 0 | CC65: =+PENJAS!Q59 -> 0 | CD65: =+PENJAS!T59 -> 0 | CE65: 0 | CF65: =+'NILAI SMT 6 (US)'!AF59 -> 0 | CG65: 0 | CH65: =+'TIK-KET'!H59 -> 0 | CI65: =+'TIK-KET'!K59 -> 0 | CJ65: =+'TIK-KET'!N59 -> 0 | CK65: =+'TIK-KET'!Q59 -> 0 | CL65: =+'TIK-KET'!T59 -> 0 | CM65: 0 | CN65: =+'NILAI SMT 6 (US)'!AI59 -> 0 | CO65: 0 | CP65: =+'MLK1'!H59 -> 0 | CQ65: =+'MLK1'!K59 -> 0 | CR65: =+'MLK1'!N59 -> 0 | CS65: =+'MLK1'!Q59 -> 0 | CT65: =+'MLK1'!T59 -> 0 | CU65: 0 | CV65: =+'NILAI SMT 6 (US)'!AL59 -> 0 | CW65: 0 | CX65: =+'MLK2'!H59 -> 0 | CY65: =+'MLK2'!K59 -> 0 | CZ65: =+'MLK2'!N59 -> 0 | DA65: =+'MLK2'!Q59 -> 0 | DB65: =+'MLK2'!T59 -> 0 | DC65: 0 | DD65: =+'NILAI SMT 6 (US)'!AO59 -> 0 | DE65: 0 | DF65: 0 | DG65: =DF65/('KRITERIA&MULOK'!$E$20) -> 0 | DH65: 30 | DI65: 7.5 | DJ65: 18 | DK65: 4.5 | DL65: B | DM65: TIDAK LULUS
A66: =+BIODATA!A60 -> 53 | B66: =+BIODATA!B60 -> 0 | C66: =+BIODATA!E60 -> 0 | D66: =+BIODATA!C60 -> 0 | E66: =+BIODATA!D60 -> 0 | F66: =+BIND!H60 -> 0 | G66: =+BIND!K60 -> 0 | H66: =+BIND!N60 -> 0 | I66: =+BIND!Q60 -> 0 | J66: =+BIND!T60 -> 0 | K66: 0 | L66: =+'NILAI SMT 6 (US)'!N60 -> 0 | M66: 0 | N66: 7 | O66: 4.2 | P66: =+'B-ING'!H60 -> 0 | Q66: =+'B-ING'!K60 -> 0 | R66: =+'B-ING'!N60 -> 0 | S66: =+'B-ING'!Q60 -> 0 | T66: =+'B-ING'!T60 -> 0 | U66: 0 | V66: =+'NILAI SMT 6 (US)'!Q60 -> 0 | W66: 0 | X66: 8 | Y66: 4.8 | Z66: =+MAT!H60 -> 0 | AA66: =+MAT!K60 -> 0 | AB66: =+MAT!N60 -> 0 | AC66: =+MAT!Q60 -> 0 | AD66: =+MAT!T60 -> 0 | AE66: 0 | AF66: =+'NILAI SMT 6 (US)'!T60 -> 0 | AG66: 0 | AH66: 9 | AI66: 5.4 | AJ66: =+IPA!H60 -> 0 | AK66: =+IPA!K60 -> 0 | AL66: =+IPA!N60 -> 0 | AM66: =+IPA!Q60 -> 0 | AN66: =+IPA!T60 -> 0 | AO66: 0 | AP66: =+'NILAI SMT 6 (US)'!W60 -> 0 | AQ66: 0 | AR66: 6 | AS66: 3.6 | AT66: =+Agama!H60 -> 0 | AU66: =+Agama!K60 -> 0 | AV66: =+Agama!N60 -> 0 | AW66: =+Agama!Q60 -> 0 | AX66: =+Agama!T60 -> 0 | AY66: 0 | AZ66: =+'NILAI SMT 6 (US)'!H60 -> 0 | BA66: 0 | BB66: =+PPKn!H60 -> 0 | BC66: =+PPKn!K60 -> 0 | BD66: =+PPKn!N60 -> 0 | BE66: =+PPKn!Q60 -> 0 | BF66: =+PPKn!T60 -> 0 | BG66: 0 | BH66: =+'NILAI SMT 6 (US)'!K60 -> 0 | BI66: 0 | BJ66: =+IPS!H60 -> 0 | BK66: =+IPS!K60 -> 0 | BL66: =+IPS!N60 -> 0 | BM66: =+IPS!Q60 -> 0 | BN66: =+IPS!T60 -> 0 | BO66: 0 | BP66: =+'NILAI SMT 6 (US)'!Z60 -> 0 | BQ66: 0 | BR66: =+SENI!H60 -> 0 | BS66: =+SENI!K60 -> 0 | BT66: =+SENI!N60 -> 0 | BU66: =+SENI!Q60 -> 0 | BV66: =+SENI!T60 -> 0 | BW66: 0 | BX66: =+'NILAI SMT 6 (US)'!AC60 -> 0 | BY66: 0 | BZ66: =+PENJAS!H60 -> 0 | CA66: =+PENJAS!K60 -> 0 | CB66: =+PENJAS!N60 -> 0 | CC66: =+PENJAS!Q60 -> 0 | CD66: =+PENJAS!T60 -> 0 | CE66: 0 | CF66: =+'NILAI SMT 6 (US)'!AF60 -> 0 | CG66: 0 | CH66: =+'TIK-KET'!H60 -> 0 | CI66: =+'TIK-KET'!K60 -> 0 | CJ66: =+'TIK-KET'!N60 -> 0 | CK66: =+'TIK-KET'!Q60 -> 0 | CL66: =+'TIK-KET'!T60 -> 0 | CM66: 0 | CN66: =+'NILAI SMT 6 (US)'!AI60 -> 0 | CO66: 0 | CP66: =+'MLK1'!H60 -> 0 | CQ66: =+'MLK1'!K60 -> 0 | CR66: =+'MLK1'!N60 -> 0 | CS66: =+'MLK1'!Q60 -> 0 | CT66: =+'MLK1'!T60 -> 0 | CU66: 0 | CV66: =+'NILAI SMT 6 (US)'!AL60 -> 0 | CW66: 0 | CX66: =+'MLK2'!H60 -> 0 | CY66: =+'MLK2'!K60 -> 0 | CZ66: =+'MLK2'!N60 -> 0 | DA66: =+'MLK2'!Q60 -> 0 | DB66: =+'MLK2'!T60 -> 0 | DC66: 0 | DD66: =+'NILAI SMT 6 (US)'!AO60 -> 0 | DE66: 0 | DF66: 0 | DG66: =DF66/('KRITERIA&MULOK'!$E$20) -> 0 | DH66: 30 | DI66: 7.5 | DJ66: 18 | DK66: 4.5 | DL66: B | DM66: TIDAK LULUS
A67: =+BIODATA!A61 -> 54 | B67: =+BIODATA!B61 -> 0 | C67: =+BIODATA!E61 -> 0 | D67: =+BIODATA!C61 -> 0 | E67: =+BIODATA!D61 -> 0 | F67: =+BIND!H61 -> 0 | G67: =+BIND!K61 -> 0 | H67: =+BIND!N61 -> 0 | I67: =+BIND!Q61 -> 0 | J67: =+BIND!T61 -> 0 | K67: 0 | L67: =+'NILAI SMT 6 (US)'!N61 -> 0 | M67: 0 | N67: 7 | O67: 4.2 | P67: =+'B-ING'!H61 -> 0 | Q67: =+'B-ING'!K61 -> 0 | R67: =+'B-ING'!N61 -> 0 | S67: =+'B-ING'!Q61 -> 0 | T67: =+'B-ING'!T61 -> 0 | U67: 0 | V67: =+'NILAI SMT 6 (US)'!Q61 -> 0 | W67: 0 | X67: 8 | Y67: 4.8 | Z67: =+MAT!H61 -> 0 | AA67: =+MAT!K61 -> 0 | AB67: =+MAT!N61 -> 0 | AC67: =+MAT!Q61 -> 0 | AD67: =+MAT!T61 -> 0 | AE67: 0 | AF67: =+'NILAI SMT 6 (US)'!T61 -> 0 | AG67: 0 | AH67: 9 | AI67: 5.4 | AJ67: =+IPA!H61 -> 0 | AK67: =+IPA!K61 -> 0 | AL67: =+IPA!N61 -> 0 | AM67: =+IPA!Q61 -> 0 | AN67: =+IPA!T61 -> 0 | AO67: 0 | AP67: =+'NILAI SMT 6 (US)'!W61 -> 0 | AQ67: 0 | AR67: 6 | AS67: 3.6 | AT67: =+Agama!H61 -> 0 | AU67: =+Agama!K61 -> 0 | AV67: =+Agama!N61 -> 0 | AW67: =+Agama!Q61 -> 0 | AX67: =+Agama!T61 -> 0 | AY67: 0 | AZ67: =+'NILAI SMT 6 (US)'!H61 -> 0 | BA67: 0 | BB67: =+PPKn!H61 -> 0 | BC67: =+PPKn!K61 -> 0 | BD67: =+PPKn!N61 -> 0 | BE67: =+PPKn!Q61 -> 0 | BF67: =+PPKn!T61 -> 0 | BG67: 0 | BH67: =+'NILAI SMT 6 (US)'!K61 -> 0 | BI67: 0 | BJ67: =+IPS!H61 -> 0 | BK67: =+IPS!K61 -> 0 | BL67: =+IPS!N61 -> 0 | BM67: =+IPS!Q61 -> 0 | BN67: =+IPS!T61 -> 0 | BO67: 0 | BP67: =+'NILAI SMT 6 (US)'!Z61 -> 0 | BQ67: 0 | BR67: =+SENI!H61 -> 0 | BS67: =+SENI!K61 -> 0 | BT67: =+SENI!N61 -> 0 | BU67: =+SENI!Q61 -> 0 | BV67: =+SENI!T61 -> 0 | BW67: 0 | BX67: =+'NILAI SMT 6 (US)'!AC61 -> 0 | BY67: 0 | BZ67: =+PENJAS!H61 -> 0 | CA67: =+PENJAS!K61 -> 0 | CB67: =+PENJAS!N61 -> 0 | CC67: =+PENJAS!Q61 -> 0 | CD67: =+PENJAS!T61 -> 0 | CE67: 0 | CF67: =+'NILAI SMT 6 (US)'!AF61 -> 0 | CG67: 0 | CH67: =+'TIK-KET'!H61 -> 0 | CI67: =+'TIK-KET'!K61 -> 0 | CJ67: =+'TIK-KET'!N61 -> 0 | CK67: =+'TIK-KET'!Q61 -> 0 | CL67: =+'TIK-KET'!T61 -> 0 | CM67: 0 | CN67: =+'NILAI SMT 6 (US)'!AI61 -> 0 | CO67: 0 | CP67: =+'MLK1'!H61 -> 0 | CQ67: =+'MLK1'!K61 -> 0 | CR67: =+'MLK1'!N61 -> 0 | CS67: =+'MLK1'!Q61 -> 0 | CT67: =+'MLK1'!T61 -> 0 | CU67: 0 | CV67: =+'NILAI SMT 6 (US)'!AL61 -> 0 | CW67: 0 | CX67: =+'MLK2'!H61 -> 0 | CY67: =+'MLK2'!K61 -> 0 | CZ67: =+'MLK2'!N61 -> 0 | DA67: =+'MLK2'!Q61 -> 0 | DB67: =+'MLK2'!T61 -> 0 | DC67: 0 | DD67: =+'NILAI SMT 6 (US)'!AO61 -> 0 | DE67: 0 | DF67: 0 | DG67: =DF67/('KRITERIA&MULOK'!$E$20) -> 0 | DH67: 30 | DI67: 7.5 | DJ67: 18 | DK67: 4.5 | DL67: B | DM67: TIDAK LULUS
A68: =+BIODATA!A62 -> 55 | B68: =+BIODATA!B62 -> 0 | C68: =+BIODATA!E62 -> 0 | D68: =+BIODATA!C62 -> 0 | E68: =+BIODATA!D62 -> 0 | F68: =+BIND!H62 -> 0 | G68: =+BIND!K62 -> 0 | H68: =+BIND!N62 -> 0 | I68: =+BIND!Q62 -> 0 | J68: =+BIND!T62 -> 0 | K68: 0 | L68: =+'NILAI SMT 6 (US)'!N62 -> 0 | M68: 0 | N68: 7 | O68: 4.2 | P68: =+'B-ING'!H62 -> 0 | Q68: =+'B-ING'!K62 -> 0 | R68: =+'B-ING'!N62 -> 0 | S68: =+'B-ING'!Q62 -> 0 | T68: =+'B-ING'!T62 -> 0 | U68: 0 | V68: =+'NILAI SMT 6 (US)'!Q62 -> 0 | W68: 0 | X68: 8 | Y68: 4.8 | Z68: =+MAT!H62 -> 0 | AA68: =+MAT!K62 -> 0 | AB68: =+MAT!N62 -> 0 | AC68: =+MAT!Q62 -> 0 | AD68: =+MAT!T62 -> 0 | AE68: 0 | AF68: =+'NILAI SMT 6 (US)'!T62 -> 0 | AG68: 0 | AH68: 9 | AI68: 5.4 | AJ68: =+IPA!H62 -> 0 | AK68: =+IPA!K62 -> 0 | AL68: =+IPA!N62 -> 0 | AM68: =+IPA!Q62 -> 0 | AN68: =+IPA!T62 -> 0 | AO68: 0 | AP68: =+'NILAI SMT 6 (US)'!W62 -> 0 | AQ68: 0 | AR68: 6 | AS68: 3.6 | AT68: =+Agama!H62 -> 0 | AU68: =+Agama!K62 -> 0 | AV68: =+Agama!N62 -> 0 | AW68: =+Agama!Q62 -> 0 | AX68: =+Agama!T62 -> 0 | AY68: 0 | AZ68: =+'NILAI SMT 6 (US)'!H62 -> 0 | BA68: 0 | BB68: =+PPKn!H62 -> 0 | BC68: =+PPKn!K62 -> 0 | BD68: =+PPKn!N62 -> 0 | BE68: =+PPKn!Q62 -> 0 | BF68: =+PPKn!T62 -> 0 | BG68: 0 | BH68: =+'NILAI SMT 6 (US)'!K62 -> 0 | BI68: 0 | BJ68: =+IPS!H62 -> 0 | BK68: =+IPS!K62 -> 0 | BL68: =+IPS!N62 -> 0 | BM68: =+IPS!Q62 -> 0 | BN68: =+IPS!T62 -> 0 | BO68: 0 | BP68: =+'NILAI SMT 6 (US)'!Z62 -> 0 | BQ68: 0 | BR68: =+SENI!H62 -> 0 | BS68: =+SENI!K62 -> 0 | BT68: =+SENI!N62 -> 0 | BU68: =+SENI!Q62 -> 0 | BV68: =+SENI!T62 -> 0 | BW68: 0 | BX68: =+'NILAI SMT 6 (US)'!AC62 -> 0 | BY68: 0 | BZ68: =+PENJAS!H62 -> 0 | CA68: =+PENJAS!K62 -> 0 | CB68: =+PENJAS!N62 -> 0 | CC68: =+PENJAS!Q62 -> 0 | CD68: =+PENJAS!T62 -> 0 | CE68: 0 | CF68: =+'NILAI SMT 6 (US)'!AF62 -> 0 | CG68: 0 | CH68: =+'TIK-KET'!H62 -> 0 | CI68: =+'TIK-KET'!K62 -> 0 | CJ68: =+'TIK-KET'!N62 -> 0 | CK68: =+'TIK-KET'!Q62 -> 0 | CL68: =+'TIK-KET'!T62 -> 0 | CM68: 0 | CN68: =+'NILAI SMT 6 (US)'!AI62 -> 0 | CO68: 0 | CP68: =+'MLK1'!H62 -> 0 | CQ68: =+'MLK1'!K62 -> 0 | CR68: =+'MLK1'!N62 -> 0 | CS68: =+'MLK1'!Q62 -> 0 | CT68: =+'MLK1'!T62 -> 0 | CU68: 0 | CV68: =+'NILAI SMT 6 (US)'!AL62 -> 0 | CW68: 0 | CX68: =+'MLK2'!H62 -> 0 | CY68: =+'MLK2'!K62 -> 0 | CZ68: =+'MLK2'!N62 -> 0 | DA68: =+'MLK2'!Q62 -> 0 | DB68: =+'MLK2'!T62 -> 0 | DC68: 0 | DD68: =+'NILAI SMT 6 (US)'!AO62 -> 0 | DE68: 0 | DF68: 0 | DG68: =DF68/('KRITERIA&MULOK'!$E$20) -> 0 | DH68: 30 | DI68: 7.5 | DJ68: 18 | DK68: 4.5 | DL68: B | DM68: TIDAK LULUS
A69: =+BIODATA!A63 -> 56 | B69: =+BIODATA!B63 -> 0 | C69: =+BIODATA!E63 -> 0 | D69: =+BIODATA!C63 -> 0 | E69: =+BIODATA!D63 -> 0 | F69: =+BIND!H63 -> 0 | G69: =+BIND!K63 -> 0 | H69: =+BIND!N63 -> 0 | I69: =+BIND!Q63 -> 0 | J69: =+BIND!T63 -> 0 | K69: 0 | L69: =+'NILAI SMT 6 (US)'!N63 -> 0 | M69: 0 | N69: 7 | O69: 4.2 | P69: =+'B-ING'!H63 -> 0 | Q69: =+'B-ING'!K63 -> 0 | R69: =+'B-ING'!N63 -> 0 | S69: =+'B-ING'!Q63 -> 0 | T69: =+'B-ING'!T63 -> 0 | U69: 0 | V69: =+'NILAI SMT 6 (US)'!Q63 -> 0 | W69: 0 | X69: 8 | Y69: 4.8 | Z69: =+MAT!H63 -> 0 | AA69: =+MAT!K63 -> 0 | AB69: =+MAT!N63 -> 0 | AC69: =+MAT!Q63 -> 0 | AD69: =+MAT!T63 -> 0 | AE69: 0 | AF69: =+'NILAI SMT 6 (US)'!T63 -> 0 | AG69: 0 | AH69: 9 | AI69: 5.4 | AJ69: =+IPA!H63 -> 0 | AK69: =+IPA!K63 -> 0 | AL69: =+IPA!N63 -> 0 | AM69: =+IPA!Q63 -> 0 | AN69: =+IPA!T63 -> 0 | AO69: 0 | AP69: =+'NILAI SMT 6 (US)'!W63 -> 0 | AQ69: 0 | AR69: 6 | AS69: 3.6 | AT69: =+Agama!H63 -> 0 | AU69: =+Agama!K63 -> 0 | AV69: =+Agama!N63 -> 0 | AW69: =+Agama!Q63 -> 0 | AX69: =+Agama!T63 -> 0 | AY69: 0 | AZ69: =+'NILAI SMT 6 (US)'!H63 -> 0 | BA69: 0 | BB69: =+PPKn!H63 -> 0 | BC69: =+PPKn!K63 -> 0 | BD69: =+PPKn!N63 -> 0 | BE69: =+PPKn!Q63 -> 0 | BF69: =+PPKn!T63 -> 0 | BG69: 0 | BH69: =+'NILAI SMT 6 (US)'!K63 -> 0 | BI69: 0 | BJ69: =+IPS!H63 -> 0 | BK69: =+IPS!K63 -> 0 | BL69: =+IPS!N63 -> 0 | BM69: =+IPS!Q63 -> 0 | BN69: =+IPS!T63 -> 0 | BO69: 0 | BP69: =+'NILAI SMT 6 (US)'!Z63 -> 0 | BQ69: 0 | BR69: =+SENI!H63 -> 0 | BS69: =+SENI!K63 -> 0 | BT69: =+SENI!N63 -> 0 | BU69: =+SENI!Q63 -> 0 | BV69: =+SENI!T63 -> 0 | BW69: 0 | BX69: =+'NILAI SMT 6 (US)'!AC63 -> 0 | BY69: 0 | BZ69: =+PENJAS!H63 -> 0 | CA69: =+PENJAS!K63 -> 0 | CB69: =+PENJAS!N63 -> 0 | CC69: =+PENJAS!Q63 -> 0 | CD69: =+PENJAS!T63 -> 0 | CE69: 0 | CF69: =+'NILAI SMT 6 (US)'!AF63 -> 0 | CG69: 0 | CH69: =+'TIK-KET'!H63 -> 0 | CI69: =+'TIK-KET'!K63 -> 0 | CJ69: =+'TIK-KET'!N63 -> 0 | CK69: =+'TIK-KET'!Q63 -> 0 | CL69: =+'TIK-KET'!T63 -> 0 | CM69: 0 | CN69: =+'NILAI SMT 6 (US)'!AI63 -> 0 | CO69: 0 | CP69: =+'MLK1'!H63 -> 0 | CQ69: =+'MLK1'!K63 -> 0 | CR69: =+'MLK1'!N63 -> 0 | CS69: =+'MLK1'!Q63 -> 0 | CT69: =+'MLK1'!T63 -> 0 | CU69: 0 | CV69: =+'NILAI SMT 6 (US)'!AL63 -> 0 | CW69: 0 | CX69: =+'MLK2'!H63 -> 0 | CY69: =+'MLK2'!K63 -> 0 | CZ69: =+'MLK2'!N63 -> 0 | DA69: =+'MLK2'!Q63 -> 0 | DB69: =+'MLK2'!T63 -> 0 | DC69: 0 | DD69: =+'NILAI SMT 6 (US)'!AO63 -> 0 | DE69: 0 | DF69: 0 | DG69: =DF69/('KRITERIA&MULOK'!$E$20) -> 0 | DH69: 30 | DI69: 7.5 | DJ69: 18 | DK69: 4.5 | DL69: B | DM69: TIDAK LULUS
A70: =+BIODATA!A64 -> 57 | B70: =+BIODATA!B64 -> 0 | C70: =+BIODATA!E64 -> 0 | D70: =+BIODATA!C64 -> 0 | E70: =+BIODATA!D64 -> 0 | F70: =+BIND!H64 -> 0 | G70: =+BIND!K64 -> 0 | H70: =+BIND!N64 -> 0 | I70: =+BIND!Q64 -> 0 | J70: =+BIND!T64 -> 0 | K70: 0 | L70: =+'NILAI SMT 6 (US)'!N64 -> 0 | M70: 0 | N70: 7 | O70: 4.2 | P70: =+'B-ING'!H64 -> 0 | Q70: =+'B-ING'!K64 -> 0 | R70: =+'B-ING'!N64 -> 0 | S70: =+'B-ING'!Q64 -> 0 | T70: =+'B-ING'!T64 -> 0 | U70: 0 | V70: =+'NILAI SMT 6 (US)'!Q64 -> 0 | W70: 0 | X70: 8 | Y70: 4.8 | Z70: =+MAT!H64 -> 0 | AA70: =+MAT!K64 -> 0 | AB70: =+MAT!N64 -> 0 | AC70: =+MAT!Q64 -> 0 | AD70: =+MAT!T64 -> 0 | AE70: 0 | AF70: =+'NILAI SMT 6 (US)'!T64 -> 0 | AG70: 0 | AH70: 9 | AI70: 5.4 | AJ70: =+IPA!H64 -> 0 | AK70: =+IPA!K64 -> 0 | AL70: =+IPA!N64 -> 0 | AM70: =+IPA!Q64 -> 0 | AN70: =+IPA!T64 -> 0 | AO70: 0 | AP70: =+'NILAI SMT 6 (US)'!W64 -> 0 | AQ70: 0 | AR70: 6 | AS70: 3.6 | AT70: =+Agama!H64 -> 0 | AU70: =+Agama!K64 -> 0 | AV70: =+Agama!N64 -> 0 | AW70: =+Agama!Q64 -> 0 | AX70: =+Agama!T64 -> 0 | AY70: 0 | AZ70: =+'NILAI SMT 6 (US)'!H64 -> 0 | BA70: 0 | BB70: =+PPKn!H64 -> 0 | BC70: =+PPKn!K64 -> 0 | BD70: =+PPKn!N64 -> 0 | BE70: =+PPKn!Q64 -> 0 | BF70: =+PPKn!T64 -> 0 | BG70: 0 | BH70: =+'NILAI SMT 6 (US)'!K64 -> 0 | BI70: 0 | BJ70: =+IPS!H64 -> 0 | BK70: =+IPS!K64 -> 0 | BL70: =+IPS!N64 -> 0 | BM70: =+IPS!Q64 -> 0 | BN70: =+IPS!T64 -> 0 | BO70: 0 | BP70: =+'NILAI SMT 6 (US)'!Z64 -> 0 | BQ70: 0 | BR70: =+SENI!H64 -> 0 | BS70: =+SENI!K64 -> 0 | BT70: =+SENI!N64 -> 0 | BU70: =+SENI!Q64 -> 0 | BV70: =+SENI!T64 -> 0 | BW70: 0 | BX70: =+'NILAI SMT 6 (US)'!AC64 -> 0 | BY70: 0 | BZ70: =+PENJAS!H64 -> 0 | CA70: =+PENJAS!K64 -> 0 | CB70: =+PENJAS!N64 -> 0 | CC70: =+PENJAS!Q64 -> 0 | CD70: =+PENJAS!T64 -> 0 | CE70: 0 | CF70: =+'NILAI SMT 6 (US)'!AF64 -> 0 | CG70: 0 | CH70: =+'TIK-KET'!H64 -> 0 | CI70: =+'TIK-KET'!K64 -> 0 | CJ70: =+'TIK-KET'!N64 -> 0 | CK70: =+'TIK-KET'!Q64 -> 0 | CL70: =+'TIK-KET'!T64 -> 0 | CM70: 0 | CN70: =+'NILAI SMT 6 (US)'!AI64 -> 0 | CO70: 0 | CP70: =+'MLK1'!H64 -> 0 | CQ70: =+'MLK1'!K64 -> 0 | CR70: =+'MLK1'!N64 -> 0 | CS70: =+'MLK1'!Q64 -> 0 | CT70: =+'MLK1'!T64 -> 0 | CU70: 0 | CV70: =+'NILAI SMT 6 (US)'!AL64 -> 0 | CW70: 0 | CX70: =+'MLK2'!H64 -> 0 | CY70: =+'MLK2'!K64 -> 0 | CZ70: =+'MLK2'!N64 -> 0 | DA70: =+'MLK2'!Q64 -> 0 | DB70: =+'MLK2'!T64 -> 0 | DC70: 0 | DD70: =+'NILAI SMT 6 (US)'!AO64 -> 0 | DE70: 0 | DF70: 0 | DG70: =DF70/('KRITERIA&MULOK'!$E$20) -> 0 | DH70: 30 | DI70: 7.5 | DJ70: 18 | DK70: 4.5 | DL70: B | DM70: TIDAK LULUS
A71: =+BIODATA!A65 -> 58 | B71: =+BIODATA!B65 -> 0 | C71: =+BIODATA!E65 -> 0 | D71: =+BIODATA!C65 -> 0 | E71: =+BIODATA!D65 -> 0 | F71: =+BIND!H65 -> 0 | G71: =+BIND!K65 -> 0 | H71: =+BIND!N65 -> 0 | I71: =+BIND!Q65 -> 0 | J71: =+BIND!T65 -> 0 | K71: 0 | L71: =+'NILAI SMT 6 (US)'!N65 -> 0 | M71: 0 | N71: 7 | O71: 4.2 | P71: =+'B-ING'!H65 -> 0 | Q71: =+'B-ING'!K65 -> 0 | R71: =+'B-ING'!N65 -> 0 | S71: =+'B-ING'!Q65 -> 0 | T71: =+'B-ING'!T65 -> 0 | U71: 0 | V71: =+'NILAI SMT 6 (US)'!Q65 -> 0 | W71: 0 | X71: 8 | Y71: 4.8 | Z71: =+MAT!H65 -> 0 | AA71: =+MAT!K65 -> 0 | AB71: =+MAT!N65 -> 0 | AC71: =+MAT!Q65 -> 0 | AD71: =+MAT!T65 -> 0 | AE71: 0 | AF71: =+'NILAI SMT 6 (US)'!T65 -> 0 | AG71: 0 | AH71: 9 | AI71: 5.4 | AJ71: =+IPA!H65 -> 0 | AK71: =+IPA!K65 -> 0 | AL71: =+IPA!N65 -> 0 | AM71: =+IPA!Q65 -> 0 | AN71: =+IPA!T65 -> 0 | AO71: 0 | AP71: =+'NILAI SMT 6 (US)'!W65 -> 0 | AQ71: 0 | AR71: 6 | AS71: 3.6 | AT71: =+Agama!H65 -> 0 | AU71: =+Agama!K65 -> 0 | AV71: =+Agama!N65 -> 0 | AW71: =+Agama!Q65 -> 0 | AX71: =+Agama!T65 -> 0 | AY71: 0 | AZ71: =+'NILAI SMT 6 (US)'!H65 -> 0 | BA71: 0 | BB71: =+PPKn!H65 -> 0 | BC71: =+PPKn!K65 -> 0 | BD71: =+PPKn!N65 -> 0 | BE71: =+PPKn!Q65 -> 0 | BF71: =+PPKn!T65 -> 0 | BG71: 0 | BH71: =+'NILAI SMT 6 (US)'!K65 -> 0 | BI71: 0 | BJ71: =+IPS!H65 -> 0 | BK71: =+IPS!K65 -> 0 | BL71: =+IPS!N65 -> 0 | BM71: =+IPS!Q65 -> 0 | BN71: =+IPS!T65 -> 0 | BO71: 0 | BP71: =+'NILAI SMT 6 (US)'!Z65 -> 0 | BQ71: 0 | BR71: =+SENI!H65 -> 0 | BS71: =+SENI!K65 -> 0 | BT71: =+SENI!N65 -> 0 | BU71: =+SENI!Q65 -> 0 | BV71: =+SENI!T65 -> 0 | BW71: 0 | BX71: =+'NILAI SMT 6 (US)'!AC65 -> 0 | BY71: 0 | BZ71: =+PENJAS!H65 -> 0 | CA71: =+PENJAS!K65 -> 0 | CB71: =+PENJAS!N65 -> 0 | CC71: =+PENJAS!Q65 -> 0 | CD71: =+PENJAS!T65 -> 0 | CE71: 0 | CF71: =+'NILAI SMT 6 (US)'!AF65 -> 0 | CG71: 0 | CH71: =+'TIK-KET'!H65 -> 0 | CI71: =+'TIK-KET'!K65 -> 0 | CJ71: =+'TIK-KET'!N65 -> 0 | CK71: =+'TIK-KET'!Q65 -> 0 | CL71: =+'TIK-KET'!T65 -> 0 | CM71: 0 | CN71: =+'NILAI SMT 6 (US)'!AI65 -> 0 | CO71: 0 | CP71: =+'MLK1'!H65 -> 0 | CQ71: =+'MLK1'!K65 -> 0 | CR71: =+'MLK1'!N65 -> 0 | CS71: =+'MLK1'!Q65 -> 0 | CT71: =+'MLK1'!T65 -> 0 | CU71: 0 | CV71: =+'NILAI SMT 6 (US)'!AL65 -> 0 | CW71: 0 | CX71: =+'MLK2'!H65 -> 0 | CY71: =+'MLK2'!K65 -> 0 | CZ71: =+'MLK2'!N65 -> 0 | DA71: =+'MLK2'!Q65 -> 0 | DB71: =+'MLK2'!T65 -> 0 | DC71: 0 | DD71: =+'NILAI SMT 6 (US)'!AO65 -> 0 | DE71: 0 | DF71: 0 | DG71: =DF71/('KRITERIA&MULOK'!$E$20) -> 0 | DH71: 30 | DI71: 7.5 | DJ71: 18 | DK71: 4.5 | DL71: B | DM71: TIDAK LULUS
A72: =+BIODATA!A66 -> 59 | B72: =+BIODATA!B66 -> 0 | C72: =+BIODATA!E66 -> 0 | D72: =+BIODATA!C66 -> 0 | E72: =+BIODATA!D66 -> 0 | F72: =+BIND!H66 -> 0 | G72: =+BIND!K66 -> 0 | H72: =+BIND!N66 -> 0 | I72: =+BIND!Q66 -> 0 | J72: =+BIND!T66 -> 0 | K72: 0 | L72: =+'NILAI SMT 6 (US)'!N66 -> 0 | M72: 0 | N72: 7 | O72: 4.2 | P72: =+'B-ING'!H66 -> 0 | Q72: =+'B-ING'!K66 -> 0 | R72: =+'B-ING'!N66 -> 0 | S72: =+'B-ING'!Q66 -> 0 | T72: =+'B-ING'!T66 -> 0 | U72: 0 | V72: =+'NILAI SMT 6 (US)'!Q66 -> 0 | W72: 0 | X72: 8 | Y72: 4.8 | Z72: =+MAT!H66 -> 0 | AA72: =+MAT!K66 -> 0 | AB72: =+MAT!N66 -> 0 | AC72: =+MAT!Q66 -> 0 | AD72: =+MAT!T66 -> 0 | AE72: 0 | AF72: =+'NILAI SMT 6 (US)'!T66 -> 0 | AG72: 0 | AH72: 9 | AI72: 5.4 | AJ72: =+IPA!H66 -> 0 | AK72: =+IPA!K66 -> 0 | AL72: =+IPA!N66 -> 0 | AM72: =+IPA!Q66 -> 0 | AN72: =+IPA!T66 -> 0 | AO72: 0 | AP72: =+'NILAI SMT 6 (US)'!W66 -> 0 | AQ72: 0 | AR72: 6 | AS72: 3.6 | AT72: =+Agama!H66 -> 0 | AU72: =+Agama!K66 -> 0 | AV72: =+Agama!N66 -> 0 | AW72: =+Agama!Q66 -> 0 | AX72: =+Agama!T66 -> 0 | AY72: 0 | AZ72: =+'NILAI SMT 6 (US)'!H66 -> 0 | BA72: 0 | BB72: =+PPKn!H66 -> 0 | BC72: =+PPKn!K66 -> 0 | BD72: =+PPKn!N66 -> 0 | BE72: =+PPKn!Q66 -> 0 | BF72: =+PPKn!T66 -> 0 | BG72: 0 | BH72: =+'NILAI SMT 6 (US)'!K66 -> 0 | BI72: 0 | BJ72: =+IPS!H66 -> 0 | BK72: =+IPS!K66 -> 0 | BL72: =+IPS!N66 -> 0 | BM72: =+IPS!Q66 -> 0 | BN72: =+IPS!T66 -> 0 | BO72: 0 | BP72: =+'NILAI SMT 6 (US)'!Z66 -> 0 | BQ72: 0 | BR72: =+SENI!H66 -> 0 | BS72: =+SENI!K66 -> 0 | BT72: =+SENI!N66 -> 0 | BU72: =+SENI!Q66 -> 0 | BV72: =+SENI!T66 -> 0 | BW72: 0 | BX72: =+'NILAI SMT 6 (US)'!AC66 -> 0 | BY72: 0 | BZ72: =+PENJAS!H66 -> 0 | CA72: =+PENJAS!K66 -> 0 | CB72: =+PENJAS!N66 -> 0 | CC72: =+PENJAS!Q66 -> 0 | CD72: =+PENJAS!T66 -> 0 | CE72: 0 | CF72: =+'NILAI SMT 6 (US)'!AF66 -> 0 | CG72: 0 | CH72: =+'TIK-KET'!H66 -> 0 | CI72: =+'TIK-KET'!K66 -> 0 | CJ72: =+'TIK-KET'!N66 -> 0 | CK72: =+'TIK-KET'!Q66 -> 0 | CL72: =+'TIK-KET'!T66 -> 0 | CM72: 0 | CN72: =+'NILAI SMT 6 (US)'!AI66 -> 0 | CO72: 0 | CP72: =+'MLK1'!H66 -> 0 | CQ72: =+'MLK1'!K66 -> 0 | CR72: =+'MLK1'!N66 -> 0 | CS72: =+'MLK1'!Q66 -> 0 | CT72: =+'MLK1'!T66 -> 0 | CU72: 0 | CV72: =+'NILAI SMT 6 (US)'!AL66 -> 0 | CW72: 0 | CX72: =+'MLK2'!H66 -> 0 | CY72: =+'MLK2'!K66 -> 0 | CZ72: =+'MLK2'!N66 -> 0 | DA72: =+'MLK2'!Q66 -> 0 | DB72: =+'MLK2'!T66 -> 0 | DC72: 0 | DD72: =+'NILAI SMT 6 (US)'!AO66 -> 0 | DE72: 0 | DF72: 0 | DG72: =DF72/('KRITERIA&MULOK'!$E$20) -> 0 | DH72: 30 | DI72: 7.5 | DJ72: 18 | DK72: 4.5 | DL72: B | DM72: TIDAK LULUS
A73: =+BIODATA!A67 -> 60 | B73: =+BIODATA!B67 -> 0 | C73: =+BIODATA!E67 -> 0 | D73: =+BIODATA!C67 -> 0 | E73: =+BIODATA!D67 -> 0 | F73: =+BIND!H67 -> 0 | G73: =+BIND!K67 -> 0 | H73: =+BIND!N67 -> 0 | I73: =+BIND!Q67 -> 0 | J73: =+BIND!T67 -> 0 | K73: 0 | L73: =+'NILAI SMT 6 (US)'!N67 -> 0 | M73: 0 | N73: 7 | O73: 4.2 | P73: =+'B-ING'!H67 -> 0 | Q73: =+'B-ING'!K67 -> 0 | R73: =+'B-ING'!N67 -> 0 | S73: =+'B-ING'!Q67 -> 0 | T73: =+'B-ING'!T67 -> 0 | U73: 0 | V73: =+'NILAI SMT 6 (US)'!Q67 -> 0 | W73: 0 | X73: 8 | Y73: 4.8 | Z73: =+MAT!H67 -> 0 | AA73: =+MAT!K67 -> 0 | AB73: =+MAT!N67 -> 0 | AC73: =+MAT!Q67 -> 0 | AD73: =+MAT!T67 -> 0 | AE73: 0 | AF73: =+'NILAI SMT 6 (US)'!T67 -> 0 | AG73: 0 | AH73: 9 | AI73: 5.4 | AJ73: =+IPA!H67 -> 0 | AK73: =+IPA!K67 -> 0 | AL73: =+IPA!N67 -> 0 | AM73: =+IPA!Q67 -> 0 | AN73: =+IPA!T67 -> 0 | AO73: 0 | AP73: =+'NILAI SMT 6 (US)'!W67 -> 0 | AQ73: 0 | AR73: 6 | AS73: 3.6 | AT73: =+Agama!H67 -> 0 | AU73: =+Agama!K67 -> 0 | AV73: =+Agama!N67 -> 0 | AW73: =+Agama!Q67 -> 0 | AX73: =+Agama!T67 -> 0 | AY73: 0 | AZ73: =+'NILAI SMT 6 (US)'!H67 -> 0 | BA73: 0 | BB73: =+PPKn!H67 -> 0 | BC73: =+PPKn!K67 -> 0 | BD73: =+PPKn!N67 -> 0 | BE73: =+PPKn!Q67 -> 0 | BF73: =+PPKn!T67 -> 0 | BG73: 0 | BH73: =+'NILAI SMT 6 (US)'!K67 -> 0 | BI73: 0 | BJ73: =+IPS!H67 -> 0 | BK73: =+IPS!K67 -> 0 | BL73: =+IPS!N67 -> 0 | BM73: =+IPS!Q67 -> 0 | BN73: =+IPS!T67 -> 0 | BO73: 0 | BP73: =+'NILAI SMT 6 (US)'!Z67 -> 0 | BQ73: 0 | BR73: =+SENI!H67 -> 0 | BS73: =+SENI!K67 -> 0 | BT73: =+SENI!N67 -> 0 | BU73: =+SENI!Q67 -> 0 | BV73: =+SENI!T67 -> 0 | BW73: 0 | BX73: =+'NILAI SMT 6 (US)'!AC67 -> 0 | BY73: 0 | BZ73: =+PENJAS!H67 -> 0 | CA73: =+PENJAS!K67 -> 0 | CB73: =+PENJAS!N67 -> 0 | CC73: =+PENJAS!Q67 -> 0 | CD73: =+PENJAS!T67 -> 0 | CE73: 0 | CF73: =+'NILAI SMT 6 (US)'!AF67 -> 0 | CG73: 0 | CH73: =+'TIK-KET'!H67 -> 0 | CI73: =+'TIK-KET'!K67 -> 0 | CJ73: =+'TIK-KET'!N67 -> 0 | CK73: =+'TIK-KET'!Q67 -> 0 | CL73: =+'TIK-KET'!T67 -> 0 | CM73: 0 | CN73: =+'NILAI SMT 6 (US)'!AI67 -> 0 | CO73: 0 | CP73: =+'MLK1'!H67 -> 0 | CQ73: =+'MLK1'!K67 -> 0 | CR73: =+'MLK1'!N67 -> 0 | CS73: =+'MLK1'!Q67 -> 0 | CT73: =+'MLK1'!T67 -> 0 | CU73: 0 | CV73: =+'NILAI SMT 6 (US)'!AL67 -> 0 | CW73: 0 | CX73: =+'MLK2'!H67 -> 0 | CY73: =+'MLK2'!K67 -> 0 | CZ73: =+'MLK2'!N67 -> 0 | DA73: =+'MLK2'!Q67 -> 0 | DB73: =+'MLK2'!T67 -> 0 | DC73: 0 | DD73: =+'NILAI SMT 6 (US)'!AO67 -> 0 | DE73: 0 | DF73: 0 | DG73: =DF73/('KRITERIA&MULOK'!$E$20) -> 0 | DH73: 30 | DI73: 7.5 | DJ73: 18 | DK73: 4.5 | DL73: B | DM73: TIDAK LULUS
A74: =+BIODATA!A68 -> 61 | B74: =+BIODATA!B68 -> 0 | C74: =+BIODATA!E68 -> 0 | D74: =+BIODATA!C68 -> 0 | E74: =+BIODATA!D68 -> 0 | F74: =+BIND!H68 -> 0 | G74: =+BIND!K68 -> 0 | H74: =+BIND!N68 -> 0 | I74: =+BIND!Q68 -> 0 | J74: =+BIND!T68 -> 0 | K74: 0 | L74: =+'NILAI SMT 6 (US)'!N68 -> 0 | M74: 0 | N74: 7 | O74: 4.2 | P74: =+'B-ING'!H68 -> 0 | Q74: =+'B-ING'!K68 -> 0 | R74: =+'B-ING'!N68 -> 0 | S74: =+'B-ING'!Q68 -> 0 | T74: =+'B-ING'!T68 -> 0 | U74: 0 | V74: =+'NILAI SMT 6 (US)'!Q68 -> 0 | W74: 0 | X74: 8 | Y74: 4.8 | Z74: =+MAT!H68 -> 0 | AA74: =+MAT!K68 -> 0 | AB74: =+MAT!N68 -> 0 | AC74: =+MAT!Q68 -> 0 | AD74: =+MAT!T68 -> 0 | AE74: 0 | AF74: =+'NILAI SMT 6 (US)'!T68 -> 0 | AG74: 0 | AH74: 9 | AI74: 5.4 | AJ74: =+IPA!H68 -> 0 | AK74: =+IPA!K68 -> 0 | AL74: =+IPA!N68 -> 0 | AM74: =+IPA!Q68 -> 0 | AN74: =+IPA!T68 -> 0 | AO74: 0 | AP74: =+'NILAI SMT 6 (US)'!W68 -> 0 | AQ74: 0 | AR74: 6 | AS74: 3.6 | AT74: =+Agama!H68 -> 0 | AU74: =+Agama!K68 -> 0 | AV74: =+Agama!N68 -> 0 | AW74: =+Agama!Q68 -> 0 | AX74: =+Agama!T68 -> 0 | AY74: 0 | AZ74: =+'NILAI SMT 6 (US)'!H68 -> 0 | BA74: 0 | BB74: =+PPKn!H68 -> 0 | BC74: =+PPKn!K68 -> 0 | BD74: =+PPKn!N68 -> 0 | BE74: =+PPKn!Q68 -> 0 | BF74: =+PPKn!T68 -> 0 | BG74: 0 | BH74: =+'NILAI SMT 6 (US)'!K68 -> 0 | BI74: 0 | BJ74: =+IPS!H68 -> 0 | BK74: =+IPS!K68 -> 0 | BL74: =+IPS!N68 -> 0 | BM74: =+IPS!Q68 -> 0 | BN74: =+IPS!T68 -> 0 | BO74: 0 | BP74: =+'NILAI SMT 6 (US)'!Z68 -> 0 | BQ74: 0 | BR74: =+SENI!H68 -> 0 | BS74: =+SENI!K68 -> 0 | BT74: =+SENI!N68 -> 0 | BU74: =+SENI!Q68 -> 0 | BV74: =+SENI!T68 -> 0 | BW74: 0 | BX74: =+'NILAI SMT 6 (US)'!AC68 -> 0 | BY74: 0 | BZ74: =+PENJAS!H68 -> 0 | CA74: =+PENJAS!K68 -> 0 | CB74: =+PENJAS!N68 -> 0 | CC74: =+PENJAS!Q68 -> 0 | CD74: =+PENJAS!T68 -> 0 | CE74: 0 | CF74: =+'NILAI SMT 6 (US)'!AF68 -> 0 | CG74: 0 | CH74: =+'TIK-KET'!H68 -> 0 | CI74: =+'TIK-KET'!K68 -> 0 | CJ74: =+'TIK-KET'!N68 -> 0 | CK74: =+'TIK-KET'!Q68 -> 0 | CL74: =+'TIK-KET'!T68 -> 0 | CM74: 0 | CN74: =+'NILAI SMT 6 (US)'!AI68 -> 0 | CO74: 0 | CP74: =+'MLK1'!H68 -> 0 | CQ74: =+'MLK1'!K68 -> 0 | CR74: =+'MLK1'!N68 -> 0 | CS74: =+'MLK1'!Q68 -> 0 | CT74: =+'MLK1'!T68 -> 0 | CU74: 0 | CV74: =+'NILAI SMT 6 (US)'!AL68 -> 0 | CW74: 0 | CX74: =+'MLK2'!H68 -> 0 | CY74: =+'MLK2'!K68 -> 0 | CZ74: =+'MLK2'!N68 -> 0 | DA74: =+'MLK2'!Q68 -> 0 | DB74: =+'MLK2'!T68 -> 0 | DC74: 0 | DD74: =+'NILAI SMT 6 (US)'!AO68 -> 0 | DE74: 0 | DF74: 0 | DG74: =DF74/('KRITERIA&MULOK'!$E$20) -> 0 | DH74: 30 | DI74: 7.5 | DJ74: 18 | DK74: 4.5 | DL74: B | DM74: TIDAK LULUS
A75: =+BIODATA!A69 -> 62 | B75: =+BIODATA!B69 -> 0 | C75: =+BIODATA!E69 -> 0 | D75: =+BIODATA!C69 -> 0 | E75: =+BIODATA!D69 -> 0 | F75: =+BIND!H69 -> 0 | G75: =+BIND!K69 -> 0 | H75: =+BIND!N69 -> 0 | I75: =+BIND!Q69 -> 0 | J75: =+BIND!T69 -> 0 | K75: 0 | L75: =+'NILAI SMT 6 (US)'!N69 -> 0 | M75: 0 | N75: 7 | O75: 4.2 | P75: =+'B-ING'!H69 -> 0 | Q75: =+'B-ING'!K69 -> 0 | R75: =+'B-ING'!N69 -> 0 | S75: =+'B-ING'!Q69 -> 0 | T75: =+'B-ING'!T69 -> 0 | U75: 0 | V75: =+'NILAI SMT 6 (US)'!Q69 -> 0 | W75: 0 | X75: 8 | Y75: 4.8 | Z75: =+MAT!H69 -> 0 | AA75: =+MAT!K69 -> 0 | AB75: =+MAT!N69 -> 0 | AC75: =+MAT!Q69 -> 0 | AD75: =+MAT!T69 -> 0 | AE75: 0 | AF75: =+'NILAI SMT 6 (US)'!T69 -> 0 | AG75: 0 | AH75: 9 | AI75: 5.4 | AJ75: =+IPA!H69 -> 0 | AK75: =+IPA!K69 -> 0 | AL75: =+IPA!N69 -> 0 | AM75: =+IPA!Q69 -> 0 | AN75: =+IPA!T69 -> 0 | AO75: 0 | AP75: =+'NILAI SMT 6 (US)'!W69 -> 0 | AQ75: 0 | AR75: 6 | AS75: 3.6 | AT75: =+Agama!H69 -> 0 | AU75: =+Agama!K69 -> 0 | AV75: =+Agama!N69 -> 0 | AW75: =+Agama!Q69 -> 0 | AX75: =+Agama!T69 -> 0 | AY75: 0 | AZ75: =+'NILAI SMT 6 (US)'!H69 -> 0 | BA75: 0 | BB75: =+PPKn!H69 -> 0 | BC75: =+PPKn!K69 -> 0 | BD75: =+PPKn!N69 -> 0 | BE75: =+PPKn!Q69 -> 0 | BF75: =+PPKn!T69 -> 0 | BG75: 0 | BH75: =+'NILAI SMT 6 (US)'!K69 -> 0 | BI75: 0 | BJ75: =+IPS!H69 -> 0 | BK75: =+IPS!K69 -> 0 | BL75: =+IPS!N69 -> 0 | BM75: =+IPS!Q69 -> 0 | BN75: =+IPS!T69 -> 0 | BO75: 0 | BP75: =+'NILAI SMT 6 (US)'!Z69 -> 0 | BQ75: 0 | BR75: =+SENI!H69 -> 0 | BS75: =+SENI!K69 -> 0 | BT75: =+SENI!N69 -> 0 | BU75: =+SENI!Q69 -> 0 | BV75: =+SENI!T69 -> 0 | BW75: 0 | BX75: =+'NILAI SMT 6 (US)'!AC69 -> 0 | BY75: 0 | BZ75: =+PENJAS!H69 -> 0 | CA75: =+PENJAS!K69 -> 0 | CB75: =+PENJAS!N69 -> 0 | CC75: =+PENJAS!Q69 -> 0 | CD75: =+PENJAS!T69 -> 0 | CE75: 0 | CF75: =+'NILAI SMT 6 (US)'!AF69 -> 0 | CG75: 0 | CH75: =+'TIK-KET'!H69 -> 0 | CI75: =+'TIK-KET'!K69 -> 0 | CJ75: =+'TIK-KET'!N69 -> 0 | CK75: =+'TIK-KET'!Q69 -> 0 | CL75: =+'TIK-KET'!T69 -> 0 | CM75: 0 | CN75: =+'NILAI SMT 6 (US)'!AI69 -> 0 | CO75: 0 | CP75: =+'MLK1'!H69 -> 0 | CQ75: =+'MLK1'!K69 -> 0 | CR75: =+'MLK1'!N69 -> 0 | CS75: =+'MLK1'!Q69 -> 0 | CT75: =+'MLK1'!T69 -> 0 | CU75: 0 | CV75: =+'NILAI SMT 6 (US)'!AL69 -> 0 | CW75: 0 | CX75: =+'MLK2'!H69 -> 0 | CY75: =+'MLK2'!K69 -> 0 | CZ75: =+'MLK2'!N69 -> 0 | DA75: =+'MLK2'!Q69 -> 0 | DB75: =+'MLK2'!T69 -> 0 | DC75: 0 | DD75: =+'NILAI SMT 6 (US)'!AO69 -> 0 | DE75: 0 | DF75: 0 | DG75: =DF75/('KRITERIA&MULOK'!$E$20) -> 0 | DH75: 30 | DI75: 7.5 | DJ75: 18 | DK75: 4.5 | DL75: B | DM75: TIDAK LULUS
A76: =+BIODATA!A70 -> 63 | B76: =+BIODATA!B70 -> 0 | C76: =+BIODATA!E70 -> 0 | D76: =+BIODATA!C70 -> 0 | E76: =+BIODATA!D70 -> 0 | F76: =+BIND!H70 -> 0 | G76: =+BIND!K70 -> 0 | H76: =+BIND!N70 -> 0 | I76: =+BIND!Q70 -> 0 | J76: =+BIND!T70 -> 0 | K76: 0 | L76: =+'NILAI SMT 6 (US)'!N70 -> 0 | M76: 0 | N76: 7 | O76: 4.2 | P76: =+'B-ING'!H70 -> 0 | Q76: =+'B-ING'!K70 -> 0 | R76: =+'B-ING'!N70 -> 0 | S76: =+'B-ING'!Q70 -> 0 | T76: =+'B-ING'!T70 -> 0 | U76: 0 | V76: =+'NILAI SMT 6 (US)'!Q70 -> 0 | W76: 0 | X76: 8 | Y76: 4.8 | Z76: =+MAT!H70 -> 0 | AA76: =+MAT!K70 -> 0 | AB76: =+MAT!N70 -> 0 | AC76: =+MAT!Q70 -> 0 | AD76: =+MAT!T70 -> 0 | AE76: 0 | AF76: =+'NILAI SMT 6 (US)'!T70 -> 0 | AG76: 0 | AH76: 9 | AI76: 5.4 | AJ76: =+IPA!H70 -> 0 | AK76: =+IPA!K70 -> 0 | AL76: =+IPA!N70 -> 0 | AM76: =+IPA!Q70 -> 0 | AN76: =+IPA!T70 -> 0 | AO76: 0 | AP76: =+'NILAI SMT 6 (US)'!W70 -> 0 | AQ76: 0 | AR76: 6 | AS76: 3.6 | AT76: =+Agama!H70 -> 0 | AU76: =+Agama!K70 -> 0 | AV76: =+Agama!N70 -> 0 | AW76: =+Agama!Q70 -> 0 | AX76: =+Agama!T70 -> 0 | AY76: 0 | AZ76: =+'NILAI SMT 6 (US)'!H70 -> 0 | BA76: 0 | BB76: =+PPKn!H70 -> 0 | BC76: =+PPKn!K70 -> 0 | BD76: =+PPKn!N70 -> 0 | BE76: =+PPKn!Q70 -> 0 | BF76: =+PPKn!T70 -> 0 | BG76: 0 | BH76: =+'NILAI SMT 6 (US)'!K70 -> 0 | BI76: 0 | BJ76: =+IPS!H70 -> 0 | BK76: =+IPS!K70 -> 0 | BL76: =+IPS!N70 -> 0 | BM76: =+IPS!Q70 -> 0 | BN76: =+IPS!T70 -> 0 | BO76: 0 | BP76: =+'NILAI SMT 6 (US)'!Z70 -> 0 | BQ76: 0 | BR76: =+SENI!H70 -> 0 | BS76: =+SENI!K70 -> 0 | BT76: =+SENI!N70 -> 0 | BU76: =+SENI!Q70 -> 0 | BV76: =+SENI!T70 -> 0 | BW76: 0 | BX76: =+'NILAI SMT 6 (US)'!AC70 -> 0 | BY76: 0 | BZ76: =+PENJAS!H70 -> 0 | CA76: =+PENJAS!K70 -> 0 | CB76: =+PENJAS!N70 -> 0 | CC76: =+PENJAS!Q70 -> 0 | CD76: =+PENJAS!T70 -> 0 | CE76: 0 | CF76: =+'NILAI SMT 6 (US)'!AF70 -> 0 | CG76: 0 | CH76: =+'TIK-KET'!H70 -> 0 | CI76: =+'TIK-KET'!K70 -> 0 | CJ76: =+'TIK-KET'!N70 -> 0 | CK76: =+'TIK-KET'!Q70 -> 0 | CL76: =+'TIK-KET'!T70 -> 0 | CM76: 0 | CN76: =+'NILAI SMT 6 (US)'!AI70 -> 0 | CO76: 0 | CP76: =+'MLK1'!H70 -> 0 | CQ76: =+'MLK1'!K70 -> 0 | CR76: =+'MLK1'!N70 -> 0 | CS76: =+'MLK1'!Q70 -> 0 | CT76: =+'MLK1'!T70 -> 0 | CU76: 0 | CV76: =+'NILAI SMT 6 (US)'!AL70 -> 0 | CW76: 0 | CX76: =+'MLK2'!H70 -> 0 | CY76: =+'MLK2'!K70 -> 0 | CZ76: =+'MLK2'!N70 -> 0 | DA76: =+'MLK2'!Q70 -> 0 | DB76: =+'MLK2'!T70 -> 0 | DC76: 0 | DD76: =+'NILAI SMT 6 (US)'!AO70 -> 0 | DE76: 0 | DF76: 0 | DG76: =DF76/('KRITERIA&MULOK'!$E$20) -> 0 | DH76: 30 | DI76: 7.5 | DJ76: 18 | DK76: 4.5 | DL76: B | DM76: TIDAK LULUS
A77: =+BIODATA!A71 -> 64 | B77: =+BIODATA!B71 -> 0 | C77: =+BIODATA!E71 -> 0 | D77: =+BIODATA!C71 -> 0 | E77: =+BIODATA!D71 -> 0 | F77: =+BIND!H71 -> 0 | G77: =+BIND!K71 -> 0 | H77: =+BIND!N71 -> 0 | I77: =+BIND!Q71 -> 0 | J77: =+BIND!T71 -> 0 | K77: 0 | L77: =+'NILAI SMT 6 (US)'!N71 -> 0 | M77: 0 | N77: 7 | O77: 4.2 | P77: =+'B-ING'!H71 -> 0 | Q77: =+'B-ING'!K71 -> 0 | R77: =+'B-ING'!N71 -> 0 | S77: =+'B-ING'!Q71 -> 0 | T77: =+'B-ING'!T71 -> 0 | U77: 0 | V77: =+'NILAI SMT 6 (US)'!Q71 -> 0 | W77: 0 | X77: 8 | Y77: 4.8 | Z77: =+MAT!H71 -> 0 | AA77: =+MAT!K71 -> 0 | AB77: =+MAT!N71 -> 0 | AC77: =+MAT!Q71 -> 0 | AD77: =+MAT!T71 -> 0 | AE77: 0 | AF77: =+'NILAI SMT 6 (US)'!T71 -> 0 | AG77: 0 | AH77: 9 | AI77: 5.4 | AJ77: =+IPA!H71 -> 0 | AK77: =+IPA!K71 -> 0 | AL77: =+IPA!N71 -> 0 | AM77: =+IPA!Q71 -> 0 | AN77: =+IPA!T71 -> 0 | AO77: 0 | AP77: =+'NILAI SMT 6 (US)'!W71 -> 0 | AQ77: 0 | AR77: 6 | AS77: 3.6 | AT77: =+Agama!H71 -> 0 | AU77: =+Agama!K71 -> 0 | AV77: =+Agama!N71 -> 0 | AW77: =+Agama!Q71 -> 0 | AX77: =+Agama!T71 -> 0 | AY77: 0 | AZ77: =+'NILAI SMT 6 (US)'!H71 -> 0 | BA77: 0 | BB77: =+PPKn!H71 -> 0 | BC77: =+PPKn!K71 -> 0 | BD77: =+PPKn!N71 -> 0 | BE77: =+PPKn!Q71 -> 0 | BF77: =+PPKn!T71 -> 0 | BG77: 0 | BH77: =+'NILAI SMT 6 (US)'!K71 -> 0 | BI77: 0 | BJ77: =+IPS!H71 -> 0 | BK77: =+IPS!K71 -> 0 | BL77: =+IPS!N71 -> 0 | BM77: =+IPS!Q71 -> 0 | BN77: =+IPS!T71 -> 0 | BO77: 0 | BP77: =+'NILAI SMT 6 (US)'!Z71 -> 0 | BQ77: 0 | BR77: =+SENI!H71 -> 0 | BS77: =+SENI!K71 -> 0 | BT77: =+SENI!N71 -> 0 | BU77: =+SENI!Q71 -> 0 | BV77: =+SENI!T71 -> 0 | BW77: 0 | BX77: =+'NILAI SMT 6 (US)'!AC71 -> 0 | BY77: 0 | BZ77: =+PENJAS!H71 -> 0 | CA77: =+PENJAS!K71 -> 0 | CB77: =+PENJAS!N71 -> 0 | CC77: =+PENJAS!Q71 -> 0 | CD77: =+PENJAS!T71 -> 0 | CE77: 0 | CF77: =+'NILAI SMT 6 (US)'!AF71 -> 0 | CG77: 0 | CH77: =+'TIK-KET'!H71 -> 0 | CI77: =+'TIK-KET'!K71 -> 0 | CJ77: =+'TIK-KET'!N71 -> 0 | CK77: =+'TIK-KET'!Q71 -> 0 | CL77: =+'TIK-KET'!T71 -> 0 | CM77: 0 | CN77: =+'NILAI SMT 6 (US)'!AI71 -> 0 | CO77: 0 | CP77: =+'MLK1'!H71 -> 0 | CQ77: =+'MLK1'!K71 -> 0 | CR77: =+'MLK1'!N71 -> 0 | CS77: =+'MLK1'!Q71 -> 0 | CT77: =+'MLK1'!T71 -> 0 | CU77: 0 | CV77: =+'NILAI SMT 6 (US)'!AL71 -> 0 | CW77: 0 | CX77: =+'MLK2'!H71 -> 0 | CY77: =+'MLK2'!K71 -> 0 | CZ77: =+'MLK2'!N71 -> 0 | DA77: =+'MLK2'!Q71 -> 0 | DB77: =+'MLK2'!T71 -> 0 | DC77: 0 | DD77: =+'NILAI SMT 6 (US)'!AO71 -> 0 | DE77: 0 | DF77: 0 | DG77: =DF77/('KRITERIA&MULOK'!$E$20) -> 0 | DH77: 30 | DI77: 7.5 | DJ77: 18 | DK77: 4.5 | DL77: B | DM77: TIDAK LULUS
A78: =+BIODATA!A72 -> 65 | B78: =+BIODATA!B72 -> 0 | C78: =+BIODATA!E72 -> 0 | D78: =+BIODATA!C72 -> 0 | E78: =+BIODATA!D72 -> 0 | F78: =+BIND!H72 -> 0 | G78: =+BIND!K72 -> 0 | H78: =+BIND!N72 -> 0 | I78: =+BIND!Q72 -> 0 | J78: =+BIND!T72 -> 0 | K78: 0 | L78: =+'NILAI SMT 6 (US)'!N72 -> 0 | M78: =VALUE(FIXED((K78*RAP)+(L78*US))) -> 0 | N78: 7 | O78: 4.2 | P78: =+'B-ING'!H72 -> 0 | Q78: =+'B-ING'!K72 -> 0 | R78: =+'B-ING'!N72 -> 0 | S78: =+'B-ING'!Q72 -> 0 | T78: =+'B-ING'!T72 -> 0 | U78: 0 | V78: =+'NILAI SMT 6 (US)'!Q72 -> 0 | W78: =VALUE(FIXED((U78*RAP)+(V78*US))) -> 0 | X78: 8 | Y78: 4.8 | Z78: =+MAT!H72 -> 0 | AA78: =+MAT!K72 -> 0 | AB78: =+MAT!N72 -> 0 | AC78: =+MAT!Q72 -> 0 | AD78: =+MAT!T72 -> 0 | AE78: 0 | AF78: =+'NILAI SMT 6 (US)'!T72 -> 0 | AG78: =VALUE(FIXED((AE78*RAP)+(AF78*US))) -> 0 | AH78: 9 | AI78: 5.4 | AJ78: =+IPA!H72 -> 0 | AK78: =+IPA!K72 -> 0 | AL78: =+IPA!N72 -> 0 | AM78: =+IPA!Q72 -> 0 | AN78: =+IPA!T72 -> 0 | AO78: 0 | AP78: =+'NILAI SMT 6 (US)'!W72 -> 0 | AQ78: =VALUE(FIXED((AO78*RAP)+(AP78*US))) -> 0 | AR78: 6 | AS78: 3.6 | AT78: =+Agama!H72 -> 0 | AU78: =+Agama!K72 -> 0 | AV78: =+Agama!N72 -> 0 | AW78: =+Agama!Q72 -> 0 | AX78: =+Agama!T72 -> 0 | AY78: 0 | AZ78: =+'NILAI SMT 6 (US)'!H72 -> 0 | BA78: =VALUE(FIXED((AY78*RAP)+(AZ78*US))) -> 0 | BB78: =+PPKn!H72 -> 0 | BC78: =+PPKn!K72 -> 0 | BD78: =+PPKn!N72 -> 0 | BE78: =+PPKn!Q72 -> 0 | BF78: =+PPKn!T72 -> 0 | BG78: 0 | BH78: =+'NILAI SMT 6 (US)'!K72 -> 0 | BI78: =VALUE(FIXED((BG78*RAP)+(BH78*US))) -> 0 | BJ78: =+IPS!H72 -> 0 | BK78: =+IPS!K72 -> 0 | BL78: =+IPS!N72 -> 0 | BM78: =+IPS!Q72 -> 0 | BN78: =+IPS!T72 -> 0 | BO78: 0 | BP78: =+'NILAI SMT 6 (US)'!Z72 -> 0 | BQ78: =VALUE(FIXED((BO78*RAP)+(BP78*US))) -> 0 | BR78: =+SENI!H72 -> 0 | BS78: =+SENI!K72 -> 0 | BT78: =+SENI!N72 -> 0 | BU78: =+SENI!Q72 -> 0 | BV78: =+SENI!T72 -> 0 | BW78: 0 | BX78: =+'NILAI SMT 6 (US)'!AC72 -> 0 | BY78: =VALUE(FIXED((BW78*RAP)+(BX78*US))) -> 0 | BZ78: =+PENJAS!H72 -> 0 | CA78: =+PENJAS!K72 -> 0 | CB78: =+PENJAS!N72 -> 0 | CC78: =+PENJAS!Q72 -> 0 | CD78: =+PENJAS!T72 -> 0 | CE78: 0 | CF78: =+'NILAI SMT 6 (US)'!AF72 -> 0 | CG78: =VALUE(FIXED((CE78*RAP)+(CF78*US))) -> 0 | CH78: =+'TIK-KET'!H72 -> 0 | CI78: =+'TIK-KET'!K72 -> 0 | CJ78: =+'TIK-KET'!N72 -> 0 | CK78: =+'TIK-KET'!Q72 -> 0 | CL78: =+'TIK-KET'!T72 -> 0 | CM78: 0 | CN78: =+'NILAI SMT 6 (US)'!AI72 -> 0 | CO78: =VALUE(FIXED((CM78*RAP)+(CN78*US))) -> 0 | CP78: =+'MLK1'!H72 -> 0 | CQ78: =+'MLK1'!K72 -> 0 | CR78: =+'MLK1'!N72 -> 0 | CS78: =+'MLK1'!Q72 -> 0 | CT78: =+'MLK1'!T72 -> 0 | CU78: 0 | CV78: =+'NILAI SMT 6 (US)'!AL72 -> 0 | CW78: =VALUE(FIXED((CU78*RAP)+(CV78*US))) -> 0 | CX78: =+'MLK2'!H72 -> 0 | CY78: =+'MLK2'!K72 -> 0 | CZ78: =+'MLK2'!N72 -> 0 | DA78: =+'MLK2'!Q72 -> 0 | DB78: =+'MLK2'!T72 -> 0 | DC78: 0 | DD78: =+'NILAI SMT 6 (US)'!AO72 -> 0 | DE78: 0 | DF78: 0 | DG78: =DF78/('KRITERIA&MULOK'!$E$20) -> 0 | DH78: 30 | DI78: 7.5 | DJ78: 18 | DK78: 4.5 | DL78: B | DM78: =IF(L78<MIN,"TIDAK LULLUS",IF(V78<MIN,"TIDAK LULLUS",IF(AF78<MIN,"TIDAK LULLUS",IF(AP78<MIN,"v",IF(AZ78<MIN,"TIDAK LULUS",IF(BH78<MIN,"TIDAK LULLUS",IF(BP78<MIN,"v",IF(BX78<MIN,"TIDAK LULLUS",IF(CF78<MIN,"TIDAK LULLUS",IF(CN78<MIN,"TIDAK LULUS",IF(CV78<MIN,"TIDAK LULUS",IF(DD78<MIN,"TIDAK LULUS",IF((($L78+$V78+$AF78+$AP78+$AZ78+$BH78+$BP78+$BX78+$CF78+$CO78+$CN78+$DD78)/12)<RAT,"TIDAK LULUS","LULUS"))))))))))))) -> TIDAK LULUS
A79: =+BIODATA!A73 -> 66 | B79: =+BIODATA!B73 -> 0 | C79: =+BIODATA!E73 -> 0 | D79: =+BIODATA!C73 -> 0 | E79: =+BIODATA!D73 -> 0 | F79: =+BIND!H73 -> 0 | G79: =+BIND!K73 -> 0 | H79: =+BIND!N73 -> 0 | I79: =+BIND!Q73 -> 0 | J79: =+BIND!T73 -> 0 | K79: =VALUE(FIXED((F79+G79+H79+I79+J79)/5)) -> 0 | L79: =+'NILAI SMT 6 (US)'!N73 -> 0 | M79: 0 | N79: 7 | O79: =(M79*0.4)+(N79*0.6) -> 4.2 | P79: =+'B-ING'!H73 -> 0 | Q79: =+'B-ING'!K73 -> 0 | R79: =+'B-ING'!N73 -> 0 | S79: =+'B-ING'!Q73 -> 0 | T79: =+'B-ING'!T73 -> 0 | U79: =VALUE(FIXED((P79+Q79+R79+S79+T79)/5)) -> 0 | V79: =+'NILAI SMT 6 (US)'!Q73 -> 0 | W79: 0 | X79: 8 | Y79: =(W79*0.4)+(X79*0.6) -> 4.8 | Z79: =+MAT!H73 -> 0 | AA79: =+MAT!K73 -> 0 | AB79: =+MAT!N73 -> 0 | AC79: =+MAT!Q73 -> 0 | AD79: =+MAT!T73 -> 0 | AE79: =VALUE(FIXED((Z79+AA79+AB79+AC79+AD79)/5)) -> 0 | AF79: =+'NILAI SMT 6 (US)'!T73 -> 0 | AG79: 0 | AH79: 9 | AI79: =(AG79*0.4)+(AH79*0.6) -> 5.4 | AJ79: =+IPA!H73 -> 0 | AK79: =+IPA!K73 -> 0 | AL79: =+IPA!N73 -> 0 | AM79: =+IPA!Q73 -> 0 | AN79: =+IPA!T73 -> 0 | AO79: =VALUE(FIXED((AJ79+AK79+AL79+AM79+AN79)/5)) -> 0 | AP79: =+'NILAI SMT 6 (US)'!W73 -> 0 | AQ79: 0 | AR79: 6 | AS79: =(AQ79*0.4)+(AR79*0.6) -> 3.6 | AT79: =+Agama!H73 -> 0 | AU79: =+Agama!K73 -> 0 | AV79: =+Agama!N73 -> 0 | AW79: =+Agama!Q73 -> 0 | AX79: =+Agama!T73 -> 0 | AY79: =VALUE(FIXED((AT79+AU79+AV79+AW79+AX79)/5)) -> 0 | AZ79: =+'NILAI SMT 6 (US)'!H73 -> 0 | BA79: 0 | BB79: =+PPKn!H73 -> 0 | BC79: =+PPKn!K73 -> 0 | BD79: =+PPKn!N73 -> 0 | BE79: =+PPKn!Q73 -> 0 | BF79: =+PPKn!T73 -> 0 | BG79: =VALUE(FIXED((BB79+BC79+BD79+BE79+BF79)/5)) -> 0 | BH79: =+'NILAI SMT 6 (US)'!K73 -> 0 | BI79: 0 | BJ79: =+IPS!H73 -> 0 | BK79: =+IPS!K73 -> 0 | BL79: =+IPS!N73 -> 0 | BM79: =+IPS!Q73 -> 0 | BN79: =+IPS!T73 -> 0 | BO79: =VALUE(FIXED((BJ79+BK79+BL79+BM79+BN79)/5)) -> 0 | BP79: =+'NILAI SMT 6 (US)'!Z73 -> 0 | BQ79: 0 | BR79: =+SENI!H73 -> 0 | BS79: =+SENI!K73 -> 0 | BT79: =+SENI!N73 -> 0 | BU79: =+SENI!Q73 -> 0 | BV79: =+SENI!T73 -> 0 | BW79: =VALUE(FIXED((BR79+BS79+BT79+BU79+BV79)/5)) -> 0 | BX79: =+'NILAI SMT 6 (US)'!AC73 -> 0 | BY79: 0 | BZ79: =+PENJAS!H73 -> 0 | CA79: =+PENJAS!K73 -> 0 | CB79: =+PENJAS!N73 -> 0 | CC79: =+PENJAS!Q73 -> 0 | CD79: =+PENJAS!T73 -> 0 | CE79: =VALUE(FIXED((BZ79+CA79+CB79+CC79+CD79)/5)) -> 0 | CF79: =+'NILAI SMT 6 (US)'!AF73 -> 0 | CG79: 0 | CH79: =+'TIK-KET'!H73 -> 0 | CI79: =+'TIK-KET'!K73 -> 0 | CJ79: =+'TIK-KET'!N73 -> 0 | CK79: =+'TIK-KET'!Q73 -> 0 | CL79: =+'TIK-KET'!T73 -> 0 | CM79: =VALUE(FIXED((CH79+CI79+CJ79+CK79+CL79)/5)) -> 0 | CN79: =+'NILAI SMT 6 (US)'!AI73 -> 0 | CO79: 0 | CP79: =+'MLK1'!H73 -> 0 | CQ79: =+'MLK1'!K73 -> 0 | CR79: =+'MLK1'!N73 -> 0 | CS79: =+'MLK1'!Q73 -> 0 | CT79: =+'MLK1'!T73 -> 0 | CU79: =VALUE(FIXED((CP79+CQ79+CR79+CS79+CT79)/5)) -> 0 | CV79: =+'NILAI SMT 6 (US)'!AL73 -> 0 | CW79: 0 | CX79: =+'MLK2'!H73 -> 0 | CY79: =+'MLK2'!K73 -> 0 | CZ79: =+'MLK2'!N73 -> 0 | DA79: =+'MLK2'!Q73 -> 0 | DB79: =+'MLK2'!T73 -> 0 | DC79: =VALUE(FIXED((CX79+CY79+CZ79+DA79+DB79)/5)) -> 0 | DD79: =+'NILAI SMT 6 (US)'!AO73 -> 0 | DE79: =VALUE(FIXED((DC79*RAP)+(DD79*US),0,FALSE)) -> 0 | DF79: 0 | DG79: =DF79/('KRITERIA&MULOK'!$E$20) -> 0 | DH79: 30 | DI79: 7.5 | DJ79: 18 | DK79: 4.5 | DL79: B | DM79: TIDAK LULUS
A80: =+BIODATA!A74 -> 67 | B80: =+BIODATA!B74 -> 0 | C80: =+BIODATA!E74 -> 0 | D80: =+BIODATA!C74 -> 0 | E80: =+BIODATA!D74 -> 0 | F80: =+BIND!H74 -> 0 | G80: =+BIND!K74 -> 0 | H80: =+BIND!N74 -> 0 | I80: =+BIND!Q74 -> 0 | J80: =+BIND!T74 -> 0 | K80: 0 | L80: =+'NILAI SMT 6 (US)'!N74 -> 0 | M80: 0 | N80: 7 | O80: 4.2 | P80: =+'B-ING'!H74 -> 0 | Q80: =+'B-ING'!K74 -> 0 | R80: =+'B-ING'!N74 -> 0 | S80: =+'B-ING'!Q74 -> 0 | T80: =+'B-ING'!T74 -> 0 | U80: 0 | V80: =+'NILAI SMT 6 (US)'!Q74 -> 0 | W80: 0 | X80: 8 | Y80: 4.8 | Z80: =+MAT!H74 -> 0 | AA80: =+MAT!K74 -> 0 | AB80: =+MAT!N74 -> 0 | AC80: =+MAT!Q74 -> 0 | AD80: =+MAT!T74 -> 0 | AE80: 0 | AF80: =+'NILAI SMT 6 (US)'!T74 -> 0 | AG80: 0 | AH80: 9 | AI80: 5.4 | AJ80: =+IPA!H74 -> 0 | AK80: =+IPA!K74 -> 0 | AL80: =+IPA!N74 -> 0 | AM80: =+IPA!Q74 -> 0 | AN80: =+IPA!T74 -> 0 | AO80: 0 | AP80: =+'NILAI SMT 6 (US)'!W74 -> 0 | AQ80: 0 | AR80: 6 | AS80: 3.6 | AT80: =+Agama!H74 -> 0 | AU80: =+Agama!K74 -> 0 | AV80: =+Agama!N74 -> 0 | AW80: =+Agama!Q74 -> 0 | AX80: =+Agama!T74 -> 0 | AY80: 0 | AZ80: =+'NILAI SMT 6 (US)'!H74 -> 0 | BA80: 0 | BB80: =+PPKn!H74 -> 0 | BC80: =+PPKn!K74 -> 0 | BD80: =+PPKn!N74 -> 0 | BE80: =+PPKn!Q74 -> 0 | BF80: =+PPKn!T74 -> 0 | BG80: 0 | BH80: =+'NILAI SMT 6 (US)'!K74 -> 0 | BI80: 0 | BJ80: =+IPS!H74 -> 0 | BK80: =+IPS!K74 -> 0 | BL80: =+IPS!N74 -> 0 | BM80: =+IPS!Q74 -> 0 | BN80: =+IPS!T74 -> 0 | BO80: 0 | BP80: =+'NILAI SMT 6 (US)'!Z74 -> 0 | BQ80: 0 | BR80: =+SENI!H74 -> 0 | BS80: =+SENI!K74 -> 0 | BT80: =+SENI!N74 -> 0 | BU80: =+SENI!Q74 -> 0 | BV80: =+SENI!T74 -> 0 | BW80: 0 | BX80: =+'NILAI SMT 6 (US)'!AC74 -> 0 | BY80: 0 | BZ80: =+PENJAS!H74 -> 0 | CA80: =+PENJAS!K74 -> 0 | CB80: =+PENJAS!N74 -> 0 | CC80: =+PENJAS!Q74 -> 0 | CD80: =+PENJAS!T74 -> 0 | CE80: 0 | CF80: =+'NILAI SMT 6 (US)'!AF74 -> 0 | CG80: 0 | CH80: =+'TIK-KET'!H74 -> 0 | CI80: =+'TIK-KET'!K74 -> 0 | CJ80: =+'TIK-KET'!N74 -> 0 | CK80: =+'TIK-KET'!Q74 -> 0 | CL80: =+'TIK-KET'!T74 -> 0 | CM80: 0 | CN80: =+'NILAI SMT 6 (US)'!AI74 -> 0 | CO80: 0 | CP80: =+'MLK1'!H74 -> 0 | CQ80: =+'MLK1'!K74 -> 0 | CR80: =+'MLK1'!N74 -> 0 | CS80: =+'MLK1'!Q74 -> 0 | CT80: =+'MLK1'!T74 -> 0 | CU80: 0 | CV80: =+'NILAI SMT 6 (US)'!AL74 -> 0 | CW80: 0 | CX80: =+'MLK2'!H74 -> 0 | CY80: =+'MLK2'!K74 -> 0 | CZ80: =+'MLK2'!N74 -> 0 | DA80: =+'MLK2'!Q74 -> 0 | DB80: =+'MLK2'!T74 -> 0 | DC80: 0 | DD80: =+'NILAI SMT 6 (US)'!AO74 -> 0 | DE80: 0 | DF80: =($M80+$W80+$AG80+$AQ80+$BA80+$BI80+$BQ80+$BY80+$CG80+$CO80+$CW80+$DE80) -> 0 | DG80: =DF80/('KRITERIA&MULOK'!$E$20) -> 0 | DH80: =N80+X80+AH80+AR80 -> 30 | DI80: =DH80/4 -> 7.5 | DJ80: =O80+Y80+AI80+AS80 -> 18 | DK80: =DJ80/4 -> 4.5 | DL80: B | DM80: TIDAK LULUS
A81: =+BIODATA!A75 -> 68 | B81: =+BIODATA!B75 -> 0 | C81: =+BIODATA!E75 -> 0 | D81: =+BIODATA!C75 -> 0 | E81: =+BIODATA!D75 -> 0 | F81: =+BIND!H75 -> 0 | G81: =+BIND!K75 -> 0 | H81: =+BIND!N75 -> 0 | I81: =+BIND!Q75 -> 0 | J81: =+BIND!T75 -> 0 | K81: 0 | L81: =+'NILAI SMT 6 (US)'!N75 -> 0 | M81: 0 | N81: 7 | O81: 4.2 | P81: =+'B-ING'!H75 -> 0 | Q81: =+'B-ING'!K75 -> 0 | R81: =+'B-ING'!N75 -> 0 | S81: =+'B-ING'!Q75 -> 0 | T81: =+'B-ING'!T75 -> 0 | U81: 0 | V81: =+'NILAI SMT 6 (US)'!Q75 -> 0 | W81: 0 | X81: 8 | Y81: 4.8 | Z81: =+MAT!H75 -> 0 | AA81: =+MAT!K75 -> 0 | AB81: =+MAT!N75 -> 0 | AC81: =+MAT!Q75 -> 0 | AD81: =+MAT!T75 -> 0 | AE81: 0 | AF81: =+'NILAI SMT 6 (US)'!T75 -> 0 | AG81: 0 | AH81: 9 | AI81: 5.4 | AJ81: =+IPA!H75 -> 0 | AK81: =+IPA!K75 -> 0 | AL81: =+IPA!N75 -> 0 | AM81: =+IPA!Q75 -> 0 | AN81: =+IPA!T75 -> 0 | AO81: 0 | AP81: =+'NILAI SMT 6 (US)'!W75 -> 0 | AQ81: 0 | AR81: 6 | AS81: 3.6 | AT81: =+Agama!H75 -> 0 | AU81: =+Agama!K75 -> 0 | AV81: =+Agama!N75 -> 0 | AW81: =+Agama!Q75 -> 0 | AX81: =+Agama!T75 -> 0 | AY81: 0 | AZ81: =+'NILAI SMT 6 (US)'!H75 -> 0 | BA81: 0 | BB81: =+PPKn!H75 -> 0 | BC81: =+PPKn!K75 -> 0 | BD81: =+PPKn!N75 -> 0 | BE81: =+PPKn!Q75 -> 0 | BF81: =+PPKn!T75 -> 0 | BG81: 0 | BH81: =+'NILAI SMT 6 (US)'!K75 -> 0 | BI81: 0 | BJ81: =+IPS!H75 -> 0 | BK81: =+IPS!K75 -> 0 | BL81: =+IPS!N75 -> 0 | BM81: =+IPS!Q75 -> 0 | BN81: =+IPS!T75 -> 0 | BO81: 0 | BP81: =+'NILAI SMT 6 (US)'!Z75 -> 0 | BQ81: 0 | BR81: =+SENI!H75 -> 0 | BS81: =+SENI!K75 -> 0 | BT81: =+SENI!N75 -> 0 | BU81: =+SENI!Q75 -> 0 | BV81: =+SENI!T75 -> 0 | BW81: 0 | BX81: =+'NILAI SMT 6 (US)'!AC75 -> 0 | BY81: 0 | BZ81: =+PENJAS!H75 -> 0 | CA81: =+PENJAS!K75 -> 0 | CB81: =+PENJAS!N75 -> 0 | CC81: =+PENJAS!Q75 -> 0 | CD81: =+PENJAS!T75 -> 0 | CE81: 0 | CF81: =+'NILAI SMT 6 (US)'!AF75 -> 0 | CG81: 0 | CH81: =+'TIK-KET'!H75 -> 0 | CI81: =+'TIK-KET'!K75 -> 0 | CJ81: =+'TIK-KET'!N75 -> 0 | CK81: =+'TIK-KET'!Q75 -> 0 | CL81: =+'TIK-KET'!T75 -> 0 | CM81: 0 | CN81: =+'NILAI SMT 6 (US)'!AI75 -> 0 | CO81: 0 | CP81: =+'MLK1'!H75 -> 0 | CQ81: =+'MLK1'!K75 -> 0 | CR81: =+'MLK1'!N75 -> 0 | CS81: =+'MLK1'!Q75 -> 0 | CT81: =+'MLK1'!T75 -> 0 | CU81: 0 | CV81: =+'NILAI SMT 6 (US)'!AL75 -> 0 | CW81: 0 | CX81: =+'MLK2'!H75 -> 0 | CY81: =+'MLK2'!K75 -> 0 | CZ81: =+'MLK2'!N75 -> 0 | DA81: =+'MLK2'!Q75 -> 0 | DB81: =+'MLK2'!T75 -> 0 | DC81: 0 | DD81: =+'NILAI SMT 6 (US)'!AO75 -> 0 | DE81: 0 | DF81: 0 | DG81: =DF81/('KRITERIA&MULOK'!$E$20) -> 0 | DH81: 30 | DI81: 7.5 | DJ81: 18 | DK81: 4.5 | DL81: B | DM81: TIDAK LULUS
A82: =+BIODATA!A76 -> 69 | B82: =+BIODATA!B76 -> 0 | C82: =+BIODATA!E76 -> 0 | D82: =+BIODATA!C76 -> 0 | E82: =+BIODATA!D76 -> 0 | F82: =+BIND!H76 -> 0 | G82: =+BIND!K76 -> 0 | H82: =+BIND!N76 -> 0 | I82: =+BIND!Q76 -> 0 | J82: =+BIND!T76 -> 0 | K82: 0 | L82: =+'NILAI SMT 6 (US)'!N76 -> 0 | M82: 0 | N82: 7 | O82: 4.2 | P82: =+'B-ING'!H76 -> 0 | Q82: =+'B-ING'!K76 -> 0 | R82: =+'B-ING'!N76 -> 0 | S82: =+'B-ING'!Q76 -> 0 | T82: =+'B-ING'!T76 -> 0 | U82: 0 | V82: =+'NILAI SMT 6 (US)'!Q76 -> 0 | W82: 0 | X82: 8 | Y82: 4.8 | Z82: =+MAT!H76 -> 0 | AA82: =+MAT!K76 -> 0 | AB82: =+MAT!N76 -> 0 | AC82: =+MAT!Q76 -> 0 | AD82: =+MAT!T76 -> 0 | AE82: 0 | AF82: =+'NILAI SMT 6 (US)'!T76 -> 0 | AG82: 0 | AH82: 9 | AI82: 5.4 | AJ82: =+IPA!H76 -> 0 | AK82: =+IPA!K76 -> 0 | AL82: =+IPA!N76 -> 0 | AM82: =+IPA!Q76 -> 0 | AN82: =+IPA!T76 -> 0 | AO82: 0 | AP82: =+'NILAI SMT 6 (US)'!W76 -> 0 | AQ82: 0 | AR82: 6 | AS82: 3.6 | AT82: =+Agama!H76 -> 0 | AU82: =+Agama!K76 -> 0 | AV82: =+Agama!N76 -> 0 | AW82: =+Agama!Q76 -> 0 | AX82: =+Agama!T76 -> 0 | AY82: 0 | AZ82: =+'NILAI SMT 6 (US)'!H76 -> 0 | BA82: 0 | BB82: =+PPKn!H76 -> 0 | BC82: =+PPKn!K76 -> 0 | BD82: =+PPKn!N76 -> 0 | BE82: =+PPKn!Q76 -> 0 | BF82: =+PPKn!T76 -> 0 | BG82: 0 | BH82: =+'NILAI SMT 6 (US)'!K76 -> 0 | BI82: 0 | BJ82: =+IPS!H76 -> 0 | BK82: =+IPS!K76 -> 0 | BL82: =+IPS!N76 -> 0 | BM82: =+IPS!Q76 -> 0 | BN82: =+IPS!T76 -> 0 | BO82: 0 | BP82: =+'NILAI SMT 6 (US)'!Z76 -> 0 | BQ82: 0 | BR82: =+SENI!H76 -> 0 | BS82: =+SENI!K76 -> 0 | BT82: =+SENI!N76 -> 0 | BU82: =+SENI!Q76 -> 0 | BV82: =+SENI!T76 -> 0 | BW82: 0 | BX82: =+'NILAI SMT 6 (US)'!AC76 -> 0 | BY82: 0 | BZ82: =+PENJAS!H76 -> 0 | CA82: =+PENJAS!K76 -> 0 | CB82: =+PENJAS!N76 -> 0 | CC82: =+PENJAS!Q76 -> 0 | CD82: =+PENJAS!T76 -> 0 | CE82: 0 | CF82: =+'NILAI SMT 6 (US)'!AF76 -> 0 | CG82: 0 | CH82: =+'TIK-KET'!H76 -> 0 | CI82: =+'TIK-KET'!K76 -> 0 | CJ82: =+'TIK-KET'!N76 -> 0 | CK82: =+'TIK-KET'!Q76 -> 0 | CL82: =+'TIK-KET'!T76 -> 0 | CM82: 0 | CN82: =+'NILAI SMT 6 (US)'!AI76 -> 0 | CO82: 0 | CP82: =+'MLK1'!H76 -> 0 | CQ82: =+'MLK1'!K76 -> 0 | CR82: =+'MLK1'!N76 -> 0 | CS82: =+'MLK1'!Q76 -> 0 | CT82: =+'MLK1'!T76 -> 0 | CU82: 0 | CV82: =+'NILAI SMT 6 (US)'!AL76 -> 0 | CW82: 0 | CX82: =+'MLK2'!H76 -> 0 | CY82: =+'MLK2'!K76 -> 0 | CZ82: =+'MLK2'!N76 -> 0 | DA82: =+'MLK2'!Q76 -> 0 | DB82: =+'MLK2'!T76 -> 0 | DC82: 0 | DD82: =+'NILAI SMT 6 (US)'!AO76 -> 0 | DE82: 0 | DF82: 0 | DG82: =DF82/('KRITERIA&MULOK'!$E$20) -> 0 | DH82: 30 | DI82: 7.5 | DJ82: 18 | DK82: 4.5 | DL82: B | DM82: TIDAK LULUS
A83: =+BIODATA!A77 -> 70 | B83: =+BIODATA!B77 -> 0 | C83: =+BIODATA!E77 -> 0 | D83: =+BIODATA!C77 -> 0 | E83: =+BIODATA!D77 -> 0 | F83: =+BIND!H77 -> 0 | G83: =+BIND!K77 -> 0 | H83: =+BIND!N77 -> 0 | I83: =+BIND!Q77 -> 0 | J83: =+BIND!T77 -> 0 | K83: 0 | L83: =+'NILAI SMT 6 (US)'!N77 -> 0 | M83: 0 | N83: 7 | O83: 4.2 | P83: =+'B-ING'!H77 -> 0 | Q83: =+'B-ING'!K77 -> 0 | R83: =+'B-ING'!N77 -> 0 | S83: =+'B-ING'!Q77 -> 0 | T83: =+'B-ING'!T77 -> 0 | U83: 0 | V83: =+'NILAI SMT 6 (US)'!Q77 -> 0 | W83: 0 | X83: 8 | Y83: 4.8 | Z83: =+MAT!H77 -> 0 | AA83: =+MAT!K77 -> 0 | AB83: =+MAT!N77 -> 0 | AC83: =+MAT!Q77 -> 0 | AD83: =+MAT!T77 -> 0 | AE83: 0 | AF83: =+'NILAI SMT 6 (US)'!T77 -> 0 | AG83: 0 | AH83: 9 | AI83: 5.4 | AJ83: =+IPA!H77 -> 0 | AK83: =+IPA!K77 -> 0 | AL83: =+IPA!N77 -> 0 | AM83: =+IPA!Q77 -> 0 | AN83: =+IPA!T77 -> 0 | AO83: 0 | AP83: =+'NILAI SMT 6 (US)'!W77 -> 0 | AQ83: 0 | AR83: 6 | AS83: 3.6 | AT83: =+Agama!H77 -> 0 | AU83: =+Agama!K77 -> 0 | AV83: =+Agama!N77 -> 0 | AW83: =+Agama!Q77 -> 0 | AX83: =+Agama!T77 -> 0 | AY83: 0 | AZ83: =+'NILAI SMT 6 (US)'!H77 -> 0 | BA83: 0 | BB83: =+PPKn!H77 -> 0 | BC83: =+PPKn!K77 -> 0 | BD83: =+PPKn!N77 -> 0 | BE83: =+PPKn!Q77 -> 0 | BF83: =+PPKn!T77 -> 0 | BG83: 0 | BH83: =+'NILAI SMT 6 (US)'!K77 -> 0 | BI83: 0 | BJ83: =+IPS!H77 -> 0 | BK83: =+IPS!K77 -> 0 | BL83: =+IPS!N77 -> 0 | BM83: =+IPS!Q77 -> 0 | BN83: =+IPS!T77 -> 0 | BO83: 0 | BP83: =+'NILAI SMT 6 (US)'!Z77 -> 0 | BQ83: 0 | BR83: =+SENI!H77 -> 0 | BS83: =+SENI!K77 -> 0 | BT83: =+SENI!N77 -> 0 | BU83: =+SENI!Q77 -> 0 | BV83: =+SENI!T77 -> 0 | BW83: 0 | BX83: =+'NILAI SMT 6 (US)'!AC77 -> 0 | BY83: 0 | BZ83: =+PENJAS!H77 -> 0 | CA83: =+PENJAS!K77 -> 0 | CB83: =+PENJAS!N77 -> 0 | CC83: =+PENJAS!Q77 -> 0 | CD83: =+PENJAS!T77 -> 0 | CE83: 0 | CF83: =+'NILAI SMT 6 (US)'!AF77 -> 0 | CG83: 0 | CH83: =+'TIK-KET'!H77 -> 0 | CI83: =+'TIK-KET'!K77 -> 0 | CJ83: =+'TIK-KET'!N77 -> 0 | CK83: =+'TIK-KET'!Q77 -> 0 | CL83: =+'TIK-KET'!T77 -> 0 | CM83: 0 | CN83: =+'NILAI SMT 6 (US)'!AI77 -> 0 | CO83: 0 | CP83: =+'MLK1'!H77 -> 0 | CQ83: =+'MLK1'!K77 -> 0 | CR83: =+'MLK1'!N77 -> 0 | CS83: =+'MLK1'!Q77 -> 0 | CT83: =+'MLK1'!T77 -> 0 | CU83: 0 | CV83: =+'NILAI SMT 6 (US)'!AL77 -> 0 | CW83: 0 | CX83: =+'MLK2'!H77 -> 0 | CY83: =+'MLK2'!K77 -> 0 | CZ83: =+'MLK2'!N77 -> 0 | DA83: =+'MLK2'!Q77 -> 0 | DB83: =+'MLK2'!T77 -> 0 | DC83: 0 | DD83: =+'NILAI SMT 6 (US)'!AO77 -> 0 | DE83: 0 | DF83: 0 | DG83: =DF83/('KRITERIA&MULOK'!$E$20) -> 0 | DH83: 30 | DI83: 7.5 | DJ83: 18 | DK83: 4.5 | DL83: B | DM83: TIDAK LULUS
A84: =+BIODATA!A78 -> 71 | B84: =+BIODATA!B78 -> 0 | C84: =+BIODATA!E78 -> 0 | D84: =+BIODATA!C78 -> 0 | E84: =+BIODATA!D78 -> 0 | F84: =+BIND!H78 -> 0 | G84: =+BIND!K78 -> 0 | H84: =+BIND!N78 -> 0 | I84: =+BIND!Q78 -> 0 | J84: =+BIND!T78 -> 0 | K84: 0 | L84: =+'NILAI SMT 6 (US)'!N78 -> 0 | M84: 0 | N84: 7 | O84: 4.2 | P84: =+'B-ING'!H78 -> 0 | Q84: =+'B-ING'!K78 -> 0 | R84: =+'B-ING'!N78 -> 0 | S84: =+'B-ING'!Q78 -> 0 | T84: =+'B-ING'!T78 -> 0 | U84: 0 | V84: =+'NILAI SMT 6 (US)'!Q78 -> 0 | W84: 0 | X84: 8 | Y84: 4.8 | Z84: =+MAT!H78 -> 0 | AA84: =+MAT!K78 -> 0 | AB84: =+MAT!N78 -> 0 | AC84: =+MAT!Q78 -> 0 | AD84: =+MAT!T78 -> 0 | AE84: 0 | AF84: =+'NILAI SMT 6 (US)'!T78 -> 0 | AG84: 0 | AH84: 9 | AI84: 5.4 | AJ84: =+IPA!H78 -> 0 | AK84: =+IPA!K78 -> 0 | AL84: =+IPA!N78 -> 0 | AM84: =+IPA!Q78 -> 0 | AN84: =+IPA!T78 -> 0 | AO84: 0 | AP84: =+'NILAI SMT 6 (US)'!W78 -> 0 | AQ84: 0 | AR84: 6 | AS84: 3.6 | AT84: =+Agama!H78 -> 0 | AU84: =+Agama!K78 -> 0 | AV84: =+Agama!N78 -> 0 | AW84: =+Agama!Q78 -> 0 | AX84: =+Agama!T78 -> 0 | AY84: 0 | AZ84: =+'NILAI SMT 6 (US)'!H78 -> 0 | BA84: 0 | BB84: =+PPKn!H78 -> 0 | BC84: =+PPKn!K78 -> 0 | BD84: =+PPKn!N78 -> 0 | BE84: =+PPKn!Q78 -> 0 | BF84: =+PPKn!T78 -> 0 | BG84: 0 | BH84: =+'NILAI SMT 6 (US)'!K78 -> 0 | BI84: 0 | BJ84: =+IPS!H78 -> 0 | BK84: =+IPS!K78 -> 0 | BL84: =+IPS!N78 -> 0 | BM84: =+IPS!Q78 -> 0 | BN84: =+IPS!T78 -> 0 | BO84: 0 | BP84: =+'NILAI SMT 6 (US)'!Z78 -> 0 | BQ84: 0 | BR84: =+SENI!H78 -> 0 | BS84: =+SENI!K78 -> 0 | BT84: =+SENI!N78 -> 0 | BU84: =+SENI!Q78 -> 0 | BV84: =+SENI!T78 -> 0 | BW84: 0 | BX84: =+'NILAI SMT 6 (US)'!AC78 -> 0 | BY84: 0 | BZ84: =+PENJAS!H78 -> 0 | CA84: =+PENJAS!K78 -> 0 | CB84: =+PENJAS!N78 -> 0 | CC84: =+PENJAS!Q78 -> 0 | CD84: =+PENJAS!T78 -> 0 | CE84: 0 | CF84: =+'NILAI SMT 6 (US)'!AF78 -> 0 | CG84: 0 | CH84: =+'TIK-KET'!H78 -> 0 | CI84: =+'TIK-KET'!K78 -> 0 | CJ84: =+'TIK-KET'!N78 -> 0 | CK84: =+'TIK-KET'!Q78 -> 0 | CL84: =+'TIK-KET'!T78 -> 0 | CM84: 0 | CN84: =+'NILAI SMT 6 (US)'!AI78 -> 0 | CO84: 0 | CP84: =+'MLK1'!H78 -> 0 | CQ84: =+'MLK1'!K78 -> 0 | CR84: =+'MLK1'!N78 -> 0 | CS84: =+'MLK1'!Q78 -> 0 | CT84: =+'MLK1'!T78 -> 0 | CU84: 0 | CV84: =+'NILAI SMT 6 (US)'!AL78 -> 0 | CW84: 0 | CX84: =+'MLK2'!H78 -> 0 | CY84: =+'MLK2'!K78 -> 0 | CZ84: =+'MLK2'!N78 -> 0 | DA84: =+'MLK2'!Q78 -> 0 | DB84: =+'MLK2'!T78 -> 0 | DC84: 0 | DD84: =+'NILAI SMT 6 (US)'!AO78 -> 0 | DE84: 0 | DF84: 0 | DG84: =DF84/('KRITERIA&MULOK'!$E$20) -> 0 | DH84: 30 | DI84: 7.5 | DJ84: 18 | DK84: 4.5 | DL84: B | DM84: TIDAK LULUS
A85: =+BIODATA!A79 -> 72 | B85: =+BIODATA!B79 -> 0 | C85: =+BIODATA!E79 -> 0 | D85: =+BIODATA!C79 -> 0 | E85: =+BIODATA!D79 -> 0 | F85: =+BIND!H79 -> 0 | G85: =+BIND!K79 -> 0 | H85: =+BIND!N79 -> 0 | I85: =+BIND!Q79 -> 0 | J85: =+BIND!T79 -> 0 | K85: 0 | L85: =+'NILAI SMT 6 (US)'!N79 -> 0 | M85: 0 | N85: 7 | O85: 4.2 | P85: =+'B-ING'!H79 -> 0 | Q85: =+'B-ING'!K79 -> 0 | R85: =+'B-ING'!N79 -> 0 | S85: =+'B-ING'!Q79 -> 0 | T85: =+'B-ING'!T79 -> 0 | U85: 0 | V85: =+'NILAI SMT 6 (US)'!Q79 -> 0 | W85: 0 | X85: 8 | Y85: 4.8 | Z85: =+MAT!H79 -> 0 | AA85: =+MAT!K79 -> 0 | AB85: =+MAT!N79 -> 0 | AC85: =+MAT!Q79 -> 0 | AD85: =+MAT!T79 -> 0 | AE85: 0 | AF85: =+'NILAI SMT 6 (US)'!T79 -> 0 | AG85: 0 | AH85: 9 | AI85: 5.4 | AJ85: =+IPA!H79 -> 0 | AK85: =+IPA!K79 -> 0 | AL85: =+IPA!N79 -> 0 | AM85: =+IPA!Q79 -> 0 | AN85: =+IPA!T79 -> 0 | AO85: 0 | AP85: =+'NILAI SMT 6 (US)'!W79 -> 0 | AQ85: 0 | AR85: 6 | AS85: 3.6 | AT85: =+Agama!H79 -> 0 | AU85: =+Agama!K79 -> 0 | AV85: =+Agama!N79 -> 0 | AW85: =+Agama!Q79 -> 0 | AX85: =+Agama!T79 -> 0 | AY85: 0 | AZ85: =+'NILAI SMT 6 (US)'!H79 -> 0 | BA85: 0 | BB85: =+PPKn!H79 -> 0 | BC85: =+PPKn!K79 -> 0 | BD85: =+PPKn!N79 -> 0 | BE85: =+PPKn!Q79 -> 0 | BF85: =+PPKn!T79 -> 0 | BG85: 0 | BH85: =+'NILAI SMT 6 (US)'!K79 -> 0 | BI85: 0 | BJ85: =+IPS!H79 -> 0 | BK85: =+IPS!K79 -> 0 | BL85: =+IPS!N79 -> 0 | BM85: =+IPS!Q79 -> 0 | BN85: =+IPS!T79 -> 0 | BO85: 0 | BP85: =+'NILAI SMT 6 (US)'!Z79 -> 0 | BQ85: 0 | BR85: =+SENI!H79 -> 0 | BS85: =+SENI!K79 -> 0 | BT85: =+SENI!N79 -> 0 | BU85: =+SENI!Q79 -> 0 | BV85: =+SENI!T79 -> 0 | BW85: 0 | BX85: =+'NILAI SMT 6 (US)'!AC79 -> 0 | BY85: 0 | BZ85: =+PENJAS!H79 -> 0 | CA85: =+PENJAS!K79 -> 0 | CB85: =+PENJAS!N79 -> 0 | CC85: =+PENJAS!Q79 -> 0 | CD85: =+PENJAS!T79 -> 0 | CE85: 0 | CF85: =+'NILAI SMT 6 (US)'!AF79 -> 0 | CG85: 0 | CH85: =+'TIK-KET'!H79 -> 0 | CI85: =+'TIK-KET'!K79 -> 0 | CJ85: =+'TIK-KET'!N79 -> 0 | CK85: =+'TIK-KET'!Q79 -> 0 | CL85: =+'TIK-KET'!T79 -> 0 | CM85: 0 | CN85: =+'NILAI SMT 6 (US)'!AI79 -> 0 | CO85: 0 | CP85: =+'MLK1'!H79 -> 0 | CQ85: =+'MLK1'!K79 -> 0 | CR85: =+'MLK1'!N79 -> 0 | CS85: =+'MLK1'!Q79 -> 0 | CT85: =+'MLK1'!T79 -> 0 | CU85: 0 | CV85: =+'NILAI SMT 6 (US)'!AL79 -> 0 | CW85: 0 | CX85: =+'MLK2'!H79 -> 0 | CY85: =+'MLK2'!K79 -> 0 | CZ85: =+'MLK2'!N79 -> 0 | DA85: =+'MLK2'!Q79 -> 0 | DB85: =+'MLK2'!T79 -> 0 | DC85: 0 | DD85: =+'NILAI SMT 6 (US)'!AO79 -> 0 | DE85: 0 | DF85: 0 | DG85: =DF85/('KRITERIA&MULOK'!$E$20) -> 0 | DH85: 30 | DI85: 7.5 | DJ85: 18 | DK85: 4.5 | DL85: B | DM85: TIDAK LULUS
A86: =+BIODATA!A80 -> 73 | B86: =+BIODATA!B80 -> 0 | C86: =+BIODATA!E80 -> 0 | D86: =+BIODATA!C80 -> 0 | E86: =+BIODATA!D80 -> 0 | F86: =+BIND!H80 -> 0 | G86: =+BIND!K80 -> 0 | H86: =+BIND!N80 -> 0 | I86: =+BIND!Q80 -> 0 | J86: =+BIND!T80 -> 0 | K86: 0 | L86: =+'NILAI SMT 6 (US)'!N80 -> 0 | M86: 0 | N86: 7 | O86: 4.2 | P86: =+'B-ING'!H80 -> 0 | Q86: =+'B-ING'!K80 -> 0 | R86: =+'B-ING'!N80 -> 0 | S86: =+'B-ING'!Q80 -> 0 | T86: =+'B-ING'!T80 -> 0 | U86: 0 | V86: =+'NILAI SMT 6 (US)'!Q80 -> 0 | W86: 0 | X86: 8 | Y86: 4.8 | Z86: =+MAT!H80 -> 0 | AA86: =+MAT!K80 -> 0 | AB86: =+MAT!N80 -> 0 | AC86: =+MAT!Q80 -> 0 | AD86: =+MAT!T80 -> 0 | AE86: 0 | AF86: =+'NILAI SMT 6 (US)'!T80 -> 0 | AG86: 0 | AH86: 9 | AI86: 5.4 | AJ86: =+IPA!H80 -> 0 | AK86: =+IPA!K80 -> 0 | AL86: =+IPA!N80 -> 0 | AM86: =+IPA!Q80 -> 0 | AN86: =+IPA!T80 -> 0 | AO86: 0 | AP86: =+'NILAI SMT 6 (US)'!W80 -> 0 | AQ86: 0 | AR86: 6 | AS86: 3.6 | AT86: =+Agama!H80 -> 0 | AU86: =+Agama!K80 -> 0 | AV86: =+Agama!N80 -> 0 | AW86: =+Agama!Q80 -> 0 | AX86: =+Agama!T80 -> 0 | AY86: 0 | AZ86: =+'NILAI SMT 6 (US)'!H80 -> 0 | BA86: 0 | BB86: =+PPKn!H80 -> 0 | BC86: =+PPKn!K80 -> 0 | BD86: =+PPKn!N80 -> 0 | BE86: =+PPKn!Q80 -> 0 | BF86: =+PPKn!T80 -> 0 | BG86: 0 | BH86: =+'NILAI SMT 6 (US)'!K80 -> 0 | BI86: 0 | BJ86: =+IPS!H80 -> 0 | BK86: =+IPS!K80 -> 0 | BL86: =+IPS!N80 -> 0 | BM86: =+IPS!Q80 -> 0 | BN86: =+IPS!T80 -> 0 | BO86: 0 | BP86: =+'NILAI SMT 6 (US)'!Z80 -> 0 | BQ86: 0 | BR86: =+SENI!H80 -> 0 | BS86: =+SENI!K80 -> 0 | BT86: =+SENI!N80 -> 0 | BU86: =+SENI!Q80 -> 0 | BV86: =+SENI!T80 -> 0 | BW86: 0 | BX86: =+'NILAI SMT 6 (US)'!AC80 -> 0 | BY86: 0 | BZ86: =+PENJAS!H80 -> 0 | CA86: =+PENJAS!K80 -> 0 | CB86: =+PENJAS!N80 -> 0 | CC86: =+PENJAS!Q80 -> 0 | CD86: =+PENJAS!T80 -> 0 | CE86: 0 | CF86: =+'NILAI SMT 6 (US)'!AF80 -> 0 | CG86: 0 | CH86: =+'TIK-KET'!H80 -> 0 | CI86: =+'TIK-KET'!K80 -> 0 | CJ86: =+'TIK-KET'!N80 -> 0 | CK86: =+'TIK-KET'!Q80 -> 0 | CL86: =+'TIK-KET'!T80 -> 0 | CM86: 0 | CN86: =+'NILAI SMT 6 (US)'!AI80 -> 0 | CO86: 0 | CP86: =+'MLK1'!H80 -> 0 | CQ86: =+'MLK1'!K80 -> 0 | CR86: =+'MLK1'!N80 -> 0 | CS86: =+'MLK1'!Q80 -> 0 | CT86: =+'MLK1'!T80 -> 0 | CU86: 0 | CV86: =+'NILAI SMT 6 (US)'!AL80 -> 0 | CW86: 0 | CX86: =+'MLK2'!H80 -> 0 | CY86: =+'MLK2'!K80 -> 0 | CZ86: =+'MLK2'!N80 -> 0 | DA86: =+'MLK2'!Q80 -> 0 | DB86: =+'MLK2'!T80 -> 0 | DC86: 0 | DD86: =+'NILAI SMT 6 (US)'!AO80 -> 0 | DE86: 0 | DF86: 0 | DG86: =DF86/('KRITERIA&MULOK'!$E$20) -> 0 | DH86: 30 | DI86: 7.5 | DJ86: 18 | DK86: 4.5 | DL86: B | DM86: TIDAK LULUS
A87: =+BIODATA!A81 -> 74 | B87: =+BIODATA!B81 -> 0 | C87: =+BIODATA!E81 -> 0 | D87: =+BIODATA!C81 -> 0 | E87: =+BIODATA!D81 -> 0 | F87: =+BIND!H81 -> 0 | G87: =+BIND!K81 -> 0 | H87: =+BIND!N81 -> 0 | I87: =+BIND!Q81 -> 0 | J87: =+BIND!T81 -> 0 | K87: 0 | L87: =+'NILAI SMT 6 (US)'!N81 -> 0 | M87: 0 | N87: 7 | O87: 4.2 | P87: =+'B-ING'!H81 -> 0 | Q87: =+'B-ING'!K81 -> 0 | R87: =+'B-ING'!N81 -> 0 | S87: =+'B-ING'!Q81 -> 0 | T87: =+'B-ING'!T81 -> 0 | U87: 0 | V87: =+'NILAI SMT 6 (US)'!Q81 -> 0 | W87: 0 | X87: 8 | Y87: 4.8 | Z87: =+MAT!H81 -> 0 | AA87: =+MAT!K81 -> 0 | AB87: =+MAT!N81 -> 0 | AC87: =+MAT!Q81 -> 0 | AD87: =+MAT!T81 -> 0 | AE87: 0 | AF87: =+'NILAI SMT 6 (US)'!T81 -> 0 | AG87: 0 | AH87: 9 | AI87: 5.4 | AJ87: =+IPA!H81 -> 0 | AK87: =+IPA!K81 -> 0 | AL87: =+IPA!N81 -> 0 | AM87: =+IPA!Q81 -> 0 | AN87: =+IPA!T81 -> 0 | AO87: 0 | AP87: =+'NILAI SMT 6 (US)'!W81 -> 0 | AQ87: 0 | AR87: 6 | AS87: 3.6 | AT87: =+Agama!H81 -> 0 | AU87: =+Agama!K81 -> 0 | AV87: =+Agama!N81 -> 0 | AW87: =+Agama!Q81 -> 0 | AX87: =+Agama!T81 -> 0 | AY87: 0 | AZ87: =+'NILAI SMT 6 (US)'!H81 -> 0 | BA87: 0 | BB87: =+PPKn!H81 -> 0 | BC87: =+PPKn!K81 -> 0 | BD87: =+PPKn!N81 -> 0 | BE87: =+PPKn!Q81 -> 0 | BF87: =+PPKn!T81 -> 0 | BG87: 0 | BH87: =+'NILAI SMT 6 (US)'!K81 -> 0 | BI87: 0 | BJ87: =+IPS!H81 -> 0 | BK87: =+IPS!K81 -> 0 | BL87: =+IPS!N81 -> 0 | BM87: =+IPS!Q81 -> 0 | BN87: =+IPS!T81 -> 0 | BO87: 0 | BP87: =+'NILAI SMT 6 (US)'!Z81 -> 0 | BQ87: 0 | BR87: =+SENI!H81 -> 0 | BS87: =+SENI!K81 -> 0 | BT87: =+SENI!N81 -> 0 | BU87: =+SENI!Q81 -> 0 | BV87: =+SENI!T81 -> 0 | BW87: 0 | BX87: =+'NILAI SMT 6 (US)'!AC81 -> 0 | BY87: 0 | BZ87: =+PENJAS!H81 -> 0 | CA87: =+PENJAS!K81 -> 0 | CB87: =+PENJAS!N81 -> 0 | CC87: =+PENJAS!Q81 -> 0 | CD87: =+PENJAS!T81 -> 0 | CE87: 0 | CF87: =+'NILAI SMT 6 (US)'!AF81 -> 0 | CG87: 0 | CH87: =+'TIK-KET'!H81 -> 0 | CI87: =+'TIK-KET'!K81 -> 0 | CJ87: =+'TIK-KET'!N81 -> 0 | CK87: =+'TIK-KET'!Q81 -> 0 | CL87: =+'TIK-KET'!T81 -> 0 | CM87: 0 | CN87: =+'NILAI SMT 6 (US)'!AI81 -> 0 | CO87: 0 | CP87: =+'MLK1'!H81 -> 0 | CQ87: =+'MLK1'!K81 -> 0 | CR87: =+'MLK1'!N81 -> 0 | CS87: =+'MLK1'!Q81 -> 0 | CT87: =+'MLK1'!T81 -> 0 | CU87: 0 | CV87: =+'NILAI SMT 6 (US)'!AL81 -> 0 | CW87: 0 | CX87: =+'MLK2'!H81 -> 0 | CY87: =+'MLK2'!K81 -> 0 | CZ87: =+'MLK2'!N81 -> 0 | DA87: =+'MLK2'!Q81 -> 0 | DB87: =+'MLK2'!T81 -> 0 | DC87: 0 | DD87: =+'NILAI SMT 6 (US)'!AO81 -> 0 | DE87: 0 | DF87: 0 | DG87: =DF87/('KRITERIA&MULOK'!$E$20) -> 0 | DH87: 30 | DI87: 7.5 | DJ87: 18 | DK87: 4.5 | DL87: B | DM87: TIDAK LULUS
A88: =+BIODATA!A82 -> 75 | B88: =+BIODATA!B82 -> 0 | C88: =+BIODATA!E82 -> 0 | D88: =+BIODATA!C82 -> 0 | E88: =+BIODATA!D82 -> 0 | F88: =+BIND!H82 -> 0 | G88: =+BIND!K82 -> 0 | H88: =+BIND!N82 -> 0 | I88: =+BIND!Q82 -> 0 | J88: =+BIND!T82 -> 0 | K88: 0 | L88: =+'NILAI SMT 6 (US)'!N82 -> 0 | M88: 0 | N88: 7 | O88: 4.2 | P88: =+'B-ING'!H82 -> 0 | Q88: =+'B-ING'!K82 -> 0 | R88: =+'B-ING'!N82 -> 0 | S88: =+'B-ING'!Q82 -> 0 | T88: =+'B-ING'!T82 -> 0 | U88: 0 | V88: =+'NILAI SMT 6 (US)'!Q82 -> 0 | W88: 0 | X88: 8 | Y88: 4.8 | Z88: =+MAT!H82 -> 0 | AA88: =+MAT!K82 -> 0 | AB88: =+MAT!N82 -> 0 | AC88: =+MAT!Q82 -> 0 | AD88: =+MAT!T82 -> 0 | AE88: 0 | AF88: =+'NILAI SMT 6 (US)'!T82 -> 0 | AG88: 0 | AH88: 9 | AI88: 5.4 | AJ88: =+IPA!H82 -> 0 | AK88: =+IPA!K82 -> 0 | AL88: =+IPA!N82 -> 0 | AM88: =+IPA!Q82 -> 0 | AN88: =+IPA!T82 -> 0 | AO88: 0 | AP88: =+'NILAI SMT 6 (US)'!W82 -> 0 | AQ88: 0 | AR88: 6 | AS88: 3.6 | AT88: =+Agama!H82 -> 0 | AU88: =+Agama!K82 -> 0 | AV88: =+Agama!N82 -> 0 | AW88: =+Agama!Q82 -> 0 | AX88: =+Agama!T82 -> 0 | AY88: 0 | AZ88: =+'NILAI SMT 6 (US)'!H82 -> 0 | BA88: 0 | BB88: =+PPKn!H82 -> 0 | BC88: =+PPKn!K82 -> 0 | BD88: =+PPKn!N82 -> 0 | BE88: =+PPKn!Q82 -> 0 | BF88: =+PPKn!T82 -> 0 | BG88: 0 | BH88: =+'NILAI SMT 6 (US)'!K82 -> 0 | BI88: 0 | BJ88: =+IPS!H82 -> 0 | BK88: =+IPS!K82 -> 0 | BL88: =+IPS!N82 -> 0 | BM88: =+IPS!Q82 -> 0 | BN88: =+IPS!T82 -> 0 | BO88: 0 | BP88: =+'NILAI SMT 6 (US)'!Z82 -> 0 | BQ88: 0 | BR88: =+SENI!H82 -> 0 | BS88: =+SENI!K82 -> 0 | BT88: =+SENI!N82 -> 0 | BU88: =+SENI!Q82 -> 0 | BV88: =+SENI!T82 -> 0 | BW88: 0 | BX88: =+'NILAI SMT 6 (US)'!AC82 -> 0 | BY88: 0 | BZ88: =+PENJAS!H82 -> 0 | CA88: =+PENJAS!K82 -> 0 | CB88: =+PENJAS!N82 -> 0 | CC88: =+PENJAS!Q82 -> 0 | CD88: =+PENJAS!T82 -> 0 | CE88: 0 | CF88: =+'NILAI SMT 6 (US)'!AF82 -> 0 | CG88: 0 | CH88: =+'TIK-KET'!H82 -> 0 | CI88: =+'TIK-KET'!K82 -> 0 | CJ88: =+'TIK-KET'!N82 -> 0 | CK88: =+'TIK-KET'!Q82 -> 0 | CL88: =+'TIK-KET'!T82 -> 0 | CM88: 0 | CN88: =+'NILAI SMT 6 (US)'!AI82 -> 0 | CO88: 0 | CP88: =+'MLK1'!H82 -> 0 | CQ88: =+'MLK1'!K82 -> 0 | CR88: =+'MLK1'!N82 -> 0 | CS88: =+'MLK1'!Q82 -> 0 | CT88: =+'MLK1'!T82 -> 0 | CU88: 0 | CV88: =+'NILAI SMT 6 (US)'!AL82 -> 0 | CW88: 0 | CX88: =+'MLK2'!H82 -> 0 | CY88: =+'MLK2'!K82 -> 0 | CZ88: =+'MLK2'!N82 -> 0 | DA88: =+'MLK2'!Q82 -> 0 | DB88: =+'MLK2'!T82 -> 0 | DC88: 0 | DD88: =+'NILAI SMT 6 (US)'!AO82 -> 0 | DE88: 0 | DF88: 0 | DG88: =DF88/('KRITERIA&MULOK'!$E$20) -> 0 | DH88: 30 | DI88: 7.5 | DJ88: 18 | DK88: 4.5 | DL88: B | DM88: TIDAK LULUS
A89: =+BIODATA!A83 -> 76 | B89: =+BIODATA!B83 -> 0 | C89: =+BIODATA!E83 -> 0 | D89: =+BIODATA!C83 -> 0 | E89: =+BIODATA!D83 -> 0 | F89: =+BIND!H83 -> 0 | G89: =+BIND!K83 -> 0 | H89: =+BIND!N83 -> 0 | I89: =+BIND!Q83 -> 0 | J89: =+BIND!T83 -> 0 | K89: 0 | L89: =+'NILAI SMT 6 (US)'!N83 -> 0 | M89: 0 | N89: 7 | O89: 4.2 | P89: =+'B-ING'!H83 -> 0 | Q89: =+'B-ING'!K83 -> 0 | R89: =+'B-ING'!N83 -> 0 | S89: =+'B-ING'!Q83 -> 0 | T89: =+'B-ING'!T83 -> 0 | U89: 0 | V89: =+'NILAI SMT 6 (US)'!Q83 -> 0 | W89: 0 | X89: 8 | Y89: 4.8 | Z89: =+MAT!H83 -> 0 | AA89: =+MAT!K83 -> 0 | AB89: =+MAT!N83 -> 0 | AC89: =+MAT!Q83 -> 0 | AD89: =+MAT!T83 -> 0 | AE89: 0 | AF89: =+'NILAI SMT 6 (US)'!T83 -> 0 | AG89: 0 | AH89: 9 | AI89: 5.4 | AJ89: =+IPA!H83 -> 0 | AK89: =+IPA!K83 -> 0 | AL89: =+IPA!N83 -> 0 | AM89: =+IPA!Q83 -> 0 | AN89: =+IPA!T83 -> 0 | AO89: 0 | AP89: =+'NILAI SMT 6 (US)'!W83 -> 0 | AQ89: 0 | AR89: 6 | AS89: 3.6 | AT89: =+Agama!H83 -> 0 | AU89: =+Agama!K83 -> 0 | AV89: =+Agama!N83 -> 0 | AW89: =+Agama!Q83 -> 0 | AX89: =+Agama!T83 -> 0 | AY89: 0 | AZ89: =+'NILAI SMT 6 (US)'!H83 -> 0 | BA89: 0 | BB89: =+PPKn!H83 -> 0 | BC89: =+PPKn!K83 -> 0 | BD89: =+PPKn!N83 -> 0 | BE89: =+PPKn!Q83 -> 0 | BF89: =+PPKn!T83 -> 0 | BG89: 0 | BH89: =+'NILAI SMT 6 (US)'!K83 -> 0 | BI89: 0 | BJ89: =+IPS!H83 -> 0 | BK89: =+IPS!K83 -> 0 | BL89: =+IPS!N83 -> 0 | BM89: =+IPS!Q83 -> 0 | BN89: =+IPS!T83 -> 0 | BO89: 0 | BP89: =+'NILAI SMT 6 (US)'!Z83 -> 0 | BQ89: 0 | BR89: =+SENI!H83 -> 0 | BS89: =+SENI!K83 -> 0 | BT89: =+SENI!N83 -> 0 | BU89: =+SENI!Q83 -> 0 | BV89: =+SENI!T83 -> 0 | BW89: 0 | BX89: =+'NILAI SMT 6 (US)'!AC83 -> 0 | BY89: 0 | BZ89: =+PENJAS!H83 -> 0 | CA89: =+PENJAS!K83 -> 0 | CB89: =+PENJAS!N83 -> 0 | CC89: =+PENJAS!Q83 -> 0 | CD89: =+PENJAS!T83 -> 0 | CE89: 0 | CF89: =+'NILAI SMT 6 (US)'!AF83 -> 0 | CG89: 0 | CH89: =+'TIK-KET'!H83 -> 0 | CI89: =+'TIK-KET'!K83 -> 0 | CJ89: =+'TIK-KET'!N83 -> 0 | CK89: =+'TIK-KET'!Q83 -> 0 | CL89: =+'TIK-KET'!T83 -> 0 | CM89: 0 | CN89: =+'NILAI SMT 6 (US)'!AI83 -> 0 | CO89: 0 | CP89: =+'MLK1'!H83 -> 0 | CQ89: =+'MLK1'!K83 -> 0 | CR89: =+'MLK1'!N83 -> 0 | CS89: =+'MLK1'!Q83 -> 0 | CT89: =+'MLK1'!T83 -> 0 | CU89: 0 | CV89: =+'NILAI SMT 6 (US)'!AL83 -> 0 | CW89: 0 | CX89: =+'MLK2'!H83 -> 0 | CY89: =+'MLK2'!K83 -> 0 | CZ89: =+'MLK2'!N83 -> 0 | DA89: =+'MLK2'!Q83 -> 0 | DB89: =+'MLK2'!T83 -> 0 | DC89: 0 | DD89: =+'NILAI SMT 6 (US)'!AO83 -> 0 | DE89: 0 | DF89: 0 | DG89: =DF89/('KRITERIA&MULOK'!$E$20) -> 0 | DH89: 30 | DI89: 7.5 | DJ89: 18 | DK89: 4.5 | DL89: B | DM89: TIDAK LULUS
A90: =+BIODATA!A84 -> 77 | B90: =+BIODATA!B84 -> 0 | C90: =+BIODATA!E84 -> 0 | D90: =+BIODATA!C84 -> 0 | E90: =+BIODATA!D84 -> 0 | F90: =+BIND!H84 -> 0 | G90: =+BIND!K84 -> 0 | H90: =+BIND!N84 -> 0 | I90: =+BIND!Q84 -> 0 | J90: =+BIND!T84 -> 0 | K90: 0 | L90: =+'NILAI SMT 6 (US)'!N84 -> 0 | M90: 0 | N90: 7 | O90: 4.2 | P90: =+'B-ING'!H84 -> 0 | Q90: =+'B-ING'!K84 -> 0 | R90: =+'B-ING'!N84 -> 0 | S90: =+'B-ING'!Q84 -> 0 | T90: =+'B-ING'!T84 -> 0 | U90: 0 | V90: =+'NILAI SMT 6 (US)'!Q84 -> 0 | W90: 0 | X90: 8 | Y90: 4.8 | Z90: =+MAT!H84 -> 0 | AA90: =+MAT!K84 -> 0 | AB90: =+MAT!N84 -> 0 | AC90: =+MAT!Q84 -> 0 | AD90: =+MAT!T84 -> 0 | AE90: 0 | AF90: =+'NILAI SMT 6 (US)'!T84 -> 0 | AG90: 0 | AH90: 9 | AI90: 5.4 | AJ90: =+IPA!H84 -> 0 | AK90: =+IPA!K84 -> 0 | AL90: =+IPA!N84 -> 0 | AM90: =+IPA!Q84 -> 0 | AN90: =+IPA!T84 -> 0 | AO90: 0 | AP90: =+'NILAI SMT 6 (US)'!W84 -> 0 | AQ90: 0 | AR90: 6 | AS90: 3.6 | AT90: =+Agama!H84 -> 0 | AU90: =+Agama!K84 -> 0 | AV90: =+Agama!N84 -> 0 | AW90: =+Agama!Q84 -> 0 | AX90: =+Agama!T84 -> 0 | AY90: 0 | AZ90: =+'NILAI SMT 6 (US)'!H84 -> 0 | BA90: 0 | BB90: =+PPKn!H84 -> 0 | BC90: =+PPKn!K84 -> 0 | BD90: =+PPKn!N84 -> 0 | BE90: =+PPKn!Q84 -> 0 | BF90: =+PPKn!T84 -> 0 | BG90: 0 | BH90: =+'NILAI SMT 6 (US)'!K84 -> 0 | BI90: 0 | BJ90: =+IPS!H84 -> 0 | BK90: =+IPS!K84 -> 0 | BL90: =+IPS!N84 -> 0 | BM90: =+IPS!Q84 -> 0 | BN90: =+IPS!T84 -> 0 | BO90: 0 | BP90: =+'NILAI SMT 6 (US)'!Z84 -> 0 | BQ90: 0 | BR90: =+SENI!H84 -> 0 | BS90: =+SENI!K84 -> 0 | BT90: =+SENI!N84 -> 0 | BU90: =+SENI!Q84 -> 0 | BV90: =+SENI!T84 -> 0 | BW90: 0 | BX90: =+'NILAI SMT 6 (US)'!AC84 -> 0 | BY90: 0 | BZ90: =+PENJAS!H84 -> 0 | CA90: =+PENJAS!K84 -> 0 | CB90: =+PENJAS!N84 -> 0 | CC90: =+PENJAS!Q84 -> 0 | CD90: =+PENJAS!T84 -> 0 | CE90: 0 | CF90: =+'NILAI SMT 6 (US)'!AF84 -> 0 | CG90: 0 | CH90: =+'TIK-KET'!H84 -> 0 | CI90: =+'TIK-KET'!K84 -> 0 | CJ90: =+'TIK-KET'!N84 -> 0 | CK90: =+'TIK-KET'!Q84 -> 0 | CL90: =+'TIK-KET'!T84 -> 0 | CM90: 0 | CN90: =+'NILAI SMT 6 (US)'!AI84 -> 0 | CO90: 0 | CP90: =+'MLK1'!H84 -> 0 | CQ90: =+'MLK1'!K84 -> 0 | CR90: =+'MLK1'!N84 -> 0 | CS90: =+'MLK1'!Q84 -> 0 | CT90: =+'MLK1'!T84 -> 0 | CU90: 0 | CV90: =+'NILAI SMT 6 (US)'!AL84 -> 0 | CW90: 0 | CX90: =+'MLK2'!H84 -> 0 | CY90: =+'MLK2'!K84 -> 0 | CZ90: =+'MLK2'!N84 -> 0 | DA90: =+'MLK2'!Q84 -> 0 | DB90: =+'MLK2'!T84 -> 0 | DC90: 0 | DD90: =+'NILAI SMT 6 (US)'!AO84 -> 0 | DE90: 0 | DF90: 0 | DG90: =DF90/('KRITERIA&MULOK'!$E$20) -> 0 | DH90: 30 | DI90: 7.5 | DJ90: 18 | DK90: 4.5 | DL90: B | DM90: TIDAK LULUS
A91: =+BIODATA!A85 -> 78 | B91: =+BIODATA!B85 -> 0 | C91: =+BIODATA!E85 -> 0 | D91: =+BIODATA!C85 -> 0 | E91: =+BIODATA!D85 -> 0 | F91: =+BIND!H85 -> 0 | G91: =+BIND!K85 -> 0 | H91: =+BIND!N85 -> 0 | I91: =+BIND!Q85 -> 0 | J91: =+BIND!T85 -> 0 | K91: 0 | L91: =+'NILAI SMT 6 (US)'!N85 -> 0 | M91: 0 | N91: 7 | O91: 4.2 | P91: =+'B-ING'!H85 -> 0 | Q91: =+'B-ING'!K85 -> 0 | R91: =+'B-ING'!N85 -> 0 | S91: =+'B-ING'!Q85 -> 0 | T91: =+'B-ING'!T85 -> 0 | U91: 0 | V91: =+'NILAI SMT 6 (US)'!Q85 -> 0 | W91: 0 | X91: 8 | Y91: 4.8 | Z91: =+MAT!H85 -> 0 | AA91: =+MAT!K85 -> 0 | AB91: =+MAT!N85 -> 0 | AC91: =+MAT!Q85 -> 0 | AD91: =+MAT!T85 -> 0 | AE91: 0 | AF91: =+'NILAI SMT 6 (US)'!T85 -> 0 | AG91: 0 | AH91: 9 | AI91: 5.4 | AJ91: =+IPA!H85 -> 0 | AK91: =+IPA!K85 -> 0 | AL91: =+IPA!N85 -> 0 | AM91: =+IPA!Q85 -> 0 | AN91: =+IPA!T85 -> 0 | AO91: 0 | AP91: =+'NILAI SMT 6 (US)'!W85 -> 0 | AQ91: 0 | AR91: 6 | AS91: 3.6 | AT91: =+Agama!H85 -> 0 | AU91: =+Agama!K85 -> 0 | AV91: =+Agama!N85 -> 0 | AW91: =+Agama!Q85 -> 0 | AX91: =+Agama!T85 -> 0 | AY91: 0 | AZ91: =+'NILAI SMT 6 (US)'!H85 -> 0 | BA91: 0 | BB91: =+PPKn!H85 -> 0 | BC91: =+PPKn!K85 -> 0 | BD91: =+PPKn!N85 -> 0 | BE91: =+PPKn!Q85 -> 0 | BF91: =+PPKn!T85 -> 0 | BG91: 0 | BH91: =+'NILAI SMT 6 (US)'!K85 -> 0 | BI91: 0 | BJ91: =+IPS!H85 -> 0 | BK91: =+IPS!K85 -> 0 | BL91: =+IPS!N85 -> 0 | BM91: =+IPS!Q85 -> 0 | BN91: =+IPS!T85 -> 0 | BO91: 0 | BP91: =+'NILAI SMT 6 (US)'!Z85 -> 0 | BQ91: 0 | BR91: =+SENI!H85 -> 0 | BS91: =+SENI!K85 -> 0 | BT91: =+SENI!N85 -> 0 | BU91: =+SENI!Q85 -> 0 | BV91: =+SENI!T85 -> 0 | BW91: 0 | BX91: =+'NILAI SMT 6 (US)'!AC85 -> 0 | BY91: 0 | BZ91: =+PENJAS!H85 -> 0 | CA91: =+PENJAS!K85 -> 0 | CB91: =+PENJAS!N85 -> 0 | CC91: =+PENJAS!Q85 -> 0 | CD91: =+PENJAS!T85 -> 0 | CE91: 0 | CF91: =+'NILAI SMT 6 (US)'!AF85 -> 0 | CG91: 0 | CH91: =+'TIK-KET'!H85 -> 0 | CI91: =+'TIK-KET'!K85 -> 0 | CJ91: =+'TIK-KET'!N85 -> 0 | CK91: =+'TIK-KET'!Q85 -> 0 | CL91: =+'TIK-KET'!T85 -> 0 | CM91: 0 | CN91: =+'NILAI SMT 6 (US)'!AI85 -> 0 | CO91: 0 | CP91: =+'MLK1'!H85 -> 0 | CQ91: =+'MLK1'!K85 -> 0 | CR91: =+'MLK1'!N85 -> 0 | CS91: =+'MLK1'!Q85 -> 0 | CT91: =+'MLK1'!T85 -> 0 | CU91: 0 | CV91: =+'NILAI SMT 6 (US)'!AL85 -> 0 | CW91: 0 | CX91: =+'MLK2'!H85 -> 0 | CY91: =+'MLK2'!K85 -> 0 | CZ91: =+'MLK2'!N85 -> 0 | DA91: =+'MLK2'!Q85 -> 0 | DB91: =+'MLK2'!T85 -> 0 | DC91: 0 | DD91: =+'NILAI SMT 6 (US)'!AO85 -> 0 | DE91: 0 | DF91: 0 | DG91: =DF91/('KRITERIA&MULOK'!$E$20) -> 0 | DH91: 30 | DI91: 7.5 | DJ91: 18 | DK91: 4.5 | DL91: B | DM91: TIDAK LULUS
A92: =+BIODATA!A86 -> 79 | B92: =+BIODATA!B86 -> 0 | C92: =+BIODATA!E86 -> 0 | D92: =+BIODATA!C86 -> 0 | E92: =+BIODATA!D86 -> 0 | F92: =+BIND!H86 -> 0 | G92: =+BIND!K86 -> 0 | H92: =+BIND!N86 -> 0 | I92: =+BIND!Q86 -> 0 | J92: =+BIND!T86 -> 0 | K92: 0 | L92: =+'NILAI SMT 6 (US)'!N86 -> 0 | M92: 0 | N92: 7 | O92: 4.2 | P92: =+'B-ING'!H86 -> 0 | Q92: =+'B-ING'!K86 -> 0 | R92: =+'B-ING'!N86 -> 0 | S92: =+'B-ING'!Q86 -> 0 | T92: =+'B-ING'!T86 -> 0 | U92: 0 | V92: =+'NILAI SMT 6 (US)'!Q86 -> 0 | W92: 0 | X92: 8 | Y92: 4.8 | Z92: =+MAT!H86 -> 0 | AA92: =+MAT!K86 -> 0 | AB92: =+MAT!N86 -> 0 | AC92: =+MAT!Q86 -> 0 | AD92: =+MAT!T86 -> 0 | AE92: 0 | AF92: =+'NILAI SMT 6 (US)'!T86 -> 0 | AG92: 0 | AH92: 9 | AI92: 5.4 | AJ92: =+IPA!H86 -> 0 | AK92: =+IPA!K86 -> 0 | AL92: =+IPA!N86 -> 0 | AM92: =+IPA!Q86 -> 0 | AN92: =+IPA!T86 -> 0 | AO92: 0 | AP92: =+'NILAI SMT 6 (US)'!W86 -> 0 | AQ92: 0 | AR92: 6 | AS92: 3.6 | AT92: =+Agama!H86 -> 0 | AU92: =+Agama!K86 -> 0 | AV92: =+Agama!N86 -> 0 | AW92: =+Agama!Q86 -> 0 | AX92: =+Agama!T86 -> 0 | AY92: 0 | AZ92: =+'NILAI SMT 6 (US)'!H86 -> 0 | BA92: 0 | BB92: =+PPKn!H86 -> 0 | BC92: =+PPKn!K86 -> 0 | BD92: =+PPKn!N86 -> 0 | BE92: =+PPKn!Q86 -> 0 | BF92: =+PPKn!T86 -> 0 | BG92: 0 | BH92: =+'NILAI SMT 6 (US)'!K86 -> 0 | BI92: 0 | BJ92: =+IPS!H86 -> 0 | BK92: =+IPS!K86 -> 0 | BL92: =+IPS!N86 -> 0 | BM92: =+IPS!Q86 -> 0 | BN92: =+IPS!T86 -> 0 | BO92: 0 | BP92: =+'NILAI SMT 6 (US)'!Z86 -> 0 | BQ92: 0 | BR92: =+SENI!H86 -> 0 | BS92: =+SENI!K86 -> 0 | BT92: =+SENI!N86 -> 0 | BU92: =+SENI!Q86 -> 0 | BV92: =+SENI!T86 -> 0 | BW92: 0 | BX92: =+'NILAI SMT 6 (US)'!AC86 -> 0 | BY92: 0 | BZ92: =+PENJAS!H86 -> 0 | CA92: =+PENJAS!K86 -> 0 | CB92: =+PENJAS!N86 -> 0 | CC92: =+PENJAS!Q86 -> 0 | CD92: =+PENJAS!T86 -> 0 | CE92: 0 | CF92: =+'NILAI SMT 6 (US)'!AF86 -> 0 | CG92: 0 | CH92: =+'TIK-KET'!H86 -> 0 | CI92: =+'TIK-KET'!K86 -> 0 | CJ92: =+'TIK-KET'!N86 -> 0 | CK92: =+'TIK-KET'!Q86 -> 0 | CL92: =+'TIK-KET'!T86 -> 0 | CM92: 0 | CN92: =+'NILAI SMT 6 (US)'!AI86 -> 0 | CO92: 0 | CP92: =+'MLK1'!H86 -> 0 | CQ92: =+'MLK1'!K86 -> 0 | CR92: =+'MLK1'!N86 -> 0 | CS92: =+'MLK1'!Q86 -> 0 | CT92: =+'MLK1'!T86 -> 0 | CU92: 0 | CV92: =+'NILAI SMT 6 (US)'!AL86 -> 0 | CW92: 0 | CX92: =+'MLK2'!H86 -> 0 | CY92: =+'MLK2'!K86 -> 0 | CZ92: =+'MLK2'!N86 -> 0 | DA92: =+'MLK2'!Q86 -> 0 | DB92: =+'MLK2'!T86 -> 0 | DC92: 0 | DD92: =+'NILAI SMT 6 (US)'!AO86 -> 0 | DE92: 0 | DF92: 0 | DG92: =DF92/('KRITERIA&MULOK'!$E$20) -> 0 | DH92: 30 | DI92: 7.5 | DJ92: 18 | DK92: 4.5 | DL92: B | DM92: TIDAK LULUS
A93: =+BIODATA!A87 -> 80 | B93: =+BIODATA!B87 -> 0 | C93: =+BIODATA!E87 -> 0 | D93: =+BIODATA!C87 -> 0 | E93: =+BIODATA!D87 -> 0 | F93: =+BIND!H87 -> 0 | G93: =+BIND!K87 -> 0 | H93: =+BIND!N87 -> 0 | I93: =+BIND!Q87 -> 0 | J93: =+BIND!T87 -> 0 | K93: 0 | L93: =+'NILAI SMT 6 (US)'!N87 -> 0 | M93: 0 | N93: 7 | O93: 4.2 | P93: =+'B-ING'!H87 -> 0 | Q93: =+'B-ING'!K87 -> 0 | R93: =+'B-ING'!N87 -> 0 | S93: =+'B-ING'!Q87 -> 0 | T93: =+'B-ING'!T87 -> 0 | U93: 0 | V93: =+'NILAI SMT 6 (US)'!Q87 -> 0 | W93: 0 | X93: 8 | Y93: 4.8 | Z93: =+MAT!H87 -> 0 | AA93: =+MAT!K87 -> 0 | AB93: =+MAT!N87 -> 0 | AC93: =+MAT!Q87 -> 0 | AD93: =+MAT!T87 -> 0 | AE93: 0 | AF93: =+'NILAI SMT 6 (US)'!T87 -> 0 | AG93: 0 | AH93: 9 | AI93: 5.4 | AJ93: =+IPA!H87 -> 0 | AK93: =+IPA!K87 -> 0 | AL93: =+IPA!N87 -> 0 | AM93: =+IPA!Q87 -> 0 | AN93: =+IPA!T87 -> 0 | AO93: 0 | AP93: =+'NILAI SMT 6 (US)'!W87 -> 0 | AQ93: 0 | AR93: 6 | AS93: 3.6 | AT93: =+Agama!H87 -> 0 | AU93: =+Agama!K87 -> 0 | AV93: =+Agama!N87 -> 0 | AW93: =+Agama!Q87 -> 0 | AX93: =+Agama!T87 -> 0 | AY93: 0 | AZ93: =+'NILAI SMT 6 (US)'!H87 -> 0 | BA93: 0 | BB93: =+PPKn!H87 -> 0 | BC93: =+PPKn!K87 -> 0 | BD93: =+PPKn!N87 -> 0 | BE93: =+PPKn!Q87 -> 0 | BF93: =+PPKn!T87 -> 0 | BG93: 0 | BH93: =+'NILAI SMT 6 (US)'!K87 -> 0 | BI93: 0 | BJ93: =+IPS!H87 -> 0 | BK93: =+IPS!K87 -> 0 | BL93: =+IPS!N87 -> 0 | BM93: =+IPS!Q87 -> 0 | BN93: =+IPS!T87 -> 0 | BO93: 0 | BP93: =+'NILAI SMT 6 (US)'!Z87 -> 0 | BQ93: 0 | BR93: =+SENI!H87 -> 0 | BS93: =+SENI!K87 -> 0 | BT93: =+SENI!N87 -> 0 | BU93: =+SENI!Q87 -> 0 | BV93: =+SENI!T87 -> 0 | BW93: 0 | BX93: =+'NILAI SMT 6 (US)'!AC87 -> 0 | BY93: 0 | BZ93: =+PENJAS!H87 -> 0 | CA93: =+PENJAS!K87 -> 0 | CB93: =+PENJAS!N87 -> 0 | CC93: =+PENJAS!Q87 -> 0 | CD93: =+PENJAS!T87 -> 0 | CE93: 0 | CF93: =+'NILAI SMT 6 (US)'!AF87 -> 0 | CG93: 0 | CH93: =+'TIK-KET'!H87 -> 0 | CI93: =+'TIK-KET'!K87 -> 0 | CJ93: =+'TIK-KET'!N87 -> 0 | CK93: =+'TIK-KET'!Q87 -> 0 | CL93: =+'TIK-KET'!T87 -> 0 | CM93: 0 | CN93: =+'NILAI SMT 6 (US)'!AI87 -> 0 | CO93: 0 | CP93: =+'MLK1'!H87 -> 0 | CQ93: =+'MLK1'!K87 -> 0 | CR93: =+'MLK1'!N87 -> 0 | CS93: =+'MLK1'!Q87 -> 0 | CT93: =+'MLK1'!T87 -> 0 | CU93: 0 | CV93: =+'NILAI SMT 6 (US)'!AL87 -> 0 | CW93: 0 | CX93: =+'MLK2'!H87 -> 0 | CY93: =+'MLK2'!K87 -> 0 | CZ93: =+'MLK2'!N87 -> 0 | DA93: =+'MLK2'!Q87 -> 0 | DB93: =+'MLK2'!T87 -> 0 | DC93: 0 | DD93: =+'NILAI SMT 6 (US)'!AO87 -> 0 | DE93: 0 | DF93: 0 | DG93: =DF93/('KRITERIA&MULOK'!$E$20) -> 0 | DH93: 30 | DI93: 7.5 | DJ93: 18 | DK93: 4.5 | DL93: B | DM93: TIDAK LULUS
A94: =+BIODATA!A88 -> 81 | B94: =+BIODATA!B88 -> 0 | C94: =+BIODATA!E88 -> 0 | D94: =+BIODATA!C88 -> 0 | E94: =+BIODATA!D88 -> 0 | F94: =+BIND!H88 -> 0 | G94: =+BIND!K88 -> 0 | H94: =+BIND!N88 -> 0 | I94: =+BIND!Q88 -> 0 | J94: =+BIND!T88 -> 0 | K94: 0 | L94: =+'NILAI SMT 6 (US)'!N88 -> 0 | M94: 0 | N94: 7 | O94: 4.2 | P94: =+'B-ING'!H88 -> 0 | Q94: =+'B-ING'!K88 -> 0 | R94: =+'B-ING'!N88 -> 0 | S94: =+'B-ING'!Q88 -> 0 | T94: =+'B-ING'!T88 -> 0 | U94: 0 | V94: =+'NILAI SMT 6 (US)'!Q88 -> 0 | W94: 0 | X94: 8 | Y94: 4.8 | Z94: =+MAT!H88 -> 0 | AA94: =+MAT!K88 -> 0 | AB94: =+MAT!N88 -> 0 | AC94: =+MAT!Q88 -> 0 | AD94: =+MAT!T88 -> 0 | AE94: 0 | AF94: =+'NILAI SMT 6 (US)'!T88 -> 0 | AG94: 0 | AH94: 9 | AI94: 5.4 | AJ94: =+IPA!H88 -> 0 | AK94: =+IPA!K88 -> 0 | AL94: =+IPA!N88 -> 0 | AM94: =+IPA!Q88 -> 0 | AN94: =+IPA!T88 -> 0 | AO94: 0 | AP94: =+'NILAI SMT 6 (US)'!W88 -> 0 | AQ94: 0 | AR94: 6 | AS94: 3.6 | AT94: =+Agama!H88 -> 0 | AU94: =+Agama!K88 -> 0 | AV94: =+Agama!N88 -> 0 | AW94: =+Agama!Q88 -> 0 | AX94: =+Agama!T88 -> 0 | AY94: 0 | AZ94: =+'NILAI SMT 6 (US)'!H88 -> 0 | BA94: 0 | BB94: =+PPKn!H88 -> 0 | BC94: =+PPKn!K88 -> 0 | BD94: =+PPKn!N88 -> 0 | BE94: =+PPKn!Q88 -> 0 | BF94: =+PPKn!T88 -> 0 | BG94: 0 | BH94: =+'NILAI SMT 6 (US)'!K88 -> 0 | BI94: 0 | BJ94: =+IPS!H88 -> 0 | BK94: =+IPS!K88 -> 0 | BL94: =+IPS!N88 -> 0 | BM94: =+IPS!Q88 -> 0 | BN94: =+IPS!T88 -> 0 | BO94: 0 | BP94: =+'NILAI SMT 6 (US)'!Z88 -> 0 | BQ94: 0 | BR94: =+SENI!H88 -> 0 | BS94: =+SENI!K88 -> 0 | BT94: =+SENI!N88 -> 0 | BU94: =+SENI!Q88 -> 0 | BV94: =+SENI!T88 -> 0 | BW94: 0 | BX94: =+'NILAI SMT 6 (US)'!AC88 -> 0 | BY94: 0 | BZ94: =+PENJAS!H88 -> 0 | CA94: =+PENJAS!K88 -> 0 | CB94: =+PENJAS!N88 -> 0 | CC94: =+PENJAS!Q88 -> 0 | CD94: =+PENJAS!T88 -> 0 | CE94: 0 | CF94: =+'NILAI SMT 6 (US)'!AF88 -> 0 | CG94: 0 | CH94: =+'TIK-KET'!H88 -> 0 | CI94: =+'TIK-KET'!K88 -> 0 | CJ94: =+'TIK-KET'!N88 -> 0 | CK94: =+'TIK-KET'!Q88 -> 0 | CL94: =+'TIK-KET'!T88 -> 0 | CM94: 0 | CN94: =+'NILAI SMT 6 (US)'!AI88 -> 0 | CO94: 0 | CP94: =+'MLK1'!H88 -> 0 | CQ94: =+'MLK1'!K88 -> 0 | CR94: =+'MLK1'!N88 -> 0 | CS94: =+'MLK1'!Q88 -> 0 | CT94: =+'MLK1'!T88 -> 0 | CU94: 0 | CV94: =+'NILAI SMT 6 (US)'!AL88 -> 0 | CW94: 0 | CX94: =+'MLK2'!H88 -> 0 | CY94: =+'MLK2'!K88 -> 0 | CZ94: =+'MLK2'!N88 -> 0 | DA94: =+'MLK2'!Q88 -> 0 | DB94: =+'MLK2'!T88 -> 0 | DC94: 0 | DD94: =+'NILAI SMT 6 (US)'!AO88 -> 0 | DE94: 0 | DF94: 0 | DG94: =DF94/('KRITERIA&MULOK'!$E$20) -> 0 | DH94: 30 | DI94: 7.5 | DJ94: 18 | DK94: 4.5 | DL94: B | DM94: TIDAK LULUS
A95: =+BIODATA!A89 -> 82 | B95: =+BIODATA!B89 -> 0 | C95: =+BIODATA!E89 -> 0 | D95: =+BIODATA!C89 -> 0 | E95: =+BIODATA!D89 -> 0 | F95: =+BIND!H89 -> 0 | G95: =+BIND!K89 -> 0 | H95: =+BIND!N89 -> 0 | I95: =+BIND!Q89 -> 0 | J95: =+BIND!T89 -> 0 | K95: 0 | L95: =+'NILAI SMT 6 (US)'!N89 -> 0 | M95: 0 | N95: 7 | O95: 4.2 | P95: =+'B-ING'!H89 -> 0 | Q95: =+'B-ING'!K89 -> 0 | R95: =+'B-ING'!N89 -> 0 | S95: =+'B-ING'!Q89 -> 0 | T95: =+'B-ING'!T89 -> 0 | U95: 0 | V95: =+'NILAI SMT 6 (US)'!Q89 -> 0 | W95: 0 | X95: 8 | Y95: 4.8 | Z95: =+MAT!H89 -> 0 | AA95: =+MAT!K89 -> 0 | AB95: =+MAT!N89 -> 0 | AC95: =+MAT!Q89 -> 0 | AD95: =+MAT!T89 -> 0 | AE95: 0 | AF95: =+'NILAI SMT 6 (US)'!T89 -> 0 | AG95: 0 | AH95: 9 | AI95: 5.4 | AJ95: =+IPA!H89 -> 0 | AK95: =+IPA!K89 -> 0 | AL95: =+IPA!N89 -> 0 | AM95: =+IPA!Q89 -> 0 | AN95: =+IPA!T89 -> 0 | AO95: 0 | AP95: =+'NILAI SMT 6 (US)'!W89 -> 0 | AQ95: 0 | AR95: 6 | AS95: 3.6 | AT95: =+Agama!H89 -> 0 | AU95: =+Agama!K89 -> 0 | AV95: =+Agama!N89 -> 0 | AW95: =+Agama!Q89 -> 0 | AX95: =+Agama!T89 -> 0 | AY95: 0 | AZ95: =+'NILAI SMT 6 (US)'!H89 -> 0 | BA95: 0 | BB95: =+PPKn!H89 -> 0 | BC95: =+PPKn!K89 -> 0 | BD95: =+PPKn!N89 -> 0 | BE95: =+PPKn!Q89 -> 0 | BF95: =+PPKn!T89 -> 0 | BG95: 0 | BH95: =+'NILAI SMT 6 (US)'!K89 -> 0 | BI95: 0 | BJ95: =+IPS!H89 -> 0 | BK95: =+IPS!K89 -> 0 | BL95: =+IPS!N89 -> 0 | BM95: =+IPS!Q89 -> 0 | BN95: =+IPS!T89 -> 0 | BO95: 0 | BP95: =+'NILAI SMT 6 (US)'!Z89 -> 0 | BQ95: 0 | BR95: =+SENI!H89 -> 0 | BS95: =+SENI!K89 -> 0 | BT95: =+SENI!N89 -> 0 | BU95: =+SENI!Q89 -> 0 | BV95: =+SENI!T89 -> 0 | BW95: 0 | BX95: =+'NILAI SMT 6 (US)'!AC89 -> 0 | BY95: 0 | BZ95: =+PENJAS!H89 -> 0 | CA95: =+PENJAS!K89 -> 0 | CB95: =+PENJAS!N89 -> 0 | CC95: =+PENJAS!Q89 -> 0 | CD95: =+PENJAS!T89 -> 0 | CE95: 0 | CF95: =+'NILAI SMT 6 (US)'!AF89 -> 0 | CG95: 0 | CH95: =+'TIK-KET'!H89 -> 0 | CI95: =+'TIK-KET'!K89 -> 0 | CJ95: =+'TIK-KET'!N89 -> 0 | CK95: =+'TIK-KET'!Q89 -> 0 | CL95: =+'TIK-KET'!T89 -> 0 | CM95: 0 | CN95: =+'NILAI SMT 6 (US)'!AI89 -> 0 | CO95: 0 | CP95: =+'MLK1'!H89 -> 0 | CQ95: =+'MLK1'!K89 -> 0 | CR95: =+'MLK1'!N89 -> 0 | CS95: =+'MLK1'!Q89 -> 0 | CT95: =+'MLK1'!T89 -> 0 | CU95: 0 | CV95: =+'NILAI SMT 6 (US)'!AL89 -> 0 | CW95: 0 | CX95: =+'MLK2'!H89 -> 0 | CY95: =+'MLK2'!K89 -> 0 | CZ95: =+'MLK2'!N89 -> 0 | DA95: =+'MLK2'!Q89 -> 0 | DB95: =+'MLK2'!T89 -> 0 | DC95: 0 | DD95: =+'NILAI SMT 6 (US)'!AO89 -> 0 | DE95: 0 | DF95: 0 | DG95: =DF95/('KRITERIA&MULOK'!$E$20) -> 0 | DH95: 30 | DI95: 7.5 | DJ95: 18 | DK95: 4.5 | DL95: B | DM95: TIDAK LULUS
A96: =+BIODATA!A90 -> 83 | B96: =+BIODATA!B90 -> 0 | C96: =+BIODATA!E90 -> 0 | D96: =+BIODATA!C90 -> 0 | E96: =+BIODATA!D90 -> 0 | F96: =+BIND!H90 -> 0 | G96: =+BIND!K90 -> 0 | H96: =+BIND!N90 -> 0 | I96: =+BIND!Q90 -> 0 | J96: =+BIND!T90 -> 0 | K96: 0 | L96: =+'NILAI SMT 6 (US)'!N90 -> 0 | M96: 0 | N96: 7 | O96: 4.2 | P96: =+'B-ING'!H90 -> 0 | Q96: =+'B-ING'!K90 -> 0 | R96: =+'B-ING'!N90 -> 0 | S96: =+'B-ING'!Q90 -> 0 | T96: =+'B-ING'!T90 -> 0 | U96: 0 | V96: =+'NILAI SMT 6 (US)'!Q90 -> 0 | W96: 0 | X96: 8 | Y96: 4.8 | Z96: =+MAT!H90 -> 0 | AA96: =+MAT!K90 -> 0 | AB96: =+MAT!N90 -> 0 | AC96: =+MAT!Q90 -> 0 | AD96: =+MAT!T90 -> 0 | AE96: 0 | AF96: =+'NILAI SMT 6 (US)'!T90 -> 0 | AG96: 0 | AH96: 9 | AI96: 5.4 | AJ96: =+IPA!H90 -> 0 | AK96: =+IPA!K90 -> 0 | AL96: =+IPA!N90 -> 0 | AM96: =+IPA!Q90 -> 0 | AN96: =+IPA!T90 -> 0 | AO96: 0 | AP96: =+'NILAI SMT 6 (US)'!W90 -> 0 | AQ96: 0 | AR96: 6 | AS96: 3.6 | AT96: =+Agama!H90 -> 0 | AU96: =+Agama!K90 -> 0 | AV96: =+Agama!N90 -> 0 | AW96: =+Agama!Q90 -> 0 | AX96: =+Agama!T90 -> 0 | AY96: 0 | AZ96: =+'NILAI SMT 6 (US)'!H90 -> 0 | BA96: 0 | BB96: =+PPKn!H90 -> 0 | BC96: =+PPKn!K90 -> 0 | BD96: =+PPKn!N90 -> 0 | BE96: =+PPKn!Q90 -> 0 | BF96: =+PPKn!T90 -> 0 | BG96: 0 | BH96: =+'NILAI SMT 6 (US)'!K90 -> 0 | BI96: 0 | BJ96: =+IPS!H90 -> 0 | BK96: =+IPS!K90 -> 0 | BL96: =+IPS!N90 -> 0 | BM96: =+IPS!Q90 -> 0 | BN96: =+IPS!T90 -> 0 | BO96: 0 | BP96: =+'NILAI SMT 6 (US)'!Z90 -> 0 | BQ96: 0 | BR96: =+SENI!H90 -> 0 | BS96: =+SENI!K90 -> 0 | BT96: =+SENI!N90 -> 0 | BU96: =+SENI!Q90 -> 0 | BV96: =+SENI!T90 -> 0 | BW96: 0 | BX96: =+'NILAI SMT 6 (US)'!AC90 -> 0 | BY96: 0 | BZ96: =+PENJAS!H90 -> 0 | CA96: =+PENJAS!K90 -> 0 | CB96: =+PENJAS!N90 -> 0 | CC96: =+PENJAS!Q90 -> 0 | CD96: =+PENJAS!T90 -> 0 | CE96: 0 | CF96: =+'NILAI SMT 6 (US)'!AF90 -> 0 | CG96: 0 | CH96: =+'TIK-KET'!H90 -> 0 | CI96: =+'TIK-KET'!K90 -> 0 | CJ96: =+'TIK-KET'!N90 -> 0 | CK96: =+'TIK-KET'!Q90 -> 0 | CL96: =+'TIK-KET'!T90 -> 0 | CM96: 0 | CN96: =+'NILAI SMT 6 (US)'!AI90 -> 0 | CO96: 0 | CP96: =+'MLK1'!H90 -> 0 | CQ96: =+'MLK1'!K90 -> 0 | CR96: =+'MLK1'!N90 -> 0 | CS96: =+'MLK1'!Q90 -> 0 | CT96: =+'MLK1'!T90 -> 0 | CU96: 0 | CV96: =+'NILAI SMT 6 (US)'!AL90 -> 0 | CW96: 0 | CX96: =+'MLK2'!H90 -> 0 | CY96: =+'MLK2'!K90 -> 0 | CZ96: =+'MLK2'!N90 -> 0 | DA96: =+'MLK2'!Q90 -> 0 | DB96: =+'MLK2'!T90 -> 0 | DC96: 0 | DD96: =+'NILAI SMT 6 (US)'!AO90 -> 0 | DE96: 0 | DF96: 0 | DG96: =DF96/('KRITERIA&MULOK'!$E$20) -> 0 | DH96: 30 | DI96: 7.5 | DJ96: 18 | DK96: 4.5 | DL96: B | DM96: TIDAK LULUS
A97: =+BIODATA!A91 -> 84 | B97: =+BIODATA!B91 -> 0 | C97: =+BIODATA!E91 -> 0 | D97: =+BIODATA!C91 -> 0 | E97: =+BIODATA!D91 -> 0 | F97: =+BIND!H91 -> 0 | G97: =+BIND!K91 -> 0 | H97: =+BIND!N91 -> 0 | I97: =+BIND!Q91 -> 0 | J97: =+BIND!T91 -> 0 | K97: 0 | L97: =+'NILAI SMT 6 (US)'!N91 -> 0 | M97: 0 | N97: 7 | O97: 4.2 | P97: =+'B-ING'!H91 -> 0 | Q97: =+'B-ING'!K91 -> 0 | R97: =+'B-ING'!N91 -> 0 | S97: =+'B-ING'!Q91 -> 0 | T97: =+'B-ING'!T91 -> 0 | U97: 0 | V97: =+'NILAI SMT 6 (US)'!Q91 -> 0 | W97: 0 | X97: 8 | Y97: 4.8 | Z97: =+MAT!H91 -> 0 | AA97: =+MAT!K91 -> 0 | AB97: =+MAT!N91 -> 0 | AC97: =+MAT!Q91 -> 0 | AD97: =+MAT!T91 -> 0 | AE97: 0 | AF97: =+'NILAI SMT 6 (US)'!T91 -> 0 | AG97: 0 | AH97: 9 | AI97: 5.4 | AJ97: =+IPA!H91 -> 0 | AK97: =+IPA!K91 -> 0 | AL97: =+IPA!N91 -> 0 | AM97: =+IPA!Q91 -> 0 | AN97: =+IPA!T91 -> 0 | AO97: 0 | AP97: =+'NILAI SMT 6 (US)'!W91 -> 0 | AQ97: 0 | AR97: 6 | AS97: 3.6 | AT97: =+Agama!H91 -> 0 | AU97: =+Agama!K91 -> 0 | AV97: =+Agama!N91 -> 0 | AW97: =+Agama!Q91 -> 0 | AX97: =+Agama!T91 -> 0 | AY97: 0 | AZ97: =+'NILAI SMT 6 (US)'!H91 -> 0 | BA97: 0 | BB97: =+PPKn!H91 -> 0 | BC97: =+PPKn!K91 -> 0 | BD97: =+PPKn!N91 -> 0 | BE97: =+PPKn!Q91 -> 0 | BF97: =+PPKn!T91 -> 0 | BG97: 0 | BH97: =+'NILAI SMT 6 (US)'!K91 -> 0 | BI97: 0 | BJ97: =+IPS!H91 -> 0 | BK97: =+IPS!K91 -> 0 | BL97: =+IPS!N91 -> 0 | BM97: =+IPS!Q91 -> 0 | BN97: =+IPS!T91 -> 0 | BO97: 0 | BP97: =+'NILAI SMT 6 (US)'!Z91 -> 0 | BQ97: 0 | BR97: =+SENI!H91 -> 0 | BS97: =+SENI!K91 -> 0 | BT97: =+SENI!N91 -> 0 | BU97: =+SENI!Q91 -> 0 | BV97: =+SENI!T91 -> 0 | BW97: 0 | BX97: =+'NILAI SMT 6 (US)'!AC91 -> 0 | BY97: 0 | BZ97: =+PENJAS!H91 -> 0 | CA97: =+PENJAS!K91 -> 0 | CB97: =+PENJAS!N91 -> 0 | CC97: =+PENJAS!Q91 -> 0 | CD97: =+PENJAS!T91 -> 0 | CE97: 0 | CF97: =+'NILAI SMT 6 (US)'!AF91 -> 0 | CG97: 0 | CH97: =+'TIK-KET'!H91 -> 0 | CI97: =+'TIK-KET'!K91 -> 0 | CJ97: =+'TIK-KET'!N91 -> 0 | CK97: =+'TIK-KET'!Q91 -> 0 | CL97: =+'TIK-KET'!T91 -> 0 | CM97: 0 | CN97: =+'NILAI SMT 6 (US)'!AI91 -> 0 | CO97: 0 | CP97: =+'MLK1'!H91 -> 0 | CQ97: =+'MLK1'!K91 -> 0 | CR97: =+'MLK1'!N91 -> 0 | CS97: =+'MLK1'!Q91 -> 0 | CT97: =+'MLK1'!T91 -> 0 | CU97: 0 | CV97: =+'NILAI SMT 6 (US)'!AL91 -> 0 | CW97: 0 | CX97: =+'MLK2'!H91 -> 0 | CY97: =+'MLK2'!K91 -> 0 | CZ97: =+'MLK2'!N91 -> 0 | DA97: =+'MLK2'!Q91 -> 0 | DB97: =+'MLK2'!T91 -> 0 | DC97: 0 | DD97: =+'NILAI SMT 6 (US)'!AO91 -> 0 | DE97: 0 | DF97: 0 | DG97: =DF97/('KRITERIA&MULOK'!$E$20) -> 0 | DH97: 30 | DI97: 7.5 | DJ97: 18 | DK97: 4.5 | DL97: B | DM97: TIDAK LULUS
A98: =+BIODATA!A92 -> 85 | B98: =+BIODATA!B92 -> 0 | C98: =+BIODATA!E92 -> 0 | D98: =+BIODATA!C92 -> 0 | E98: =+BIODATA!D92 -> 0 | F98: =+BIND!H92 -> 0 | G98: =+BIND!K92 -> 0 | H98: =+BIND!N92 -> 0 | I98: =+BIND!Q92 -> 0 | J98: =+BIND!T92 -> 0 | K98: 0 | L98: =+'NILAI SMT 6 (US)'!N92 -> 0 | M98: 0 | N98: 7 | O98: 4.2 | P98: =+'B-ING'!H92 -> 0 | Q98: =+'B-ING'!K92 -> 0 | R98: =+'B-ING'!N92 -> 0 | S98: =+'B-ING'!Q92 -> 0 | T98: =+'B-ING'!T92 -> 0 | U98: 0 | V98: =+'NILAI SMT 6 (US)'!Q92 -> 0 | W98: 0 | X98: 8 | Y98: 4.8 | Z98: =+MAT!H92 -> 0 | AA98: =+MAT!K92 -> 0 | AB98: =+MAT!N92 -> 0 | AC98: =+MAT!Q92 -> 0 | AD98: =+MAT!T92 -> 0 | AE98: 0 | AF98: =+'NILAI SMT 6 (US)'!T92 -> 0 | AG98: 0 | AH98: 9 | AI98: 5.4 | AJ98: =+IPA!H92 -> 0 | AK98: =+IPA!K92 -> 0 | AL98: =+IPA!N92 -> 0 | AM98: =+IPA!Q92 -> 0 | AN98: =+IPA!T92 -> 0 | AO98: 0 | AP98: =+'NILAI SMT 6 (US)'!W92 -> 0 | AQ98: 0 | AR98: 6 | AS98: 3.6 | AT98: =+Agama!H92 -> 0 | AU98: =+Agama!K92 -> 0 | AV98: =+Agama!N92 -> 0 | AW98: =+Agama!Q92 -> 0 | AX98: =+Agama!T92 -> 0 | AY98: 0 | AZ98: =+'NILAI SMT 6 (US)'!H92 -> 0 | BA98: 0 | BB98: =+PPKn!H92 -> 0 | BC98: =+PPKn!K92 -> 0 | BD98: =+PPKn!N92 -> 0 | BE98: =+PPKn!Q92 -> 0 | BF98: =+PPKn!T92 -> 0 | BG98: 0 | BH98: =+'NILAI SMT 6 (US)'!K92 -> 0 | BI98: 0 | BJ98: =+IPS!H92 -> 0 | BK98: =+IPS!K92 -> 0 | BL98: =+IPS!N92 -> 0 | BM98: =+IPS!Q92 -> 0 | BN98: =+IPS!T92 -> 0 | BO98: 0 | BP98: =+'NILAI SMT 6 (US)'!Z92 -> 0 | BQ98: 0 | BR98: =+SENI!H92 -> 0 | BS98: =+SENI!K92 -> 0 | BT98: =+SENI!N92 -> 0 | BU98: =+SENI!Q92 -> 0 | BV98: =+SENI!T92 -> 0 | BW98: 0 | BX98: =+'NILAI SMT 6 (US)'!AC92 -> 0 | BY98: 0 | BZ98: =+PENJAS!H92 -> 0 | CA98: =+PENJAS!K92 -> 0 | CB98: =+PENJAS!N92 -> 0 | CC98: =+PENJAS!Q92 -> 0 | CD98: =+PENJAS!T92 -> 0 | CE98: 0 | CF98: =+'NILAI SMT 6 (US)'!AF92 -> 0 | CG98: 0 | CH98: =+'TIK-KET'!H92 -> 0 | CI98: =+'TIK-KET'!K92 -> 0 | CJ98: =+'TIK-KET'!N92 -> 0 | CK98: =+'TIK-KET'!Q92 -> 0 | CL98: =+'TIK-KET'!T92 -> 0 | CM98: 0 | CN98: =+'NILAI SMT 6 (US)'!AI92 -> 0 | CO98: 0 | CP98: =+'MLK1'!H92 -> 0 | CQ98: =+'MLK1'!K92 -> 0 | CR98: =+'MLK1'!N92 -> 0 | CS98: =+'MLK1'!Q92 -> 0 | CT98: =+'MLK1'!T92 -> 0 | CU98: 0 | CV98: =+'NILAI SMT 6 (US)'!AL92 -> 0 | CW98: 0 | CX98: =+'MLK2'!H92 -> 0 | CY98: =+'MLK2'!K92 -> 0 | CZ98: =+'MLK2'!N92 -> 0 | DA98: =+'MLK2'!Q92 -> 0 | DB98: =+'MLK2'!T92 -> 0 | DC98: 0 | DD98: =+'NILAI SMT 6 (US)'!AO92 -> 0 | DE98: 0 | DF98: 0 | DG98: =DF98/('KRITERIA&MULOK'!$E$20) -> 0 | DH98: 30 | DI98: 7.5 | DJ98: 18 | DK98: 4.5 | DL98: B | DM98: TIDAK LULUS
A99: =+BIODATA!A93 -> 86 | B99: =+BIODATA!B93 -> 0 | C99: =+BIODATA!E93 -> 0 | D99: =+BIODATA!C93 -> 0 | E99: =+BIODATA!D93 -> 0 | F99: =+BIND!H93 -> 0 | G99: =+BIND!K93 -> 0 | H99: =+BIND!N93 -> 0 | I99: =+BIND!Q93 -> 0 | J99: =+BIND!T93 -> 0 | K99: 0 | L99: =+'NILAI SMT 6 (US)'!N93 -> 0 | M99: 0 | N99: 7 | O99: 4.2 | P99: =+'B-ING'!H93 -> 0 | Q99: =+'B-ING'!K93 -> 0 | R99: =+'B-ING'!N93 -> 0 | S99: =+'B-ING'!Q93 -> 0 | T99: =+'B-ING'!T93 -> 0 | U99: 0 | V99: =+'NILAI SMT 6 (US)'!Q93 -> 0 | W99: 0 | X99: 8 | Y99: 4.8 | Z99: =+MAT!H93 -> 0 | AA99: =+MAT!K93 -> 0 | AB99: =+MAT!N93 -> 0 | AC99: =+MAT!Q93 -> 0 | AD99: =+MAT!T93 -> 0 | AE99: 0 | AF99: =+'NILAI SMT 6 (US)'!T93 -> 0 | AG99: 0 | AH99: 9 | AI99: 5.4 | AJ99: =+IPA!H93 -> 0 | AK99: =+IPA!K93 -> 0 | AL99: =+IPA!N93 -> 0 | AM99: =+IPA!Q93 -> 0 | AN99: =+IPA!T93 -> 0 | AO99: 0 | AP99: =+'NILAI SMT 6 (US)'!W93 -> 0 | AQ99: 0 | AR99: 6 | AS99: 3.6 | AT99: =+Agama!H93 -> 0 | AU99: =+Agama!K93 -> 0 | AV99: =+Agama!N93 -> 0 | AW99: =+Agama!Q93 -> 0 | AX99: =+Agama!T93 -> 0 | AY99: 0 | AZ99: =+'NILAI SMT 6 (US)'!H93 -> 0 | BA99: 0 | BB99: =+PPKn!H93 -> 0 | BC99: =+PPKn!K93 -> 0 | BD99: =+PPKn!N93 -> 0 | BE99: =+PPKn!Q93 -> 0 | BF99: =+PPKn!T93 -> 0 | BG99: 0 | BH99: =+'NILAI SMT 6 (US)'!K93 -> 0 | BI99: 0 | BJ99: =+IPS!H93 -> 0 | BK99: =+IPS!K93 -> 0 | BL99: =+IPS!N93 -> 0 | BM99: =+IPS!Q93 -> 0 | BN99: =+IPS!T93 -> 0 | BO99: 0 | BP99: =+'NILAI SMT 6 (US)'!Z93 -> 0 | BQ99: 0 | BR99: =+SENI!H93 -> 0 | BS99: =+SENI!K93 -> 0 | BT99: =+SENI!N93 -> 0 | BU99: =+SENI!Q93 -> 0 | BV99: =+SENI!T93 -> 0 | BW99: 0 | BX99: =+'NILAI SMT 6 (US)'!AC93 -> 0 | BY99: 0 | BZ99: =+PENJAS!H93 -> 0 | CA99: =+PENJAS!K93 -> 0 | CB99: =+PENJAS!N93 -> 0 | CC99: =+PENJAS!Q93 -> 0 | CD99: =+PENJAS!T93 -> 0 | CE99: 0 | CF99: =+'NILAI SMT 6 (US)'!AF93 -> 0 | CG99: 0 | CH99: =+'TIK-KET'!H93 -> 0 | CI99: =+'TIK-KET'!K93 -> 0 | CJ99: =+'TIK-KET'!N93 -> 0 | CK99: =+'TIK-KET'!Q93 -> 0 | CL99: =+'TIK-KET'!T93 -> 0 | CM99: 0 | CN99: =+'NILAI SMT 6 (US)'!AI93 -> 0 | CO99: 0 | CP99: =+'MLK1'!H93 -> 0 | CQ99: =+'MLK1'!K93 -> 0 | CR99: =+'MLK1'!N93 -> 0 | CS99: =+'MLK1'!Q93 -> 0 | CT99: =+'MLK1'!T93 -> 0 | CU99: 0 | CV99: =+'NILAI SMT 6 (US)'!AL93 -> 0 | CW99: 0 | CX99: =+'MLK2'!H93 -> 0 | CY99: =+'MLK2'!K93 -> 0 | CZ99: =+'MLK2'!N93 -> 0 | DA99: =+'MLK2'!Q93 -> 0 | DB99: =+'MLK2'!T93 -> 0 | DC99: 0 | DD99: =+'NILAI SMT 6 (US)'!AO93 -> 0 | DE99: 0 | DF99: 0 | DG99: =DF99/('KRITERIA&MULOK'!$E$20) -> 0 | DH99: 30 | DI99: 7.5 | DJ99: 18 | DK99: 4.5 | DL99: B | DM99: TIDAK LULUS
A100: =+BIODATA!A94 -> 87 | B100: =+BIODATA!B94 -> 0 | C100: =+BIODATA!E94 -> 0 | D100: =+BIODATA!C94 -> 0 | E100: =+BIODATA!D94 -> 0 | F100: =+BIND!H94 -> 0 | G100: =+BIND!K94 -> 0 | H100: =+BIND!N94 -> 0 | I100: =+BIND!Q94 -> 0 | J100: =+BIND!T94 -> 0 | K100: 0 | L100: =+'NILAI SMT 6 (US)'!N94 -> 0 | M100: 0 | N100: 7 | O100: 4.2 | P100: =+'B-ING'!H94 -> 0 | Q100: =+'B-ING'!K94 -> 0 | R100: =+'B-ING'!N94 -> 0 | S100: =+'B-ING'!Q94 -> 0 | T100: =+'B-ING'!T94 -> 0 | U100: 0 | V100: =+'NILAI SMT 6 (US)'!Q94 -> 0 | W100: 0 | X100: 8 | Y100: 4.8 | Z100: =+MAT!H94 -> 0 | AA100: =+MAT!K94 -> 0 | AB100: =+MAT!N94 -> 0 | AC100: =+MAT!Q94 -> 0 | AD100: =+MAT!T94 -> 0 | AE100: 0 | AF100: =+'NILAI SMT 6 (US)'!T94 -> 0 | AG100: 0 | AH100: 9 | AI100: 5.4 | AJ100: =+IPA!H94 -> 0 | AK100: =+IPA!K94 -> 0 | AL100: =+IPA!N94 -> 0 | AM100: =+IPA!Q94 -> 0 | AN100: =+IPA!T94 -> 0 | AO100: 0 | AP100: =+'NILAI SMT 6 (US)'!W94 -> 0 | AQ100: 0 | AR100: 6 | AS100: 3.6 | AT100: =+Agama!H94 -> 0 | AU100: =+Agama!K94 -> 0 | AV100: =+Agama!N94 -> 0 | AW100: =+Agama!Q94 -> 0 | AX100: =+Agama!T94 -> 0 | AY100: 0 | AZ100: =+'NILAI SMT 6 (US)'!H94 -> 0 | BA100: 0 | BB100: =+PPKn!H94 -> 0 | BC100: =+PPKn!K94 -> 0 | BD100: =+PPKn!N94 -> 0 | BE100: =+PPKn!Q94 -> 0 | BF100: =+PPKn!T94 -> 0 | BG100: 0 | BH100: =+'NILAI SMT 6 (US)'!K94 -> 0 | BI100: 0 | BJ100: =+IPS!H94 -> 0 | BK100: =+IPS!K94 -> 0 | BL100: =+IPS!N94 -> 0 | BM100: =+IPS!Q94 -> 0 | BN100: =+IPS!T94 -> 0 | BO100: 0 | BP100: =+'NILAI SMT 6 (US)'!Z94 -> 0 | BQ100: 0 | BR100: =+SENI!H94 -> 0 | BS100: =+SENI!K94 -> 0 | BT100: =+SENI!N94 -> 0 | BU100: =+SENI!Q94 -> 0 | BV100: =+SENI!T94 -> 0 | BW100: 0 | BX100: =+'NILAI SMT 6 (US)'!AC94 -> 0 | BY100: 0 | BZ100: =+PENJAS!H94 -> 0 | CA100: =+PENJAS!K94 -> 0 | CB100: =+PENJAS!N94 -> 0 | CC100: =+PENJAS!Q94 -> 0 | CD100: =+PENJAS!T94 -> 0 | CE100: 0 | CF100: =+'NILAI SMT 6 (US)'!AF94 -> 0 | CG100: 0 | CH100: =+'TIK-KET'!H94 -> 0 | CI100: =+'TIK-KET'!K94 -> 0 | CJ100: =+'TIK-KET'!N94 -> 0 | CK100: =+'TIK-KET'!Q94 -> 0 | CL100: =+'TIK-KET'!T94 -> 0 | CM100: 0 | CN100: =+'NILAI SMT 6 (US)'!AI94 -> 0 | CO100: 0 | CP100: =+'MLK1'!H94 -> 0 | CQ100: =+'MLK1'!K94 -> 0 | CR100: =+'MLK1'!N94 -> 0 | CS100: =+'MLK1'!Q94 -> 0 | CT100: =+'MLK1'!T94 -> 0 | CU100: 0 | CV100: =+'NILAI SMT 6 (US)'!AL94 -> 0 | CW100: 0 | CX100: =+'MLK2'!H94 -> 0 | CY100: =+'MLK2'!K94 -> 0 | CZ100: =+'MLK2'!N94 -> 0 | DA100: =+'MLK2'!Q94 -> 0 | DB100: =+'MLK2'!T94 -> 0 | DC100: 0 | DD100: =+'NILAI SMT 6 (US)'!AO94 -> 0 | DE100: 0 | DF100: 0 | DG100: =DF100/('KRITERIA&MULOK'!$E$20) -> 0 | DH100: 30 | DI100: 7.5 | DJ100: 18 | DK100: 4.5 | DL100: B | DM100: TIDAK LULUS
A101: =+BIODATA!A95 -> 88 | B101: =+BIODATA!B95 -> 0 | C101: =+BIODATA!E95 -> 0 | D101: =+BIODATA!C95 -> 0 | E101: =+BIODATA!D95 -> 0 | F101: =+BIND!H95 -> 0 | G101: =+BIND!K95 -> 0 | H101: =+BIND!N95 -> 0 | I101: =+BIND!Q95 -> 0 | J101: =+BIND!T95 -> 0 | K101: 0 | L101: =+'NILAI SMT 6 (US)'!N95 -> 0 | M101: 0 | N101: 7 | O101: 4.2 | P101: =+'B-ING'!H95 -> 0 | Q101: =+'B-ING'!K95 -> 0 | R101: =+'B-ING'!N95 -> 0 | S101: =+'B-ING'!Q95 -> 0 | T101: =+'B-ING'!T95 -> 0 | U101: 0 | V101: =+'NILAI SMT 6 (US)'!Q95 -> 0 | W101: 0 | X101: 8 | Y101: 4.8 | Z101: =+MAT!H95 -> 0 | AA101: =+MAT!K95 -> 0 | AB101: =+MAT!N95 -> 0 | AC101: =+MAT!Q95 -> 0 | AD101: =+MAT!T95 -> 0 | AE101: 0 | AF101: =+'NILAI SMT 6 (US)'!T95 -> 0 | AG101: 0 | AH101: 9 | AI101: 5.4 | AJ101: =+IPA!H95 -> 0 | AK101: =+IPA!K95 -> 0 | AL101: =+IPA!N95 -> 0 | AM101: =+IPA!Q95 -> 0 | AN101: =+IPA!T95 -> 0 | AO101: 0 | AP101: =+'NILAI SMT 6 (US)'!W95 -> 0 | AQ101: 0 | AR101: 6 | AS101: 3.6 | AT101: =+Agama!H95 -> 0 | AU101: =+Agama!K95 -> 0 | AV101: =+Agama!N95 -> 0 | AW101: =+Agama!Q95 -> 0 | AX101: =+Agama!T95 -> 0 | AY101: 0 | AZ101: =+'NILAI SMT 6 (US)'!H95 -> 0 | BA101: 0 | BB101: =+PPKn!H95 -> 0 | BC101: =+PPKn!K95 -> 0 | BD101: =+PPKn!N95 -> 0 | BE101: =+PPKn!Q95 -> 0 | BF101: =+PPKn!T95 -> 0 | BG101: 0 | BH101: =+'NILAI SMT 6 (US)'!K95 -> 0 | BI101: 0 | BJ101: =+IPS!H95 -> 0 | BK101: =+IPS!K95 -> 0 | BL101: =+IPS!N95 -> 0 | BM101: =+IPS!Q95 -> 0 | BN101: =+IPS!T95 -> 0 | BO101: 0 | BP101: =+'NILAI SMT 6 (US)'!Z95 -> 0 | BQ101: 0 | BR101: =+SENI!H95 -> 0 | BS101: =+SENI!K95 -> 0 | BT101: =+SENI!N95 -> 0 | BU101: =+SENI!Q95 -> 0 | BV101: =+SENI!T95 -> 0 | BW101: 0 | BX101: =+'NILAI SMT 6 (US)'!AC95 -> 0 | BY101: 0 | BZ101: =+PENJAS!H95 -> 0 | CA101: =+PENJAS!K95 -> 0 | CB101: =+PENJAS!N95 -> 0 | CC101: =+PENJAS!Q95 -> 0 | CD101: =+PENJAS!T95 -> 0 | CE101: 0 | CF101: =+'NILAI SMT 6 (US)'!AF95 -> 0 | CG101: 0 | CH101: =+'TIK-KET'!H95 -> 0 | CI101: =+'TIK-KET'!K95 -> 0 | CJ101: =+'TIK-KET'!N95 -> 0 | CK101: =+'TIK-KET'!Q95 -> 0 | CL101: =+'TIK-KET'!T95 -> 0 | CM101: 0 | CN101: =+'NILAI SMT 6 (US)'!AI95 -> 0 | CO101: 0 | CP101: =+'MLK1'!H95 -> 0 | CQ101: =+'MLK1'!K95 -> 0 | CR101: =+'MLK1'!N95 -> 0 | CS101: =+'MLK1'!Q95 -> 0 | CT101: =+'MLK1'!T95 -> 0 | CU101: 0 | CV101: =+'NILAI SMT 6 (US)'!AL95 -> 0 | CW101: 0 | CX101: =+'MLK2'!H95 -> 0 | CY101: =+'MLK2'!K95 -> 0 | CZ101: =+'MLK2'!N95 -> 0 | DA101: =+'MLK2'!Q95 -> 0 | DB101: =+'MLK2'!T95 -> 0 | DC101: 0 | DD101: =+'NILAI SMT 6 (US)'!AO95 -> 0 | DE101: 0 | DF101: 0 | DG101: =DF101/('KRITERIA&MULOK'!$E$20) -> 0 | DH101: 30 | DI101: 7.5 | DJ101: 18 | DK101: 4.5 | DL101: B | DM101: TIDAK LULUS
A102: =+BIODATA!A96 -> 89 | B102: =+BIODATA!B96 -> 0 | C102: =+BIODATA!E96 -> 0 | D102: =+BIODATA!C96 -> 0 | E102: =+BIODATA!D96 -> 0 | F102: =+BIND!H96 -> 0 | G102: =+BIND!K96 -> 0 | H102: =+BIND!N96 -> 0 | I102: =+BIND!Q96 -> 0 | J102: =+BIND!T96 -> 0 | K102: 0 | L102: =+'NILAI SMT 6 (US)'!N96 -> 0 | M102: 0 | N102: 7 | O102: 4.2 | P102: =+'B-ING'!H96 -> 0 | Q102: =+'B-ING'!K96 -> 0 | R102: =+'B-ING'!N96 -> 0 | S102: =+'B-ING'!Q96 -> 0 | T102: =+'B-ING'!T96 -> 0 | U102: 0 | V102: =+'NILAI SMT 6 (US)'!Q96 -> 0 | W102: 0 | X102: 8 | Y102: 4.8 | Z102: =+MAT!H96 -> 0 | AA102: =+MAT!K96 -> 0 | AB102: =+MAT!N96 -> 0 | AC102: =+MAT!Q96 -> 0 | AD102: =+MAT!T96 -> 0 | AE102: 0 | AF102: =+'NILAI SMT 6 (US)'!T96 -> 0 | AG102: 0 | AH102: 9 | AI102: 5.4 | AJ102: =+IPA!H96 -> 0 | AK102: =+IPA!K96 -> 0 | AL102: =+IPA!N96 -> 0 | AM102: =+IPA!Q96 -> 0 | AN102: =+IPA!T96 -> 0 | AO102: 0 | AP102: =+'NILAI SMT 6 (US)'!W96 -> 0 | AQ102: 0 | AR102: 6 | AS102: 3.6 | AT102: =+Agama!H96 -> 0 | AU102: =+Agama!K96 -> 0 | AV102: =+Agama!N96 -> 0 | AW102: =+Agama!Q96 -> 0 | AX102: =+Agama!T96 -> 0 | AY102: 0 | AZ102: =+'NILAI SMT 6 (US)'!H96 -> 0 | BA102: 0 | BB102: =+PPKn!H96 -> 0 | BC102: =+PPKn!K96 -> 0 | BD102: =+PPKn!N96 -> 0 | BE102: =+PPKn!Q96 -> 0 | BF102: =+PPKn!T96 -> 0 | BG102: 0 | BH102: =+'NILAI SMT 6 (US)'!K96 -> 0 | BI102: 0 | BJ102: =+IPS!H96 -> 0 | BK102: =+IPS!K96 -> 0 | BL102: =+IPS!N96 -> 0 | BM102: =+IPS!Q96 -> 0 | BN102: =+IPS!T96 -> 0 | BO102: 0 | BP102: =+'NILAI SMT 6 (US)'!Z96 -> 0 | BQ102: 0 | BR102: =+SENI!H96 -> 0 | BS102: =+SENI!K96 -> 0 | BT102: =+SENI!N96 -> 0 | BU102: =+SENI!Q96 -> 0 | BV102: =+SENI!T96 -> 0 | BW102: 0 | BX102: =+'NILAI SMT 6 (US)'!AC96 -> 0 | BY102: 0 | BZ102: =+PENJAS!H96 -> 0 | CA102: =+PENJAS!K96 -> 0 | CB102: =+PENJAS!N96 -> 0 | CC102: =+PENJAS!Q96 -> 0 | CD102: =+PENJAS!T96 -> 0 | CE102: 0 | CF102: =+'NILAI SMT 6 (US)'!AF96 -> 0 | CG102: 0 | CH102: =+'TIK-KET'!H96 -> 0 | CI102: =+'TIK-KET'!K96 -> 0 | CJ102: =+'TIK-KET'!N96 -> 0 | CK102: =+'TIK-KET'!Q96 -> 0 | CL102: =+'TIK-KET'!T96 -> 0 | CM102: 0 | CN102: =+'NILAI SMT 6 (US)'!AI96 -> 0 | CO102: 0 | CP102: =+'MLK1'!H96 -> 0 | CQ102: =+'MLK1'!K96 -> 0 | CR102: =+'MLK1'!N96 -> 0 | CS102: =+'MLK1'!Q96 -> 0 | CT102: =+'MLK1'!T96 -> 0 | CU102: 0 | CV102: =+'NILAI SMT 6 (US)'!AL96 -> 0 | CW102: 0 | CX102: =+'MLK2'!H96 -> 0 | CY102: =+'MLK2'!K96 -> 0 | CZ102: =+'MLK2'!N96 -> 0 | DA102: =+'MLK2'!Q96 -> 0 | DB102: =+'MLK2'!T96 -> 0 | DC102: 0 | DD102: =+'NILAI SMT 6 (US)'!AO96 -> 0 | DE102: 0 | DF102: 0 | DG102: =DF102/('KRITERIA&MULOK'!$E$20) -> 0 | DH102: 30 | DI102: 7.5 | DJ102: 18 | DK102: 4.5 | DL102: B | DM102: TIDAK LULUS
A103: =+BIODATA!A97 -> 90 | B103: =+BIODATA!B97 -> 0 | C103: =+BIODATA!E97 -> 0 | D103: =+BIODATA!C97 -> 0 | E103: =+BIODATA!D97 -> 0 | F103: =+BIND!H97 -> 0 | G103: =+BIND!K97 -> 0 | H103: =+BIND!N97 -> 0 | I103: =+BIND!Q97 -> 0 | J103: =+BIND!T97 -> 0 | K103: 0 | L103: =+'NILAI SMT 6 (US)'!N97 -> 0 | M103: 0 | N103: 7 | O103: 4.2 | P103: =+'B-ING'!H97 -> 0 | Q103: =+'B-ING'!K97 -> 0 | R103: =+'B-ING'!N97 -> 0 | S103: =+'B-ING'!Q97 -> 0 | T103: =+'B-ING'!T97 -> 0 | U103: 0 | V103: =+'NILAI SMT 6 (US)'!Q97 -> 0 | W103: 0 | X103: 8 | Y103: 4.8 | Z103: =+MAT!H97 -> 0 | AA103: =+MAT!K97 -> 0 | AB103: =+MAT!N97 -> 0 | AC103: =+MAT!Q97 -> 0 | AD103: =+MAT!T97 -> 0 | AE103: 0 | AF103: =+'NILAI SMT 6 (US)'!T97 -> 0 | AG103: 0 | AH103: 9 | AI103: 5.4 | AJ103: =+IPA!H97 -> 0 | AK103: =+IPA!K97 -> 0 | AL103: =+IPA!N97 -> 0 | AM103: =+IPA!Q97 -> 0 | AN103: =+IPA!T97 -> 0 | AO103: 0 | AP103: =+'NILAI SMT 6 (US)'!W97 -> 0 | AQ103: 0 | AR103: 6 | AS103: 3.6 | AT103: =+Agama!H97 -> 0 | AU103: =+Agama!K97 -> 0 | AV103: =+Agama!N97 -> 0 | AW103: =+Agama!Q97 -> 0 | AX103: =+Agama!T97 -> 0 | AY103: 0 | AZ103: =+'NILAI SMT 6 (US)'!H97 -> 0 | BA103: 0 | BB103: =+PPKn!H97 -> 0 | BC103: =+PPKn!K97 -> 0 | BD103: =+PPKn!N97 -> 0 | BE103: =+PPKn!Q97 -> 0 | BF103: =+PPKn!T97 -> 0 | BG103: 0 | BH103: =+'NILAI SMT 6 (US)'!K97 -> 0 | BI103: 0 | BJ103: =+IPS!H97 -> 0 | BK103: =+IPS!K97 -> 0 | BL103: =+IPS!N97 -> 0 | BM103: =+IPS!Q97 -> 0 | BN103: =+IPS!T97 -> 0 | BO103: 0 | BP103: =+'NILAI SMT 6 (US)'!Z97 -> 0 | BQ103: 0 | BR103: =+SENI!H97 -> 0 | BS103: =+SENI!K97 -> 0 | BT103: =+SENI!N97 -> 0 | BU103: =+SENI!Q97 -> 0 | BV103: =+SENI!T97 -> 0 | BW103: 0 | BX103: =+'NILAI SMT 6 (US)'!AC97 -> 0 | BY103: 0 | BZ103: =+PENJAS!H97 -> 0 | CA103: =+PENJAS!K97 -> 0 | CB103: =+PENJAS!N97 -> 0 | CC103: =+PENJAS!Q97 -> 0 | CD103: =+PENJAS!T97 -> 0 | CE103: 0 | CF103: =+'NILAI SMT 6 (US)'!AF97 -> 0 | CG103: 0 | CH103: =+'TIK-KET'!H97 -> 0 | CI103: =+'TIK-KET'!K97 -> 0 | CJ103: =+'TIK-KET'!N97 -> 0 | CK103: =+'TIK-KET'!Q97 -> 0 | CL103: =+'TIK-KET'!T97 -> 0 | CM103: 0 | CN103: =+'NILAI SMT 6 (US)'!AI97 -> 0 | CO103: 0 | CP103: =+'MLK1'!H97 -> 0 | CQ103: =+'MLK1'!K97 -> 0 | CR103: =+'MLK1'!N97 -> 0 | CS103: =+'MLK1'!Q97 -> 0 | CT103: =+'MLK1'!T97 -> 0 | CU103: 0 | CV103: =+'NILAI SMT 6 (US)'!AL97 -> 0 | CW103: 0 | CX103: =+'MLK2'!H97 -> 0 | CY103: =+'MLK2'!K97 -> 0 | CZ103: =+'MLK2'!N97 -> 0 | DA103: =+'MLK2'!Q97 -> 0 | DB103: =+'MLK2'!T97 -> 0 | DC103: 0 | DD103: =+'NILAI SMT 6 (US)'!AO97 -> 0 | DE103: 0 | DF103: 0 | DG103: =DF103/('KRITERIA&MULOK'!$E$20) -> 0 | DH103: 30 | DI103: 7.5 | DJ103: 18 | DK103: 4.5 | DL103: B | DM103: TIDAK LULUS
A104: =+BIODATA!A98 -> 91 | B104: =+BIODATA!B98 -> 0 | C104: =+BIODATA!E98 -> 0 | D104: =+BIODATA!C98 -> 0 | E104: =+BIODATA!D98 -> 0 | F104: =+BIND!H98 -> 0 | G104: =+BIND!K98 -> 0 | H104: =+BIND!N98 -> 0 | I104: =+BIND!Q98 -> 0 | J104: =+BIND!T98 -> 0 | K104: 0 | L104: =+'NILAI SMT 6 (US)'!N98 -> 0 | M104: 0 | N104: 7 | O104: 4.2 | P104: =+'B-ING'!H98 -> 0 | Q104: =+'B-ING'!K98 -> 0 | R104: =+'B-ING'!N98 -> 0 | S104: =+'B-ING'!Q98 -> 0 | T104: =+'B-ING'!T98 -> 0 | U104: 0 | V104: =+'NILAI SMT 6 (US)'!Q98 -> 0 | W104: 0 | X104: 8 | Y104: 4.8 | Z104: =+MAT!H98 -> 0 | AA104: =+MAT!K98 -> 0 | AB104: =+MAT!N98 -> 0 | AC104: =+MAT!Q98 -> 0 | AD104: =+MAT!T98 -> 0 | AE104: 0 | AF104: =+'NILAI SMT 6 (US)'!T98 -> 0 | AG104: 0 | AH104: 9 | AI104: 5.4 | AJ104: =+IPA!H98 -> 0 | AK104: =+IPA!K98 -> 0 | AL104: =+IPA!N98 -> 0 | AM104: =+IPA!Q98 -> 0 | AN104: =+IPA!T98 -> 0 | AO104: 0 | AP104: =+'NILAI SMT 6 (US)'!W98 -> 0 | AQ104: 0 | AR104: 6 | AS104: 3.6 | AT104: =+Agama!H98 -> 0 | AU104: =+Agama!K98 -> 0 | AV104: =+Agama!N98 -> 0 | AW104: =+Agama!Q98 -> 0 | AX104: =+Agama!T98 -> 0 | AY104: 0 | AZ104: =+'NILAI SMT 6 (US)'!H98 -> 0 | BA104: 0 | BB104: =+PPKn!H98 -> 0 | BC104: =+PPKn!K98 -> 0 | BD104: =+PPKn!N98 -> 0 | BE104: =+PPKn!Q98 -> 0 | BF104: =+PPKn!T98 -> 0 | BG104: 0 | BH104: =+'NILAI SMT 6 (US)'!K98 -> 0 | BI104: 0 | BJ104: =+IPS!H98 -> 0 | BK104: =+IPS!K98 -> 0 | BL104: =+IPS!N98 -> 0 | BM104: =+IPS!Q98 -> 0 | BN104: =+IPS!T98 -> 0 | BO104: 0 | BP104: =+'NILAI SMT 6 (US)'!Z98 -> 0 | BQ104: 0 | BR104: =+SENI!H98 -> 0 | BS104: =+SENI!K98 -> 0 | BT104: =+SENI!N98 -> 0 | BU104: =+SENI!Q98 -> 0 | BV104: =+SENI!T98 -> 0 | BW104: 0 | BX104: =+'NILAI SMT 6 (US)'!AC98 -> 0 | BY104: 0 | BZ104: =+PENJAS!H98 -> 0 | CA104: =+PENJAS!K98 -> 0 | CB104: =+PENJAS!N98 -> 0 | CC104: =+PENJAS!Q98 -> 0 | CD104: =+PENJAS!T98 -> 0 | CE104: 0 | CF104: =+'NILAI SMT 6 (US)'!AF98 -> 0 | CG104: 0 | CH104: =+'TIK-KET'!H98 -> 0 | CI104: =+'TIK-KET'!K98 -> 0 | CJ104: =+'TIK-KET'!N98 -> 0 | CK104: =+'TIK-KET'!Q98 -> 0 | CL104: =+'TIK-KET'!T98 -> 0 | CM104: 0 | CN104: =+'NILAI SMT 6 (US)'!AI98 -> 0 | CO104: 0 | CP104: =+'MLK1'!H98 -> 0 | CQ104: =+'MLK1'!K98 -> 0 | CR104: =+'MLK1'!N98 -> 0 | CS104: =+'MLK1'!Q98 -> 0 | CT104: =+'MLK1'!T98 -> 0 | CU104: 0 | CV104: =+'NILAI SMT 6 (US)'!AL98 -> 0 | CW104: 0 | CX104: =+'MLK2'!H98 -> 0 | CY104: =+'MLK2'!K98 -> 0 | CZ104: =+'MLK2'!N98 -> 0 | DA104: =+'MLK2'!Q98 -> 0 | DB104: =+'MLK2'!T98 -> 0 | DC104: 0 | DD104: =+'NILAI SMT 6 (US)'!AO98 -> 0 | DE104: 0 | DF104: 0 | DG104: =DF104/('KRITERIA&MULOK'!$E$20) -> 0 | DH104: 30 | DI104: 7.5 | DJ104: 18 | DK104: 4.5 | DL104: B | DM104: TIDAK LULUS
A105: =+BIODATA!A99 -> 92 | B105: =+BIODATA!B99 -> 0 | C105: =+BIODATA!E99 -> 0 | D105: =+BIODATA!C99 -> 0 | E105: =+BIODATA!D99 -> 0 | F105: =+BIND!H99 -> 0 | G105: =+BIND!K99 -> 0 | H105: =+BIND!N99 -> 0 | I105: =+BIND!Q99 -> 0 | J105: =+BIND!T99 -> 0 | K105: 0 | L105: =+'NILAI SMT 6 (US)'!N99 -> 0 | M105: 0 | N105: 7 | O105: 4.2 | P105: =+'B-ING'!H99 -> 0 | Q105: =+'B-ING'!K99 -> 0 | R105: =+'B-ING'!N99 -> 0 | S105: =+'B-ING'!Q99 -> 0 | T105: =+'B-ING'!T99 -> 0 | U105: 0 | V105: =+'NILAI SMT 6 (US)'!Q99 -> 0 | W105: 0 | X105: 8 | Y105: 4.8 | Z105: =+MAT!H99 -> 0 | AA105: =+MAT!K99 -> 0 | AB105: =+MAT!N99 -> 0 | AC105: =+MAT!Q99 -> 0 | AD105: =+MAT!T99 -> 0 | AE105: 0 | AF105: =+'NILAI SMT 6 (US)'!T99 -> 0 | AG105: 0 | AH105: 9 | AI105: 5.4 | AJ105: =+IPA!H99 -> 0 | AK105: =+IPA!K99 -> 0 | AL105: =+IPA!N99 -> 0 | AM105: =+IPA!Q99 -> 0 | AN105: =+IPA!T99 -> 0 | AO105: 0 | AP105: =+'NILAI SMT 6 (US)'!W99 -> 0 | AQ105: 0 | AR105: 6 | AS105: 3.6 | AT105: =+Agama!H99 -> 0 | AU105: =+Agama!K99 -> 0 | AV105: =+Agama!N99 -> 0 | AW105: =+Agama!Q99 -> 0 | AX105: =+Agama!T99 -> 0 | AY105: 0 | AZ105: =+'NILAI SMT 6 (US)'!H99 -> 0 | BA105: 0 | BB105: =+PPKn!H99 -> 0 | BC105: =+PPKn!K99 -> 0 | BD105: =+PPKn!N99 -> 0 | BE105: =+PPKn!Q99 -> 0 | BF105: =+PPKn!T99 -> 0 | BG105: 0 | BH105: =+'NILAI SMT 6 (US)'!K99 -> 0 | BI105: 0 | BJ105: =+IPS!H99 -> 0 | BK105: =+IPS!K99 -> 0 | BL105: =+IPS!N99 -> 0 | BM105: =+IPS!Q99 -> 0 | BN105: =+IPS!T99 -> 0 | BO105: 0 | BP105: =+'NILAI SMT 6 (US)'!Z99 -> 0 | BQ105: 0 | BR105: =+SENI!H99 -> 0 | BS105: =+SENI!K99 -> 0 | BT105: =+SENI!N99 -> 0 | BU105: =+SENI!Q99 -> 0 | BV105: =+SENI!T99 -> 0 | BW105: 0 | BX105: =+'NILAI SMT 6 (US)'!AC99 -> 0 | BY105: 0 | BZ105: =+PENJAS!H99 -> 0 | CA105: =+PENJAS!K99 -> 0 | CB105: =+PENJAS!N99 -> 0 | CC105: =+PENJAS!Q99 -> 0 | CD105: =+PENJAS!T99 -> 0 | CE105: 0 | CF105: =+'NILAI SMT 6 (US)'!AF99 -> 0 | CG105: 0 | CH105: =+'TIK-KET'!H99 -> 0 | CI105: =+'TIK-KET'!K99 -> 0 | CJ105: =+'TIK-KET'!N99 -> 0 | CK105: =+'TIK-KET'!Q99 -> 0 | CL105: =+'TIK-KET'!T99 -> 0 | CM105: 0 | CN105: =+'NILAI SMT 6 (US)'!AI99 -> 0 | CO105: 0 | CP105: =+'MLK1'!H99 -> 0 | CQ105: =+'MLK1'!K99 -> 0 | CR105: =+'MLK1'!N99 -> 0 | CS105: =+'MLK1'!Q99 -> 0 | CT105: =+'MLK1'!T99 -> 0 | CU105: 0 | CV105: =+'NILAI SMT 6 (US)'!AL99 -> 0 | CW105: 0 | CX105: =+'MLK2'!H99 -> 0 | CY105: =+'MLK2'!K99 -> 0 | CZ105: =+'MLK2'!N99 -> 0 | DA105: =+'MLK2'!Q99 -> 0 | DB105: =+'MLK2'!T99 -> 0 | DC105: 0 | DD105: =+'NILAI SMT 6 (US)'!AO99 -> 0 | DE105: 0 | DF105: 0 | DG105: =DF105/('KRITERIA&MULOK'!$E$20) -> 0 | DH105: 30 | DI105: 7.5 | DJ105: 18 | DK105: 4.5 | DL105: B | DM105: TIDAK LULUS
A106: =+BIODATA!A100 -> 93 | B106: =+BIODATA!B100 -> 0 | C106: =+BIODATA!E100 -> 0 | D106: =+BIODATA!C100 -> 0 | E106: =+BIODATA!D100 -> 0 | F106: =+BIND!H100 -> 0 | G106: =+BIND!K100 -> 0 | H106: =+BIND!N100 -> 0 | I106: =+BIND!Q100 -> 0 | J106: =+BIND!T100 -> 0 | K106: 0 | L106: =+'NILAI SMT 6 (US)'!N100 -> 0 | M106: 0 | N106: 7 | O106: 4.2 | P106: =+'B-ING'!H100 -> 0 | Q106: =+'B-ING'!K100 -> 0 | R106: =+'B-ING'!N100 -> 0 | S106: =+'B-ING'!Q100 -> 0 | T106: =+'B-ING'!T100 -> 0 | U106: 0 | V106: =+'NILAI SMT 6 (US)'!Q100 -> 0 | W106: 0 | X106: 8 | Y106: 4.8 | Z106: =+MAT!H100 -> 0 | AA106: =+MAT!K100 -> 0 | AB106: =+MAT!N100 -> 0 | AC106: =+MAT!Q100 -> 0 | AD106: =+MAT!T100 -> 0 | AE106: 0 | AF106: =+'NILAI SMT 6 (US)'!T100 -> 0 | AG106: 0 | AH106: 9 | AI106: 5.4 | AJ106: =+IPA!H100 -> 0 | AK106: =+IPA!K100 -> 0 | AL106: =+IPA!N100 -> 0 | AM106: =+IPA!Q100 -> 0 | AN106: =+IPA!T100 -> 0 | AO106: 0 | AP106: =+'NILAI SMT 6 (US)'!W100 -> 0 | AQ106: 0 | AR106: 6 | AS106: 3.6 | AT106: =+Agama!H100 -> 0 | AU106: =+Agama!K100 -> 0 | AV106: =+Agama!N100 -> 0 | AW106: =+Agama!Q100 -> 0 | AX106: =+Agama!T100 -> 0 | AY106: 0 | AZ106: =+'NILAI SMT 6 (US)'!H100 -> 0 | BA106: 0 | BB106: =+PPKn!H100 -> 0 | BC106: =+PPKn!K100 -> 0 | BD106: =+PPKn!N100 -> 0 | BE106: =+PPKn!Q100 -> 0 | BF106: =+PPKn!T100 -> 0 | BG106: 0 | BH106: =+'NILAI SMT 6 (US)'!K100 -> 0 | BI106: 0 | BJ106: =+IPS!H100 -> 0 | BK106: =+IPS!K100 -> 0 | BL106: =+IPS!N100 -> 0 | BM106: =+IPS!Q100 -> 0 | BN106: =+IPS!T100 -> 0 | BO106: 0 | BP106: =+'NILAI SMT 6 (US)'!Z100 -> 0 | BQ106: 0 | BR106: =+SENI!H100 -> 0 | BS106: =+SENI!K100 -> 0 | BT106: =+SENI!N100 -> 0 | BU106: =+SENI!Q100 -> 0 | BV106: =+SENI!T100 -> 0 | BW106: 0 | BX106: =+'NILAI SMT 6 (US)'!AC100 -> 0 | BY106: 0 | BZ106: =+PENJAS!H100 -> 0 | CA106: =+PENJAS!K100 -> 0 | CB106: =+PENJAS!N100 -> 0 | CC106: =+PENJAS!Q100 -> 0 | CD106: =+PENJAS!T100 -> 0 | CE106: 0 | CF106: =+'NILAI SMT 6 (US)'!AF100 -> 0 | CG106: 0 | CH106: =+'TIK-KET'!H100 -> 0 | CI106: =+'TIK-KET'!K100 -> 0 | CJ106: =+'TIK-KET'!N100 -> 0 | CK106: =+'TIK-KET'!Q100 -> 0 | CL106: =+'TIK-KET'!T100 -> 0 | CM106: 0 | CN106: =+'NILAI SMT 6 (US)'!AI100 -> 0 | CO106: 0 | CP106: =+'MLK1'!H100 -> 0 | CQ106: =+'MLK1'!K100 -> 0 | CR106: =+'MLK1'!N100 -> 0 | CS106: =+'MLK1'!Q100 -> 0 | CT106: =+'MLK1'!T100 -> 0 | CU106: 0 | CV106: =+'NILAI SMT 6 (US)'!AL100 -> 0 | CW106: 0 | CX106: =+'MLK2'!H100 -> 0 | CY106: =+'MLK2'!K100 -> 0 | CZ106: =+'MLK2'!N100 -> 0 | DA106: =+'MLK2'!Q100 -> 0 | DB106: =+'MLK2'!T100 -> 0 | DC106: 0 | DD106: =+'NILAI SMT 6 (US)'!AO100 -> 0 | DE106: 0 | DF106: 0 | DG106: =DF106/('KRITERIA&MULOK'!$E$20) -> 0 | DH106: 30 | DI106: 7.5 | DJ106: 18 | DK106: 4.5 | DL106: B | DM106: TIDAK LULUS
A107: =+BIODATA!A101 -> 94 | B107: =+BIODATA!B101 -> 0 | C107: =+BIODATA!E101 -> 0 | D107: =+BIODATA!C101 -> 0 | E107: =+BIODATA!D101 -> 0 | F107: =+BIND!H101 -> 0 | G107: =+BIND!K101 -> 0 | H107: =+BIND!N101 -> 0 | I107: =+BIND!Q101 -> 0 | J107: =+BIND!T101 -> 0 | K107: 0 | L107: =+'NILAI SMT 6 (US)'!N101 -> 0 | M107: 0 | N107: 7 | O107: 4.2 | P107: =+'B-ING'!H101 -> 0 | Q107: =+'B-ING'!K101 -> 0 | R107: =+'B-ING'!N101 -> 0 | S107: =+'B-ING'!Q101 -> 0 | T107: =+'B-ING'!T101 -> 0 | U107: 0 | V107: =+'NILAI SMT 6 (US)'!Q101 -> 0 | W107: 0 | X107: 8 | Y107: 4.8 | Z107: =+MAT!H101 -> 0 | AA107: =+MAT!K101 -> 0 | AB107: =+MAT!N101 -> 0 | AC107: =+MAT!Q101 -> 0 | AD107: =+MAT!T101 -> 0 | AE107: 0 | AF107: =+'NILAI SMT 6 (US)'!T101 -> 0 | AG107: 0 | AH107: 9 | AI107: 5.4 | AJ107: =+IPA!H101 -> 0 | AK107: =+IPA!K101 -> 0 | AL107: =+IPA!N101 -> 0 | AM107: =+IPA!Q101 -> 0 | AN107: =+IPA!T101 -> 0 | AO107: 0 | AP107: =+'NILAI SMT 6 (US)'!W101 -> 0 | AQ107: 0 | AR107: 6 | AS107: 3.6 | AT107: =+Agama!H101 -> 0 | AU107: =+Agama!K101 -> 0 | AV107: =+Agama!N101 -> 0 | AW107: =+Agama!Q101 -> 0 | AX107: =+Agama!T101 -> 0 | AY107: 0 | AZ107: =+'NILAI SMT 6 (US)'!H101 -> 0 | BA107: 0 | BB107: =+PPKn!H101 -> 0 | BC107: =+PPKn!K101 -> 0 | BD107: =+PPKn!N101 -> 0 | BE107: =+PPKn!Q101 -> 0 | BF107: =+PPKn!T101 -> 0 | BG107: 0 | BH107: =+'NILAI SMT 6 (US)'!K101 -> 0 | BI107: 0 | BJ107: =+IPS!H101 -> 0 | BK107: =+IPS!K101 -> 0 | BL107: =+IPS!N101 -> 0 | BM107: =+IPS!Q101 -> 0 | BN107: =+IPS!T101 -> 0 | BO107: 0 | BP107: =+'NILAI SMT 6 (US)'!Z101 -> 0 | BQ107: 0 | BR107: =+SENI!H101 -> 0 | BS107: =+SENI!K101 -> 0 | BT107: =+SENI!N101 -> 0 | BU107: =+SENI!Q101 -> 0 | BV107: =+SENI!T101 -> 0 | BW107: 0 | BX107: =+'NILAI SMT 6 (US)'!AC101 -> 0 | BY107: 0 | BZ107: =+PENJAS!H101 -> 0 | CA107: =+PENJAS!K101 -> 0 | CB107: =+PENJAS!N101 -> 0 | CC107: =+PENJAS!Q101 -> 0 | CD107: =+PENJAS!T101 -> 0 | CE107: 0 | CF107: =+'NILAI SMT 6 (US)'!AF101 -> 0 | CG107: 0 | CH107: =+'TIK-KET'!H101 -> 0 | CI107: =+'TIK-KET'!K101 -> 0 | CJ107: =+'TIK-KET'!N101 -> 0 | CK107: =+'TIK-KET'!Q101 -> 0 | CL107: =+'TIK-KET'!T101 -> 0 | CM107: 0 | CN107: =+'NILAI SMT 6 (US)'!AI101 -> 0 | CO107: 0 | CP107: =+'MLK1'!H101 -> 0 | CQ107: =+'MLK1'!K101 -> 0 | CR107: =+'MLK1'!N101 -> 0 | CS107: =+'MLK1'!Q101 -> 0 | CT107: =+'MLK1'!T101 -> 0 | CU107: 0 | CV107: =+'NILAI SMT 6 (US)'!AL101 -> 0 | CW107: 0 | CX107: =+'MLK2'!H101 -> 0 | CY107: =+'MLK2'!K101 -> 0 | CZ107: =+'MLK2'!N101 -> 0 | DA107: =+'MLK2'!Q101 -> 0 | DB107: =+'MLK2'!T101 -> 0 | DC107: 0 | DD107: =+'NILAI SMT 6 (US)'!AO101 -> 0 | DE107: 0 | DF107: 0 | DG107: =DF107/('KRITERIA&MULOK'!$E$20) -> 0 | DH107: 30 | DI107: 7.5 | DJ107: 18 | DK107: 4.5 | DL107: B | DM107: TIDAK LULUS
A108: =+BIODATA!A102 -> 95 | B108: =+BIODATA!B102 -> 0 | C108: =+BIODATA!E102 -> 0 | D108: =+BIODATA!C102 -> 0 | E108: =+BIODATA!D102 -> 0 | F108: =+BIND!H102 -> 0 | G108: =+BIND!K102 -> 0 | H108: =+BIND!N102 -> 0 | I108: =+BIND!Q102 -> 0 | J108: =+BIND!T102 -> 0 | K108: 0 | L108: =+'NILAI SMT 6 (US)'!N102 -> 0 | M108: 0 | N108: 7 | O108: 4.2 | P108: =+'B-ING'!H102 -> 0 | Q108: =+'B-ING'!K102 -> 0 | R108: =+'B-ING'!N102 -> 0 | S108: =+'B-ING'!Q102 -> 0 | T108: =+'B-ING'!T102 -> 0 | U108: 0 | V108: =+'NILAI SMT 6 (US)'!Q102 -> 0 | W108: 0 | X108: 8 | Y108: 4.8 | Z108: =+MAT!H102 -> 0 | AA108: =+MAT!K102 -> 0 | AB108: =+MAT!N102 -> 0 | AC108: =+MAT!Q102 -> 0 | AD108: =+MAT!T102 -> 0 | AE108: 0 | AF108: =+'NILAI SMT 6 (US)'!T102 -> 0 | AG108: 0 | AH108: 9 | AI108: 5.4 | AJ108: =+IPA!H102 -> 0 | AK108: =+IPA!K102 -> 0 | AL108: =+IPA!N102 -> 0 | AM108: =+IPA!Q102 -> 0 | AN108: =+IPA!T102 -> 0 | AO108: 0 | AP108: =+'NILAI SMT 6 (US)'!W102 -> 0 | AQ108: 0 | AR108: 6 | AS108: 3.6 | AT108: =+Agama!H102 -> 0 | AU108: =+Agama!K102 -> 0 | AV108: =+Agama!N102 -> 0 | AW108: =+Agama!Q102 -> 0 | AX108: =+Agama!T102 -> 0 | AY108: 0 | AZ108: =+'NILAI SMT 6 (US)'!H102 -> 0 | BA108: 0 | BB108: =+PPKn!H102 -> 0 | BC108: =+PPKn!K102 -> 0 | BD108: =+PPKn!N102 -> 0 | BE108: =+PPKn!Q102 -> 0 | BF108: =+PPKn!T102 -> 0 | BG108: 0 | BH108: =+'NILAI SMT 6 (US)'!K102 -> 0 | BI108: 0 | BJ108: =+IPS!H102 -> 0 | BK108: =+IPS!K102 -> 0 | BL108: =+IPS!N102 -> 0 | BM108: =+IPS!Q102 -> 0 | BN108: =+IPS!T102 -> 0 | BO108: 0 | BP108: =+'NILAI SMT 6 (US)'!Z102 -> 0 | BQ108: 0 | BR108: =+SENI!H102 -> 0 | BS108: =+SENI!K102 -> 0 | BT108: =+SENI!N102 -> 0 | BU108: =+SENI!Q102 -> 0 | BV108: =+SENI!T102 -> 0 | BW108: 0 | BX108: =+'NILAI SMT 6 (US)'!AC102 -> 0 | BY108: 0 | BZ108: =+PENJAS!H102 -> 0 | CA108: =+PENJAS!K102 -> 0 | CB108: =+PENJAS!N102 -> 0 | CC108: =+PENJAS!Q102 -> 0 | CD108: =+PENJAS!T102 -> 0 | CE108: 0 | CF108: =+'NILAI SMT 6 (US)'!AF102 -> 0 | CG108: 0 | CH108: =+'TIK-KET'!H102 -> 0 | CI108: =+'TIK-KET'!K102 -> 0 | CJ108: =+'TIK-KET'!N102 -> 0 | CK108: =+'TIK-KET'!Q102 -> 0 | CL108: =+'TIK-KET'!T102 -> 0 | CM108: 0 | CN108: =+'NILAI SMT 6 (US)'!AI102 -> 0 | CO108: 0 | CP108: =+'MLK1'!H102 -> 0 | CQ108: =+'MLK1'!K102 -> 0 | CR108: =+'MLK1'!N102 -> 0 | CS108: =+'MLK1'!Q102 -> 0 | CT108: =+'MLK1'!T102 -> 0 | CU108: 0 | CV108: =+'NILAI SMT 6 (US)'!AL102 -> 0 | CW108: 0 | CX108: =+'MLK2'!H102 -> 0 | CY108: =+'MLK2'!K102 -> 0 | CZ108: =+'MLK2'!N102 -> 0 | DA108: =+'MLK2'!Q102 -> 0 | DB108: =+'MLK2'!T102 -> 0 | DC108: 0 | DD108: =+'NILAI SMT 6 (US)'!AO102 -> 0 | DE108: 0 | DF108: 0 | DG108: =DF108/('KRITERIA&MULOK'!$E$20) -> 0 | DH108: 30 | DI108: 7.5 | DJ108: 18 | DK108: 4.5 | DL108: B | DM108: TIDAK LULUS
A109: =+BIODATA!A103 -> 96 | B109: =+BIODATA!B103 -> 0 | C109: =+BIODATA!E103 -> 0 | D109: =+BIODATA!C103 -> 0 | E109: =+BIODATA!D103 -> 0 | F109: =+BIND!H103 -> 0 | G109: =+BIND!K103 -> 0 | H109: =+BIND!N103 -> 0 | I109: =+BIND!Q103 -> 0 | J109: =+BIND!T103 -> 0 | K109: 0 | L109: =+'NILAI SMT 6 (US)'!N103 -> 0 | M109: 0 | N109: 7 | O109: 4.2 | P109: =+'B-ING'!H103 -> 0 | Q109: =+'B-ING'!K103 -> 0 | R109: =+'B-ING'!N103 -> 0 | S109: =+'B-ING'!Q103 -> 0 | T109: =+'B-ING'!T103 -> 0 | U109: 0 | V109: =+'NILAI SMT 6 (US)'!Q103 -> 0 | W109: 0 | X109: 8 | Y109: 4.8 | Z109: =+MAT!H103 -> 0 | AA109: =+MAT!K103 -> 0 | AB109: =+MAT!N103 -> 0 | AC109: =+MAT!Q103 -> 0 | AD109: =+MAT!T103 -> 0 | AE109: 0 | AF109: =+'NILAI SMT 6 (US)'!T103 -> 0 | AG109: 0 | AH109: 9 | AI109: 5.4 | AJ109: =+IPA!H103 -> 0 | AK109: =+IPA!K103 -> 0 | AL109: =+IPA!N103 -> 0 | AM109: =+IPA!Q103 -> 0 | AN109: =+IPA!T103 -> 0 | AO109: 0 | AP109: =+'NILAI SMT 6 (US)'!W103 -> 0 | AQ109: 0 | AR109: 6 | AS109: 3.6 | AT109: =+Agama!H103 -> 0 | AU109: =+Agama!K103 -> 0 | AV109: =+Agama!N103 -> 0 | AW109: =+Agama!Q103 -> 0 | AX109: =+Agama!T103 -> 0 | AY109: 0 | AZ109: =+'NILAI SMT 6 (US)'!H103 -> 0 | BA109: 0 | BB109: =+PPKn!H103 -> 0 | BC109: =+PPKn!K103 -> 0 | BD109: =+PPKn!N103 -> 0 | BE109: =+PPKn!Q103 -> 0 | BF109: =+PPKn!T103 -> 0 | BG109: 0 | BH109: =+'NILAI SMT 6 (US)'!K103 -> 0 | BI109: 0 | BJ109: =+IPS!H103 -> 0 | BK109: =+IPS!K103 -> 0 | BL109: =+IPS!N103 -> 0 | BM109: =+IPS!Q103 -> 0 | BN109: =+IPS!T103 -> 0 | BO109: 0 | BP109: =+'NILAI SMT 6 (US)'!Z103 -> 0 | BQ109: 0 | BR109: =+SENI!H103 -> 0 | BS109: =+SENI!K103 -> 0 | BT109: =+SENI!N103 -> 0 | BU109: =+SENI!Q103 -> 0 | BV109: =+SENI!T103 -> 0 | BW109: 0 | BX109: =+'NILAI SMT 6 (US)'!AC103 -> 0 | BY109: 0 | BZ109: =+PENJAS!H103 -> 0 | CA109: =+PENJAS!K103 -> 0 | CB109: =+PENJAS!N103 -> 0 | CC109: =+PENJAS!Q103 -> 0 | CD109: =+PENJAS!T103 -> 0 | CE109: 0 | CF109: =+'NILAI SMT 6 (US)'!AF103 -> 0 | CG109: 0 | CH109: =+'TIK-KET'!H103 -> 0 | CI109: =+'TIK-KET'!K103 -> 0 | CJ109: =+'TIK-KET'!N103 -> 0 | CK109: =+'TIK-KET'!Q103 -> 0 | CL109: =+'TIK-KET'!T103 -> 0 | CM109: 0 | CN109: =+'NILAI SMT 6 (US)'!AI103 -> 0 | CO109: 0 | CP109: =+'MLK1'!H103 -> 0 | CQ109: =+'MLK1'!K103 -> 0 | CR109: =+'MLK1'!N103 -> 0 | CS109: =+'MLK1'!Q103 -> 0 | CT109: =+'MLK1'!T103 -> 0 | CU109: 0 | CV109: =+'NILAI SMT 6 (US)'!AL103 -> 0 | CW109: 0 | CX109: =+'MLK2'!H103 -> 0 | CY109: =+'MLK2'!K103 -> 0 | CZ109: =+'MLK2'!N103 -> 0 | DA109: =+'MLK2'!Q103 -> 0 | DB109: =+'MLK2'!T103 -> 0 | DC109: 0 | DD109: =+'NILAI SMT 6 (US)'!AO103 -> 0 | DE109: 0 | DF109: 0 | DG109: =DF109/('KRITERIA&MULOK'!$E$20) -> 0 | DH109: 30 | DI109: 7.5 | DJ109: 18 | DK109: 4.5 | DL109: B | DM109: TIDAK LULUS
A110: =+BIODATA!A104 -> 97 | B110: =+BIODATA!B104 -> 0 | C110: =+BIODATA!E104 -> 0 | D110: =+BIODATA!C104 -> 0 | E110: =+BIODATA!D104 -> 0 | F110: =+BIND!H104 -> 0 | G110: =+BIND!K104 -> 0 | H110: =+BIND!N104 -> 0 | I110: =+BIND!Q104 -> 0 | J110: =+BIND!T104 -> 0 | K110: 0 | L110: =+'NILAI SMT 6 (US)'!N104 -> 0 | M110: 0 | N110: 7 | O110: 4.2 | P110: =+'B-ING'!H104 -> 0 | Q110: =+'B-ING'!K104 -> 0 | R110: =+'B-ING'!N104 -> 0 | S110: =+'B-ING'!Q104 -> 0 | T110: =+'B-ING'!T104 -> 0 | U110: 0 | V110: =+'NILAI SMT 6 (US)'!Q104 -> 0 | W110: 0 | X110: 8 | Y110: 4.8 | Z110: =+MAT!H104 -> 0 | AA110: =+MAT!K104 -> 0 | AB110: =+MAT!N104 -> 0 | AC110: =+MAT!Q104 -> 0 | AD110: =+MAT!T104 -> 0 | AE110: 0 | AF110: =+'NILAI SMT 6 (US)'!T104 -> 0 | AG110: 0 | AH110: 9 | AI110: 5.4 | AJ110: =+IPA!H104 -> 0 | AK110: =+IPA!K104 -> 0 | AL110: =+IPA!N104 -> 0 | AM110: =+IPA!Q104 -> 0 | AN110: =+IPA!T104 -> 0 | AO110: 0 | AP110: =+'NILAI SMT 6 (US)'!W104 -> 0 | AQ110: 0 | AR110: 6 | AS110: 3.6 | AT110: =+Agama!H104 -> 0 | AU110: =+Agama!K104 -> 0 | AV110: =+Agama!N104 -> 0 | AW110: =+Agama!Q104 -> 0 | AX110: =+Agama!T104 -> 0 | AY110: 0 | AZ110: =+'NILAI SMT 6 (US)'!H104 -> 0 | BA110: 0 | BB110: =+PPKn!H104 -> 0 | BC110: =+PPKn!K104 -> 0 | BD110: =+PPKn!N104 -> 0 | BE110: =+PPKn!Q104 -> 0 | BF110: =+PPKn!T104 -> 0 | BG110: 0 | BH110: =+'NILAI SMT 6 (US)'!K104 -> 0 | BI110: 0 | BJ110: =+IPS!H104 -> 0 | BK110: =+IPS!K104 -> 0 | BL110: =+IPS!N104 -> 0 | BM110: =+IPS!Q104 -> 0 | BN110: =+IPS!T104 -> 0 | BO110: 0 | BP110: =+'NILAI SMT 6 (US)'!Z104 -> 0 | BQ110: 0 | BR110: =+SENI!H104 -> 0 | BS110: =+SENI!K104 -> 0 | BT110: =+SENI!N104 -> 0 | BU110: =+SENI!Q104 -> 0 | BV110: =+SENI!T104 -> 0 | BW110: 0 | BX110: =+'NILAI SMT 6 (US)'!AC104 -> 0 | BY110: 0 | BZ110: =+PENJAS!H104 -> 0 | CA110: =+PENJAS!K104 -> 0 | CB110: =+PENJAS!N104 -> 0 | CC110: =+PENJAS!Q104 -> 0 | CD110: =+PENJAS!T104 -> 0 | CE110: 0 | CF110: =+'NILAI SMT 6 (US)'!AF104 -> 0 | CG110: 0 | CH110: =+'TIK-KET'!H104 -> 0 | CI110: =+'TIK-KET'!K104 -> 0 | CJ110: =+'TIK-KET'!N104 -> 0 | CK110: =+'TIK-KET'!Q104 -> 0 | CL110: =+'TIK-KET'!T104 -> 0 | CM110: 0 | CN110: =+'NILAI SMT 6 (US)'!AI104 -> 0 | CO110: 0 | CP110: =+'MLK1'!H104 -> 0 | CQ110: =+'MLK1'!K104 -> 0 | CR110: =+'MLK1'!N104 -> 0 | CS110: =+'MLK1'!Q104 -> 0 | CT110: =+'MLK1'!T104 -> 0 | CU110: 0 | CV110: =+'NILAI SMT 6 (US)'!AL104 -> 0 | CW110: 0 | CX110: =+'MLK2'!H104 -> 0 | CY110: =+'MLK2'!K104 -> 0 | CZ110: =+'MLK2'!N104 -> 0 | DA110: =+'MLK2'!Q104 -> 0 | DB110: =+'MLK2'!T104 -> 0 | DC110: 0 | DD110: =+'NILAI SMT 6 (US)'!AO104 -> 0 | DE110: 0 | DF110: 0 | DG110: =DF110/('KRITERIA&MULOK'!$E$20) -> 0 | DH110: 30 | DI110: 7.5 | DJ110: 18 | DK110: 4.5 | DL110: B | DM110: TIDAK LULUS
A111: =+BIODATA!A105 -> 98 | B111: =+BIODATA!B105 -> 0 | C111: =+BIODATA!E105 -> 0 | D111: =+BIODATA!C105 -> 0 | E111: =+BIODATA!D105 -> 0 | F111: =+BIND!H105 -> 0 | G111: =+BIND!K105 -> 0 | H111: =+BIND!N105 -> 0 | I111: =+BIND!Q105 -> 0 | J111: =+BIND!T105 -> 0 | K111: 0 | L111: =+'NILAI SMT 6 (US)'!N105 -> 0 | M111: 0 | N111: 7 | O111: 4.2 | P111: =+'B-ING'!H105 -> 0 | Q111: =+'B-ING'!K105 -> 0 | R111: =+'B-ING'!N105 -> 0 | S111: =+'B-ING'!Q105 -> 0 | T111: =+'B-ING'!T105 -> 0 | U111: 0 | V111: =+'NILAI SMT 6 (US)'!Q105 -> 0 | W111: 0 | X111: 8 | Y111: 4.8 | Z111: =+MAT!H105 -> 0 | AA111: =+MAT!K105 -> 0 | AB111: =+MAT!N105 -> 0 | AC111: =+MAT!Q105 -> 0 | AD111: =+MAT!T105 -> 0 | AE111: 0 | AF111: =+'NILAI SMT 6 (US)'!T105 -> 0 | AG111: 0 | AH111: 9 | AI111: 5.4 | AJ111: =+IPA!H105 -> 0 | AK111: =+IPA!K105 -> 0 | AL111: =+IPA!N105 -> 0 | AM111: =+IPA!Q105 -> 0 | AN111: =+IPA!T105 -> 0 | AO111: 0 | AP111: =+'NILAI SMT 6 (US)'!W105 -> 0 | AQ111: 0 | AR111: 6 | AS111: 3.6 | AT111: =+Agama!H105 -> 0 | AU111: =+Agama!K105 -> 0 | AV111: =+Agama!N105 -> 0 | AW111: =+Agama!Q105 -> 0 | AX111: =+Agama!T105 -> 0 | AY111: 0 | AZ111: =+'NILAI SMT 6 (US)'!H105 -> 0 | BA111: 0 | BB111: =+PPKn!H105 -> 0 | BC111: =+PPKn!K105 -> 0 | BD111: =+PPKn!N105 -> 0 | BE111: =+PPKn!Q105 -> 0 | BF111: =+PPKn!T105 -> 0 | BG111: 0 | BH111: =+'NILAI SMT 6 (US)'!K105 -> 0 | BI111: 0 | BJ111: =+IPS!H105 -> 0 | BK111: =+IPS!K105 -> 0 | BL111: =+IPS!N105 -> 0 | BM111: =+IPS!Q105 -> 0 | BN111: =+IPS!T105 -> 0 | BO111: 0 | BP111: =+'NILAI SMT 6 (US)'!Z105 -> 0 | BQ111: 0 | BR111: =+SENI!H105 -> 0 | BS111: =+SENI!K105 -> 0 | BT111: =+SENI!N105 -> 0 | BU111: =+SENI!Q105 -> 0 | BV111: =+SENI!T105 -> 0 | BW111: 0 | BX111: =+'NILAI SMT 6 (US)'!AC105 -> 0 | BY111: 0 | BZ111: =+PENJAS!H105 -> 0 | CA111: =+PENJAS!K105 -> 0 | CB111: =+PENJAS!N105 -> 0 | CC111: =+PENJAS!Q105 -> 0 | CD111: =+PENJAS!T105 -> 0 | CE111: 0 | CF111: =+'NILAI SMT 6 (US)'!AF105 -> 0 | CG111: 0 | CH111: =+'TIK-KET'!H105 -> 0 | CI111: =+'TIK-KET'!K105 -> 0 | CJ111: =+'TIK-KET'!N105 -> 0 | CK111: =+'TIK-KET'!Q105 -> 0 | CL111: =+'TIK-KET'!T105 -> 0 | CM111: 0 | CN111: =+'NILAI SMT 6 (US)'!AI105 -> 0 | CO111: 0 | CP111: =+'MLK1'!H105 -> 0 | CQ111: =+'MLK1'!K105 -> 0 | CR111: =+'MLK1'!N105 -> 0 | CS111: =+'MLK1'!Q105 -> 0 | CT111: =+'MLK1'!T105 -> 0 | CU111: 0 | CV111: =+'NILAI SMT 6 (US)'!AL105 -> 0 | CW111: 0 | CX111: =+'MLK2'!H105 -> 0 | CY111: =+'MLK2'!K105 -> 0 | CZ111: =+'MLK2'!N105 -> 0 | DA111: =+'MLK2'!Q105 -> 0 | DB111: =+'MLK2'!T105 -> 0 | DC111: 0 | DD111: =+'NILAI SMT 6 (US)'!AO105 -> 0 | DE111: 0 | DF111: 0 | DG111: =DF111/('KRITERIA&MULOK'!$E$20) -> 0 | DH111: 30 | DI111: 7.5 | DJ111: 18 | DK111: 4.5 | DL111: B | DM111: TIDAK LULUS
A112: =+BIODATA!A106 -> 99 | B112: =+BIODATA!B106 -> 0 | C112: =+BIODATA!E106 -> 0 | D112: =+BIODATA!C106 -> 0 | E112: =+BIODATA!D106 -> 0 | F112: =+BIND!H106 -> 0 | G112: =+BIND!K106 -> 0 | H112: =+BIND!N106 -> 0 | I112: =+BIND!Q106 -> 0 | J112: =+BIND!T106 -> 0 | K112: 0 | L112: =+'NILAI SMT 6 (US)'!N106 -> 0 | M112: 0 | N112: 7 | O112: 4.2 | P112: =+'B-ING'!H106 -> 0 | Q112: =+'B-ING'!K106 -> 0 | R112: =+'B-ING'!N106 -> 0 | S112: =+'B-ING'!Q106 -> 0 | T112: =+'B-ING'!T106 -> 0 | U112: 0 | V112: =+'NILAI SMT 6 (US)'!Q106 -> 0 | W112: 0 | X112: 8 | Y112: 4.8 | Z112: =+MAT!H106 -> 0 | AA112: =+MAT!K106 -> 0 | AB112: =+MAT!N106 -> 0 | AC112: =+MAT!Q106 -> 0 | AD112: =+MAT!T106 -> 0 | AE112: 0 | AF112: =+'NILAI SMT 6 (US)'!T106 -> 0 | AG112: 0 | AH112: 9 | AI112: 5.4 | AJ112: =+IPA!H106 -> 0 | AK112: =+IPA!K106 -> 0 | AL112: =+IPA!N106 -> 0 | AM112: =+IPA!Q106 -> 0 | AN112: =+IPA!T106 -> 0 | AO112: 0 | AP112: =+'NILAI SMT 6 (US)'!W106 -> 0 | AQ112: 0 | AR112: 6 | AS112: 3.6 | AT112: =+Agama!H106 -> 0 | AU112: =+Agama!K106 -> 0 | AV112: =+Agama!N106 -> 0 | AW112: =+Agama!Q106 -> 0 | AX112: =+Agama!T106 -> 0 | AY112: 0 | AZ112: =+'NILAI SMT 6 (US)'!H106 -> 0 | BA112: 0 | BB112: =+PPKn!H106 -> 0 | BC112: =+PPKn!K106 -> 0 | BD112: =+PPKn!N106 -> 0 | BE112: =+PPKn!Q106 -> 0 | BF112: =+PPKn!T106 -> 0 | BG112: 0 | BH112: =+'NILAI SMT 6 (US)'!K106 -> 0 | BI112: 0 | BJ112: =+IPS!H106 -> 0 | BK112: =+IPS!K106 -> 0 | BL112: =+IPS!N106 -> 0 | BM112: =+IPS!Q106 -> 0 | BN112: =+IPS!T106 -> 0 | BO112: 0 | BP112: =+'NILAI SMT 6 (US)'!Z106 -> 0 | BQ112: 0 | BR112: =+SENI!H106 -> 0 | BS112: =+SENI!K106 -> 0 | BT112: =+SENI!N106 -> 0 | BU112: =+SENI!Q106 -> 0 | BV112: =+SENI!T106 -> 0 | BW112: 0 | BX112: =+'NILAI SMT 6 (US)'!AC106 -> 0 | BY112: 0 | BZ112: =+PENJAS!H106 -> 0 | CA112: =+PENJAS!K106 -> 0 | CB112: =+PENJAS!N106 -> 0 | CC112: =+PENJAS!Q106 -> 0 | CD112: =+PENJAS!T106 -> 0 | CE112: 0 | CF112: =+'NILAI SMT 6 (US)'!AF106 -> 0 | CG112: 0 | CH112: =+'TIK-KET'!H106 -> 0 | CI112: =+'TIK-KET'!K106 -> 0 | CJ112: =+'TIK-KET'!N106 -> 0 | CK112: =+'TIK-KET'!Q106 -> 0 | CL112: =+'TIK-KET'!T106 -> 0 | CM112: 0 | CN112: =+'NILAI SMT 6 (US)'!AI106 -> 0 | CO112: 0 | CP112: =+'MLK1'!H106 -> 0 | CQ112: =+'MLK1'!K106 -> 0 | CR112: =+'MLK1'!N106 -> 0 | CS112: =+'MLK1'!Q106 -> 0 | CT112: =+'MLK1'!T106 -> 0 | CU112: 0 | CV112: =+'NILAI SMT 6 (US)'!AL106 -> 0 | CW112: 0 | CX112: =+'MLK2'!H106 -> 0 | CY112: =+'MLK2'!K106 -> 0 | CZ112: =+'MLK2'!N106 -> 0 | DA112: =+'MLK2'!Q106 -> 0 | DB112: =+'MLK2'!T106 -> 0 | DC112: 0 | DD112: =+'NILAI SMT 6 (US)'!AO106 -> 0 | DE112: 0 | DF112: 0 | DG112: =DF112/('KRITERIA&MULOK'!$E$20) -> 0 | DH112: 30 | DI112: 7.5 | DJ112: 18 | DK112: 4.5 | DL112: B | DM112: TIDAK LULUS
A113: =+BIODATA!A107 -> 100 | B113: =+BIODATA!B107 -> 0 | C113: =+BIODATA!E107 -> 0 | D113: =+BIODATA!C107 -> UMI | E113: =+BIODATA!D107 -> 0 | F113: =+BIND!H107 -> 0 | G113: =+BIND!K107 -> 0 | H113: =+BIND!N107 -> 0 | I113: =+BIND!Q107 -> 0 | J113: =+BIND!T107 -> 0 | K113: 0 | L113: =+'NILAI SMT 6 (US)'!N107 -> 0 | M113: 0 | N113: 7 | O113: 4.2 | P113: =+'B-ING'!H107 -> 0 | Q113: =+'B-ING'!K107 -> 0 | R113: =+'B-ING'!N107 -> 0 | S113: =+'B-ING'!Q107 -> 0 | T113: =+'B-ING'!T107 -> 0 | U113: 0 | V113: =+'NILAI SMT 6 (US)'!Q107 -> 0 | W113: 0 | X113: 8 | Y113: 4.8 | Z113: =+MAT!H107 -> 0 | AA113: =+MAT!K107 -> 0 | AB113: =+MAT!N107 -> 0 | AC113: =+MAT!Q107 -> 0 | AD113: =+MAT!T107 -> 0 | AE113: 0 | AF113: =+'NILAI SMT 6 (US)'!T107 -> 0 | AG113: 0 | AH113: 9 | AI113: 5.4 | AJ113: =+IPA!H107 -> 0 | AK113: =+IPA!K107 -> 0 | AL113: =+IPA!N107 -> 0 | AM113: =+IPA!Q107 -> 0 | AN113: =+IPA!T107 -> 0 | AO113: 0 | AP113: =+'NILAI SMT 6 (US)'!W107 -> 0 | AQ113: 0 | AR113: 6 | AS113: 3.6 | AT113: =+Agama!H107 -> 0 | AU113: =+Agama!K107 -> 0 | AV113: =+Agama!N107 -> 0 | AW113: =+Agama!Q107 -> 0 | AX113: =+Agama!T107 -> 0 | AY113: 0 | AZ113: =+'NILAI SMT 6 (US)'!H107 -> 0 | BA113: 0 | BB113: =+PPKn!H107 -> 0 | BC113: =+PPKn!K107 -> 0 | BD113: =+PPKn!N107 -> 0 | BE113: =+PPKn!Q107 -> 0 | BF113: =+PPKn!T107 -> 0 | BG113: 0 | BH113: =+'NILAI SMT 6 (US)'!K107 -> 0 | BI113: 0 | BJ113: =+IPS!H107 -> 0 | BK113: =+IPS!K107 -> 0 | BL113: =+IPS!N107 -> 0 | BM113: =+IPS!Q107 -> 0 | BN113: =+IPS!T107 -> 0 | BO113: 0 | BP113: =+'NILAI SMT 6 (US)'!Z107 -> 0 | BQ113: 0 | BR113: =+SENI!H107 -> 0 | BS113: =+SENI!K107 -> 0 | BT113: =+SENI!N107 -> 0 | BU113: =+SENI!Q107 -> 0 | BV113: =+SENI!T107 -> 0 | BW113: 0 | BX113: =+'NILAI SMT 6 (US)'!AC107 -> 0 | BY113: 0 | BZ113: =+PENJAS!H107 -> 0 | CA113: =+PENJAS!K107 -> 0 | CB113: =+PENJAS!N107 -> 0 | CC113: =+PENJAS!Q107 -> 0 | CD113: =+PENJAS!T107 -> 0 | CE113: 0 | CF113: =+'NILAI SMT 6 (US)'!AF107 -> 0 | CG113: 0 | CH113: =+'TIK-KET'!H107 -> 0 | CI113: =+'TIK-KET'!K107 -> 0 | CJ113: =+'TIK-KET'!N107 -> 0 | CK113: =+'TIK-KET'!Q107 -> 0 | CL113: =+'TIK-KET'!T107 -> 0 | CM113: 0 | CN113: =+'NILAI SMT 6 (US)'!AI107 -> 0 | CO113: 0 | CP113: =+'MLK1'!H107 -> 0 | CQ113: =+'MLK1'!K107 -> 0 | CR113: =+'MLK1'!N107 -> 0 | CS113: =+'MLK1'!Q107 -> 0 | CT113: =+'MLK1'!T107 -> 0 | CU113: 0 | CV113: =+'NILAI SMT 6 (US)'!AL107 -> 0 | CW113: 0 | CX113: =+'MLK2'!H107 -> 0 | CY113: =+'MLK2'!K107 -> 0 | CZ113: =+'MLK2'!N107 -> 0 | DA113: =+'MLK2'!Q107 -> 0 | DB113: =+'MLK2'!T107 -> 0 | DC113: 0 | DD113: =+'NILAI SMT 6 (US)'!AO107 -> 0 | DE113: 0 | DF113: 0 | DG113: =DF113/('KRITERIA&MULOK'!$E$20) -> 0 | DH113: 30 | DI113: 7.5 | DJ113: 18 | DK113: 4.5 | DL113: B | DM113: TIDAK LULUS
A114: =+BIODATA!A108 -> 101 | B114: =+BIODATA!B108 -> 0 | C114: =+BIODATA!E108 -> 0 | D114: =+BIODATA!C108 -> 0 | E114: =+BIODATA!D108 -> 0 | F114: =+BIND!H108 -> 0 | G114: =+BIND!K108 -> 0 | H114: =+BIND!N108 -> 0 | I114: =+BIND!Q108 -> 0 | J114: =+BIND!T108 -> 0 | K114: 0 | L114: =+'NILAI SMT 6 (US)'!N108 -> 0 | M114: 0 | N114: 7 | O114: 4.2 | P114: =+'B-ING'!H108 -> 0 | Q114: =+'B-ING'!K108 -> 0 | R114: =+'B-ING'!N108 -> 0 | S114: =+'B-ING'!Q108 -> 0 | T114: =+'B-ING'!T108 -> 0 | U114: 0 | V114: =+'NILAI SMT 6 (US)'!Q108 -> 0 | W114: 0 | X114: 8 | Y114: 4.8 | Z114: =+MAT!H108 -> 0 | AA114: =+MAT!K108 -> 0 | AB114: =+MAT!N108 -> 0 | AC114: =+MAT!Q108 -> 0 | AD114: =+MAT!T108 -> 0 | AE114: 0 | AF114: =+'NILAI SMT 6 (US)'!T108 -> 0 | AG114: 0 | AH114: 9 | AI114: 5.4 | AJ114: =+IPA!H108 -> 0 | AK114: =+IPA!K108 -> 0 | AL114: =+IPA!N108 -> 0 | AM114: =+IPA!Q108 -> 0 | AN114: =+IPA!T108 -> 0 | AO114: 0 | AP114: =+'NILAI SMT 6 (US)'!W108 -> 0 | AQ114: 0 | AR114: 6 | AS114: 3.6 | AT114: =+Agama!H108 -> 0 | AU114: =+Agama!K108 -> 0 | AV114: =+Agama!N108 -> 0 | AW114: =+Agama!Q108 -> 0 | AX114: =+Agama!T108 -> 0 | AY114: 0 | AZ114: =+'NILAI SMT 6 (US)'!H108 -> 0 | BA114: 0 | BB114: =+PPKn!H108 -> 0 | BC114: =+PPKn!K108 -> 0 | BD114: =+PPKn!N108 -> 0 | BE114: =+PPKn!Q108 -> 0 | BF114: =+PPKn!T108 -> 0 | BG114: 0 | BH114: =+'NILAI SMT 6 (US)'!K108 -> 0 | BI114: 0 | BJ114: =+IPS!H108 -> 0 | BK114: =+IPS!K108 -> 0 | BL114: =+IPS!N108 -> 0 | BM114: =+IPS!Q108 -> 0 | BN114: =+IPS!T108 -> 0 | BO114: 0 | BP114: =+'NILAI SMT 6 (US)'!Z108 -> 0 | BQ114: 0 | BR114: =+SENI!H108 -> 0 | BS114: =+SENI!K108 -> 0 | BT114: =+SENI!N108 -> 0 | BU114: =+SENI!Q108 -> 0 | BV114: =+SENI!T108 -> 0 | BW114: 0 | BX114: =+'NILAI SMT 6 (US)'!AC108 -> 0 | BY114: 0 | BZ114: =+PENJAS!H108 -> 0 | CA114: =+PENJAS!K108 -> 0 | CB114: =+PENJAS!N108 -> 0 | CC114: =+PENJAS!Q108 -> 0 | CD114: =+PENJAS!T108 -> 0 | CE114: 0 | CF114: =+'NILAI SMT 6 (US)'!AF108 -> 0 | CG114: 0 | CH114: =+'TIK-KET'!H108 -> 0 | CI114: =+'TIK-KET'!K108 -> 0 | CJ114: =+'TIK-KET'!N108 -> 0 | CK114: =+'TIK-KET'!Q108 -> 0 | CL114: =+'TIK-KET'!T108 -> 0 | CM114: 0 | CN114: =+'NILAI SMT 6 (US)'!AI108 -> 0 | CO114: 0 | CP114: =+'MLK1'!H108 -> 0 | CQ114: =+'MLK1'!K108 -> 0 | CR114: =+'MLK1'!N108 -> 0 | CS114: =+'MLK1'!Q108 -> 0 | CT114: =+'MLK1'!T108 -> 0 | CU114: 0 | CV114: =+'NILAI SMT 6 (US)'!AL108 -> 0 | CW114: 0 | CX114: =+'MLK2'!H108 -> 0 | CY114: =+'MLK2'!K108 -> 0 | CZ114: =+'MLK2'!N108 -> 0 | DA114: =+'MLK2'!Q108 -> 0 | DB114: =+'MLK2'!T108 -> 0 | DC114: 0 | DD114: =+'NILAI SMT 6 (US)'!AO108 -> 0 | DE114: 0 | DF114: 0 | DG114: =DF114/('KRITERIA&MULOK'!$E$20) -> 0 | DH114: 30 | DI114: 7.5 | DJ114: 18 | DK114: 4.5 | DL114: B | DM114: TIDAK LULUS
A115: =+BIODATA!A109 -> 102 | B115: =+BIODATA!B109 -> 0 | C115: =+BIODATA!E109 -> 0 | D115: =+BIODATA!C109 -> 0 | E115: =+BIODATA!D109 -> 0 | F115: =+BIND!H109 -> 0 | G115: =+BIND!K109 -> 0 | H115: =+BIND!N109 -> 0 | I115: =+BIND!Q109 -> 0 | J115: =+BIND!T109 -> 0 | K115: 0 | L115: =+'NILAI SMT 6 (US)'!N109 -> 0 | M115: 0 | N115: 7 | O115: 4.2 | P115: =+'B-ING'!H109 -> 0 | Q115: =+'B-ING'!K109 -> 0 | R115: =+'B-ING'!N109 -> 0 | S115: =+'B-ING'!Q109 -> 0 | T115: =+'B-ING'!T109 -> 0 | U115: 0 | V115: =+'NILAI SMT 6 (US)'!Q109 -> 0 | W115: 0 | X115: 8 | Y115: 4.8 | Z115: =+MAT!H109 -> 0 | AA115: =+MAT!K109 -> 0 | AB115: =+MAT!N109 -> 0 | AC115: =+MAT!Q109 -> 0 | AD115: =+MAT!T109 -> 0 | AE115: 0 | AF115: =+'NILAI SMT 6 (US)'!T109 -> 0 | AG115: 0 | AH115: 9 | AI115: 5.4 | AJ115: =+IPA!H109 -> 0 | AK115: =+IPA!K109 -> 0 | AL115: =+IPA!N109 -> 0 | AM115: =+IPA!Q109 -> 0 | AN115: =+IPA!T109 -> 0 | AO115: 0 | AP115: =+'NILAI SMT 6 (US)'!W109 -> 0 | AQ115: 0 | AR115: 6 | AS115: 3.6 | AT115: =+Agama!H109 -> 0 | AU115: =+Agama!K109 -> 0 | AV115: =+Agama!N109 -> 0 | AW115: =+Agama!Q109 -> 0 | AX115: =+Agama!T109 -> 0 | AY115: 0 | AZ115: =+'NILAI SMT 6 (US)'!H109 -> 0 | BA115: 0 | BB115: =+PPKn!H109 -> 0 | BC115: =+PPKn!K109 -> 0 | BD115: =+PPKn!N109 -> 0 | BE115: =+PPKn!Q109 -> 0 | BF115: =+PPKn!T109 -> 0 | BG115: 0 | BH115: =+'NILAI SMT 6 (US)'!K109 -> 0 | BI115: 0 | BJ115: =+IPS!H109 -> 0 | BK115: =+IPS!K109 -> 0 | BL115: =+IPS!N109 -> 0 | BM115: =+IPS!Q109 -> 0 | BN115: =+IPS!T109 -> 0 | BO115: 0 | BP115: =+'NILAI SMT 6 (US)'!Z109 -> 0 | BQ115: 0 | BR115: =+SENI!H109 -> 0 | BS115: =+SENI!K109 -> 0 | BT115: =+SENI!N109 -> 0 | BU115: =+SENI!Q109 -> 0 | BV115: =+SENI!T109 -> 0 | BW115: 0 | BX115: =+'NILAI SMT 6 (US)'!AC109 -> 0 | BY115: 0 | BZ115: =+PENJAS!H109 -> 0 | CA115: =+PENJAS!K109 -> 0 | CB115: =+PENJAS!N109 -> 0 | CC115: =+PENJAS!Q109 -> 0 | CD115: =+PENJAS!T109 -> 0 | CE115: 0 | CF115: =+'NILAI SMT 6 (US)'!AF109 -> 0 | CG115: 0 | CH115: =+'TIK-KET'!H109 -> 0 | CI115: =+'TIK-KET'!K109 -> 0 | CJ115: =+'TIK-KET'!N109 -> 0 | CK115: =+'TIK-KET'!Q109 -> 0 | CL115: =+'TIK-KET'!T109 -> 0 | CM115: 0 | CN115: =+'NILAI SMT 6 (US)'!AI109 -> 0 | CO115: 0 | CP115: =+'MLK1'!H109 -> 0 | CQ115: =+'MLK1'!K109 -> 0 | CR115: =+'MLK1'!N109 -> 0 | CS115: =+'MLK1'!Q109 -> 0 | CT115: =+'MLK1'!T109 -> 0 | CU115: 0 | CV115: =+'NILAI SMT 6 (US)'!AL109 -> 0 | CW115: 0 | CX115: =+'MLK2'!H109 -> 0 | CY115: =+'MLK2'!K109 -> 0 | CZ115: =+'MLK2'!N109 -> 0 | DA115: =+'MLK2'!Q109 -> 0 | DB115: =+'MLK2'!T109 -> 0 | DC115: 0 | DD115: =+'NILAI SMT 6 (US)'!AO109 -> 0 | DE115: 0 | DF115: 0 | DG115: =DF115/('KRITERIA&MULOK'!$E$20) -> 0 | DH115: 30 | DI115: 7.5 | DJ115: 18 | DK115: 4.5 | DL115: B | DM115: TIDAK LULUS
A116: =+BIODATA!A110 -> 103 | B116: =+BIODATA!B110 -> 0 | C116: =+BIODATA!E110 -> 0 | D116: =+BIODATA!C110 -> 0 | E116: =+BIODATA!D110 -> 0 | F116: =+BIND!H110 -> 0 | G116: =+BIND!K110 -> 0 | H116: =+BIND!N110 -> 0 | I116: =+BIND!Q110 -> 0 | J116: =+BIND!T110 -> 0 | K116: 0 | L116: =+'NILAI SMT 6 (US)'!N110 -> 0 | M116: 0 | N116: 7 | O116: 4.2 | P116: =+'B-ING'!H110 -> 0 | Q116: =+'B-ING'!K110 -> 0 | R116: =+'B-ING'!N110 -> 0 | S116: =+'B-ING'!Q110 -> 0 | T116: =+'B-ING'!T110 -> 0 | U116: 0 | V116: =+'NILAI SMT 6 (US)'!Q110 -> 0 | W116: 0 | X116: 8 | Y116: 4.8 | Z116: =+MAT!H110 -> 0 | AA116: =+MAT!K110 -> 0 | AB116: =+MAT!N110 -> 0 | AC116: =+MAT!Q110 -> 0 | AD116: =+MAT!T110 -> 0 | AE116: 0 | AF116: =+'NILAI SMT 6 (US)'!T110 -> 0 | AG116: 0 | AH116: 9 | AI116: 5.4 | AJ116: =+IPA!H110 -> 0 | AK116: =+IPA!K110 -> 0 | AL116: =+IPA!N110 -> 0 | AM116: =+IPA!Q110 -> 0 | AN116: =+IPA!T110 -> 0 | AO116: 0 | AP116: =+'NILAI SMT 6 (US)'!W110 -> 0 | AQ116: 0 | AR116: 6 | AS116: 3.6 | AT116: =+Agama!H110 -> 0 | AU116: =+Agama!K110 -> 0 | AV116: =+Agama!N110 -> 0 | AW116: =+Agama!Q110 -> 0 | AX116: =+Agama!T110 -> 0 | AY116: 0 | AZ116: =+'NILAI SMT 6 (US)'!H110 -> 0 | BA116: 0 | BB116: =+PPKn!H110 -> 0 | BC116: =+PPKn!K110 -> 0 | BD116: =+PPKn!N110 -> 0 | BE116: =+PPKn!Q110 -> 0 | BF116: =+PPKn!T110 -> 0 | BG116: 0 | BH116: =+'NILAI SMT 6 (US)'!K110 -> 0 | BI116: 0 | BJ116: =+IPS!H110 -> 0 | BK116: =+IPS!K110 -> 0 | BL116: =+IPS!N110 -> 0 | BM116: =+IPS!Q110 -> 0 | BN116: =+IPS!T110 -> 0 | BO116: 0 | BP116: =+'NILAI SMT 6 (US)'!Z110 -> 0 | BQ116: 0 | BR116: =+SENI!H110 -> 0 | BS116: =+SENI!K110 -> 0 | BT116: =+SENI!N110 -> 0 | BU116: =+SENI!Q110 -> 0 | BV116: =+SENI!T110 -> 0 | BW116: 0 | BX116: =+'NILAI SMT 6 (US)'!AC110 -> 0 | BY116: 0 | BZ116: =+PENJAS!H110 -> 0 | CA116: =+PENJAS!K110 -> 0 | CB116: =+PENJAS!N110 -> 0 | CC116: =+PENJAS!Q110 -> 0 | CD116: =+PENJAS!T110 -> 0 | CE116: 0 | CF116: =+'NILAI SMT 6 (US)'!AF110 -> 0 | CG116: 0 | CH116: =+'TIK-KET'!H110 -> 0 | CI116: =+'TIK-KET'!K110 -> 0 | CJ116: =+'TIK-KET'!N110 -> 0 | CK116: =+'TIK-KET'!Q110 -> 0 | CL116: =+'TIK-KET'!T110 -> 0 | CM116: 0 | CN116: =+'NILAI SMT 6 (US)'!AI110 -> 0 | CO116: 0 | CP116: =+'MLK1'!H110 -> 0 | CQ116: =+'MLK1'!K110 -> 0 | CR116: =+'MLK1'!N110 -> 0 | CS116: =+'MLK1'!Q110 -> 0 | CT116: =+'MLK1'!T110 -> 0 | CU116: 0 | CV116: =+'NILAI SMT 6 (US)'!AL110 -> 0 | CW116: 0 | CX116: =+'MLK2'!H110 -> 0 | CY116: =+'MLK2'!K110 -> 0 | CZ116: =+'MLK2'!N110 -> 0 | DA116: =+'MLK2'!Q110 -> 0 | DB116: =+'MLK2'!T110 -> 0 | DC116: 0 | DD116: =+'NILAI SMT 6 (US)'!AO110 -> 0 | DE116: 0 | DF116: 0 | DG116: =DF116/('KRITERIA&MULOK'!$E$20) -> 0 | DH116: 30 | DI116: 7.5 | DJ116: 18 | DK116: 4.5 | DL116: B | DM116: TIDAK LULUS
A117: =+BIODATA!A111 -> 104 | B117: =+BIODATA!B111 -> 0 | C117: =+BIODATA!E111 -> 0 | D117: =+BIODATA!C111 -> 0 | E117: =+BIODATA!D111 -> 0 | F117: =+BIND!H111 -> 0 | G117: =+BIND!K111 -> 0 | H117: =+BIND!N111 -> 0 | I117: =+BIND!Q111 -> 0 | J117: =+BIND!T111 -> 0 | K117: 0 | L117: =+'NILAI SMT 6 (US)'!N111 -> 0 | M117: 0 | N117: 7 | O117: 4.2 | P117: =+'B-ING'!H111 -> 0 | Q117: =+'B-ING'!K111 -> 0 | R117: =+'B-ING'!N111 -> 0 | S117: =+'B-ING'!Q111 -> 0 | T117: =+'B-ING'!T111 -> 0 | U117: 0 | V117: =+'NILAI SMT 6 (US)'!Q111 -> 0 | W117: 0 | X117: 8 | Y117: 4.8 | Z117: =+MAT!H111 -> 0 | AA117: =+MAT!K111 -> 0 | AB117: =+MAT!N111 -> 0 | AC117: =+MAT!Q111 -> 0 | AD117: =+MAT!T111 -> 0 | AE117: 0 | AF117: =+'NILAI SMT 6 (US)'!T111 -> 0 | AG117: 0 | AH117: 9 | AI117: 5.4 | AJ117: =+IPA!H111 -> 0 | AK117: =+IPA!K111 -> 0 | AL117: =+IPA!N111 -> 0 | AM117: =+IPA!Q111 -> 0 | AN117: =+IPA!T111 -> 0 | AO117: 0 | AP117: =+'NILAI SMT 6 (US)'!W111 -> 0 | AQ117: 0 | AR117: 6 | AS117: 3.6 | AT117: =+Agama!H111 -> 0 | AU117: =+Agama!K111 -> 0 | AV117: =+Agama!N111 -> 0 | AW117: =+Agama!Q111 -> 0 | AX117: =+Agama!T111 -> 0 | AY117: 0 | AZ117: =+'NILAI SMT 6 (US)'!H111 -> 0 | BA117: 0 | BB117: =+PPKn!H111 -> 0 | BC117: =+PPKn!K111 -> 0 | BD117: =+PPKn!N111 -> 0 | BE117: =+PPKn!Q111 -> 0 | BF117: =+PPKn!T111 -> 0 | BG117: 0 | BH117: =+'NILAI SMT 6 (US)'!K111 -> 0 | BI117: 0 | BJ117: =+IPS!H111 -> 0 | BK117: =+IPS!K111 -> 0 | BL117: =+IPS!N111 -> 0 | BM117: =+IPS!Q111 -> 0 | BN117: =+IPS!T111 -> 0 | BO117: 0 | BP117: =+'NILAI SMT 6 (US)'!Z111 -> 0 | BQ117: 0 | BR117: =+SENI!H111 -> 0 | BS117: =+SENI!K111 -> 0 | BT117: =+SENI!N111 -> 0 | BU117: =+SENI!Q111 -> 0 | BV117: =+SENI!T111 -> 0 | BW117: 0 | BX117: =+'NILAI SMT 6 (US)'!AC111 -> 0 | BY117: 0 | BZ117: =+PENJAS!H111 -> 0 | CA117: =+PENJAS!K111 -> 0 | CB117: =+PENJAS!N111 -> 0 | CC117: =+PENJAS!Q111 -> 0 | CD117: =+PENJAS!T111 -> 0 | CE117: 0 | CF117: =+'NILAI SMT 6 (US)'!AF111 -> 0 | CG117: 0 | CH117: =+'TIK-KET'!H111 -> 0 | CI117: =+'TIK-KET'!K111 -> 0 | CJ117: =+'TIK-KET'!N111 -> 0 | CK117: =+'TIK-KET'!Q111 -> 0 | CL117: =+'TIK-KET'!T111 -> 0 | CM117: 0 | CN117: =+'NILAI SMT 6 (US)'!AI111 -> 0 | CO117: 0 | CP117: =+'MLK1'!H111 -> 0 | CQ117: =+'MLK1'!K111 -> 0 | CR117: =+'MLK1'!N111 -> 0 | CS117: =+'MLK1'!Q111 -> 0 | CT117: =+'MLK1'!T111 -> 0 | CU117: 0 | CV117: =+'NILAI SMT 6 (US)'!AL111 -> 0 | CW117: 0 | CX117: =+'MLK2'!H111 -> 0 | CY117: =+'MLK2'!K111 -> 0 | CZ117: =+'MLK2'!N111 -> 0 | DA117: =+'MLK2'!Q111 -> 0 | DB117: =+'MLK2'!T111 -> 0 | DC117: 0 | DD117: =+'NILAI SMT 6 (US)'!AO111 -> 0 | DE117: 0 | DF117: 0 | DG117: =DF117/('KRITERIA&MULOK'!$E$20) -> 0 | DH117: 30 | DI117: 7.5 | DJ117: 18 | DK117: 4.5 | DL117: B | DM117: TIDAK LULUS
A118: =+BIODATA!A112 -> 105 | B118: =+BIODATA!B112 -> 0 | C118: =+BIODATA!E112 -> 0 | D118: =+BIODATA!C112 -> 0 | E118: =+BIODATA!D112 -> 0 | F118: =+BIND!H112 -> 0 | G118: =+BIND!K112 -> 0 | H118: =+BIND!N112 -> 0 | I118: =+BIND!Q112 -> 0 | J118: =+BIND!T112 -> 0 | K118: 0 | L118: =+'NILAI SMT 6 (US)'!N112 -> 0 | M118: 0 | N118: 7 | O118: 4.2 | P118: =+'B-ING'!H112 -> 0 | Q118: =+'B-ING'!K112 -> 0 | R118: =+'B-ING'!N112 -> 0 | S118: =+'B-ING'!Q112 -> 0 | T118: =+'B-ING'!T112 -> 0 | U118: 0 | V118: =+'NILAI SMT 6 (US)'!Q112 -> 0 | W118: 0 | X118: 8 | Y118: 4.8 | Z118: =+MAT!H112 -> 0 | AA118: =+MAT!K112 -> 0 | AB118: =+MAT!N112 -> 0 | AC118: =+MAT!Q112 -> 0 | AD118: =+MAT!T112 -> 0 | AE118: 0 | AF118: =+'NILAI SMT 6 (US)'!T112 -> 0 | AG118: 0 | AH118: 9 | AI118: 5.4 | AJ118: =+IPA!H112 -> 0 | AK118: =+IPA!K112 -> 0 | AL118: =+IPA!N112 -> 0 | AM118: =+IPA!Q112 -> 0 | AN118: =+IPA!T112 -> 0 | AO118: 0 | AP118: =+'NILAI SMT 6 (US)'!W112 -> 0 | AQ118: 0 | AR118: 6 | AS118: 3.6 | AT118: =+Agama!H112 -> 0 | AU118: =+Agama!K112 -> 0 | AV118: =+Agama!N112 -> 0 | AW118: =+Agama!Q112 -> 0 | AX118: =+Agama!T112 -> 0 | AY118: 0 | AZ118: =+'NILAI SMT 6 (US)'!H112 -> 0 | BA118: 0 | BB118: =+PPKn!H112 -> 0 | BC118: =+PPKn!K112 -> 0 | BD118: =+PPKn!N112 -> 0 | BE118: =+PPKn!Q112 -> 0 | BF118: =+PPKn!T112 -> 0 | BG118: 0 | BH118: =+'NILAI SMT 6 (US)'!K112 -> 0 | BI118: 0 | BJ118: =+IPS!H112 -> 0 | BK118: =+IPS!K112 -> 0 | BL118: =+IPS!N112 -> 0 | BM118: =+IPS!Q112 -> 0 | BN118: =+IPS!T112 -> 0 | BO118: 0 | BP118: =+'NILAI SMT 6 (US)'!Z112 -> 0 | BQ118: 0 | BR118: =+SENI!H112 -> 0 | BS118: =+SENI!K112 -> 0 | BT118: =+SENI!N112 -> 0 | BU118: =+SENI!Q112 -> 0 | BV118: =+SENI!T112 -> 0 | BW118: 0 | BX118: =+'NILAI SMT 6 (US)'!AC112 -> 0 | BY118: 0 | BZ118: =+PENJAS!H112 -> 0 | CA118: =+PENJAS!K112 -> 0 | CB118: =+PENJAS!N112 -> 0 | CC118: =+PENJAS!Q112 -> 0 | CD118: =+PENJAS!T112 -> 0 | CE118: 0 | CF118: =+'NILAI SMT 6 (US)'!AF112 -> 0 | CG118: 0 | CH118: =+'TIK-KET'!H112 -> 0 | CI118: =+'TIK-KET'!K112 -> 0 | CJ118: =+'TIK-KET'!N112 -> 0 | CK118: =+'TIK-KET'!Q112 -> 0 | CL118: =+'TIK-KET'!T112 -> 0 | CM118: 0 | CN118: =+'NILAI SMT 6 (US)'!AI112 -> 0 | CO118: 0 | CP118: =+'MLK1'!H112 -> 0 | CQ118: =+'MLK1'!K112 -> 0 | CR118: =+'MLK1'!N112 -> 0 | CS118: =+'MLK1'!Q112 -> 0 | CT118: =+'MLK1'!T112 -> 0 | CU118: 0 | CV118: =+'NILAI SMT 6 (US)'!AL112 -> 0 | CW118: 0 | CX118: =+'MLK2'!H112 -> 0 | CY118: =+'MLK2'!K112 -> 0 | CZ118: =+'MLK2'!N112 -> 0 | DA118: =+'MLK2'!Q112 -> 0 | DB118: =+'MLK2'!T112 -> 0 | DC118: 0 | DD118: =+'NILAI SMT 6 (US)'!AO112 -> 0 | DE118: 0 | DF118: 0 | DG118: =DF118/('KRITERIA&MULOK'!$E$20) -> 0 | DH118: 30 | DI118: 7.5 | DJ118: 18 | DK118: 4.5 | DL118: B | DM118: TIDAK LULUS
A119: =+BIODATA!A113 -> 106 | B119: =+BIODATA!B113 -> 0 | C119: =+BIODATA!E113 -> 0 | D119: =+BIODATA!C113 -> 0 | E119: =+BIODATA!D113 -> 0 | F119: =+BIND!H113 -> 0 | G119: =+BIND!K113 -> 0 | H119: =+BIND!N113 -> 0 | I119: =+BIND!Q113 -> 0 | J119: =+BIND!T113 -> 0 | K119: 0 | L119: =+'NILAI SMT 6 (US)'!N113 -> 0 | M119: 0 | N119: 7 | O119: 4.2 | P119: =+'B-ING'!H113 -> 0 | Q119: =+'B-ING'!K113 -> 0 | R119: =+'B-ING'!N113 -> 0 | S119: =+'B-ING'!Q113 -> 0 | T119: =+'B-ING'!T113 -> 0 | U119: 0 | V119: =+'NILAI SMT 6 (US)'!Q113 -> 0 | W119: 0 | X119: 8 | Y119: 4.8 | Z119: =+MAT!H113 -> 0 | AA119: =+MAT!K113 -> 0 | AB119: =+MAT!N113 -> 0 | AC119: =+MAT!Q113 -> 0 | AD119: =+MAT!T113 -> 0 | AE119: 0 | AF119: =+'NILAI SMT 6 (US)'!T113 -> 0 | AG119: 0 | AH119: 9 | AI119: 5.4 | AJ119: =+IPA!H113 -> 0 | AK119: =+IPA!K113 -> 0 | AL119: =+IPA!N113 -> 0 | AM119: =+IPA!Q113 -> 0 | AN119: =+IPA!T113 -> 0 | AO119: 0 | AP119: =+'NILAI SMT 6 (US)'!W113 -> 0 | AQ119: 0 | AR119: 6 | AS119: 3.6 | AT119: =+Agama!H113 -> 0 | AU119: =+Agama!K113 -> 0 | AV119: =+Agama!N113 -> 0 | AW119: =+Agama!Q113 -> 0 | AX119: =+Agama!T113 -> 0 | AY119: 0 | AZ119: =+'NILAI SMT 6 (US)'!H113 -> 0 | BA119: 0 | BB119: =+PPKn!H113 -> 0 | BC119: =+PPKn!K113 -> 0 | BD119: =+PPKn!N113 -> 0 | BE119: =+PPKn!Q113 -> 0 | BF119: =+PPKn!T113 -> 0 | BG119: 0 | BH119: =+'NILAI SMT 6 (US)'!K113 -> 0 | BI119: 0 | BJ119: =+IPS!H113 -> 0 | BK119: =+IPS!K113 -> 0 | BL119: =+IPS!N113 -> 0 | BM119: =+IPS!Q113 -> 0 | BN119: =+IPS!T113 -> 0 | BO119: 0 | BP119: =+'NILAI SMT 6 (US)'!Z113 -> 0 | BQ119: 0 | BR119: =+SENI!H113 -> 0 | BS119: =+SENI!K113 -> 0 | BT119: =+SENI!N113 -> 0 | BU119: =+SENI!Q113 -> 0 | BV119: =+SENI!T113 -> 0 | BW119: 0 | BX119: =+'NILAI SMT 6 (US)'!AC113 -> 0 | BY119: 0 | BZ119: =+PENJAS!H113 -> 0 | CA119: =+PENJAS!K113 -> 0 | CB119: =+PENJAS!N113 -> 0 | CC119: =+PENJAS!Q113 -> 0 | CD119: =+PENJAS!T113 -> 0 | CE119: 0 | CF119: =+'NILAI SMT 6 (US)'!AF113 -> 0 | CG119: 0 | CH119: =+'TIK-KET'!H113 -> 0 | CI119: =+'TIK-KET'!K113 -> 0 | CJ119: =+'TIK-KET'!N113 -> 0 | CK119: =+'TIK-KET'!Q113 -> 0 | CL119: =+'TIK-KET'!T113 -> 0 | CM119: 0 | CN119: =+'NILAI SMT 6 (US)'!AI113 -> 0 | CO119: 0 | CP119: =+'MLK1'!H113 -> 0 | CQ119: =+'MLK1'!K113 -> 0 | CR119: =+'MLK1'!N113 -> 0 | CS119: =+'MLK1'!Q113 -> 0 | CT119: =+'MLK1'!T113 -> 0 | CU119: 0 | CV119: =+'NILAI SMT 6 (US)'!AL113 -> 0 | CW119: 0 | CX119: =+'MLK2'!H113 -> 0 | CY119: =+'MLK2'!K113 -> 0 | CZ119: =+'MLK2'!N113 -> 0 | DA119: =+'MLK2'!Q113 -> 0 | DB119: =+'MLK2'!T113 -> 0 | DC119: 0 | DD119: =+'NILAI SMT 6 (US)'!AO113 -> 0 | DE119: 0 | DF119: 0 | DG119: =DF119/('KRITERIA&MULOK'!$E$20) -> 0 | DH119: 30 | DI119: 7.5 | DJ119: 18 | DK119: 4.5 | DL119: B | DM119: TIDAK LULUS
A120: =+BIODATA!A114 -> 107 | B120: =+BIODATA!B114 -> 0 | C120: =+BIODATA!E114 -> 0 | D120: =+BIODATA!C114 -> 0 | E120: =+BIODATA!D114 -> 0 | F120: =+BIND!H114 -> 0 | G120: =+BIND!K114 -> 0 | H120: =+BIND!N114 -> 0 | I120: =+BIND!Q114 -> 0 | J120: =+BIND!T114 -> 0 | K120: 0 | L120: =+'NILAI SMT 6 (US)'!N114 -> 0 | M120: 0 | N120: 7 | O120: 4.2 | P120: =+'B-ING'!H114 -> 0 | Q120: =+'B-ING'!K114 -> 0 | R120: =+'B-ING'!N114 -> 0 | S120: =+'B-ING'!Q114 -> 0 | T120: =+'B-ING'!T114 -> 0 | U120: 0 | V120: =+'NILAI SMT 6 (US)'!Q114 -> 0 | W120: 0 | X120: 8 | Y120: 4.8 | Z120: =+MAT!H114 -> 0 | AA120: =+MAT!K114 -> 0 | AB120: =+MAT!N114 -> 0 | AC120: =+MAT!Q114 -> 0 | AD120: =+MAT!T114 -> 0 | AE120: 0 | AF120: =+'NILAI SMT 6 (US)'!T114 -> 0 | AG120: 0 | AH120: 9 | AI120: 5.4 | AJ120: =+IPA!H114 -> 0 | AK120: =+IPA!K114 -> 0 | AL120: =+IPA!N114 -> 0 | AM120: =+IPA!Q114 -> 0 | AN120: =+IPA!T114 -> 0 | AO120: 0 | AP120: =+'NILAI SMT 6 (US)'!W114 -> 0 | AQ120: 0 | AR120: 6 | AS120: 3.6 | AT120: =+Agama!H114 -> 0 | AU120: =+Agama!K114 -> 0 | AV120: =+Agama!N114 -> 0 | AW120: =+Agama!Q114 -> 0 | AX120: =+Agama!T114 -> 0 | AY120: 0 | AZ120: =+'NILAI SMT 6 (US)'!H114 -> 0 | BA120: 0 | BB120: =+PPKn!H114 -> 0 | BC120: =+PPKn!K114 -> 0 | BD120: =+PPKn!N114 -> 0 | BE120: =+PPKn!Q114 -> 0 | BF120: =+PPKn!T114 -> 0 | BG120: 0 | BH120: =+'NILAI SMT 6 (US)'!K114 -> 0 | BI120: 0 | BJ120: =+IPS!H114 -> 0 | BK120: =+IPS!K114 -> 0 | BL120: =+IPS!N114 -> 0 | BM120: =+IPS!Q114 -> 0 | BN120: =+IPS!T114 -> 0 | BO120: 0 | BP120: =+'NILAI SMT 6 (US)'!Z114 -> 0 | BQ120: 0 | BR120: =+SENI!H114 -> 0 | BS120: =+SENI!K114 -> 0 | BT120: =+SENI!N114 -> 0 | BU120: =+SENI!Q114 -> 0 | BV120: =+SENI!T114 -> 0 | BW120: 0 | BX120: =+'NILAI SMT 6 (US)'!AC114 -> 0 | BY120: 0 | BZ120: =+PENJAS!H114 -> 0 | CA120: =+PENJAS!K114 -> 0 | CB120: =+PENJAS!N114 -> 0 | CC120: =+PENJAS!Q114 -> 0 | CD120: =+PENJAS!T114 -> 0 | CE120: 0 | CF120: =+'NILAI SMT 6 (US)'!AF114 -> 0 | CG120: 0 | CH120: =+'TIK-KET'!H114 -> 0 | CI120: =+'TIK-KET'!K114 -> 0 | CJ120: =+'TIK-KET'!N114 -> 0 | CK120: =+'TIK-KET'!Q114 -> 0 | CL120: =+'TIK-KET'!T114 -> 0 | CM120: 0 | CN120: =+'NILAI SMT 6 (US)'!AI114 -> 0 | CO120: 0 | CP120: =+'MLK1'!H114 -> 0 | CQ120: =+'MLK1'!K114 -> 0 | CR120: =+'MLK1'!N114 -> 0 | CS120: =+'MLK1'!Q114 -> 0 | CT120: =+'MLK1'!T114 -> 0 | CU120: 0 | CV120: =+'NILAI SMT 6 (US)'!AL114 -> 0 | CW120: 0 | CX120: =+'MLK2'!H114 -> 0 | CY120: =+'MLK2'!K114 -> 0 | CZ120: =+'MLK2'!N114 -> 0 | DA120: =+'MLK2'!Q114 -> 0 | DB120: =+'MLK2'!T114 -> 0 | DC120: 0 | DD120: =+'NILAI SMT 6 (US)'!AO114 -> 0 | DE120: 0 | DF120: 0 | DG120: =DF120/('KRITERIA&MULOK'!$E$20) -> 0 | DH120: 30 | DI120: 7.5 | DJ120: 18 | DK120: 4.5 | DL120: B | DM120: TIDAK LULUS
A121: =+BIODATA!A115 -> 108 | B121: =+BIODATA!B115 -> 0 | C121: =+BIODATA!E115 -> 0 | D121: =+BIODATA!C115 -> 0 | E121: =+BIODATA!D115 -> 0 | F121: =+BIND!H115 -> 0 | G121: =+BIND!K115 -> 0 | H121: =+BIND!N115 -> 0 | I121: =+BIND!Q115 -> 0 | J121: =+BIND!T115 -> 0 | K121: 0 | L121: =+'NILAI SMT 6 (US)'!N115 -> 0 | M121: 0 | N121: 7 | O121: 4.2 | P121: =+'B-ING'!H115 -> 0 | Q121: =+'B-ING'!K115 -> 0 | R121: =+'B-ING'!N115 -> 0 | S121: =+'B-ING'!Q115 -> 0 | T121: =+'B-ING'!T115 -> 0 | U121: 0 | V121: =+'NILAI SMT 6 (US)'!Q115 -> 0 | W121: 0 | X121: 8 | Y121: 4.8 | Z121: =+MAT!H115 -> 0 | AA121: =+MAT!K115 -> 0 | AB121: =+MAT!N115 -> 0 | AC121: =+MAT!Q115 -> 0 | AD121: =+MAT!T115 -> 0 | AE121: 0 | AF121: =+'NILAI SMT 6 (US)'!T115 -> 0 | AG121: 0 | AH121: 9 | AI121: 5.4 | AJ121: =+IPA!H115 -> 0 | AK121: =+IPA!K115 -> 0 | AL121: =+IPA!N115 -> 0 | AM121: =+IPA!Q115 -> 0 | AN121: =+IPA!T115 -> 0 | AO121: 0 | AP121: =+'NILAI SMT 6 (US)'!W115 -> 0 | AQ121: 0 | AR121: 6 | AS121: 3.6 | AT121: =+Agama!H115 -> 0 | AU121: =+Agama!K115 -> 0 | AV121: =+Agama!N115 -> 0 | AW121: =+Agama!Q115 -> 0 | AX121: =+Agama!T115 -> 0 | AY121: 0 | AZ121: =+'NILAI SMT 6 (US)'!H115 -> 0 | BA121: 0 | BB121: =+PPKn!H115 -> 0 | BC121: =+PPKn!K115 -> 0 | BD121: =+PPKn!N115 -> 0 | BE121: =+PPKn!Q115 -> 0 | BF121: =+PPKn!T115 -> 0 | BG121: 0 | BH121: =+'NILAI SMT 6 (US)'!K115 -> 0 | BI121: 0 | BJ121: =+IPS!H115 -> 0 | BK121: =+IPS!K115 -> 0 | BL121: =+IPS!N115 -> 0 | BM121: =+IPS!Q115 -> 0 | BN121: =+IPS!T115 -> 0 | BO121: 0 | BP121: =+'NILAI SMT 6 (US)'!Z115 -> 0 | BQ121: 0 | BR121: =+SENI!H115 -> 0 | BS121: =+SENI!K115 -> 0 | BT121: =+SENI!N115 -> 0 | BU121: =+SENI!Q115 -> 0 | BV121: =+SENI!T115 -> 0 | BW121: 0 | BX121: =+'NILAI SMT 6 (US)'!AC115 -> 0 | BY121: 0 | BZ121: =+PENJAS!H115 -> 0 | CA121: =+PENJAS!K115 -> 0 | CB121: =+PENJAS!N115 -> 0 | CC121: =+PENJAS!Q115 -> 0 | CD121: =+PENJAS!T115 -> 0 | CE121: 0 | CF121: =+'NILAI SMT 6 (US)'!AF115 -> 0 | CG121: 0 | CH121: =+'TIK-KET'!H115 -> 0 | CI121: =+'TIK-KET'!K115 -> 0 | CJ121: =+'TIK-KET'!N115 -> 0 | CK121: =+'TIK-KET'!Q115 -> 0 | CL121: =+'TIK-KET'!T115 -> 0 | CM121: 0 | CN121: =+'NILAI SMT 6 (US)'!AI115 -> 0 | CO121: 0 | CP121: =+'MLK1'!H115 -> 0 | CQ121: =+'MLK1'!K115 -> 0 | CR121: =+'MLK1'!N115 -> 0 | CS121: =+'MLK1'!Q115 -> 0 | CT121: =+'MLK1'!T115 -> 0 | CU121: 0 | CV121: =+'NILAI SMT 6 (US)'!AL115 -> 0 | CW121: 0 | CX121: =+'MLK2'!H115 -> 0 | CY121: =+'MLK2'!K115 -> 0 | CZ121: =+'MLK2'!N115 -> 0 | DA121: =+'MLK2'!Q115 -> 0 | DB121: =+'MLK2'!T115 -> 0 | DC121: 0 | DD121: =+'NILAI SMT 6 (US)'!AO115 -> 0 | DE121: 0 | DF121: 0 | DG121: =DF121/('KRITERIA&MULOK'!$E$20) -> 0 | DH121: 30 | DI121: 7.5 | DJ121: 18 | DK121: 4.5 | DL121: B | DM121: TIDAK LULUS
A122: =+BIODATA!A116 -> 109 | B122: =+BIODATA!B116 -> 0 | C122: =+BIODATA!E116 -> 0 | D122: =+BIODATA!C116 -> 0 | E122: =+BIODATA!D116 -> 0 | F122: =+BIND!H116 -> 0 | G122: =+BIND!K116 -> 0 | H122: =+BIND!N116 -> 0 | I122: =+BIND!Q116 -> 0 | J122: =+BIND!T116 -> 0 | K122: 0 | L122: =+'NILAI SMT 6 (US)'!N116 -> 0 | M122: 0 | N122: 7 | O122: 4.2 | P122: =+'B-ING'!H116 -> 0 | Q122: =+'B-ING'!K116 -> 0 | R122: =+'B-ING'!N116 -> 0 | S122: =+'B-ING'!Q116 -> 0 | T122: =+'B-ING'!T116 -> 0 | U122: 0 | V122: =+'NILAI SMT 6 (US)'!Q116 -> 0 | W122: 0 | X122: 8 | Y122: 4.8 | Z122: =+MAT!H116 -> 0 | AA122: =+MAT!K116 -> 0 | AB122: =+MAT!N116 -> 0 | AC122: =+MAT!Q116 -> 0 | AD122: =+MAT!T116 -> 0 | AE122: 0 | AF122: =+'NILAI SMT 6 (US)'!T116 -> 0 | AG122: 0 | AH122: 9 | AI122: 5.4 | AJ122: =+IPA!H116 -> 0 | AK122: =+IPA!K116 -> 0 | AL122: =+IPA!N116 -> 0 | AM122: =+IPA!Q116 -> 0 | AN122: =+IPA!T116 -> 0 | AO122: 0 | AP122: =+'NILAI SMT 6 (US)'!W116 -> 0 | AQ122: 0 | AR122: 6 | AS122: 3.6 | AT122: =+Agama!H116 -> 0 | AU122: =+Agama!K116 -> 0 | AV122: =+Agama!N116 -> 0 | AW122: =+Agama!Q116 -> 0 | AX122: =+Agama!T116 -> 0 | AY122: 0 | AZ122: =+'NILAI SMT 6 (US)'!H116 -> 0 | BA122: 0 | BB122: =+PPKn!H116 -> 0 | BC122: =+PPKn!K116 -> 0 | BD122: =+PPKn!N116 -> 0 | BE122: =+PPKn!Q116 -> 0 | BF122: =+PPKn!T116 -> 0 | BG122: 0 | BH122: =+'NILAI SMT 6 (US)'!K116 -> 0 | BI122: 0 | BJ122: =+IPS!H116 -> 0 | BK122: =+IPS!K116 -> 0 | BL122: =+IPS!N116 -> 0 | BM122: =+IPS!Q116 -> 0 | BN122: =+IPS!T116 -> 0 | BO122: 0 | BP122: =+'NILAI SMT 6 (US)'!Z116 -> 0 | BQ122: 0 | BR122: =+SENI!H116 -> 0 | BS122: =+SENI!K116 -> 0 | BT122: =+SENI!N116 -> 0 | BU122: =+SENI!Q116 -> 0 | BV122: =+SENI!T116 -> 0 | BW122: 0 | BX122: =+'NILAI SMT 6 (US)'!AC116 -> 0 | BY122: 0 | BZ122: =+PENJAS!H116 -> 0 | CA122: =+PENJAS!K116 -> 0 | CB122: =+PENJAS!N116 -> 0 | CC122: =+PENJAS!Q116 -> 0 | CD122: =+PENJAS!T116 -> 0 | CE122: 0 | CF122: =+'NILAI SMT 6 (US)'!AF116 -> 0 | CG122: 0 | CH122: =+'TIK-KET'!H116 -> 0 | CI122: =+'TIK-KET'!K116 -> 0 | CJ122: =+'TIK-KET'!N116 -> 0 | CK122: =+'TIK-KET'!Q116 -> 0 | CL122: =+'TIK-KET'!T116 -> 0 | CM122: 0 | CN122: =+'NILAI SMT 6 (US)'!AI116 -> 0 | CO122: 0 | CP122: =+'MLK1'!H116 -> 0 | CQ122: =+'MLK1'!K116 -> 0 | CR122: =+'MLK1'!N116 -> 0 | CS122: =+'MLK1'!Q116 -> 0 | CT122: =+'MLK1'!T116 -> 0 | CU122: 0 | CV122: =+'NILAI SMT 6 (US)'!AL116 -> 0 | CW122: 0 | CX122: =+'MLK2'!H116 -> 0 | CY122: =+'MLK2'!K116 -> 0 | CZ122: =+'MLK2'!N116 -> 0 | DA122: =+'MLK2'!Q116 -> 0 | DB122: =+'MLK2'!T116 -> 0 | DC122: 0 | DD122: =+'NILAI SMT 6 (US)'!AO116 -> 0 | DE122: 0 | DF122: 0 | DG122: =DF122/('KRITERIA&MULOK'!$E$20) -> 0 | DH122: 30 | DI122: 7.5 | DJ122: 18 | DK122: 4.5 | DL122: B | DM122: TIDAK LULUS
A123: =+BIODATA!A117 -> 110 | B123: =+BIODATA!B117 -> 0 | C123: =+BIODATA!E117 -> 0 | D123: =+BIODATA!C117 -> 0 | E123: =+BIODATA!D117 -> 0 | F123: =+BIND!H117 -> 0 | G123: =+BIND!K117 -> 0 | H123: =+BIND!N117 -> 0 | I123: =+BIND!Q117 -> 0 | J123: =+BIND!T117 -> 0 | K123: 0 | L123: =+'NILAI SMT 6 (US)'!N117 -> 0 | M123: 0 | N123: 7 | O123: 4.2 | P123: =+'B-ING'!H117 -> 0 | Q123: =+'B-ING'!K117 -> 0 | R123: =+'B-ING'!N117 -> 0 | S123: =+'B-ING'!Q117 -> 0 | T123: =+'B-ING'!T117 -> 0 | U123: 0 | V123: =+'NILAI SMT 6 (US)'!Q117 -> 0 | W123: 0 | X123: 8 | Y123: 4.8 | Z123: =+MAT!H117 -> 0 | AA123: =+MAT!K117 -> 0 | AB123: =+MAT!N117 -> 0 | AC123: =+MAT!Q117 -> 0 | AD123: =+MAT!T117 -> 0 | AE123: 0 | AF123: =+'NILAI SMT 6 (US)'!T117 -> 0 | AG123: 0 | AH123: 9 | AI123: 5.4 | AJ123: =+IPA!H117 -> 0 | AK123: =+IPA!K117 -> 0 | AL123: =+IPA!N117 -> 0 | AM123: =+IPA!Q117 -> 0 | AN123: =+IPA!T117 -> 0 | AO123: 0 | AP123: =+'NILAI SMT 6 (US)'!W117 -> 0 | AQ123: 0 | AR123: 6 | AS123: 3.6 | AT123: =+Agama!H117 -> 0 | AU123: =+Agama!K117 -> 0 | AV123: =+Agama!N117 -> 0 | AW123: =+Agama!Q117 -> 0 | AX123: =+Agama!T117 -> 0 | AY123: 0 | AZ123: =+'NILAI SMT 6 (US)'!H117 -> 0 | BA123: 0 | BB123: =+PPKn!H117 -> 0 | BC123: =+PPKn!K117 -> 0 | BD123: =+PPKn!N117 -> 0 | BE123: =+PPKn!Q117 -> 0 | BF123: =+PPKn!T117 -> 0 | BG123: 0 | BH123: =+'NILAI SMT 6 (US)'!K117 -> 0 | BI123: 0 | BJ123: =+IPS!H117 -> 0 | BK123: =+IPS!K117 -> 0 | BL123: =+IPS!N117 -> 0 | BM123: =+IPS!Q117 -> 0 | BN123: =+IPS!T117 -> 0 | BO123: 0 | BP123: =+'NILAI SMT 6 (US)'!Z117 -> 0 | BQ123: 0 | BR123: =+SENI!H117 -> 0 | BS123: =+SENI!K117 -> 0 | BT123: =+SENI!N117 -> 0 | BU123: =+SENI!Q117 -> 0 | BV123: =+SENI!T117 -> 0 | BW123: 0 | BX123: =+'NILAI SMT 6 (US)'!AC117 -> 0 | BY123: 0 | BZ123: =+PENJAS!H117 -> 0 | CA123: =+PENJAS!K117 -> 0 | CB123: =+PENJAS!N117 -> 0 | CC123: =+PENJAS!Q117 -> 0 | CD123: =+PENJAS!T117 -> 0 | CE123: 0 | CF123: =+'NILAI SMT 6 (US)'!AF117 -> 0 | CG123: 0 | CH123: =+'TIK-KET'!H117 -> 0 | CI123: =+'TIK-KET'!K117 -> 0 | CJ123: =+'TIK-KET'!N117 -> 0 | CK123: =+'TIK-KET'!Q117 -> 0 | CL123: =+'TIK-KET'!T117 -> 0 | CM123: 0 | CN123: =+'NILAI SMT 6 (US)'!AI117 -> 0 | CO123: 0 | CP123: =+'MLK1'!H117 -> 0 | CQ123: =+'MLK1'!K117 -> 0 | CR123: =+'MLK1'!N117 -> 0 | CS123: =+'MLK1'!Q117 -> 0 | CT123: =+'MLK1'!T117 -> 0 | CU123: 0 | CV123: =+'NILAI SMT 6 (US)'!AL117 -> 0 | CW123: 0 | CX123: =+'MLK2'!H117 -> 0 | CY123: =+'MLK2'!K117 -> 0 | CZ123: =+'MLK2'!N117 -> 0 | DA123: =+'MLK2'!Q117 -> 0 | DB123: =+'MLK2'!T117 -> 0 | DC123: 0 | DD123: =+'NILAI SMT 6 (US)'!AO117 -> 0 | DE123: 0 | DF123: 0 | DG123: =DF123/('KRITERIA&MULOK'!$E$20) -> 0 | DH123: 30 | DI123: 7.5 | DJ123: 18 | DK123: 4.5 | DL123: B | DM123: TIDAK LULUS
